Workbook

Sheet INTRO
B2: PC Joint Reporting Form v.3.1
B4: The purpose of this template Joint Reporting Form (JRF) - available as an Excel file - is to provide national health authorities and data managers with a standardized tool to address these reporting challenges, facilitate integration and thereby further contribute to improving overall programme management. This template aims to standardize national reporting of programme implementation outcomes, improve availability and coordination of preventive chemotherapy data across the World Health Organization regions. National authorities are requested to complete this form for submission to the World Health Organization any time before 15 August of the current year for reporting data on PC interventions implemented during the previous year.
B6: Structure of the application (worksheets):
B8: INTRO | C8: This worksheet includes guides on how to complete the joint reporting form and information about status of PC for endemic diseases in the country
B9: COUNTRY_INFO | C9: This worksheet includes information about administrative structure of the country, population by age group, status of endemicity for each disease, population requiring PC, planned interventions and interventions implemented
B10: MDA1, MDA2, MDA3, T1, T2 and T3 | C10: These worksheets include information about endemic districts targeted for treatment with specified PC medicines, treatment plan, and number of people who received treatment by age group
B11: DISTRICT | C11: This worksheet includes summary of people treated by disease at the level of implementation. If data by gender is available, it requires to enter.
B12: SUMMARY | C12: This worksheet includes summary of people treated by disease and by PC intervention. Before generating the report (run macros) please select the disease for which you need the report. Follow the same rule to generate various reports. This worksheet should be printed and submitted as a Joint Report (see the instruction for submission in the SUMMARY worksheet).
B14: Instruction for data entry
B16: Most of the cells in the above-mentioned worksheets include formula that are calculated automatically according to the treatment policy recommended by WHO for each disease. See the link http://www.who.int/neglected_diseases/preventive_chemotherapy/pct_manual/en/index.html
B18: Please enter your data into the cells according to their colour code:
C20: White - cell is not protected. Please enter the value of the requested indicator.
C22: Yellow - cell is protected and includes name of indicator. No data entry required.
C24: Orange - cell is not protected and includes a drop-down menu. Please select the value from the drop-down list.
C27: Green - cell is not protected and includes formula. Please change the value only if your data are different from those that are calculated automatically.
C30: Blue - cell is protected and includes formula. No data entry required.
B32: Country data
B34: COUNTRY | E34: ZIMBABWE | G34: ZW | H34: ZWE
B36: Year of reporting data | E36: 2022
B38: Is country endemic for lymphatic filariasis (LF)? | E38: Endemic
B40: Is country endemic for onchocerciasis (ONCHO)? | E40: Non-endemic
B42: Is country endemic for soil-transmitted helminthiases (STH)? | E42: Endemic
B44: Is country endemic for schistosomiasis (SCH)? | E44: Endemic
B46: How many administrative units in the country? | E46: 63
B47: If demographical data at the second administrative level are not available by age group, please enter the proportion (%) of population by age group in the country. If data are available, please leave these cells blank.
B48: 1-4 years age | C48: Preschool-age children (PreSAC) | E48: 0.1143
B49: 5-14 years age | C49: School-age children (SAC) | E49: 0.2651
B50: 15 years + | C50: Adults | E50: 0.5911

Sheet COUNTRY_INFO
A1: COUNTRY INFORMATION
A2: Administrative structure, population by age group, endemicity status, planned interventions and interventions implemented | U2: 1.0199
A4: TOTAL | D4: =SUM(D$9:D$1000) -> 14843641 | E4: =SUM(E$9:E$1000) -> 1696632 | F4: =SUM(F$9:F$1000) -> 3935049 | G4: =SUM(G$9:G$1000) -> 8774078 | L4: =SUM(L$9:L$1000) -> 8352700 | M4: =SUM(M$9:M$1000) -> 0 | N4: =SUM(N$9:N$1000) -> 553600 | O4: =SUM(O$9:O$1000) -> 3326158.58
A6: Country administrative structure | D6: Population | H6: Endemicity | L6: Population requiring PC | P6: Number of treatment rounds planned for the year | T6: PC implemented | V6: Click to see the recommended strategy | AA6: mda2 | AB6: t1 | AC6: t2 | AD6: t3r1 | AH6: Prev LSHTM
A7: Country | B7: Province/State | C7: District | D7: Total | E7: PreSAC | F7: SAC | G7: Adults | H7: LF | I7: Oncho | J7: STH | K7: SCH | L7: LF | M7: Oncho | N7: STH | O7: SCH | P7: LF | Q7: Oncho | R7: STH | S7: SCH | T7: ROUND 1 | U7: ROUND2 | Y7: IU_ID | Z7: IU_NAME | AA7: x | AB7: x | AC7: x | AD7: x | AE7: x | AF7: x | AG7: x | AH7: x | AI7: x | AJ7: x | AK7: x | AL7: x | AM7: x | AN7: x | AO7: x | AP7: x | AQ7: x | AR7: x | AS7: x | AT7: x | AU7: x | AV7: x | AW7: x | AX7: x | AY7: x | AZ7: x | BA7: x | BB7: x | BC7: x | BD7: x | BE7: x | BF7: x | BG7: x | BH7: x | BI7: x | BJ7: x | BK7: x | BL7: x | BM7: x | BN7: x | BO7: x | BP7: x | BQ7: x | BR7: x | BS7: x | BT7: x | BU7: x | BV7: x | BW7: x | BX7: x | BY7: x
A9: =IF(INTRO!$E$34<>0,INTRO!$E$34,"") -> ZIMBABWE | B9: Manicaland | C9: Buhera | D9: 279431 | E9: =IF(INTRO!$E$48="","",ROUND($D9*INTRO!$E$48,0)) -> 31939 | F9: =IF(INTRO!$E$49="","",ROUND($D9*INTRO!$E$49,0)) -> 74077 | G9: =IF(INTRO!$E$50="","",ROUND($D9*INTRO!$E$50,0)) -> 165172 | H9: 0 | I9: 0 | J9: 0 | K9: 2 | L9: =IF(INTRO!$E$38="Endemic", IF($H9>0, IF($H9=4,"Unknown", IF($H9=99,"Stopped", $D9)), 0),"Not required") -> 0 | M9: =IF(INTRO!$E$40="Endemic", IF($I9>0, IF($I9=4,"Unknown",IF($I9=99,"Stopped", $D9)), 0),"Not required") -> Not required | N9: =IF([1]INTRO!$E$41="Endemic", IF(AND($J9>1,$J9<5), IF($J9=4, "Unknown", E9+F9), 0),"Not required") -> 0 | O9: =IF([1]INTRO!$E$43="Endemic", IF(AND($K9>0,$K9<5), IF($K9=4,"Unknown", IF($K9=1, $F9*0.33, IF($K9=2, $F9*0.5+$G9*0.2, SUM(F9:G9)))), 0),"Not required") -> 70072.9 | P9: 0 | Q9: 0 | R9: 1 | S9: 1 | T9: T2 (PZQ) | U9: T3 (ALB/MBD) | Y9: 52904 | Z9: Buhera | AA9: ='MDA2'!M9 -> 0 | AB9: ='T1'!O9 -> 0 | AC9: ='T2'!M9 -> 79393 | AD9: =T3_R1!N9 -> 75388 | AH9: 0.2702702703 | AI9: 0 | AL9: =_xlfn.XLOOKUP($Y9,[2]Sheet3!$C:$C,[2]Sheet3!E:E) -> 26 | AM9: =_xlfn.XLOOKUP($Y9,[2]Sheet3!$C:$C,[2]Sheet3!F:F) -> 6.626363789 | AO9: =_xlfn.XLOOKUP($Y9,[2]Sheet4!$B:$B,[2]Sheet4!$G:$G) -> 9.092672018 | AP9: 1 | AS9: =_xlfn.XLOOKUP($Y9,[3]COUNTRY_INFO!$Y$9:$Y$71,[3]COUNTRY_INFO!H$9:H$71) -> 0 | AT9: =_xlfn.XLOOKUP($Y9,[3]COUNTRY_INFO!$Y$9:$Y$71,[3]COUNTRY_INFO!I$9:I$71) -> 0 | AU9: =_xlfn.XLOOKUP($Y9,[3]COUNTRY_INFO!$Y$9:$Y$71,[3]COUNTRY_INFO!J$9:J$71) -> 0 | AV9: =_xlfn.XLOOKUP($Y9,[3]COUNTRY_INFO!$Y$9:$Y$71,[3]COUNTRY_INFO!K$9:K$71) -> 2 | AW9: =AS9=H9 -> TRUE | AX9: =AT9=I9 -> TRUE | AY9: =AU9=J9 -> TRUE | AZ9: =AV9=K9 -> TRUE
A10: =IF(INTRO!$E$34<>0,INTRO!$E$34,"") -> ZIMBABWE | B10: Manicaland | C10: Chimanimani | D10: 153355 | E10: =IF(INTRO!$E$48="","",ROUND($D10*INTRO!$E$48,0)) -> 17528 | F10: =IF(INTRO!$E$49="","",ROUND($D10*INTRO!$E$49,0)) -> 40654 | G10: =IF(INTRO!$E$50="","",ROUND($D10*INTRO!$E$50,0)) -> 90648 | H10: 0 | I10: 0 | J10: 1 | K10: 2 | L10: =IF(INTRO!$E$38="Endemic", IF($H10>0, IF($H10=4,"Unknown", IF($H10=99,"Stopped", $D10)), 0),"Not required") -> 0 | M10: =IF(INTRO!$E$40="Endemic", IF($I10>0, IF($I10=4,"Unknown",IF($I10=99,"Stopped", $D10)), 0),"Not required") -> Not required | N10: =IF([1]INTRO!$E$41="Endemic", IF(AND($J10>1,$J10<5), IF($J10=4, "Unknown", E10+F10), 0),"Not required") -> 0 | O10: =IF([1]INTRO!$E$43="Endemic", IF(AND($K10>0,$K10<5), IF($K10=4,"Unknown", IF($K10=1, $F10*0.33, IF($K10=2, $F10*0.5+$G10*0.2, SUM(F10:G10)))), 0),"Not required") -> 38456.6 | P10: 0 | Q10: 0 | R10: 1 | S10: 1 | T10: T2 (PZQ) | U10: T3 (ALB/MBD) | Y10: 52905 | Z10: Chimanimani | AA10: ='MDA2'!M10 -> 0 | AB10: ='T1'!O10 -> 0 | AC10: ='T2'!M10 -> 59155 | AD10: =T3_R1!N10 -> 58922 | AH10: 13.91304348 | AI10: 1 | AL10: =_xlfn.XLOOKUP($Y10,[2]Sheet3!$C:$C,[2]Sheet3!E:E) -> 29.62962963 | AM10: =_xlfn.XLOOKUP($Y10,[2]Sheet3!$C:$C,[2]Sheet3!F:F) -> 8.449074074 | AO10: =_xlfn.XLOOKUP($Y10,[2]Sheet4!$B:$B,[2]Sheet4!$G:$G) -> 14.81481481 | AP10: 2 | AS10: =_xlfn.XLOOKUP($Y10,[3]COUNTRY_INFO!$Y$9:$Y$71,[3]COUNTRY_INFO!H$9:H$71) -> 0 | AT10: =_xlfn.XLOOKUP($Y10,[3]COUNTRY_INFO!$Y$9:$Y$71,[3]COUNTRY_INFO!I$9:I$71) -> 0 | AU10: =_xlfn.XLOOKUP($Y10,[3]COUNTRY_INFO!$Y$9:$Y$71,[3]COUNTRY_INFO!J$9:J$71) -> 1 | AV10: =_xlfn.XLOOKUP($Y10,[3]COUNTRY_INFO!$Y$9:$Y$71,[3]COUNTRY_INFO!K$9:K$71) -> 2 | AW10: TRUE | AX10: TRUE | AY10: TRUE | AZ10: TRUE
A11: =IF(INTRO!$E$34<>0,INTRO!$E$34,"") -> ZIMBABWE | B11: Manicaland | C11: Chipinge | D11: 368367 | E11: =IF(INTRO!$E$48="","",ROUND($D11*INTRO!$E$48,0)) -> 42104 | F11: =IF(INTRO!$E$49="","",ROUND($D11*INTRO!$E$49,0)) -> 97654 | G11: =IF(INTRO!$E$50="","",ROUND($D11*INTRO!$E$50,0)) -> 217742 | H11: 1 | I11: 0 | J11: 1 | K11: 2 | L11: =IF(INTRO!$E$38="Endemic", IF($H11>0, IF($H11=4,"Unknown", IF($H11=99,"Stopped", $D11)), 0),"Not required") -> 368367 | M11: =IF(INTRO!$E$40="Endemic", IF($I11>0, IF($I11=4,"Unknown",IF($I11=99,"Stopped", $D11)), 0),"Not required") -> Not required | N11: =IF([1]INTRO!$E$41="Endemic", IF(AND($J11>1,$J11<5), IF($J11=4, "Unknown", E11+F11), 0),"Not required") -> 0 | O11: =IF([1]INTRO!$E$43="Endemic", IF(AND($K11>0,$K11<5), IF($K11=4,"Unknown", IF($K11=1, $F11*0.33, IF($K11=2, $F11*0.5+$G11*0.2, SUM(F11:G11)))), 0),"Not required") -> 92375.4 | P11: 0 | Q11: 0 | R11: 1 | S11: 1 | T11: T2 (PZQ) | U11: T3 (ALB/MBD) | Y11: 52906 | Z11: Chipinge | AA11: ='MDA2'!M11 -> 0 | AB11: ='T1'!O11 -> 0 | AC11: ='T2'!M11 -> 103918 | AD11: =T3_R1!N11 -> 98504 | AH11: 3.219315895 | AI11: 1 | AL11: =_xlfn.XLOOKUP($Y11,[2]Sheet3!$C:$C,[2]Sheet3!E:E) -> 81.39534884 | AM11: =_xlfn.XLOOKUP($Y11,[2]Sheet3!$C:$C,[2]Sheet3!F:F) -> 7.694570556 | AO11: =_xlfn.XLOOKUP($Y11,[2]Sheet4!$B:$B,[2]Sheet4!$G:$G) -> 14.38374442 | AP11: 2 | AS11: =_xlfn.XLOOKUP($Y11,[3]COUNTRY_INFO!$Y$9:$Y$71,[3]COUNTRY_INFO!H$9:H$71) -> 1 | AT11: =_xlfn.XLOOKUP($Y11,[3]COUNTRY_INFO!$Y$9:$Y$71,[3]COUNTRY_INFO!I$9:I$71) -> 0 | AU11: =_xlfn.XLOOKUP($Y11,[3]COUNTRY_INFO!$Y$9:$Y$71,[3]COUNTRY_INFO!J$9:J$71) -> 1 | AV11: =_xlfn.XLOOKUP($Y11,[3]COUNTRY_INFO!$Y$9:$Y$71,[3]COUNTRY_INFO!K$9:K$71) -> 2 | AW11: TRUE | AX11: TRUE | AY11: TRUE | AZ11: TRUE
A12: =IF(INTRO!$E$34<>0,INTRO!$E$34,"") -> ZIMBABWE | B12: Manicaland | C12: Makoni | D12: 343958 | E12: =IF(INTRO!$E$48="","",ROUND($D12*INTRO!$E$48,0)) -> 39314 | F12: =IF(INTRO!$E$49="","",ROUND($D12*INTRO!$E$49,0)) -> 91183 | G12: =IF(INTRO!$E$50="","",ROUND($D12*INTRO!$E$50,0)) -> 203314 | H12: 0 | I12: 0 | J12: 1 | K12: 2 | L12: =IF(INTRO!$E$38="Endemic", IF($H12>0, IF($H12=4,"Unknown", IF($H12=99,"Stopped", $D12)), 0),"Not required") -> 0 | M12: =IF(INTRO!$E$40="Endemic", IF($I12>0, IF($I12=4,"Unknown",IF($I12=99,"Stopped", $D12)), 0),"Not required") -> Not required | N12: =IF([1]INTRO!$E$41="Endemic", IF(AND($J12>1,$J12<5), IF($J12=4, "Unknown", E12+F12), 0),"Not required") -> 0 | O12: =IF([1]INTRO!$E$43="Endemic", IF(AND($K12>0,$K12<5), IF($K12=4,"Unknown", IF($K12=1, $F12*0.33, IF($K12=2, $F12*0.5+$G12*0.2, SUM(F12:G12)))), 0),"Not required") -> 86254.3 | P12: 0 | Q12: 0 | R12: 1 | S12: 1 | T12: T2 (PZQ) | U12: T3 (ALB/MBD) | Y12: 52907 | Z12: Makoni | AA12: ='MDA2'!M12 -> 0 | AB12: ='T1'!O12 -> 0 | AC12: ='T2'!M12 -> 76277 | AD12: =T3_R1!N12 -> 70417 | AH12: 1.750547046 | AI12: 1 | AL12: =_xlfn.XLOOKUP($Y12,[2]Sheet3!$C:$C,[2]Sheet3!E:E) -> 22.72727273 | AM12: =_xlfn.XLOOKUP($Y12,[2]Sheet3!$C:$C,[2]Sheet3!F:F) -> 3.047772556 | AO12: =_xlfn.XLOOKUP($Y12,[2]Sheet4!$B:$B,[2]Sheet4!$G:$G) -> 3.270597966 | AP12: 1 | AS12: =_xlfn.XLOOKUP($Y12,[3]COUNTRY_INFO!$Y$9:$Y$71,[3]COUNTRY_INFO!H$9:H$71) -> 0 | AT12: =_xlfn.XLOOKUP($Y12,[3]COUNTRY_INFO!$Y$9:$Y$71,[3]COUNTRY_INFO!I$9:I$71) -> 0 | AU12: =_xlfn.XLOOKUP($Y12,[3]COUNTRY_INFO!$Y$9:$Y$71,[3]COUNTRY_INFO!J$9:J$71) -> 1 | AV12: =_xlfn.XLOOKUP($Y12,[3]COUNTRY_INFO!$Y$9:$Y$71,[3]COUNTRY_INFO!K$9:K$71) -> 2 | AW12: TRUE | AX12: TRUE | AY12: TRUE | AZ12: TRUE
A13: =IF(INTRO!$E$34<>0,INTRO!$E$34,"") -> ZIMBABWE | B13: Manicaland | C13: Mutare | D13: 297895 | E13: =IF(INTRO!$E$48="","",ROUND($D13*INTRO!$E$48,0)) -> 34049 | F13: =IF(INTRO!$E$49="","",ROUND($D13*INTRO!$E$49,0)) -> 78972 | G13: =IF(INTRO!$E$50="","",ROUND($D13*INTRO!$E$50,0)) -> 176086 | H13: 0 | I13: 0 | J13: 3 | K13: 2 | L13: =IF(INTRO!$E$38="Endemic", IF($H13>0, IF($H13=4,"Unknown", IF($H13=99,"Stopped", $D13)), 0),"Not required") -> 0 | M13: =IF(INTRO!$E$40="Endemic", IF($I13>0, IF($I13=4,"Unknown",IF($I13=99,"Stopped", $D13)), 0),"Not required") -> Not required | N13: =IF([1]INTRO!$E$41="Endemic", IF(AND($J13>1,$J13<5), IF($J13=4, "Unknown", E13+F13), 0),"Not required") -> 113021 | O13: =IF([1]INTRO!$E$43="Endemic", IF(AND($K13>0,$K13<5), IF($K13=4,"Unknown", IF($K13=1, $F13*0.33, IF($K13=2, $F13*0.5+$G13*0.2, SUM(F13:G13)))), 0),"Not required") -> 74703.2 | P13: 0 | Q13: 0 | R13: 0 | S13: 0 | Y13: 52908 | Z13: Mutare | AA13: ='MDA2'!M13 -> 0 | AB13: ='T1'!O13 -> 0 | AC13: ='T2'!M13 -> 0 | AD13: =T3_R1!N13 -> 0 | AH13: 59.31051496 | AI13: 3 | AL13: =_xlfn.XLOOKUP($Y13,[2]Sheet3!$C:$C,[2]Sheet3!E:E) -> 11.76470588 | AM13: =_xlfn.XLOOKUP($Y13,[2]Sheet3!$C:$C,[2]Sheet3!F:F) -> 3.016365116 | AO13: =_xlfn.XLOOKUP($Y13,[2]Sheet4!$B:$B,[2]Sheet4!$G:$G) -> 3.56140214 | AP13: 1 | AS13: =_xlfn.XLOOKUP($Y13,[3]COUNTRY_INFO!$Y$9:$Y$71,[3]COUNTRY_INFO!H$9:H$71) -> 0 | AT13: =_xlfn.XLOOKUP($Y13,[3]COUNTRY_INFO!$Y$9:$Y$71,[3]COUNTRY_INFO!I$9:I$71) -> 0 | AU13: =_xlfn.XLOOKUP($Y13,[3]COUNTRY_INFO!$Y$9:$Y$71,[3]COUNTRY_INFO!J$9:J$71) -> 3 | AV13: =_xlfn.XLOOKUP($Y13,[3]COUNTRY_INFO!$Y$9:$Y$71,[3]COUNTRY_INFO!K$9:K$71) -> 2 | AW13: TRUE | AX13: TRUE | AY13: TRUE | AZ13: TRUE
A14: =IF(INTRO!$E$34<>0,INTRO!$E$34,"") -> ZIMBABWE | B14: Manicaland | C14: Mutasa | D14: 191775 | E14: =IF(INTRO!$E$48="","",ROUND($D14*INTRO!$E$48,0)) -> 21920 | F14: =IF(INTRO!$E$49="","",ROUND($D14*INTRO!$E$49,0)) -> 50840 | G14: =IF(INTRO!$E$50="","",ROUND($D14*INTRO!$E$50,0)) -> 113358 | H14: 0 | I14: 0 | J14: 1 | K14: 1 | L14: =IF(INTRO!$E$38="Endemic", IF($H14>0, IF($H14=4,"Unknown", IF($H14=99,"Stopped", $D14)), 0),"Not required") -> 0 | M14: =IF(INTRO!$E$40="Endemic", IF($I14>0, IF($I14=4,"Unknown",IF($I14=99,"Stopped", $D14)), 0),"Not required") -> Not required | N14: =IF([1]INTRO!$E$41="Endemic", IF(AND($J14>1,$J14<5), IF($J14=4, "Unknown", E14+F14), 0),"Not required") -> 0 | O14: =IF([1]INTRO!$E$43="Endemic", IF(AND($K14>0,$K14<5), IF($K14=4,"Unknown", IF($K14=1, $F14*0.33, IF($K14=2, $F14*0.5+$G14*0.2, SUM(F14:G14)))), 0),"Not required") -> 16777.2 | P14: 0 | Q14: 0 | R14: 1 | S14: 1 | T14: T2 (PZQ) | U14: T3 (ALB/MBD) | Y14: 52909 | Z14: Mutasa | AA14: ='MDA2'!M14 -> 0 | AB14: ='T1'!O14 -> 0 | AC14: ='T2'!M14 -> 50566 | AD14: =T3_R1!N14 -> 58845 | AH14: 17.98245614 | AI14: 1 | AL14: =_xlfn.XLOOKUP($Y14,[2]Sheet3!$C:$C,[2]Sheet3!E:E) -> 7.692307692 | AM14: =_xlfn.XLOOKUP($Y14,[2]Sheet3!$C:$C,[2]Sheet3!F:F) -> 1.730693905 | AO14: =_xlfn.XLOOKUP($Y14,[2]Sheet4!$B:$B,[2]Sheet4!$G:$G) -> 2.591822592 | AP14: 1 | AS14: =_xlfn.XLOOKUP($Y14,[3]COUNTRY_INFO!$Y$9:$Y$71,[3]COUNTRY_INFO!H$9:H$71) -> 0 | AT14: =_xlfn.XLOOKUP($Y14,[3]COUNTRY_INFO!$Y$9:$Y$71,[3]COUNTRY_INFO!I$9:I$71) -> 0 | AU14: =_xlfn.XLOOKUP($Y14,[3]COUNTRY_INFO!$Y$9:$Y$71,[3]COUNTRY_INFO!J$9:J$71) -> 1 | AV14: =_xlfn.XLOOKUP($Y14,[3]COUNTRY_INFO!$Y$9:$Y$71,[3]COUNTRY_INFO!K$9:K$71) -> 1 | AW14: TRUE | AX14: TRUE | AY14: TRUE | AZ14: TRUE
A15: =IF(INTRO!$E$34<>0,INTRO!$E$34,"") -> ZIMBABWE | B15: Manicaland | C15: Nyanga | D15: 357100 | E15: =IF(INTRO!$E$48="","",ROUND($D15*INTRO!$E$48,0)) -> 40817 | F15: =IF(INTRO!$E$49="","",ROUND($D15*INTRO!$E$49,0)) -> 94667 | G15: =IF(INTRO!$E$50="","",ROUND($D15*INTRO!$E$50,0)) -> 211082 | H15: 0 | I15: 0 | J15: 1 | K15: 2 | L15: =IF(INTRO!$E$38="Endemic", IF($H15>0, IF($H15=4,"Unknown", IF($H15=99,"Stopped", $D15)), 0),"Not required") -> 0 | M15: =IF(INTRO!$E$40="Endemic", IF($I15>0, IF($I15=4,"Unknown",IF($I15=99,"Stopped", $D15)), 0),"Not required") -> Not required | N15: =IF([1]INTRO!$E$41="Endemic", IF(AND($J15>1,$J15<5), IF($J15=4, "Unknown", E15+F15), 0),"Not required") -> 0 | O15: =IF([1]INTRO!$E$43="Endemic", IF(AND($K15>0,$K15<5), IF($K15=4,"Unknown", IF($K15=1, $F15*0.33, IF($K15=2, $F15*0.5+$G15*0.2, SUM(F15:G15)))), 0),"Not required") -> 89549.9 | P15: 0 | Q15: 0 | R15: 1 | S15: 1 | T15: T2 (PZQ) | U15: T3 (ALB/MBD) | Y15: 52910 | Z15: Nyanga | AA15: ='MDA2'!M15 -> 0 | AB15: ='T1'!O15 -> 0 | AC15: ='T2'!M15 -> 40538 | AD15: =T3_R1!N15 -> 39833 | AH15: 2.5 | AI15: 1 | AL15: =_xlfn.XLOOKUP($Y15,[2]Sheet3!$C:$C,[2]Sheet3!E:E) -> 15.2173913 | AM15: =_xlfn.XLOOKUP($Y15,[2]Sheet3!$C:$C,[2]Sheet3!F:F) -> 4.258776167 | AO15: =_xlfn.XLOOKUP($Y15,[2]Sheet4!$B:$B,[2]Sheet4!$G:$G) -> 7.376811594 | AP15: 1 | AS15: =_xlfn.XLOOKUP($Y15,[3]COUNTRY_INFO!$Y$9:$Y$71,[3]COUNTRY_INFO!H$9:H$71) -> 0 | AT15: =_xlfn.XLOOKUP($Y15,[3]COUNTRY_INFO!$Y$9:$Y$71,[3]COUNTRY_INFO!I$9:I$71) -> 0 | AU15: =_xlfn.XLOOKUP($Y15,[3]COUNTRY_INFO!$Y$9:$Y$71,[3]COUNTRY_INFO!J$9:J$71) -> 1 | AV15: =_xlfn.XLOOKUP($Y15,[3]COUNTRY_INFO!$Y$9:$Y$71,[3]COUNTRY_INFO!K$9:K$71) -> 2 | AW15: TRUE | AX15: TRUE | AY15: TRUE | AZ15: TRUE
A16: =IF(INTRO!$E$34<>0,INTRO!$E$34,"") -> ZIMBABWE | B16: Harare | C16: Chitungwiza | D16: 405537 | E16: =IF(INTRO!$E$48="","",ROUND($D16*INTRO!$E$48,0)) -> 46353 | F16: =IF(INTRO!$E$49="","",ROUND($D16*INTRO!$E$49,0)) -> 107508 | G16: =IF(INTRO!$E$50="","",ROUND($D16*INTRO!$E$50,0)) -> 239713 | H16: 0 | I16: 0 | J16: 0 | K16: 1 | L16: =IF(INTRO!$E$38="Endemic", IF($H16>0, IF($H16=4,"Unknown", IF($H16=99,"Stopped", $D16)), 0),"Not required") -> 0 | M16: =IF(INTRO!$E$40="Endemic", IF($I16>0, IF($I16=4,"Unknown",IF($I16=99,"Stopped", $D16)), 0),"Not required") -> Not required | N16: =IF([1]INTRO!$E$41="Endemic", IF(AND($J16>1,$J16<5), IF($J16=4, "Unknown", E16+F16), 0),"Not required") -> 0 | O16: =IF([1]INTRO!$E$43="Endemic", IF(AND($K16>0,$K16<5), IF($K16=4,"Unknown", IF($K16=1, $F16*0.33, IF($K16=2, $F16*0.5+$G16*0.2, SUM(F16:G16)))), 0),"Not required") -> 35477.64 | P16: 0 | Q16: 0 | R16: 0 | S16: 0 | Y16: 52965 | Z16: Chitungwiza | AA16: ='MDA2'!M16 -> 0 | AB16: ='T1'!O16 -> 0 | AC16: ='T2'!M16 -> 0 | AD16: =T3_R1!N16 -> 0 | AH16: 0 | AI16: 0 | AL16: =_xlfn.XLOOKUP($Y16,[2]Sheet3!$C:$C,[2]Sheet3!E:E) -> 3.333333333 | AM16: =_xlfn.XLOOKUP($Y16,[2]Sheet3!$C:$C,[2]Sheet3!F:F) -> 0.2777777778 | AO16: =_xlfn.XLOOKUP($Y16,[2]Sheet4!$B:$B,[2]Sheet4!$G:$G) -> 0.5555555556 | AS16: =_xlfn.XLOOKUP($Y16,[3]COUNTRY_INFO!$Y$9:$Y$71,[3]COUNTRY_INFO!H$9:H$71) -> 0 | AT16: =_xlfn.XLOOKUP($Y16,[3]COUNTRY_INFO!$Y$9:$Y$71,[3]COUNTRY_INFO!I$9:I$71) -> 0 | AU16: =_xlfn.XLOOKUP($Y16,[3]COUNTRY_INFO!$Y$9:$Y$71,[3]COUNTRY_INFO!J$9:J$71) -> 0 | AV16: =_xlfn.XLOOKUP($Y16,[3]COUNTRY_INFO!$Y$9:$Y$71,[3]COUNTRY_INFO!K$9:K$71) -> 1 | AW16: TRUE | AX16: TRUE | AY16: TRUE | AZ16: TRUE
A17: =IF(INTRO!$E$34<>0,INTRO!$E$34,"") -> ZIMBABWE | B17: Harare | C17: Harare | D17: 1817015 | E17: =IF(INTRO!$E$48="","",ROUND($D17*INTRO!$E$48,0)) -> 207685 | F17: =IF(INTRO!$E$49="","",ROUND($D17*INTRO!$E$49,0)) -> 481691 | G17: =IF(INTRO!$E$50="","",ROUND($D17*INTRO!$E$50,0)) -> 1074038 | H17: 0 | I17: 0 | J17: 1 | K17: 1 | L17: =IF(INTRO!$E$38="Endemic", IF($H17>0, IF($H17=4,"Unknown", IF($H17=99,"Stopped", $D17)), 0),"Not required") -> 0 | M17: =IF(INTRO!$E$40="Endemic", IF($I17>0, IF($I17=4,"Unknown",IF($I17=99,"Stopped", $D17)), 0),"Not required") -> Not required | N17: =IF([1]INTRO!$E$41="Endemic", IF(AND($J17>1,$J17<5), IF($J17=4, "Unknown", E17+F17), 0),"Not required") -> 0 | O17: =IF([1]INTRO!$E$43="Endemic", IF(AND($K17>0,$K17<5), IF($K17=4,"Unknown", IF($K17=1, $F17*0.33, IF($K17=2, $F17*0.5+$G17*0.2, SUM(F17:G17)))), 0),"Not required") -> 158958.03 | P17: 0 | Q17: 0 | R17: 0 | S17: 0 | Y17: 52903 | Z17: Harare | AA17: ='MDA2'!M17 -> 0 | AB17: ='T1'!O17 -> 0 | AC17: ='T2'!M17 -> 0 | AD17: =T3_R1!N17 -> 0 | AH17: 1.996527778 | AI17: 1 | AL17: =_xlfn.XLOOKUP($Y17,[2]Sheet3!$C:$C,[2]Sheet3!E:E) -> 2 | AM17: =_xlfn.XLOOKUP($Y17,[2]Sheet3!$C:$C,[2]Sheet3!F:F) -> 0.04166666667 | AO17: =_xlfn.XLOOKUP($Y17,[2]Sheet4!$B:$B,[2]Sheet4!$G:$G) -> 0.08333333333 | AS17: =_xlfn.XLOOKUP($Y17,[3]COUNTRY_INFO!$Y$9:$Y$71,[3]COUNTRY_INFO!H$9:H$71) -> 0 | AT17: =_xlfn.XLOOKUP($Y17,[3]COUNTRY_INFO!$Y$9:$Y$71,[3]COUNTRY_INFO!I$9:I$71) -> 0 | AU17: =_xlfn.XLOOKUP($Y17,[3]COUNTRY_INFO!$Y$9:$Y$71,[3]COUNTRY_INFO!J$9:J$71) -> 1 | AV17: =_xlfn.XLOOKUP($Y17,[3]COUNTRY_INFO!$Y$9:$Y$71,[3]COUNTRY_INFO!K$9:K$71) -> 1 | AW17: TRUE | AX17: TRUE | AY17: TRUE | AZ17: TRUE
A18: =IF(INTRO!$E$34<>0,INTRO!$E$34,"") -> ZIMBABWE | B18: Mashnaland Central | C18: Bindura | D18: 191942 | E18: =IF(INTRO!$E$48="","",ROUND($D18*INTRO!$E$48,0)) -> 21939 | F18: =IF(INTRO!$E$49="","",ROUND($D18*INTRO!$E$49,0)) -> 50884 | G18: =IF(INTRO!$E$50="","",ROUND($D18*INTRO!$E$50,0)) -> 113457 | H18: 0 | I18: 0 | J18: 0 | K18: 2 | L18: =IF(INTRO!$E$38="Endemic", IF($H18>0, IF($H18=4,"Unknown", IF($H18=99,"Stopped", $D18)), 0),"Not required") -> 0 | M18: =IF(INTRO!$E$40="Endemic", IF($I18>0, IF($I18=4,"Unknown",IF($I18=99,"Stopped", $D18)), 0),"Not required") -> Not required | N18: =IF([1]INTRO!$E$41="Endemic", IF(AND($J18>1,$J18<5), IF($J18=4, "Unknown", E18+F18), 0),"Not required") -> 0 | O18: =IF([1]INTRO!$E$43="Endemic", IF(AND($K18>0,$K18<5), IF($K18=4,"Unknown", IF($K18=1, $F18*0.33, IF($K18=2, $F18*0.5+$G18*0.2, SUM(F18:G18)))), 0),"Not required") -> 48133.4 | P18: 0 | Q18: 0 | R18: 0 | S18: 1 | T18: T2 (PZQ) | Y18: 52911 | Z18: Bindura | AA18: ='MDA2'!M18 -> 0 | AB18: ='T1'!O18 -> 0 | AC18: ='T2'!M18 -> 44156 | AD18: =T3_R1!N18 -> 0 | AH18: 0 | AI18: 0 | AL18: =_xlfn.XLOOKUP($Y18,[2]Sheet3!$C:$C,[2]Sheet3!E:E) -> 24.44444444 | AM18: =_xlfn.XLOOKUP($Y18,[2]Sheet3!$C:$C,[2]Sheet3!F:F) -> 8.70417696 | AO18: =_xlfn.XLOOKUP($Y18,[2]Sheet4!$B:$B,[2]Sheet4!$G:$G) -> 11.2911378 | AP18: 2 | AS18: =_xlfn.XLOOKUP($Y18,[3]COUNTRY_INFO!$Y$9:$Y$71,[3]COUNTRY_INFO!H$9:H$71) -> 0 | AT18: =_xlfn.XLOOKUP($Y18,[3]COUNTRY_INFO!$Y$9:$Y$71,[3]COUNTRY_INFO!I$9:I$71) -> 0 | AU18: =_xlfn.XLOOKUP($Y18,[3]COUNTRY_INFO!$Y$9:$Y$71,[3]COUNTRY_INFO!J$9:J$71) -> 0 | AV18: =_xlfn.XLOOKUP($Y18,[3]COUNTRY_INFO!$Y$9:$Y$71,[3]COUNTRY_INFO!K$9:K$71) -> 2 | AW18: TRUE | AX18: TRUE | AY18: TRUE | AZ18: TRUE
A19: =IF(INTRO!$E$34<>0,INTRO!$E$34,"") -> ZIMBABWE | B19: Mashnaland Central | C19: Centenary | D19: 139547 | E19: =IF(INTRO!$E$48="","",ROUND($D19*INTRO!$E$48,0)) -> 15950 | F19: =IF(INTRO!$E$49="","",ROUND($D19*INTRO!$E$49,0)) -> 36994 | G19: =IF(INTRO!$E$50="","",ROUND($D19*INTRO!$E$50,0)) -> 82486 | H19: 1 | I19: 0 | J19: 0 | K19: 2 | L19: =IF(INTRO!$E$38="Endemic", IF($H19>0, IF($H19=4,"Unknown", IF($H19=99,"Stopped", $D19)), 0),"Not required") -> 139547 | M19: =IF(INTRO!$E$40="Endemic", IF($I19>0, IF($I19=4,"Unknown",IF($I19=99,"Stopped", $D19)), 0),"Not required") -> Not required | N19: =IF([1]INTRO!$E$41="Endemic", IF(AND($J19>1,$J19<5), IF($J19=4, "Unknown", E19+F19), 0),"Not required") -> 0 | O19: =IF([1]INTRO!$E$43="Endemic", IF(AND($K19>0,$K19<5), IF($K19=4,"Unknown", IF($K19=1, $F19*0.33, IF($K19=2, $F19*0.5+$G19*0.2, SUM(F19:G19)))), 0),"Not required") -> 34994.2 | P19: 0 | Q19: 0 | R19: 0 | S19: 0 | Y19: 52912 | Z19: Centenary | AA19: ='MDA2'!M19 -> 0 | AB19: ='T1'!O19 -> 0 | AC19: ='T2'!M19 -> 0 | AD19: =T3_R1!N19 -> 0 | AH19: 0 | AI19: 0 | AL19: =_xlfn.XLOOKUP($Y19,[2]Sheet3!$C:$C,[2]Sheet3!E:E) -> 0 | AM19: =_xlfn.XLOOKUP($Y19,[2]Sheet3!$C:$C,[2]Sheet3!F:F) -> 0 | AO19: =_xlfn.XLOOKUP($Y19,[2]Sheet4!$B:$B,[2]Sheet4!$G:$G) -> 0 | AS19: =_xlfn.XLOOKUP($Y19,[3]COUNTRY_INFO!$Y$9:$Y$71,[3]COUNTRY_INFO!H$9:H$71) -> 1 | AT19: =_xlfn.XLOOKUP($Y19,[3]COUNTRY_INFO!$Y$9:$Y$71,[3]COUNTRY_INFO!I$9:I$71) -> 0 | AU19: =_xlfn.XLOOKUP($Y19,[3]COUNTRY_INFO!$Y$9:$Y$71,[3]COUNTRY_INFO!J$9:J$71) -> 0 | AV19: =_xlfn.XLOOKUP($Y19,[3]COUNTRY_INFO!$Y$9:$Y$71,[3]COUNTRY_INFO!K$9:K$71) -> 2 | AW19: TRUE | AX19: TRUE | AY19: TRUE | AZ19: TRUE
A20: =IF(INTRO!$E$34<>0,INTRO!$E$34,"") -> ZIMBABWE | B20: Mashnaland Central | C20: Guruve | D20: 140967 | E20: =IF(INTRO!$E$48="","",ROUND($D20*INTRO!$E$48,0)) -> 16113 | F20: =IF(INTRO!$E$49="","",ROUND($D20*INTRO!$E$49,0)) -> 37370 | G20: =IF(INTRO!$E$50="","",ROUND($D20*INTRO!$E$50,0)) -> 83326 | H20: 0 | I20: 0 | J20: 0 | K20: 2 | L20: =IF(INTRO!$E$38="Endemic", IF($H20>0, IF($H20=4,"Unknown", IF($H20=99,"Stopped", $D20)), 0),"Not required") -> 0 | M20: =IF(INTRO!$E$40="Endemic", IF($I20>0, IF($I20=4,"Unknown",IF($I20=99,"Stopped", $D20)), 0),"Not required") -> Not required | N20: =IF([1]INTRO!$E$41="Endemic", IF(AND($J20>1,$J20<5), IF($J20=4, "Unknown", E20+F20), 0),"Not required") -> 0 | O20: =IF([1]INTRO!$E$43="Endemic", IF(AND($K20>0,$K20<5), IF($K20=4,"Unknown", IF($K20=1, $F20*0.33, IF($K20=2, $F20*0.5+$G20*0.2, SUM(F20:G20)))), 0),"Not required") -> 35350.2 | P20: 0 | Q20: 0 | R20: 0 | S20: 0 | Y20: 52913 | Z20: Guruve | AA20: ='MDA2'!M20 -> 0 | AB20: ='T1'!O20 -> 0 | AC20: ='T2'!M20 -> 0 | AD20: =T3_R1!N20 -> 0 | AH20: 0.5102040816 | AI20: 0 | AL20: =_xlfn.XLOOKUP($Y20,[2]Sheet3!$C:$C,[2]Sheet3!E:E) -> 5.128205128 | AM20: =_xlfn.XLOOKUP($Y20,[2]Sheet3!$C:$C,[2]Sheet3!F:F) -> 0.641025641 | AO20: =_xlfn.XLOOKUP($Y20,[2]Sheet4!$B:$B,[2]Sheet4!$G:$G) -> 1.282051282 | AP20: 1 | AS20: =_xlfn.XLOOKUP($Y20,[3]COUNTRY_INFO!$Y$9:$Y$71,[3]COUNTRY_INFO!H$9:H$71) -> 0 | AT20: =_xlfn.XLOOKUP($Y20,[3]COUNTRY_INFO!$Y$9:$Y$71,[3]COUNTRY_INFO!I$9:I$71) -> 0 | AU20: =_xlfn.XLOOKUP($Y20,[3]COUNTRY_INFO!$Y$9:$Y$71,[3]COUNTRY_INFO!J$9:J$71) -> 0 | AV20: =_xlfn.XLOOKUP($Y20,[3]COUNTRY_INFO!$Y$9:$Y$71,[3]COUNTRY_INFO!K$9:K$71) -> 2 | AW20: TRUE | AX20: TRUE | AY20: TRUE | AZ20: TRUE
A21: =IF(INTRO!$E$34<>0,INTRO!$E$34,"") -> ZIMBABWE | B21: Mashnaland Central | C21: Mazowe | D21: 277296 | E21: =IF(INTRO!$E$48="","",ROUND($D21*INTRO!$E$48,0)) -> 31695 | F21: =IF(INTRO!$E$49="","",ROUND($D21*INTRO!$E$49,0)) -> 73511 | G21: =IF(INTRO!$E$50="","",ROUND($D21*INTRO!$E$50,0)) -> 163910 | H21: 0 | I21: 0 | J21: 1 | K21: 2 | L21: =IF(INTRO!$E$38="Endemic", IF($H21>0, IF($H21=4,"Unknown", IF($H21=99,"Stopped", $D21)), 0),"Not required") -> 0 | M21: =IF(INTRO!$E$40="Endemic", IF($I21>0, IF($I21=4,"Unknown",IF($I21=99,"Stopped", $D21)), 0),"Not required") -> Not required | N21: =IF([1]INTRO!$E$41="Endemic", IF(AND($J21>1,$J21<5), IF($J21=4, "Unknown", E21+F21), 0),"Not required") -> 0 | O21: =IF([1]INTRO!$E$43="Endemic", IF(AND($K21>0,$K21<5), IF($K21=4,"Unknown", IF($K21=1, $F21*0.33, IF($K21=2, $F21*0.5+$G21*0.2, SUM(F21:G21)))), 0),"Not required") -> 69537.5 | P21: 0 | Q21: 0 | R21: 0 | S21: 0 | Y21: 52914 | Z21: Mazowe | AA21: ='MDA2'!M21 -> 0 | AB21: ='T1'!O21 -> 0 | AC21: ='T2'!M21 -> 0 | AD21: =T3_R1!N21 -> 0 | AH21: 4.929577465 | AI21: 1 | AL21: =_xlfn.XLOOKUP($Y21,[2]Sheet3!$C:$C,[2]Sheet3!E:E) -> 10 | AM21: =_xlfn.XLOOKUP($Y21,[2]Sheet3!$C:$C,[2]Sheet3!F:F) -> 2.356558453 | AO21: =_xlfn.XLOOKUP($Y21,[2]Sheet4!$B:$B,[2]Sheet4!$G:$G) -> 4.327016521 | AP21: 1 | AS21: =_xlfn.XLOOKUP($Y21,[3]COUNTRY_INFO!$Y$9:$Y$71,[3]COUNTRY_INFO!H$9:H$71) -> 0 | AT21: =_xlfn.XLOOKUP($Y21,[3]COUNTRY_INFO!$Y$9:$Y$71,[3]COUNTRY_INFO!I$9:I$71) -> 0 | AU21: =_xlfn.XLOOKUP($Y21,[3]COUNTRY_INFO!$Y$9:$Y$71,[3]COUNTRY_INFO!J$9:J$71) -> 1 | AV21: =_xlfn.XLOOKUP($Y21,[3]COUNTRY_INFO!$Y$9:$Y$71,[3]COUNTRY_INFO!K$9:K$71) -> 2 | AW21: TRUE | AX21: TRUE | AY21: TRUE | AZ21: TRUE
A22: =IF(INTRO!$E$34<>0,INTRO!$E$34,"") -> ZIMBABWE | B22: Mashnaland Central | C22: Mt Darwin | D22: 241754 | E22: =IF(INTRO!$E$48="","",ROUND($D22*INTRO!$E$48,0)) -> 27632 | F22: =IF(INTRO!$E$49="","",ROUND($D22*INTRO!$E$49,0)) -> 64089 | G22: =IF(INTRO!$E$50="","",ROUND($D22*INTRO!$E$50,0)) -> 142901 | H22: 0 | I22: 0 | J22: 1 | K22: 2 | L22: =IF(INTRO!$E$38="Endemic", IF($H22>0, IF($H22=4,"Unknown", IF($H22=99,"Stopped", $D22)), 0),"Not required") -> 0 | M22: =IF(INTRO!$E$40="Endemic", IF($I22>0, IF($I22=4,"Unknown",IF($I22=99,"Stopped", $D22)), 0),"Not required") -> Not required | N22: =IF([1]INTRO!$E$41="Endemic", IF(AND($J22>1,$J22<5), IF($J22=4, "Unknown", E22+F22), 0),"Not required") -> 0 | O22: =IF([1]INTRO!$E$43="Endemic", IF(AND($K22>0,$K22<5), IF($K22=4,"Unknown", IF($K22=1, $F22*0.33, IF($K22=2, $F22*0.5+$G22*0.2, SUM(F22:G22)))), 0),"Not required") -> 60624.7 | P22: 0 | Q22: 0 | R22: 0 | S22: 1 | T22: T2 (PZQ) | Y22: 52916 | Z22: Mt Darwin | AA22: ='MDA2'!M22 -> 0 | AB22: ='T1'!O22 -> 0 | AC22: ='T2'!M22 -> 59284 | AD22: =T3_R1!N22 -> 0 | AH22: 1.03626943 | AI22: 1 | AL22: =_xlfn.XLOOKUP($Y22,[2]Sheet3!$C:$C,[2]Sheet3!E:E) -> 27.19298246 | AM22: =_xlfn.XLOOKUP($Y22,[2]Sheet3!$C:$C,[2]Sheet3!F:F) -> 6.571349872 | AO22: =_xlfn.XLOOKUP($Y22,[2]Sheet4!$B:$B,[2]Sheet4!$G:$G) -> 7.12905452 | AP22: 1 | AS22: =_xlfn.XLOOKUP($Y22,[3]COUNTRY_INFO!$Y$9:$Y$71,[3]COUNTRY_INFO!H$9:H$71) -> 0 | AT22: =_xlfn.XLOOKUP($Y22,[3]COUNTRY_INFO!$Y$9:$Y$71,[3]COUNTRY_INFO!I$9:I$71) -> 0 | AU22: =_xlfn.XLOOKUP($Y22,[3]COUNTRY_INFO!$Y$9:$Y$71,[3]COUNTRY_INFO!J$9:J$71) -> 1 | AV22: =_xlfn.XLOOKUP($Y22,[3]COUNTRY_INFO!$Y$9:$Y$71,[3]COUNTRY_INFO!K$9:K$71) -> 2 | AW22: TRUE | AX22: TRUE | AY22: TRUE | AZ22: TRUE
A23: =IF(INTRO!$E$34<>0,INTRO!$E$34,"") -> ZIMBABWE | B23: Mashnaland Central | C23: Rushinga | D23: 84145 | E23: =IF(INTRO!$E$48="","",ROUND($D23*INTRO!$E$48,0)) -> 9618 | F23: =IF(INTRO!$E$49="","",ROUND($D23*INTRO!$E$49,0)) -> 22307 | G23: =IF(INTRO!$E$50="","",ROUND($D23*INTRO!$E$50,0)) -> 49738 | H23: 0 | I23: 0 | J23: 0 | K23: 2 | L23: =IF(INTRO!$E$38="Endemic", IF($H23>0, IF($H23=4,"Unknown", IF($H23=99,"Stopped", $D23)), 0),"Not required") -> 0 | M23: =IF(INTRO!$E$40="Endemic", IF($I23>0, IF($I23=4,"Unknown",IF($I23=99,"Stopped", $D23)), 0),"Not required") -> Not required | N23: =IF([1]INTRO!$E$41="Endemic", IF(AND($J23>1,$J23<5), IF($J23=4, "Unknown", E23+F23), 0),"Not required") -> 0 | O23: =IF([1]INTRO!$E$43="Endemic", IF(AND($K23>0,$K23<5), IF($K23=4,"Unknown", IF($K23=1, $F23*0.33, IF($K23=2, $F23*0.5+$G23*0.2, SUM(F23:G23)))), 0),"Not required") -> 21101.1 | P23: 0 | Q23: 0 | R23: 0 | S23: 0 | Y23: 52917 | Z23: Rushinga | AA23: ='MDA2'!M23 -> 0 | AB23: ='T1'!O23 -> 0 | AC23: ='T2'!M23 -> 0 | AD23: =T3_R1!N23 -> 0 | AH23: 0 | AI23: 0 | AL23: =_xlfn.XLOOKUP($Y23,[2]Sheet3!$C:$C,[2]Sheet3!E:E) -> 2.564102564 | AM23: =_xlfn.XLOOKUP($Y23,[2]Sheet3!$C:$C,[2]Sheet3!F:F) -> 0.4074736633 | AO23: =_xlfn.XLOOKUP($Y23,[2]Sheet4!$B:$B,[2]Sheet4!$G:$G) -> 0.8149473266 | AS23: =_xlfn.XLOOKUP($Y23,[3]COUNTRY_INFO!$Y$9:$Y$71,[3]COUNTRY_INFO!H$9:H$71) -> 0 | AT23: =_xlfn.XLOOKUP($Y23,[3]COUNTRY_INFO!$Y$9:$Y$71,[3]COUNTRY_INFO!I$9:I$71) -> 0 | AU23: =_xlfn.XLOOKUP($Y23,[3]COUNTRY_INFO!$Y$9:$Y$71,[3]COUNTRY_INFO!J$9:J$71) -> 0 | AV23: =_xlfn.XLOOKUP($Y23,[3]COUNTRY_INFO!$Y$9:$Y$71,[3]COUNTRY_INFO!K$9:K$71) -> 2 | AW23: TRUE | AX23: TRUE | AY23: TRUE | AZ23: TRUE
A24: =IF(INTRO!$E$34<>0,INTRO!$E$34,"") -> ZIMBABWE | B24: Mashnaland Central | C24: Shamva | D24: 140524 | E24: =IF(INTRO!$E$48="","",ROUND($D24*INTRO!$E$48,0)) -> 16062 | F24: =IF(INTRO!$E$49="","",ROUND($D24*INTRO!$E$49,0)) -> 37253 | G24: =IF(INTRO!$E$50="","",ROUND($D24*INTRO!$E$50,0)) -> 83064 | H24: 1 | I24: 0 | J24: 1 | K24: 3 | L24: =IF(INTRO!$E$38="Endemic", IF($H24>0, IF($H24=4,"Unknown", IF($H24=99,"Stopped", $D24)), 0),"Not required") -> 140524 | M24: =IF(INTRO!$E$40="Endemic", IF($I24>0, IF($I24=4,"Unknown",IF($I24=99,"Stopped", $D24)), 0),"Not required") -> Not required | N24: =IF([1]INTRO!$E$41="Endemic", IF(AND($J24>1,$J24<5), IF($J24=4, "Unknown", E24+F24), 0),"Not required") -> 0 | O24: =IF([1]INTRO!$E$43="Endemic", IF(AND($K24>0,$K24<5), IF($K24=4,"Unknown", IF($K24=1, $F24*0.33, IF($K24=2, $F24*0.5+$G24*0.2, SUM(F24:G24)))), 0),"Not required") -> 120317 | P24: 0 | Q24: 0 | R24: 0 | S24: 1 | T24: T2 (PZQ) | Y24: 52918 | Z24: Shamva | AA24: ='MDA2'!M24 -> 0 | AB24: ='T1'!O24 -> 0 | AC24: ='T2'!M24 -> 46104.36344 | AD24: =T3_R1!N24 -> 0 | AH24: 4.794520548 | AI24: 1 | AL24: =_xlfn.XLOOKUP($Y24,[2]Sheet3!$C:$C,[2]Sheet3!E:E) -> 38.7755102 | AM24: =_xlfn.XLOOKUP($Y24,[2]Sheet3!$C:$C,[2]Sheet3!F:F) -> 12.44382923 | AO24: =_xlfn.XLOOKUP($Y24,[2]Sheet4!$B:$B,[2]Sheet4!$G:$G) -> 23.25722368 | AP24: 2 | AS24: =_xlfn.XLOOKUP($Y24,[3]COUNTRY_INFO!$Y$9:$Y$71,[3]COUNTRY_INFO!H$9:H$71) -> 1 | AT24: =_xlfn.XLOOKUP($Y24,[3]COUNTRY_INFO!$Y$9:$Y$71,[3]COUNTRY_INFO!I$9:I$71) -> 0 | AU24: =_xlfn.XLOOKUP($Y24,[3]COUNTRY_INFO!$Y$9:$Y$71,[3]COUNTRY_INFO!J$9:J$71) -> 1 | AV24: =_xlfn.XLOOKUP($Y24,[3]COUNTRY_INFO!$Y$9:$Y$71,[3]COUNTRY_INFO!K$9:K$71) -> 3 | AW24: TRUE | AX24: TRUE | AY24: TRUE | AZ24: TRUE
A25: =IF(INTRO!$E$34<>0,INTRO!$E$34,"") -> ZIMBABWE | B25: Mashnaland Central | C25: Mbire | D25: 93622 | E25: =IF(INTRO!$E$48="","",ROUND($D25*INTRO!$E$48,0)) -> 10701 | F25: =IF(INTRO!$E$49="","",ROUND($D25*INTRO!$E$49,0)) -> 24819 | G25: =IF(INTRO!$E$50="","",ROUND($D25*INTRO!$E$50,0)) -> 55340 | H25: 0 | I25: 0 | J25: 0 | K25: 2 | L25: =IF(INTRO!$E$38="Endemic", IF($H25>0, IF($H25=4,"Unknown", IF($H25=99,"Stopped", $D25)), 0),"Not required") -> 0 | M25: =IF(INTRO!$E$40="Endemic", IF($I25>0, IF($I25=4,"Unknown",IF($I25=99,"Stopped", $D25)), 0),"Not required") -> Not required | N25: =IF([1]INTRO!$E$41="Endemic", IF(AND($J25>1,$J25<5), IF($J25=4, "Unknown", E25+F25), 0),"Not required") -> 0 | O25: =IF([1]INTRO!$E$43="Endemic", IF(AND($K25>0,$K25<5), IF($K25=4,"Unknown", IF($K25=1, $F25*0.33, IF($K25=2, $F25*0.5+$G25*0.2, SUM(F25:G25)))), 0),"Not required") -> 23477.5 | P25: 0 | Q25: 0 | R25: 0 | S25: 0 | Y25: 52915 | Z25: Mbire | AA25: ='MDA2'!M25 -> 0 | AB25: ='T1'!O25 -> 0 | AC25: ='T2'!M25 -> 0 | AD25: =T3_R1!N25 -> 0 | AH25: 0.406504065 | AI25: 0 | AL25: =_xlfn.XLOOKUP($Y25,[2]Sheet3!$C:$C,[2]Sheet3!E:E) -> 2.702702703 | AM25: =_xlfn.XLOOKUP($Y25,[2]Sheet3!$C:$C,[2]Sheet3!F:F) -> 0.6756756757 | AO25: =_xlfn.XLOOKUP($Y25,[2]Sheet4!$B:$B,[2]Sheet4!$G:$G) -> 1.351351351 | AP25: 1 | AS25: =_xlfn.XLOOKUP($Y25,[3]COUNTRY_INFO!$Y$9:$Y$71,[3]COUNTRY_INFO!H$9:H$71) -> 0 | AT25: =_xlfn.XLOOKUP($Y25,[3]COUNTRY_INFO!$Y$9:$Y$71,[3]COUNTRY_INFO!I$9:I$71) -> 0 | AU25: =_xlfn.XLOOKUP($Y25,[3]COUNTRY_INFO!$Y$9:$Y$71,[3]COUNTRY_INFO!J$9:J$71) -> 0 | AV25: =_xlfn.XLOOKUP($Y25,[3]COUNTRY_INFO!$Y$9:$Y$71,[3]COUNTRY_INFO!K$9:K$71) -> 2 | AW25: TRUE | AX25: TRUE | AY25: TRUE | AZ25: TRUE
A26: =IF(INTRO!$E$34<>0,INTRO!$E$34,"") -> ZIMBABWE | B26: Mashonaland East | C26: Chikomba | D26: 137496 | E26: =IF(INTRO!$E$48="","",ROUND($D26*INTRO!$E$48,0)) -> 15716 | F26: =IF(INTRO!$E$49="","",ROUND($D26*INTRO!$E$49,0)) -> 36450 | G26: =IF(INTRO!$E$50="","",ROUND($D26*INTRO!$E$50,0)) -> 81274 | H26: 1 | I26: 0 | J26: 1 | K26: 3 | L26: =IF(INTRO!$E$38="Endemic", IF($H26>0, IF($H26=4,"Unknown", IF($H26=99,"Stopped", $D26)), 0),"Not required") -> 137496 | M26: =IF(INTRO!$E$40="Endemic", IF($I26>0, IF($I26=4,"Unknown",IF($I26=99,"Stopped", $D26)), 0),"Not required") -> Not required | N26: =IF([1]INTRO!$E$41="Endemic", IF(AND($J26>1,$J26<5), IF($J26=4, "Unknown", E26+F26), 0),"Not required") -> 0 | O26: =IF([1]INTRO!$E$43="Endemic", IF(AND($K26>0,$K26<5), IF($K26=4,"Unknown", IF($K26=1, $F26*0.33, IF($K26=2, $F26*0.5+$G26*0.2, SUM(F26:G26)))), 0),"Not required") -> 117724 | P26: 0 | Q26: 0 | R26: 1 | S26: 1 | T26: T2 (PZQ) | U26: T3 (ALB/MBD) | Y26: 52919 | Z26: Chikomba | AA26: ='MDA2'!M26 -> 0 | AB26: ='T1'!O26 -> 0 | AC26: ='T2'!M26 -> 35642.65434 | AD26: =T3_R1!N26 -> 40131.65434 | AH26: 7.228915663 | AI26: 1 | AL26: =_xlfn.XLOOKUP($Y26,[2]Sheet3!$C:$C,[2]Sheet3!E:E) -> 4.545454545 | AM26: =_xlfn.XLOOKUP($Y26,[2]Sheet3!$C:$C,[2]Sheet3!F:F) -> 1.226076555 | AO26: =_xlfn.XLOOKUP($Y26,[2]Sheet4!$B:$B,[2]Sheet4!$G:$G) -> 1.794258373 | AP26: 1 | AS26: =_xlfn.XLOOKUP($Y26,[3]COUNTRY_INFO!$Y$9:$Y$71,[3]COUNTRY_INFO!H$9:H$71) -> 1 | AT26: =_xlfn.XLOOKUP($Y26,[3]COUNTRY_INFO!$Y$9:$Y$71,[3]COUNTRY_INFO!I$9:I$71) -> 0 | AU26: =_xlfn.XLOOKUP($Y26,[3]COUNTRY_INFO!$Y$9:$Y$71,[3]COUNTRY_INFO!J$9:J$71) -> 1 | AV26: =_xlfn.XLOOKUP($Y26,[3]COUNTRY_INFO!$Y$9:$Y$71,[3]COUNTRY_INFO!K$9:K$71) -> 3 | AW26: TRUE | AX26: TRUE | AY26: TRUE | AZ26: TRUE
A27: =IF(INTRO!$E$34<>0,INTRO!$E$34,"") -> ZIMBABWE | B27: Mashonaland East | C27: Goromonzi | D27: 255690 | E27: =IF(INTRO!$E$48="","",ROUND($D27*INTRO!$E$48,0)) -> 29225 | F27: =IF(INTRO!$E$49="","",ROUND($D27*INTRO!$E$49,0)) -> 67783 | G27: =IF(INTRO!$E$50="","",ROUND($D27*INTRO!$E$50,0)) -> 151138 | H27: 1 | I27: 0 | J27: 1 | K27: 1 | L27: =IF(INTRO!$E$38="Endemic", IF($H27>0, IF($H27=4,"Unknown", IF($H27=99,"Stopped", $D27)), 0),"Not required") -> 255690 | M27: =IF(INTRO!$E$40="Endemic", IF($I27>0, IF($I27=4,"Unknown",IF($I27=99,"Stopped", $D27)), 0),"Not required") -> Not required | N27: =IF([1]INTRO!$E$41="Endemic", IF(AND($J27>1,$J27<5), IF($J27=4, "Unknown", E27+F27), 0),"Not required") -> 0 | O27: =IF([1]INTRO!$E$43="Endemic", IF(AND($K27>0,$K27<5), IF($K27=4,"Unknown", IF($K27=1, $F27*0.33, IF($K27=2, $F27*0.5+$G27*0.2, SUM(F27:G27)))), 0),"Not required") -> 22368.39 | P27: 0 | Q27: 0 | R27: 1 | S27: 1 | T27: T2 (PZQ) | U27: T3 (ALB/MBD) | Y27: 52920 | Z27: Goromonzi | AA27: ='MDA2'!M27 -> 0 | AB27: ='T1'!O27 -> 0 | AC27: ='T2'!M27 -> 81006.78441 | AD27: =T3_R1!N27 -> 75052.78441 | AH27: 17.36842105 | AI27: 1 | AL27: =_xlfn.XLOOKUP($Y27,[2]Sheet3!$C:$C,[2]Sheet3!E:E) -> 4.081632653 | AM27: =_xlfn.XLOOKUP($Y27,[2]Sheet3!$C:$C,[2]Sheet3!F:F) -> 0.4081632653 | AO27: =_xlfn.XLOOKUP($Y27,[2]Sheet4!$B:$B,[2]Sheet4!$G:$G) -> 0.8163265306 | AS27: =_xlfn.XLOOKUP($Y27,[3]COUNTRY_INFO!$Y$9:$Y$71,[3]COUNTRY_INFO!H$9:H$71) -> 1 | AT27: =_xlfn.XLOOKUP($Y27,[3]COUNTRY_INFO!$Y$9:$Y$71,[3]COUNTRY_INFO!I$9:I$71) -> 0 | AU27: =_xlfn.XLOOKUP($Y27,[3]COUNTRY_INFO!$Y$9:$Y$71,[3]COUNTRY_INFO!J$9:J$71) -> 1 | AV27: =_xlfn.XLOOKUP($Y27,[3]COUNTRY_INFO!$Y$9:$Y$71,[3]COUNTRY_INFO!K$9:K$71) -> 1 | AW27: TRUE | AX27: TRUE | AY27: TRUE | AZ27: TRUE
A28: =IF(INTRO!$E$34<>0,INTRO!$E$34,"") -> ZIMBABWE | B28: Mashonaland East | C28: UMP | D28: 127977 | E28: =IF(INTRO!$E$48="","",ROUND($D28*INTRO!$E$48,0)) -> 14628 | F28: =IF(INTRO!$E$49="","",ROUND($D28*INTRO!$E$49,0)) -> 33927 | G28: =IF(INTRO!$E$50="","",ROUND($D28*INTRO!$E$50,0)) -> 75647 | H28: 1 | I28: 0 | J28: 2 | K28: 2 | L28: =IF(INTRO!$E$38="Endemic", IF($H28>0, IF($H28=4,"Unknown", IF($H28=99,"Stopped", $D28)), 0),"Not required") -> 127977 | M28: =IF(INTRO!$E$40="Endemic", IF($I28>0, IF($I28=4,"Unknown",IF($I28=99,"Stopped", $D28)), 0),"Not required") -> Not required | N28: =IF([1]INTRO!$E$41="Endemic", IF(AND($J28>1,$J28<5), IF($J28=4, "Unknown", E28+F28), 0),"Not required") -> 48555 | O28: =IF([1]INTRO!$E$43="Endemic", IF(AND($K28>0,$K28<5), IF($K28=4,"Unknown", IF($K28=1, $F28*0.33, IF($K28=2, $F28*0.5+$G28*0.2, SUM(F28:G28)))), 0),"Not required") -> 32092.9 | P28: 0 | Q28: 0 | R28: 0 | S28: 0 | Y28: 52927 | Z28: UMP | AA28: ='MDA2'!M28 -> 0 | AB28: ='T1'!O28 -> 0 | AC28: ='T2'!M28 -> 0 | AD28: =T3_R1!N28 -> 0 | AH28: 20.93023256 | AI28: 2 | AL28: =_xlfn.XLOOKUP($Y28,[2]Sheet3!$C:$C,[2]Sheet3!E:E) -> 25.80645161 | AM28: =_xlfn.XLOOKUP($Y28,[2]Sheet3!$C:$C,[2]Sheet3!F:F) -> 5.159661127 | AO28: =_xlfn.XLOOKUP($Y28,[2]Sheet4!$B:$B,[2]Sheet4!$G:$G) -> 9.208211144 | AP28: 1 | AS28: =_xlfn.XLOOKUP($Y28,[3]COUNTRY_INFO!$Y$9:$Y$71,[3]COUNTRY_INFO!H$9:H$71) -> 1 | AT28: =_xlfn.XLOOKUP($Y28,[3]COUNTRY_INFO!$Y$9:$Y$71,[3]COUNTRY_INFO!I$9:I$71) -> 0 | AU28: =_xlfn.XLOOKUP($Y28,[3]COUNTRY_INFO!$Y$9:$Y$71,[3]COUNTRY_INFO!J$9:J$71) -> 2 | AV28: =_xlfn.XLOOKUP($Y28,[3]COUNTRY_INFO!$Y$9:$Y$71,[3]COUNTRY_INFO!K$9:K$71) -> 2 | AW28: TRUE | AX28: TRUE | AY28: TRUE | AZ28: TRUE
A29: =IF(INTRO!$E$34<>0,INTRO!$E$34,"") -> ZIMBABWE | B29: Mashonaland East | C29: Hwedza | D29: 80654 | E29: =IF(INTRO!$E$48="","",ROUND($D29*INTRO!$E$48,0)) -> 9219 | F29: =IF(INTRO!$E$49="","",ROUND($D29*INTRO!$E$49,0)) -> 21381 | G29: =IF(INTRO!$E$50="","",ROUND($D29*INTRO!$E$50,0)) -> 47675 | H29: 1 | I29: 0 | J29: 1 | K29: 3 | L29: =IF(INTRO!$E$38="Endemic", IF($H29>0, IF($H29=4,"Unknown", IF($H29=99,"Stopped", $D29)), 0),"Not required") -> 80654 | M29: =IF(INTRO!$E$40="Endemic", IF($I29>0, IF($I29=4,"Unknown",IF($I29=99,"Stopped", $D29)), 0),"Not required") -> Not required | N29: =IF([1]INTRO!$E$41="Endemic", IF(AND($J29>1,$J29<5), IF($J29=4, "Unknown", E29+F29), 0),"Not required") -> 0 | O29: =IF([1]INTRO!$E$43="Endemic", IF(AND($K29>0,$K29<5), IF($K29=4,"Unknown", IF($K29=1, $F29*0.33, IF($K29=2, $F29*0.5+$G29*0.2, SUM(F29:G29)))), 0),"Not required") -> 69056 | P29: 0 | Q29: 0 | R29: 1 | S29: 1 | T29: T2 (PZQ) | U29: T3 (ALB/MBD) | Y29: 52921 | Z29: Hwedza | AA29: ='MDA2'!M29 -> 0 | AB29: ='T1'!O29 -> 0 | AC29: ='T2'!M29 -> 21542.97101 | AD29: =T3_R1!N29 -> 23998.97101 | AH29: 6.451612903 | AI29: 1 | AL29: =_xlfn.XLOOKUP($Y29,[2]Sheet3!$C:$C,[2]Sheet3!E:E) -> 14.81481481 | AM29: =_xlfn.XLOOKUP($Y29,[2]Sheet3!$C:$C,[2]Sheet3!F:F) -> 6.118212608 | AO29: =_xlfn.XLOOKUP($Y29,[2]Sheet4!$B:$B,[2]Sheet4!$G:$G) -> 6.118212608 | AP29: 1 | AS29: =_xlfn.XLOOKUP($Y29,[3]COUNTRY_INFO!$Y$9:$Y$71,[3]COUNTRY_INFO!H$9:H$71) -> 1 | AT29: =_xlfn.XLOOKUP($Y29,[3]COUNTRY_INFO!$Y$9:$Y$71,[3]COUNTRY_INFO!I$9:I$71) -> 0 | AU29: =_xlfn.XLOOKUP($Y29,[3]COUNTRY_INFO!$Y$9:$Y$71,[3]COUNTRY_INFO!J$9:J$71) -> 1 | AV29: =_xlfn.XLOOKUP($Y29,[3]COUNTRY_INFO!$Y$9:$Y$71,[3]COUNTRY_INFO!K$9:K$71) -> 3 | AW29: TRUE | AX29: TRUE | AY29: TRUE | AZ29: TRUE
A30: =IF(INTRO!$E$34<>0,INTRO!$E$34,"") -> ZIMBABWE | B30: Mashonaland East | C30: Marondera | D30: 203408 | E30: =IF(INTRO!$E$48="","",ROUND($D30*INTRO!$E$48,0)) -> 23250 | F30: =IF(INTRO!$E$49="","",ROUND($D30*INTRO!$E$49,0)) -> 53923 | G30: =IF(INTRO!$E$50="","",ROUND($D30*INTRO!$E$50,0)) -> 120234 | H30: 1 | I30: 0 | J30: 0 | K30: 1 | L30: =IF(INTRO!$E$38="Endemic", IF($H30>0, IF($H30=4,"Unknown", IF($H30=99,"Stopped", $D30)), 0),"Not required") -> 203408 | M30: =IF(INTRO!$E$40="Endemic", IF($I30>0, IF($I30=4,"Unknown",IF($I30=99,"Stopped", $D30)), 0),"Not required") -> Not required | N30: =IF([1]INTRO!$E$41="Endemic", IF(AND($J30>1,$J30<5), IF($J30=4, "Unknown", E30+F30), 0),"Not required") -> 0 | O30: =IF([1]INTRO!$E$43="Endemic", IF(AND($K30>0,$K30<5), IF($K30=4,"Unknown", IF($K30=1, $F30*0.33, IF($K30=2, $F30*0.5+$G30*0.2, SUM(F30:G30)))), 0),"Not required") -> 17794.59 | P30: 0 | Q30: 0 | R30: 1 | S30: 1 | T30: T2 (PZQ) | U30: T3 (ALB/MBD) | Y30: 52922 | Z30: Marondera | AA30: ='MDA2'!M30 -> 0 | AB30: ='T1'!O30 -> 0 | AC30: ='T2'!M30 -> 46935.57891 | AD30: =T3_R1!N30 -> 47706.57891 | AH30: 0 | AI30: 0 | AL30: =_xlfn.XLOOKUP($Y30,[2]Sheet3!$C:$C,[2]Sheet3!E:E) -> 3.448275862 | AM30: =_xlfn.XLOOKUP($Y30,[2]Sheet3!$C:$C,[2]Sheet3!F:F) -> 0.5622188906 | AO30: =_xlfn.XLOOKUP($Y30,[2]Sheet4!$B:$B,[2]Sheet4!$G:$G) -> 1.124437781 | AP30: 1 | AS30: =_xlfn.XLOOKUP($Y30,[3]COUNTRY_INFO!$Y$9:$Y$71,[3]COUNTRY_INFO!H$9:H$71) -> 1 | AT30: =_xlfn.XLOOKUP($Y30,[3]COUNTRY_INFO!$Y$9:$Y$71,[3]COUNTRY_INFO!I$9:I$71) -> 0 | AU30: =_xlfn.XLOOKUP($Y30,[3]COUNTRY_INFO!$Y$9:$Y$71,[3]COUNTRY_INFO!J$9:J$71) -> 0 | AV30: =_xlfn.XLOOKUP($Y30,[3]COUNTRY_INFO!$Y$9:$Y$71,[3]COUNTRY_INFO!K$9:K$71) -> 1 | AW30: TRUE | AX30: TRUE | AY30: TRUE | AZ30: TRUE
A31: =IF(INTRO!$E$34<>0,INTRO!$E$34,"") -> ZIMBABWE | B31: Mashonaland East | C31: Mudzi | D31: 151437 | E31: =IF(INTRO!$E$48="","",ROUND($D31*INTRO!$E$48,0)) -> 17309 | F31: =IF(INTRO!$E$49="","",ROUND($D31*INTRO!$E$49,0)) -> 40146 | G31: =IF(INTRO!$E$50="","",ROUND($D31*INTRO!$E$50,0)) -> 89514 | H31: 1 | I31: 0 | J31: 0 | K31: 2 | L31: =IF(INTRO!$E$38="Endemic", IF($H31>0, IF($H31=4,"Unknown", IF($H31=99,"Stopped", $D31)), 0),"Not required") -> 151437 | M31: =IF(INTRO!$E$40="Endemic", IF($I31>0, IF($I31=4,"Unknown",IF($I31=99,"Stopped", $D31)), 0),"Not required") -> Not required | N31: =IF([1]INTRO!$E$41="Endemic", IF(AND($J31>1,$J31<5), IF($J31=4, "Unknown", E31+F31), 0),"Not required") -> 0 | O31: =IF([1]INTRO!$E$43="Endemic", IF(AND($K31>0,$K31<5), IF($K31=4,"Unknown", IF($K31=1, $F31*0.33, IF($K31=2, $F31*0.5+$G31*0.2, SUM(F31:G31)))), 0),"Not required") -> 37975.8 | P31: 0 | Q31: 0 | R31: 0 | S31: 0 | Y31: 52923 | Z31: Mudzi | AA31: ='MDA2'!M31 -> 0 | AB31: ='T1'!O31 -> 0 | AC31: ='T2'!M31 -> 0 | AD31: =T3_R1!N31 -> 0 | AH31: 0.6060606061 | AI31: 0 | AL31: =_xlfn.XLOOKUP($Y31,[2]Sheet3!$C:$C,[2]Sheet3!E:E) -> 0 | AM31: =_xlfn.XLOOKUP($Y31,[2]Sheet3!$C:$C,[2]Sheet3!F:F) -> 0 | AO31: =_xlfn.XLOOKUP($Y31,[2]Sheet4!$B:$B,[2]Sheet4!$G:$G) -> 0 | AS31: =_xlfn.XLOOKUP($Y31,[3]COUNTRY_INFO!$Y$9:$Y$71,[3]COUNTRY_INFO!H$9:H$71) -> 1 | AT31: =_xlfn.XLOOKUP($Y31,[3]COUNTRY_INFO!$Y$9:$Y$71,[3]COUNTRY_INFO!I$9:I$71) -> 0 | AU31: =_xlfn.XLOOKUP($Y31,[3]COUNTRY_INFO!$Y$9:$Y$71,[3]COUNTRY_INFO!J$9:J$71) -> 0 | AV31: =_xlfn.XLOOKUP($Y31,[3]COUNTRY_INFO!$Y$9:$Y$71,[3]COUNTRY_INFO!K$9:K$71) -> 2 | AW31: TRUE | AX31: TRUE | AY31: TRUE | AZ31: TRUE
A32: =IF(INTRO!$E$34<>0,INTRO!$E$34,"") -> ZIMBABWE | B32: Mashonaland East | C32: Murewa | D32: 226846 | E32: =IF(INTRO!$E$48="","",ROUND($D32*INTRO!$E$48,0)) -> 25928 | F32: =IF(INTRO!$E$49="","",ROUND($D32*INTRO!$E$49,0)) -> 60137 | G32: =IF(INTRO!$E$50="","",ROUND($D32*INTRO!$E$50,0)) -> 134089 | H32: 1 | I32: 0 | J32: 2 | K32: 2 | L32: =IF(INTRO!$E$38="Endemic", IF($H32>0, IF($H32=4,"Unknown", IF($H32=99,"Stopped", $D32)), 0),"Not required") -> 226846 | M32: =IF(INTRO!$E$40="Endemic", IF($I32>0, IF($I32=4,"Unknown",IF($I32=99,"Stopped", $D32)), 0),"Not required") -> Not required | N32: =IF([1]INTRO!$E$41="Endemic", IF(AND($J32>1,$J32<5), IF($J32=4, "Unknown", E32+F32), 0),"Not required") -> 86065 | O32: =IF([1]INTRO!$E$43="Endemic", IF(AND($K32>0,$K32<5), IF($K32=4,"Unknown", IF($K32=1, $F32*0.33, IF($K32=2, $F32*0.5+$G32*0.2, SUM(F32:G32)))), 0),"Not required") -> 56886.3 | P32: 0 | Q32: 0 | R32: 1 | S32: 1 | T32: T2 (PZQ) | U32: T3 (ALB/MBD) | Y32: 52924 | Z32: Murewa | AA32: ='MDA2'!M32 -> 0 | AB32: ='T1'!O32 -> 0 | AC32: ='T2'!M32 -> 50391.91649 | AD32: =T3_R1!N32 -> 50578.91649 | AH32: 40.45454545 | AI32: 2 | AL32: =_xlfn.XLOOKUP($Y32,[2]Sheet3!$C:$C,[2]Sheet3!E:E) -> 36.50793651 | AM32: =_xlfn.XLOOKUP($Y32,[2]Sheet3!$C:$C,[2]Sheet3!F:F) -> 7.142416495 | AO32: =_xlfn.XLOOKUP($Y32,[2]Sheet4!$B:$B,[2]Sheet4!$G:$G) -> 7.301587302 | AP32: 1 | AS32: =_xlfn.XLOOKUP($Y32,[3]COUNTRY_INFO!$Y$9:$Y$71,[3]COUNTRY_INFO!H$9:H$71) -> 1 | AT32: =_xlfn.XLOOKUP($Y32,[3]COUNTRY_INFO!$Y$9:$Y$71,[3]COUNTRY_INFO!I$9:I$71) -> 0 | AU32: =_xlfn.XLOOKUP($Y32,[3]COUNTRY_INFO!$Y$9:$Y$71,[3]COUNTRY_INFO!J$9:J$71) -> 2 | AV32: =_xlfn.XLOOKUP($Y32,[3]COUNTRY_INFO!$Y$9:$Y$71,[3]COUNTRY_INFO!K$9:K$71) -> 2 | AW32: TRUE | AX32: TRUE | AY32: TRUE | AZ32: TRUE
A33: =IF(INTRO!$E$34<>0,INTRO!$E$34,"") -> ZIMBABWE | B33: Mashonaland East | C33: Mutoko | D33: 166068 | E33: =IF(INTRO!$E$48="","",ROUND($D33*INTRO!$E$48,0)) -> 18982 | F33: =IF(INTRO!$E$49="","",ROUND($D33*INTRO!$E$49,0)) -> 44025 | G33: =IF(INTRO!$E$50="","",ROUND($D33*INTRO!$E$50,0)) -> 98163 | H33: 1 | I33: 0 | J33: 2 | K33: 2 | L33: =IF(INTRO!$E$38="Endemic", IF($H33>0, IF($H33=4,"Unknown", IF($H33=99,"Stopped", $D33)), 0),"Not required") -> 166068 | M33: =IF(INTRO!$E$40="Endemic", IF($I33>0, IF($I33=4,"Unknown",IF($I33=99,"Stopped", $D33)), 0),"Not required") -> Not required | N33: =IF([1]INTRO!$E$41="Endemic", IF(AND($J33>1,$J33<5), IF($J33=4, "Unknown", E33+F33), 0),"Not required") -> 63007 | O33: =IF([1]INTRO!$E$43="Endemic", IF(AND($K33>0,$K33<5), IF($K33=4,"Unknown", IF($K33=1, $F33*0.33, IF($K33=2, $F33*0.5+$G33*0.2, SUM(F33:G33)))), 0),"Not required") -> 41645.1 | P33: 0 | Q33: 0 | R33: 0 | S33: 0 | Y33: 52925 | Z33: Mutoko | AA33: ='MDA2'!M33 -> 0 | AB33: ='T1'!O33 -> 0 | AC33: ='T2'!M33 -> 0 | AD33: =T3_R1!N33 -> 0 | AH33: 30.35714286 | AI33: 2 | AL33: =_xlfn.XLOOKUP($Y33,[2]Sheet3!$C:$C,[2]Sheet3!E:E) -> 13.04347826 | AM33: =_xlfn.XLOOKUP($Y33,[2]Sheet3!$C:$C,[2]Sheet3!F:F) -> 1.542443064 | AO33: =_xlfn.XLOOKUP($Y33,[2]Sheet4!$B:$B,[2]Sheet4!$G:$G) -> 3.084886128 | AP33: 1 | AS33: =_xlfn.XLOOKUP($Y33,[3]COUNTRY_INFO!$Y$9:$Y$71,[3]COUNTRY_INFO!H$9:H$71) -> 1 | AT33: =_xlfn.XLOOKUP($Y33,[3]COUNTRY_INFO!$Y$9:$Y$71,[3]COUNTRY_INFO!I$9:I$71) -> 0 | AU33: =_xlfn.XLOOKUP($Y33,[3]COUNTRY_INFO!$Y$9:$Y$71,[3]COUNTRY_INFO!J$9:J$71) -> 2 | AV33: =_xlfn.XLOOKUP($Y33,[3]COUNTRY_INFO!$Y$9:$Y$71,[3]COUNTRY_INFO!K$9:K$71) -> 2 | AW33: TRUE | AX33: TRUE | AY33: TRUE | AZ33: TRUE
A34: =IF(INTRO!$E$34<>0,INTRO!$E$34,"") -> ZIMBABWE | B34: Mashonaland East | C34: Seke | D34: 369233 | E34: =IF(INTRO!$E$48="","",ROUND($D34*INTRO!$E$48,0)) -> 42203 | F34: =IF(INTRO!$E$49="","",ROUND($D34*INTRO!$E$49,0)) -> 97884 | G34: =IF(INTRO!$E$50="","",ROUND($D34*INTRO!$E$50,0)) -> 218254 | H34: 1 | I34: 0 | J34: 2 | K34: 2 | L34: =IF(INTRO!$E$38="Endemic", IF($H34>0, IF($H34=4,"Unknown", IF($H34=99,"Stopped", $D34)), 0),"Not required") -> 369233 | M34: =IF(INTRO!$E$40="Endemic", IF($I34>0, IF($I34=4,"Unknown",IF($I34=99,"Stopped", $D34)), 0),"Not required") -> Not required | N34: =IF([1]INTRO!$E$41="Endemic", IF(AND($J34>1,$J34<5), IF($J34=4, "Unknown", E34+F34), 0),"Not required") -> 140087 | O34: =IF([1]INTRO!$E$43="Endemic", IF(AND($K34>0,$K34<5), IF($K34=4,"Unknown", IF($K34=1, $F34*0.33, IF($K34=2, $F34*0.5+$G34*0.2, SUM(F34:G34)))), 0),"Not required") -> 92592.8 | P34: 0 | Q34: 0 | R34: 0 | S34: 0 | Y34: 52926 | Z34: Seke | AA34: ='MDA2'!M34 -> 0 | AB34: ='T1'!O34 -> 0 | AC34: ='T2'!M34 -> 0 | AD34: =T3_R1!N34 -> 0 | AH34: 24.3902439 | AI34: 2 | AL34: =_xlfn.XLOOKUP($Y34,[2]Sheet3!$C:$C,[2]Sheet3!E:E) -> 14.63414634 | AM34: =_xlfn.XLOOKUP($Y34,[2]Sheet3!$C:$C,[2]Sheet3!F:F) -> 4.108532773 | AO34: =_xlfn.XLOOKUP($Y34,[2]Sheet4!$B:$B,[2]Sheet4!$G:$G) -> 8.217065547 | AP34: 1 | AS34: =_xlfn.XLOOKUP($Y34,[3]COUNTRY_INFO!$Y$9:$Y$71,[3]COUNTRY_INFO!H$9:H$71) -> 1 | AT34: =_xlfn.XLOOKUP($Y34,[3]COUNTRY_INFO!$Y$9:$Y$71,[3]COUNTRY_INFO!I$9:I$71) -> 0 | AU34: =_xlfn.XLOOKUP($Y34,[3]COUNTRY_INFO!$Y$9:$Y$71,[3]COUNTRY_INFO!J$9:J$71) -> 2 | AV34: =_xlfn.XLOOKUP($Y34,[3]COUNTRY_INFO!$Y$9:$Y$71,[3]COUNTRY_INFO!K$9:K$71) -> 2 | AW34: TRUE | AX34: TRUE | AY34: TRUE | AZ34: TRUE
A35: =IF(INTRO!$E$34<>0,INTRO!$E$34,"") -> ZIMBABWE | B35: Mashonaland West | C35: Chegutu | D35: 308932 | E35: =IF(INTRO!$E$48="","",ROUND($D35*INTRO!$E$48,0)) -> 35311 | F35: =IF(INTRO!$E$49="","",ROUND($D35*INTRO!$E$49,0)) -> 81898 | G35: =IF(INTRO!$E$50="","",ROUND($D35*INTRO!$E$50,0)) -> 182610 | H35: 1 | I35: 0 | J35: 1 | K35: 2 | L35: =IF(INTRO!$E$38="Endemic", IF($H35>0, IF($H35=4,"Unknown", IF($H35=99,"Stopped", $D35)), 0),"Not required") -> 308932 | M35: =IF(INTRO!$E$40="Endemic", IF($I35>0, IF($I35=4,"Unknown",IF($I35=99,"Stopped", $D35)), 0),"Not required") -> Not required | N35: =IF([1]INTRO!$E$41="Endemic", IF(AND($J35>1,$J35<5), IF($J35=4, "Unknown", E35+F35), 0),"Not required") -> 0 | O35: =IF([1]INTRO!$E$43="Endemic", IF(AND($K35>0,$K35<5), IF($K35=4,"Unknown", IF($K35=1, $F35*0.33, IF($K35=2, $F35*0.5+$G35*0.2, SUM(F35:G35)))), 0),"Not required") -> 77471 | P35: 0 | Q35: 0 | R35: 0 | S35: 1 | T35: T2 (PZQ) | Y35: 52928 | Z35: Chegutu | AA35: ='MDA2'!M35 -> 0 | AB35: ='T1'!O35 -> 0 | AC35: ='T2'!M35 -> 41316 | AD35: =T3_R1!N35 -> 0 | AH35: 1.052631579 | AI35: 1 | AL35: =_xlfn.XLOOKUP($Y35,[2]Sheet3!$C:$C,[2]Sheet3!E:E) -> 17.5 | AM35: =_xlfn.XLOOKUP($Y35,[2]Sheet3!$C:$C,[2]Sheet3!F:F) -> 2.839258808 | AO35: =_xlfn.XLOOKUP($Y35,[2]Sheet4!$B:$B,[2]Sheet4!$G:$G) -> 5.678517615 | AP35: 1 | AS35: =_xlfn.XLOOKUP($Y35,[3]COUNTRY_INFO!$Y$9:$Y$71,[3]COUNTRY_INFO!H$9:H$71) -> 1 | AT35: =_xlfn.XLOOKUP($Y35,[3]COUNTRY_INFO!$Y$9:$Y$71,[3]COUNTRY_INFO!I$9:I$71) -> 0 | AU35: =_xlfn.XLOOKUP($Y35,[3]COUNTRY_INFO!$Y$9:$Y$71,[3]COUNTRY_INFO!J$9:J$71) -> 1 | AV35: =_xlfn.XLOOKUP($Y35,[3]COUNTRY_INFO!$Y$9:$Y$71,[3]COUNTRY_INFO!K$9:K$71) -> 2 | AW35: TRUE | AX35: TRUE | AY35: TRUE | AZ35: TRUE
A36: =IF(INTRO!$E$34<>0,INTRO!$E$34,"") -> ZIMBABWE | B36: Mashonaland West | C36: Hurungwe | D36: 406630 | E36: =IF(INTRO!$E$48="","",ROUND($D36*INTRO!$E$48,0)) -> 46478 | F36: =IF(INTRO!$E$49="","",ROUND($D36*INTRO!$E$49,0)) -> 107798 | G36: =IF(INTRO!$E$50="","",ROUND($D36*INTRO!$E$50,0)) -> 240359 | H36: 1 | I36: 0 | J36: 1 | K36: 2 | L36: =IF(INTRO!$E$38="Endemic", IF($H36>0, IF($H36=4,"Unknown", IF($H36=99,"Stopped", $D36)), 0),"Not required") -> 406630 | M36: =IF(INTRO!$E$40="Endemic", IF($I36>0, IF($I36=4,"Unknown",IF($I36=99,"Stopped", $D36)), 0),"Not required") -> Not required | N36: =IF([1]INTRO!$E$41="Endemic", IF(AND($J36>1,$J36<5), IF($J36=4, "Unknown", E36+F36), 0),"Not required") -> 0 | O36: =IF([1]INTRO!$E$43="Endemic", IF(AND($K36>0,$K36<5), IF($K36=4,"Unknown", IF($K36=1, $F36*0.33, IF($K36=2, $F36*0.5+$G36*0.2, SUM(F36:G36)))), 0),"Not required") -> 101970.8 | P36: 0 | Q36: 0 | R36: 0 | S36: 1 | T36: T2 (PZQ) | Y36: 52929 | Z36: Hurungwe | AA36: ='MDA2'!M36 -> 0 | AB36: ='T1'!O36 -> 0 | AC36: ='T2'!M36 -> 28811 | AD36: =T3_R1!N36 -> 0 | AH36: 3.496503497 | AI36: 1 | AL36: =_xlfn.XLOOKUP($Y36,[2]Sheet3!$C:$C,[2]Sheet3!E:E) -> 7.894736842 | AM36: =_xlfn.XLOOKUP($Y36,[2]Sheet3!$C:$C,[2]Sheet3!F:F) -> 0.8176816657 | AO36: =_xlfn.XLOOKUP($Y36,[2]Sheet4!$B:$B,[2]Sheet4!$G:$G) -> 1.635363331 | AP36: 1 | AS36: =_xlfn.XLOOKUP($Y36,[3]COUNTRY_INFO!$Y$9:$Y$71,[3]COUNTRY_INFO!H$9:H$71) -> 1 | AT36: =_xlfn.XLOOKUP($Y36,[3]COUNTRY_INFO!$Y$9:$Y$71,[3]COUNTRY_INFO!I$9:I$71) -> 0 | AU36: =_xlfn.XLOOKUP($Y36,[3]COUNTRY_INFO!$Y$9:$Y$71,[3]COUNTRY_INFO!J$9:J$71) -> 1 | AV36: =_xlfn.XLOOKUP($Y36,[3]COUNTRY_INFO!$Y$9:$Y$71,[3]COUNTRY_INFO!K$9:K$71) -> 2 | AW36: TRUE | AX36: TRUE | AY36: TRUE | AZ36: TRUE
A37: =IF(INTRO!$E$34<>0,INTRO!$E$34,"") -> ZIMBABWE | B37: Mashonaland West | C37: Sanyati | D37: 233392 | E37: =IF(INTRO!$E$48="","",ROUND($D37*INTRO!$E$48,0)) -> 26677 | F37: =IF(INTRO!$E$49="","",ROUND($D37*INTRO!$E$49,0)) -> 61872 | G37: =IF(INTRO!$E$50="","",ROUND($D37*INTRO!$E$50,0)) -> 137958 | H37: 1 | I37: 0 | J37: 1 | K37: 2 | L37: =IF(INTRO!$E$38="Endemic", IF($H37>0, IF($H37=4,"Unknown", IF($H37=99,"Stopped", $D37)), 0),"Not required") -> 233392 | M37: =IF(INTRO!$E$40="Endemic", IF($I37>0, IF($I37=4,"Unknown",IF($I37=99,"Stopped", $D37)), 0),"Not required") -> Not required | N37: =IF([1]INTRO!$E$41="Endemic", IF(AND($J37>1,$J37<5), IF($J37=4, "Unknown", E37+F37), 0),"Not required") -> 0 | O37: =IF([1]INTRO!$E$43="Endemic", IF(AND($K37>0,$K37<5), IF($K37=4,"Unknown", IF($K37=1, $F37*0.33, IF($K37=2, $F37*0.5+$G37*0.2, SUM(F37:G37)))), 0),"Not required") -> 58527.6 | P37: 0 | Q37: 0 | R37: 0 | S37: 1 | T37: T2 (PZQ) | Y37: 52930 | Z37: Sanyati | AA37: ='MDA2'!M37 -> 0 | AB37: ='T1'!O37 -> 0 | AC37: ='T2'!M37 -> 39655.53629 | AD37: =T3_R1!N37 -> 0 | AH37: 4.310344828 | AI37: 1 | AL37: =_xlfn.XLOOKUP($Y37,[2]Sheet3!$C:$C,[2]Sheet3!E:E) -> 9.756097561 | AM37: =_xlfn.XLOOKUP($Y37,[2]Sheet3!$C:$C,[2]Sheet3!F:F) -> 4.87804878 | AO37: =_xlfn.XLOOKUP($Y37,[2]Sheet4!$B:$B,[2]Sheet4!$G:$G) -> 9.756097561 | AP37: 1 | AS37: =_xlfn.XLOOKUP($Y37,[3]COUNTRY_INFO!$Y$9:$Y$71,[3]COUNTRY_INFO!H$9:H$71) -> 1 | AT37: =_xlfn.XLOOKUP($Y37,[3]COUNTRY_INFO!$Y$9:$Y$71,[3]COUNTRY_INFO!I$9:I$71) -> 0 | AU37: =_xlfn.XLOOKUP($Y37,[3]COUNTRY_INFO!$Y$9:$Y$71,[3]COUNTRY_INFO!J$9:J$71) -> 1 | AV37: =_xlfn.XLOOKUP($Y37,[3]COUNTRY_INFO!$Y$9:$Y$71,[3]COUNTRY_INFO!K$9:K$71) -> 2 | AW37: TRUE | AX37: TRUE | AY37: TRUE | AZ37: TRUE
A38: =IF(INTRO!$E$34<>0,INTRO!$E$34,"") -> ZIMBABWE | B38: Mashonaland West | C38: Kariba | D38: 77074 | E38: =IF(INTRO!$E$48="","",ROUND($D38*INTRO!$E$48,0)) -> 8810 | F38: =IF(INTRO!$E$49="","",ROUND($D38*INTRO!$E$49,0)) -> 20432 | G38: =IF(INTRO!$E$50="","",ROUND($D38*INTRO!$E$50,0)) -> 45558 | H38: 1 | I38: 0 | J38: 1 | K38: 2 | L38: =IF(INTRO!$E$38="Endemic", IF($H38>0, IF($H38=4,"Unknown", IF($H38=99,"Stopped", $D38)), 0),"Not required") -> 77074 | M38: =IF(INTRO!$E$40="Endemic", IF($I38>0, IF($I38=4,"Unknown",IF($I38=99,"Stopped", $D38)), 0),"Not required") -> Not required | N38: =IF([1]INTRO!$E$41="Endemic", IF(AND($J38>1,$J38<5), IF($J38=4, "Unknown", E38+F38), 0),"Not required") -> 0 | O38: =IF([1]INTRO!$E$43="Endemic", IF(AND($K38>0,$K38<5), IF($K38=4,"Unknown", IF($K38=1, $F38*0.33, IF($K38=2, $F38*0.5+$G38*0.2, SUM(F38:G38)))), 0),"Not required") -> 19327.6 | P38: 0 | Q38: 0 | R38: 0 | S38: 0 | Y38: 52931 | Z38: Kariba | AA38: ='MDA2'!M38 -> 0 | AB38: ='T1'!O38 -> 0 | AC38: ='T2'!M38 -> 0 | AD38: =T3_R1!N38 -> 0 | AH38: 8 | AI38: 1 | AL38: =_xlfn.XLOOKUP($Y38,[2]Sheet3!$C:$C,[2]Sheet3!E:E) -> 0 | AM38: =_xlfn.XLOOKUP($Y38,[2]Sheet3!$C:$C,[2]Sheet3!F:F) -> 0 | AO38: =_xlfn.XLOOKUP($Y38,[2]Sheet4!$B:$B,[2]Sheet4!$G:$G) -> 0 | AS38: =_xlfn.XLOOKUP($Y38,[3]COUNTRY_INFO!$Y$9:$Y$71,[3]COUNTRY_INFO!H$9:H$71) -> 1 | AT38: =_xlfn.XLOOKUP($Y38,[3]COUNTRY_INFO!$Y$9:$Y$71,[3]COUNTRY_INFO!I$9:I$71) -> 0 | AU38: =_xlfn.XLOOKUP($Y38,[3]COUNTRY_INFO!$Y$9:$Y$71,[3]COUNTRY_INFO!J$9:J$71) -> 1 | AV38: =_xlfn.XLOOKUP($Y38,[3]COUNTRY_INFO!$Y$9:$Y$71,[3]COUNTRY_INFO!K$9:K$71) -> 2 | AW38: TRUE | AX38: TRUE | AY38: TRUE | AZ38: TRUE
A39: =IF(INTRO!$E$34<>0,INTRO!$E$34,"") -> ZIMBABWE | B39: Mashonaland West | C39: Makonde | D39: 263056 | E39: =IF(INTRO!$E$48="","",ROUND($D39*INTRO!$E$48,0)) -> 30067 | F39: =IF(INTRO!$E$49="","",ROUND($D39*INTRO!$E$49,0)) -> 69736 | G39: =IF(INTRO!$E$50="","",ROUND($D39*INTRO!$E$50,0)) -> 155492 | H39: 1 | I39: 0 | J39: 1 | K39: 2 | L39: =IF(INTRO!$E$38="Endemic", IF($H39>0, IF($H39=4,"Unknown", IF($H39=99,"Stopped", $D39)), 0),"Not required") -> 263056 | M39: =IF(INTRO!$E$40="Endemic", IF($I39>0, IF($I39=4,"Unknown",IF($I39=99,"Stopped", $D39)), 0),"Not required") -> Not required | N39: =IF([1]INTRO!$E$41="Endemic", IF(AND($J39>1,$J39<5), IF($J39=4, "Unknown", E39+F39), 0),"Not required") -> 0 | O39: =IF([1]INTRO!$E$43="Endemic", IF(AND($K39>0,$K39<5), IF($K39=4,"Unknown", IF($K39=1, $F39*0.33, IF($K39=2, $F39*0.5+$G39*0.2, SUM(F39:G39)))), 0),"Not required") -> 65966.4 | P39: 0 | Q39: 0 | R39: 0 | S39: 1 | T39: T2 (PZQ) | Y39: 52932 | Z39: Makonde | AA39: ='MDA2'!M39 -> 0 | AB39: ='T1'!O39 -> 0 | AC39: ='T2'!M39 -> 38666.61118 | AD39: =T3_R1!N39 -> 0 | AH39: 1.619433198 | AI39: 1 | AL39: =_xlfn.XLOOKUP($Y39,[2]Sheet3!$C:$C,[2]Sheet3!E:E) -> 50 | AM39: =_xlfn.XLOOKUP($Y39,[2]Sheet3!$C:$C,[2]Sheet3!F:F) -> 7.623254117 | AO39: =_xlfn.XLOOKUP($Y39,[2]Sheet4!$B:$B,[2]Sheet4!$G:$G) -> 15.24650823 | AP39: 2 | AS39: =_xlfn.XLOOKUP($Y39,[3]COUNTRY_INFO!$Y$9:$Y$71,[3]COUNTRY_INFO!H$9:H$71) -> 1 | AT39: =_xlfn.XLOOKUP($Y39,[3]COUNTRY_INFO!$Y$9:$Y$71,[3]COUNTRY_INFO!I$9:I$71) -> 0 | AU39: =_xlfn.XLOOKUP($Y39,[3]COUNTRY_INFO!$Y$9:$Y$71,[3]COUNTRY_INFO!J$9:J$71) -> 1 | AV39: =_xlfn.XLOOKUP($Y39,[3]COUNTRY_INFO!$Y$9:$Y$71,[3]COUNTRY_INFO!K$9:K$71) -> 2 | AW39: TRUE | AX39: TRUE | AY39: TRUE | AZ39: TRUE
A40: =IF(INTRO!$E$34<>0,INTRO!$E$34,"") -> ZIMBABWE | B40: Mashonaland West | C40: Mhondoro-Ngezi | D40: 118580 | E40: =IF(INTRO!$E$48="","",ROUND($D40*INTRO!$E$48,0)) -> 13554 | F40: =IF(INTRO!$E$49="","",ROUND($D40*INTRO!$E$49,0)) -> 31436 | G40: =IF(INTRO!$E$50="","",ROUND($D40*INTRO!$E$50,0)) -> 70093 | H40: 1 | I40: 0 | J40: 4 | K40: 2 | L40: =IF(INTRO!$E$38="Endemic", IF($H40>0, IF($H40=4,"Unknown", IF($H40=99,"Stopped", $D40)), 0),"Not required") -> 118580 | M40: =IF(INTRO!$E$40="Endemic", IF($I40>0, IF($I40=4,"Unknown",IF($I40=99,"Stopped", $D40)), 0),"Not required") -> Not required | N40: =IF([1]INTRO!$E$41="Endemic", IF(AND($J40>1,$J40<5), IF($J40=4, "Unknown", E40+F40), 0),"Not required") -> Unknown | O40: =IF([1]INTRO!$E$43="Endemic", IF(AND($K40>0,$K40<5), IF($K40=4,"Unknown", IF($K40=1, $F40*0.33, IF($K40=2, $F40*0.5+$G40*0.2, SUM(F40:G40)))), 0),"Not required") -> 29736.6 | P40: 0 | Q40: 0 | R40: 0 | S40: 1 | T40: T2 (PZQ) | Y40: 52963 | Z40: Mhondoro-Ngezi | AA40: ='MDA2'!M40 -> 0 | AB40: ='T1'!O40 -> 0 | AC40: ='T2'!M40 -> 18545 | AD40: =T3_R1!N40 -> 0 | AH40: No data | AI40: 4 | AL40: =_xlfn.XLOOKUP($Y40,[2]Sheet3!$C:$C,[2]Sheet3!E:E) -> 25.80645161 | AM40: =_xlfn.XLOOKUP($Y40,[2]Sheet3!$C:$C,[2]Sheet3!F:F) -> 2.232393881 | AO40: =_xlfn.XLOOKUP($Y40,[2]Sheet4!$B:$B,[2]Sheet4!$G:$G) -> 4.464787761 | AP40: 1 | AS40: =_xlfn.XLOOKUP($Y40,[3]COUNTRY_INFO!$Y$9:$Y$71,[3]COUNTRY_INFO!H$9:H$71) -> 1 | AT40: =_xlfn.XLOOKUP($Y40,[3]COUNTRY_INFO!$Y$9:$Y$71,[3]COUNTRY_INFO!I$9:I$71) -> 0 | AU40: =_xlfn.XLOOKUP($Y40,[3]COUNTRY_INFO!$Y$9:$Y$71,[3]COUNTRY_INFO!J$9:J$71) -> 4 | AV40: =_xlfn.XLOOKUP($Y40,[3]COUNTRY_INFO!$Y$9:$Y$71,[3]COUNTRY_INFO!K$9:K$71) -> 2 | AW40: TRUE | AX40: TRUE | AY40: TRUE | AZ40: TRUE
A41: =IF(INTRO!$E$34<>0,INTRO!$E$34,"") -> ZIMBABWE | B41: Mashonaland West | C41: Zvimba | D41: 298914 | E41: =IF(INTRO!$E$48="","",ROUND($D41*INTRO!$E$48,0)) -> 34166 | F41: =IF(INTRO!$E$49="","",ROUND($D41*INTRO!$E$49,0)) -> 79242 | G41: =IF(INTRO!$E$50="","",ROUND($D41*INTRO!$E$50,0)) -> 176688 | H41: 1 | I41: 0 | J41: 0 | K41: 2 | L41: =IF(INTRO!$E$38="Endemic", IF($H41>0, IF($H41=4,"Unknown", IF($H41=99,"Stopped", $D41)), 0),"Not required") -> 298914 | M41: =IF(INTRO!$E$40="Endemic", IF($I41>0, IF($I41=4,"Unknown",IF($I41=99,"Stopped", $D41)), 0),"Not required") -> Not required | N41: =IF([1]INTRO!$E$41="Endemic", IF(AND($J41>1,$J41<5), IF($J41=4, "Unknown", E41+F41), 0),"Not required") -> 0 | O41: =IF([1]INTRO!$E$43="Endemic", IF(AND($K41>0,$K41<5), IF($K41=4,"Unknown", IF($K41=1, $F41*0.33, IF($K41=2, $F41*0.5+$G41*0.2, SUM(F41:G41)))), 0),"Not required") -> 74958.6 | P41: 0 | Q41: 0 | R41: 0 | S41: 1 | T41: T2 (PZQ) | Y41: 52933 | Z41: Zvimba | AA41: ='MDA2'!M41 -> 0 | AB41: ='T1'!O41 -> 0 | AC41: ='T2'!M41 -> 54461.36815 | AD41: =T3_R1!N41 -> 0 | AH41: 0 | AI41: 0 | AL41: =_xlfn.XLOOKUP($Y41,[2]Sheet3!$C:$C,[2]Sheet3!E:E) -> 20 | AM41: =_xlfn.XLOOKUP($Y41,[2]Sheet3!$C:$C,[2]Sheet3!F:F) -> 3.061310782 | AO41: =_xlfn.XLOOKUP($Y41,[2]Sheet4!$B:$B,[2]Sheet4!$G:$G) -> 6.122621564 | AP41: 1 | AS41: =_xlfn.XLOOKUP($Y41,[3]COUNTRY_INFO!$Y$9:$Y$71,[3]COUNTRY_INFO!H$9:H$71) -> 1 | AT41: =_xlfn.XLOOKUP($Y41,[3]COUNTRY_INFO!$Y$9:$Y$71,[3]COUNTRY_INFO!I$9:I$71) -> 0 | AU41: =_xlfn.XLOOKUP($Y41,[3]COUNTRY_INFO!$Y$9:$Y$71,[3]COUNTRY_INFO!J$9:J$71) -> 0 | AV41: =_xlfn.XLOOKUP($Y41,[3]COUNTRY_INFO!$Y$9:$Y$71,[3]COUNTRY_INFO!K$9:K$71) -> 2 | AW41: =AS41=H41 -> TRUE | AX41: =AT41=I41 -> TRUE | AY41: =AU41=J41 -> TRUE | AZ41: =AV41=K41 -> TRUE
A42: =IF(INTRO!$E$34<>0,INTRO!$E$34,"") -> ZIMBABWE | B42: Matabeleland North | C42: Binga | D42: 158073 | E42: =IF(INTRO!$E$48="","",ROUND($D42*INTRO!$E$48,0)) -> 18068 | F42: =IF(INTRO!$E$49="","",ROUND($D42*INTRO!$E$49,0)) -> 41905 | G42: =IF(INTRO!$E$50="","",ROUND($D42*INTRO!$E$50,0)) -> 93437 | H42: 1 | I42: 0 | J42: 2 | K42: 1 | L42: =IF(INTRO!$E$38="Endemic", IF($H42>0, IF($H42=4,"Unknown", IF($H42=99,"Stopped", $D42)), 0),"Not required") -> 158073 | M42: =IF(INTRO!$E$40="Endemic", IF($I42>0, IF($I42=4,"Unknown",IF($I42=99,"Stopped", $D42)), 0),"Not required") -> Not required | N42: =IF([1]INTRO!$E$41="Endemic", IF(AND($J42>1,$J42<5), IF($J42=4, "Unknown", E42+F42), 0),"Not required") -> 59973 | O42: =IF([1]INTRO!$E$43="Endemic", IF(AND($K42>0,$K42<5), IF($K42=4,"Unknown", IF($K42=1, $F42*0.33, IF($K42=2, $F42*0.5+$G42*0.2, SUM(F42:G42)))), 0),"Not required") -> 13828.65 | P42: 0 | Q42: 0 | R42: 0 | S42: 1 | T42: T2 (PZQ) | Y42: 52948 | Z42: Binga | AA42: ='MDA2'!M42 -> 0 | AB42: ='T1'!O42 -> 0 | AC42: ='T2'!M42 -> 39745.5771 | AD42: =T3_R1!N42 -> 0 | AH42: 45.5 | AI42: 2 | AL42: =_xlfn.XLOOKUP($Y42,[2]Sheet3!$C:$C,[2]Sheet3!E:E) -> 7.5 | AM42: =_xlfn.XLOOKUP($Y42,[2]Sheet3!$C:$C,[2]Sheet3!F:F) -> 1.25 | AO42: =_xlfn.XLOOKUP($Y42,[2]Sheet4!$B:$B,[2]Sheet4!$G:$G) -> 2.5 | AP42: 1 | AS42: =_xlfn.XLOOKUP($Y42,[3]COUNTRY_INFO!$Y$9:$Y$71,[3]COUNTRY_INFO!H$9:H$71) -> 1 | AT42: =_xlfn.XLOOKUP($Y42,[3]COUNTRY_INFO!$Y$9:$Y$71,[3]COUNTRY_INFO!I$9:I$71) -> 0 | AU42: =_xlfn.XLOOKUP($Y42,[3]COUNTRY_INFO!$Y$9:$Y$71,[3]COUNTRY_INFO!J$9:J$71) -> 2 | AV42: =_xlfn.XLOOKUP($Y42,[3]COUNTRY_INFO!$Y$9:$Y$71,[3]COUNTRY_INFO!K$9:K$71) -> 1 | AW42: TRUE | AX42: TRUE | AY42: TRUE | AZ42: TRUE
A43: =IF(INTRO!$E$34<>0,INTRO!$E$34,"") -> ZIMBABWE | B43: Matabeleland North | C43: Bubi | D43: 70327 | E43: =IF(INTRO!$E$48="","",ROUND($D43*INTRO!$E$48,0)) -> 8038 | F43: =IF(INTRO!$E$49="","",ROUND($D43*INTRO!$E$49,0)) -> 18644 | G43: =IF(INTRO!$E$50="","",ROUND($D43*INTRO!$E$50,0)) -> 41570 | H43: 1 | I43: 0 | J43: 0 | K43: 0 | L43: =IF(INTRO!$E$38="Endemic", IF($H43>0, IF($H43=4,"Unknown", IF($H43=99,"Stopped", $D43)), 0),"Not required") -> 70327 | M43: =IF(INTRO!$E$40="Endemic", IF($I43>0, IF($I43=4,"Unknown",IF($I43=99,"Stopped", $D43)), 0),"Not required") -> Not required | N43: =IF([1]INTRO!$E$41="Endemic", IF(AND($J43>1,$J43<5), IF($J43=4, "Unknown", E43+F43), 0),"Not required") -> 0 | O43: =IF([1]INTRO!$E$43="Endemic", IF(AND($K43>0,$K43<5), IF($K43=4,"Unknown", IF($K43=1, $F43*0.33, IF($K43=2, $F43*0.5+$G43*0.2, SUM(F43:G43)))), 0),"Not required") -> 0 | P43: 0 | Q43: 0 | R43: 0 | S43: 0 | Y43: 52949 | Z43: Bubi | AA43: ='MDA2'!M43 -> 0 | AB43: ='T1'!O43 -> 0 | AC43: ='T2'!M43 -> 0 | AD43: =T3_R1!N43 -> 0 | AH43: 0 | AI43: 0 | AL43: =_xlfn.XLOOKUP($Y43,[2]Sheet3!$C:$C,[2]Sheet3!E:E) -> 2 | AM43: =_xlfn.XLOOKUP($Y43,[2]Sheet3!$C:$C,[2]Sheet3!F:F) -> 0.5 | AO43: =_xlfn.XLOOKUP($Y43,[2]Sheet4!$B:$B,[2]Sheet4!$G:$G) -> 1 | AP43: 1 | AS43: =_xlfn.XLOOKUP($Y43,[3]COUNTRY_INFO!$Y$9:$Y$71,[3]COUNTRY_INFO!H$9:H$71) -> 1 | AT43: =_xlfn.XLOOKUP($Y43,[3]COUNTRY_INFO!$Y$9:$Y$71,[3]COUNTRY_INFO!I$9:I$71) -> 0 | AU43: =_xlfn.XLOOKUP($Y43,[3]COUNTRY_INFO!$Y$9:$Y$71,[3]COUNTRY_INFO!J$9:J$71) -> 0 | AV43: =_xlfn.XLOOKUP($Y43,[3]COUNTRY_INFO!$Y$9:$Y$71,[3]COUNTRY_INFO!K$9:K$71) -> 0 | AW43: TRUE | AX43: TRUE | AY43: TRUE | AZ43: TRUE
A44: =IF(INTRO!$E$34<>0,INTRO!$E$34,"") -> ZIMBABWE | B44: Matabeleland North | C44: Hwange | D44: 152218 | E44: =IF(INTRO!$E$48="","",ROUND($D44*INTRO!$E$48,0)) -> 17399 | F44: =IF(INTRO!$E$49="","",ROUND($D44*INTRO!$E$49,0)) -> 40353 | G44: =IF(INTRO!$E$50="","",ROUND($D44*INTRO!$E$50,0)) -> 89976 | H44: 0 | I44: 0 | J44: 1 | K44: 2 | L44: =IF(INTRO!$E$38="Endemic", IF($H44>0, IF($H44=4,"Unknown", IF($H44=99,"Stopped", $D44)), 0),"Not required") -> 0 | M44: =IF(INTRO!$E$40="Endemic", IF($I44>0, IF($I44=4,"Unknown",IF($I44=99,"Stopped", $D44)), 0),"Not required") -> Not required | N44: =IF([1]INTRO!$E$41="Endemic", IF(AND($J44>1,$J44<5), IF($J44=4, "Unknown", E44+F44), 0),"Not required") -> 0 | O44: =IF([1]INTRO!$E$43="Endemic", IF(AND($K44>0,$K44<5), IF($K44=4,"Unknown", IF($K44=1, $F44*0.33, IF($K44=2, $F44*0.5+$G44*0.2, SUM(F44:G44)))), 0),"Not required") -> 38171.7 | P44: 0 | Q44: 0 | R44: 0 | S44: 0 | Y44: 52950 | Z44: Hwange | AA44: ='MDA2'!M44 -> 0 | AB44: ='T1'!O44 -> 0 | AC44: ='T2'!M44 -> 0 | AD44: =T3_R1!N44 -> 0 | AH44: 4.379562044 | AI44: 1 | AL44: =_xlfn.XLOOKUP($Y44,[2]Sheet3!$C:$C,[2]Sheet3!E:E) -> 0 | AM44: =_xlfn.XLOOKUP($Y44,[2]Sheet3!$C:$C,[2]Sheet3!F:F) -> 0 | AO44: =_xlfn.XLOOKUP($Y44,[2]Sheet4!$B:$B,[2]Sheet4!$G:$G) -> 0 | AS44: =_xlfn.XLOOKUP($Y44,[3]COUNTRY_INFO!$Y$9:$Y$71,[3]COUNTRY_INFO!H$9:H$71) -> 0 | AT44: =_xlfn.XLOOKUP($Y44,[3]COUNTRY_INFO!$Y$9:$Y$71,[3]COUNTRY_INFO!I$9:I$71) -> 0 | AU44: =_xlfn.XLOOKUP($Y44,[3]COUNTRY_INFO!$Y$9:$Y$71,[3]COUNTRY_INFO!J$9:J$71) -> 1 | AV44: =_xlfn.XLOOKUP($Y44,[3]COUNTRY_INFO!$Y$9:$Y$71,[3]COUNTRY_INFO!K$9:K$71) -> 2 | AW44: TRUE | AX44: TRUE | AY44: TRUE | AZ44: TRUE
A45: =IF(INTRO!$E$34<>0,INTRO!$E$34,"") -> ZIMBABWE | B45: Matabeleland North | C45: Lupane | D45: 113830 | E45: =IF(INTRO!$E$48="","",ROUND($D45*INTRO!$E$48,0)) -> 13011 | F45: =IF(INTRO!$E$49="","",ROUND($D45*INTRO!$E$49,0)) -> 30176 | G45: =IF(INTRO!$E$50="","",ROUND($D45*INTRO!$E$50,0)) -> 67285 | H45: 1 | I45: 0 | J45: 1 | K45: 1 | L45: =IF(INTRO!$E$38="Endemic", IF($H45>0, IF($H45=4,"Unknown", IF($H45=99,"Stopped", $D45)), 0),"Not required") -> 113830 | M45: =IF(INTRO!$E$40="Endemic", IF($I45>0, IF($I45=4,"Unknown",IF($I45=99,"Stopped", $D45)), 0),"Not required") -> Not required | N45: =IF([1]INTRO!$E$41="Endemic", IF(AND($J45>1,$J45<5), IF($J45=4, "Unknown", E45+F45), 0),"Not required") -> 0 | O45: =IF([1]INTRO!$E$43="Endemic", IF(AND($K45>0,$K45<5), IF($K45=4,"Unknown", IF($K45=1, $F45*0.33, IF($K45=2, $F45*0.5+$G45*0.2, SUM(F45:G45)))), 0),"Not required") -> 9958.08 | P45: 0 | Q45: 0 | R45: 0 | S45: 0 | Y45: 52951 | Z45: Lupane | AA45: ='MDA2'!M45 -> 0 | AB45: ='T1'!O45 -> 0 | AC45: ='T2'!M45 -> 0 | AD45: =T3_R1!N45 -> 0 | AH45: 1.5625 | AI45: 1 | AL45: =_xlfn.XLOOKUP($Y45,[2]Sheet3!$C:$C,[2]Sheet3!E:E) -> 0 | AM45: =_xlfn.XLOOKUP($Y45,[2]Sheet3!$C:$C,[2]Sheet3!F:F) -> 0 | AO45: =_xlfn.XLOOKUP($Y45,[2]Sheet4!$B:$B,[2]Sheet4!$G:$G) -> 0 | AS45: =_xlfn.XLOOKUP($Y45,[3]COUNTRY_INFO!$Y$9:$Y$71,[3]COUNTRY_INFO!H$9:H$71) -> 1 | AT45: =_xlfn.XLOOKUP($Y45,[3]COUNTRY_INFO!$Y$9:$Y$71,[3]COUNTRY_INFO!I$9:I$71) -> 0 | AU45: =_xlfn.XLOOKUP($Y45,[3]COUNTRY_INFO!$Y$9:$Y$71,[3]COUNTRY_INFO!J$9:J$71) -> 1 | AV45: =_xlfn.XLOOKUP($Y45,[3]COUNTRY_INFO!$Y$9:$Y$71,[3]COUNTRY_INFO!K$9:K$71) -> 1 | AW45: TRUE | AX45: TRUE | AY45: TRUE | AZ45: TRUE
A46: =IF(INTRO!$E$34<>0,INTRO!$E$34,"") -> ZIMBABWE | B46: Matabeleland North | C46: Nkayi | D46: 124028 | E46: =IF(INTRO!$E$48="","",ROUND($D46*INTRO!$E$48,0)) -> 14176 | F46: =IF(INTRO!$E$49="","",ROUND($D46*INTRO!$E$49,0)) -> 32880 | G46: =IF(INTRO!$E$50="","",ROUND($D46*INTRO!$E$50,0)) -> 73313 | H46: 1 | I46: 0 | J46: 1 | K46: 1 | L46: =IF(INTRO!$E$38="Endemic", IF($H46>0, IF($H46=4,"Unknown", IF($H46=99,"Stopped", $D46)), 0),"Not required") -> 124028 | M46: =IF(INTRO!$E$40="Endemic", IF($I46>0, IF($I46=4,"Unknown",IF($I46=99,"Stopped", $D46)), 0),"Not required") -> Not required | N46: =IF([1]INTRO!$E$41="Endemic", IF(AND($J46>1,$J46<5), IF($J46=4, "Unknown", E46+F46), 0),"Not required") -> 0 | O46: =IF([1]INTRO!$E$43="Endemic", IF(AND($K46>0,$K46<5), IF($K46=4,"Unknown", IF($K46=1, $F46*0.33, IF($K46=2, $F46*0.5+$G46*0.2, SUM(F46:G46)))), 0),"Not required") -> 10850.4 | P46: 0 | Q46: 0 | R46: 0 | S46: 0 | Y46: 52952 | Z46: Nkayi | AA46: ='MDA2'!M46 -> 0 | AB46: ='T1'!O46 -> 0 | AC46: ='T2'!M46 -> 0 | AD46: =T3_R1!N46 -> 0 | AH46: 18.59296482 | AI46: 1 | AL46: =_xlfn.XLOOKUP($Y46,[2]Sheet3!$C:$C,[2]Sheet3!E:E) -> 0 | AM46: =_xlfn.XLOOKUP($Y46,[2]Sheet3!$C:$C,[2]Sheet3!F:F) -> 0 | AO46: =_xlfn.XLOOKUP($Y46,[2]Sheet4!$B:$B,[2]Sheet4!$G:$G) -> 0 | AS46: =_xlfn.XLOOKUP($Y46,[3]COUNTRY_INFO!$Y$9:$Y$71,[3]COUNTRY_INFO!H$9:H$71) -> 1 | AT46: =_xlfn.XLOOKUP($Y46,[3]COUNTRY_INFO!$Y$9:$Y$71,[3]COUNTRY_INFO!I$9:I$71) -> 0 | AU46: =_xlfn.XLOOKUP($Y46,[3]COUNTRY_INFO!$Y$9:$Y$71,[3]COUNTRY_INFO!J$9:J$71) -> 1 | AV46: =_xlfn.XLOOKUP($Y46,[3]COUNTRY_INFO!$Y$9:$Y$71,[3]COUNTRY_INFO!K$9:K$71) -> 1 | AW46: TRUE | AX46: TRUE | AY46: TRUE | AZ46: TRUE
A47: =IF(INTRO!$E$34<>0,INTRO!$E$34,"") -> ZIMBABWE | B47: Matabeleland North | C47: Tsholotsho | D47: 130829 | E47: =IF(INTRO!$E$48="","",ROUND($D47*INTRO!$E$48,0)) -> 14954 | F47: =IF(INTRO!$E$49="","",ROUND($D47*INTRO!$E$49,0)) -> 34683 | G47: =IF(INTRO!$E$50="","",ROUND($D47*INTRO!$E$50,0)) -> 77333 | H47: 0 | I47: 0 | J47: 0 | K47: 0 | L47: =IF(INTRO!$E$38="Endemic", IF($H47>0, IF($H47=4,"Unknown", IF($H47=99,"Stopped", $D47)), 0),"Not required") -> 0 | M47: =IF(INTRO!$E$40="Endemic", IF($I47>0, IF($I47=4,"Unknown",IF($I47=99,"Stopped", $D47)), 0),"Not required") -> Not required | N47: =IF([1]INTRO!$E$41="Endemic", IF(AND($J47>1,$J47<5), IF($J47=4, "Unknown", E47+F47), 0),"Not required") -> 0 | O47: =IF([1]INTRO!$E$43="Endemic", IF(AND($K47>0,$K47<5), IF($K47=4,"Unknown", IF($K47=1, $F47*0.33, IF($K47=2, $F47*0.5+$G47*0.2, SUM(F47:G47)))), 0),"Not required") -> 0 | P47: 0 | Q47: 0 | R47: 0 | S47: 0 | Y47: 52953 | Z47: Tsholotsho | AA47: ='MDA2'!M47 -> 0 | AB47: ='T1'!O47 -> 0 | AC47: ='T2'!M47 -> 0 | AD47: =T3_R1!N47 -> 0 | AH47: 0 | AI47: 0 | AL47: =_xlfn.XLOOKUP($Y47,[2]Sheet3!$C:$C,[2]Sheet3!E:E) -> 3.846153846 | AM47: =_xlfn.XLOOKUP($Y47,[2]Sheet3!$C:$C,[2]Sheet3!F:F) -> 0.4807692308 | AO47: =_xlfn.XLOOKUP($Y47,[2]Sheet4!$B:$B,[2]Sheet4!$G:$G) -> 0.9615384615 | AP47: 1 | AS47: =_xlfn.XLOOKUP($Y47,[3]COUNTRY_INFO!$Y$9:$Y$71,[3]COUNTRY_INFO!H$9:H$71) -> 0 | AT47: =_xlfn.XLOOKUP($Y47,[3]COUNTRY_INFO!$Y$9:$Y$71,[3]COUNTRY_INFO!I$9:I$71) -> 0 | AU47: =_xlfn.XLOOKUP($Y47,[3]COUNTRY_INFO!$Y$9:$Y$71,[3]COUNTRY_INFO!J$9:J$71) -> 0 | AV47: =_xlfn.XLOOKUP($Y47,[3]COUNTRY_INFO!$Y$9:$Y$71,[3]COUNTRY_INFO!K$9:K$71) -> 0 | AW47: TRUE | AX47: TRUE | AY47: TRUE | AZ47: TRUE
A48: =IF(INTRO!$E$34<>0,INTRO!$E$34,"") -> ZIMBABWE | B48: Matabeleland North | C48: Umguza | D48: 101927 | E48: =IF(INTRO!$E$48="","",ROUND($D48*INTRO!$E$48,0)) -> 11650 | F48: =IF(INTRO!$E$49="","",ROUND($D48*INTRO!$E$49,0)) -> 27021 | G48: =IF(INTRO!$E$50="","",ROUND($D48*INTRO!$E$50,0)) -> 60249 | H48: 1 | I48: 0 | J48: 0 | K48: 0 | L48: =IF(INTRO!$E$38="Endemic", IF($H48>0, IF($H48=4,"Unknown", IF($H48=99,"Stopped", $D48)), 0),"Not required") -> 101927 | M48: =IF(INTRO!$E$40="Endemic", IF($I48>0, IF($I48=4,"Unknown",IF($I48=99,"Stopped", $D48)), 0),"Not required") -> Not required | N48: =IF([1]INTRO!$E$41="Endemic", IF(AND($J48>1,$J48<5), IF($J48=4, "Unknown", E48+F48), 0),"Not required") -> 0 | O48: =IF([1]INTRO!$E$43="Endemic", IF(AND($K48>0,$K48<5), IF($K48=4,"Unknown", IF($K48=1, $F48*0.33, IF($K48=2, $F48*0.5+$G48*0.2, SUM(F48:G48)))), 0),"Not required") -> 0 | P48: 0 | Q48: 0 | R48: 0 | S48: 1 | T48: T2 (PZQ) | Y48: 52954 | Z48: Umguza | AA48: ='MDA2'!M48 -> 0 | AB48: ='T1'!O48 -> 0 | AC48: ='T2'!M48 -> 24810.2529 | AD48: =T3_R1!N48 -> 0 | AH48: 0.7575757576 | AI48: 0 | AL48: =_xlfn.XLOOKUP($Y48,[2]Sheet3!$C:$C,[2]Sheet3!E:E) -> 4.347826087 | AM48: =_xlfn.XLOOKUP($Y48,[2]Sheet3!$C:$C,[2]Sheet3!F:F) -> 1.086956522 | AO48: =_xlfn.XLOOKUP($Y48,[2]Sheet4!$B:$B,[2]Sheet4!$G:$G) -> 2.173913043 | AP48: 1 | AS48: =_xlfn.XLOOKUP($Y48,[3]COUNTRY_INFO!$Y$9:$Y$71,[3]COUNTRY_INFO!H$9:H$71) -> 1 | AT48: =_xlfn.XLOOKUP($Y48,[3]COUNTRY_INFO!$Y$9:$Y$71,[3]COUNTRY_INFO!I$9:I$71) -> 0 | AU48: =_xlfn.XLOOKUP($Y48,[3]COUNTRY_INFO!$Y$9:$Y$71,[3]COUNTRY_INFO!J$9:J$71) -> 0 | AV48: =_xlfn.XLOOKUP($Y48,[3]COUNTRY_INFO!$Y$9:$Y$71,[3]COUNTRY_INFO!K$9:K$71) -> 0 | AW48: TRUE | AX48: TRUE | AY48: TRUE | AZ48: TRUE
A49: =IF(INTRO!$E$34<>0,INTRO!$E$34,"") -> ZIMBABWE | B49: Matabeleland South | C49: Beit Bridge | D49: 138898 | E49: =IF(INTRO!$E$48="","",ROUND($D49*INTRO!$E$48,0)) -> 15876 | F49: =IF(INTRO!$E$49="","",ROUND($D49*INTRO!$E$49,0)) -> 36822 | G49: =IF(INTRO!$E$50="","",ROUND($D49*INTRO!$E$50,0)) -> 82103 | H49: 0 | I49: 0 | J49: 0 | K49: 1 | L49: =IF(INTRO!$E$38="Endemic", IF($H49>0, IF($H49=4,"Unknown", IF($H49=99,"Stopped", $D49)), 0),"Not required") -> 0 | M49: =IF(INTRO!$E$40="Endemic", IF($I49>0, IF($I49=4,"Unknown",IF($I49=99,"Stopped", $D49)), 0),"Not required") -> Not required | N49: =IF([1]INTRO!$E$41="Endemic", IF(AND($J49>1,$J49<5), IF($J49=4, "Unknown", E49+F49), 0),"Not required") -> 0 | O49: =IF([1]INTRO!$E$43="Endemic", IF(AND($K49>0,$K49<5), IF($K49=4,"Unknown", IF($K49=1, $F49*0.33, IF($K49=2, $F49*0.5+$G49*0.2, SUM(F49:G49)))), 0),"Not required") -> 12151.26 | P49: 0 | Q49: 0 | R49: 0 | S49: 1 | T49: T2 (PZQ) | Y49: 52941 | Z49: Beit Bridge | AA49: ='MDA2'!M49 -> 0 | AB49: ='T1'!O49 -> 0 | AC49: ='T2'!M49 -> 28559.04552 | AD49: =T3_R1!N49 -> 0 | AH49: 0 | AI49: 0 | AL49: =_xlfn.XLOOKUP($Y49,[2]Sheet3!$C:$C,[2]Sheet3!E:E) -> 0 | AM49: =_xlfn.XLOOKUP($Y49,[2]Sheet3!$C:$C,[2]Sheet3!F:F) -> 0 | AO49: =_xlfn.XLOOKUP($Y49,[2]Sheet4!$B:$B,[2]Sheet4!$G:$G) -> 0 | AS49: =_xlfn.XLOOKUP($Y49,[3]COUNTRY_INFO!$Y$9:$Y$71,[3]COUNTRY_INFO!H$9:H$71) -> 0 | AT49: =_xlfn.XLOOKUP($Y49,[3]COUNTRY_INFO!$Y$9:$Y$71,[3]COUNTRY_INFO!I$9:I$71) -> 0 | AU49: =_xlfn.XLOOKUP($Y49,[3]COUNTRY_INFO!$Y$9:$Y$71,[3]COUNTRY_INFO!J$9:J$71) -> 0 | AV49: =_xlfn.XLOOKUP($Y49,[3]COUNTRY_INFO!$Y$9:$Y$71,[3]COUNTRY_INFO!K$9:K$71) -> 1 | AW49: TRUE | AX49: TRUE | AY49: TRUE | AZ49: TRUE
A50: =IF(INTRO!$E$34<>0,INTRO!$E$34,"") -> ZIMBABWE | B50: Matabeleland South | C50: Bulilima | D50: 102919 | E50: =IF(INTRO!$E$48="","",ROUND($D50*INTRO!$E$48,0)) -> 11764 | F50: =IF(INTRO!$E$49="","",ROUND($D50*INTRO!$E$49,0)) -> 27284 | G50: =IF(INTRO!$E$50="","",ROUND($D50*INTRO!$E$50,0)) -> 60835 | H50: 1 | I50: 0 | J50: 0 | K50: 1 | L50: =IF(INTRO!$E$38="Endemic", IF($H50>0, IF($H50=4,"Unknown", IF($H50=99,"Stopped", $D50)), 0),"Not required") -> 102919 | M50: =IF(INTRO!$E$40="Endemic", IF($I50>0, IF($I50=4,"Unknown",IF($I50=99,"Stopped", $D50)), 0),"Not required") -> Not required | N50: =IF([1]INTRO!$E$41="Endemic", IF(AND($J50>1,$J50<5), IF($J50=4, "Unknown", E50+F50), 0),"Not required") -> 0 | O50: =IF([1]INTRO!$E$43="Endemic", IF(AND($K50>0,$K50<5), IF($K50=4,"Unknown", IF($K50=1, $F50*0.33, IF($K50=2, $F50*0.5+$G50*0.2, SUM(F50:G50)))), 0),"Not required") -> 9003.72 | P50: 0 | Q50: 0 | R50: 0 | S50: 0 | Y50: 52942 | Z50: Bulilima | AA50: ='MDA2'!M50 -> 0 | AB50: ='T1'!O50 -> 0 | AC50: ='T2'!M50 -> 0 | AD50: =T3_R1!N50 -> 0 | AH50: 0 | AI50: 0 | AL50: =_xlfn.XLOOKUP($Y50,[2]Sheet3!$C:$C,[2]Sheet3!E:E) -> 0 | AM50: =_xlfn.XLOOKUP($Y50,[2]Sheet3!$C:$C,[2]Sheet3!F:F) -> 0 | AO50: =_xlfn.XLOOKUP($Y50,[2]Sheet4!$B:$B,[2]Sheet4!$G:$G) -> 0 | AS50: =_xlfn.XLOOKUP($Y50,[3]COUNTRY_INFO!$Y$9:$Y$71,[3]COUNTRY_INFO!H$9:H$71) -> 1 | AT50: =_xlfn.XLOOKUP($Y50,[3]COUNTRY_INFO!$Y$9:$Y$71,[3]COUNTRY_INFO!I$9:I$71) -> 0 | AU50: =_xlfn.XLOOKUP($Y50,[3]COUNTRY_INFO!$Y$9:$Y$71,[3]COUNTRY_INFO!J$9:J$71) -> 0 | AV50: =_xlfn.XLOOKUP($Y50,[3]COUNTRY_INFO!$Y$9:$Y$71,[3]COUNTRY_INFO!K$9:K$71) -> 1 | AW50: TRUE | AX50: TRUE | AY50: TRUE | AZ50: TRUE
A51: =IF(INTRO!$E$34<>0,INTRO!$E$34,"") -> ZIMBABWE | B51: Matabeleland South | C51: Gwanda | D51: 154565 | E51: =IF(INTRO!$E$48="","",ROUND($D51*INTRO!$E$48,0)) -> 17667 | F51: =IF(INTRO!$E$49="","",ROUND($D51*INTRO!$E$49,0)) -> 40975 | G51: =IF(INTRO!$E$50="","",ROUND($D51*INTRO!$E$50,0)) -> 91363 | H51: 1 | I51: 0 | J51: 0 | K51: 2 | L51: =IF(INTRO!$E$38="Endemic", IF($H51>0, IF($H51=4,"Unknown", IF($H51=99,"Stopped", $D51)), 0),"Not required") -> 154565 | M51: =IF(INTRO!$E$40="Endemic", IF($I51>0, IF($I51=4,"Unknown",IF($I51=99,"Stopped", $D51)), 0),"Not required") -> Not required | N51: =IF([1]INTRO!$E$41="Endemic", IF(AND($J51>1,$J51<5), IF($J51=4, "Unknown", E51+F51), 0),"Not required") -> 0 | O51: =IF([1]INTRO!$E$43="Endemic", IF(AND($K51>0,$K51<5), IF($K51=4,"Unknown", IF($K51=1, $F51*0.33, IF($K51=2, $F51*0.5+$G51*0.2, SUM(F51:G51)))), 0),"Not required") -> 38760.1 | P51: 0 | Q51: 0 | R51: 0 | S51: 0 | Y51: 52943 | Z51: Gwanda | AA51: ='MDA2'!M51 -> 0 | AB51: ='T1'!O51 -> 0 | AC51: ='T2'!M51 -> 0 | AD51: =T3_R1!N51 -> 0 | AH51: 0 | AI51: 0 | AL51: =_xlfn.XLOOKUP($Y51,[2]Sheet3!$C:$C,[2]Sheet3!E:E) -> 0 | AM51: =_xlfn.XLOOKUP($Y51,[2]Sheet3!$C:$C,[2]Sheet3!F:F) -> 0 | AO51: =_xlfn.XLOOKUP($Y51,[2]Sheet4!$B:$B,[2]Sheet4!$G:$G) -> 0 | AS51: =_xlfn.XLOOKUP($Y51,[3]COUNTRY_INFO!$Y$9:$Y$71,[3]COUNTRY_INFO!H$9:H$71) -> 1 | AT51: =_xlfn.XLOOKUP($Y51,[3]COUNTRY_INFO!$Y$9:$Y$71,[3]COUNTRY_INFO!I$9:I$71) -> 0 | AU51: =_xlfn.XLOOKUP($Y51,[3]COUNTRY_INFO!$Y$9:$Y$71,[3]COUNTRY_INFO!J$9:J$71) -> 0 | AV51: =_xlfn.XLOOKUP($Y51,[3]COUNTRY_INFO!$Y$9:$Y$71,[3]COUNTRY_INFO!K$9:K$71) -> 2 | AW51: TRUE | AX51: TRUE | AY51: TRUE | AZ51: TRUE
A52: =IF(INTRO!$E$34<>0,INTRO!$E$34,"") -> ZIMBABWE | B52: Matabeleland South | C52: Insiza | D52: 114025 | E52: =IF(INTRO!$E$48="","",ROUND($D52*INTRO!$E$48,0)) -> 13033 | F52: =IF(INTRO!$E$49="","",ROUND($D52*INTRO!$E$49,0)) -> 30228 | G52: =IF(INTRO!$E$50="","",ROUND($D52*INTRO!$E$50,0)) -> 67400 | H52: 0 | I52: 0 | J52: 0 | K52: 2 | L52: =IF(INTRO!$E$38="Endemic", IF($H52>0, IF($H52=4,"Unknown", IF($H52=99,"Stopped", $D52)), 0),"Not required") -> 0 | M52: =IF(INTRO!$E$40="Endemic", IF($I52>0, IF($I52=4,"Unknown",IF($I52=99,"Stopped", $D52)), 0),"Not required") -> Not required | N52: =IF([1]INTRO!$E$41="Endemic", IF(AND($J52>1,$J52<5), IF($J52=4, "Unknown", E52+F52), 0),"Not required") -> 0 | O52: =IF([1]INTRO!$E$43="Endemic", IF(AND($K52>0,$K52<5), IF($K52=4,"Unknown", IF($K52=1, $F52*0.33, IF($K52=2, $F52*0.5+$G52*0.2, SUM(F52:G52)))), 0),"Not required") -> 28594 | P52: 0 | Q52: 0 | R52: 0 | S52: 1 | T52: T2 (PZQ) | Y52: 52944 | Z52: Insiza | AA52: ='MDA2'!M52 -> 0 | AB52: ='T1'!O52 -> 0 | AC52: ='T2'!M52 -> 28829.89322 | AD52: =T3_R1!N52 -> 0 | AH52: 0 | AI52: 0 | AL52: =_xlfn.XLOOKUP($Y52,[2]Sheet3!$C:$C,[2]Sheet3!E:E) -> 7.142857143 | AM52: =_xlfn.XLOOKUP($Y52,[2]Sheet3!$C:$C,[2]Sheet3!F:F) -> 1.568989665 | AO52: =_xlfn.XLOOKUP($Y52,[2]Sheet4!$B:$B,[2]Sheet4!$G:$G) -> 3.13797933 | AP52: 1 | AS52: =_xlfn.XLOOKUP($Y52,[3]COUNTRY_INFO!$Y$9:$Y$71,[3]COUNTRY_INFO!H$9:H$71) -> 0 | AT52: =_xlfn.XLOOKUP($Y52,[3]COUNTRY_INFO!$Y$9:$Y$71,[3]COUNTRY_INFO!I$9:I$71) -> 0 | AU52: =_xlfn.XLOOKUP($Y52,[3]COUNTRY_INFO!$Y$9:$Y$71,[3]COUNTRY_INFO!J$9:J$71) -> 0 | AV52: =_xlfn.XLOOKUP($Y52,[3]COUNTRY_INFO!$Y$9:$Y$71,[3]COUNTRY_INFO!K$9:K$71) -> 2 | AW52: TRUE | AX52: TRUE | AY52: TRUE | AZ52: TRUE
A53: =IF(INTRO!$E$34<>0,INTRO!$E$34,"") -> ZIMBABWE | B53: Matabeleland South | C53: Mangwe | D53: 88467 | E53: =IF(INTRO!$E$48="","",ROUND($D53*INTRO!$E$48,0)) -> 10112 | F53: =IF(INTRO!$E$49="","",ROUND($D53*INTRO!$E$49,0)) -> 23453 | G53: =IF(INTRO!$E$50="","",ROUND($D53*INTRO!$E$50,0)) -> 52293 | H53: 0 | I53: 0 | J53: 0 | K53: 0 | L53: =IF(INTRO!$E$38="Endemic", IF($H53>0, IF($H53=4,"Unknown", IF($H53=99,"Stopped", $D53)), 0),"Not required") -> 0 | M53: =IF(INTRO!$E$40="Endemic", IF($I53>0, IF($I53=4,"Unknown",IF($I53=99,"Stopped", $D53)), 0),"Not required") -> Not required | N53: =IF([1]INTRO!$E$41="Endemic", IF(AND($J53>1,$J53<5), IF($J53=4, "Unknown", E53+F53), 0),"Not required") -> 0 | O53: =IF([1]INTRO!$E$43="Endemic", IF(AND($K53>0,$K53<5), IF($K53=4,"Unknown", IF($K53=1, $F53*0.33, IF($K53=2, $F53*0.5+$G53*0.2, SUM(F53:G53)))), 0),"Not required") -> 0 | P53: 0 | Q53: 0 | R53: 0 | S53: 0 | Y53: 52945 | Z53: Mangwe | AA53: ='MDA2'!M53 -> 0 | AB53: ='T1'!O53 -> 0 | AC53: ='T2'!M53 -> 0 | AD53: =T3_R1!N53 -> 0 | AH53: 0 | AI53: 0 | AL53: =_xlfn.XLOOKUP($Y53,[2]Sheet3!$C:$C,[2]Sheet3!E:E) -> 0 | AM53: =_xlfn.XLOOKUP($Y53,[2]Sheet3!$C:$C,[2]Sheet3!F:F) -> 0 | AO53: =_xlfn.XLOOKUP($Y53,[2]Sheet4!$B:$B,[2]Sheet4!$G:$G) -> 0 | AS53: =_xlfn.XLOOKUP($Y53,[3]COUNTRY_INFO!$Y$9:$Y$71,[3]COUNTRY_INFO!H$9:H$71) -> 0 | AT53: =_xlfn.XLOOKUP($Y53,[3]COUNTRY_INFO!$Y$9:$Y$71,[3]COUNTRY_INFO!I$9:I$71) -> 0 | AU53: =_xlfn.XLOOKUP($Y53,[3]COUNTRY_INFO!$Y$9:$Y$71,[3]COUNTRY_INFO!J$9:J$71) -> 0 | AV53: =_xlfn.XLOOKUP($Y53,[3]COUNTRY_INFO!$Y$9:$Y$71,[3]COUNTRY_INFO!K$9:K$71) -> 0 | AW53: TRUE | AX53: TRUE | AY53: TRUE | AZ53: TRUE
A54: =IF(INTRO!$E$34<>0,INTRO!$E$34,"") -> ZIMBABWE | B54: Matabeleland South | C54: Matobo | D54: 106759 | E54: =IF(INTRO!$E$48="","",ROUND($D54*INTRO!$E$48,0)) -> 12203 | F54: =IF(INTRO!$E$49="","",ROUND($D54*INTRO!$E$49,0)) -> 28302 | G54: =IF(INTRO!$E$50="","",ROUND($D54*INTRO!$E$50,0)) -> 63105 | H54: 0 | I54: 0 | J54: 0 | K54: 0 | L54: =IF(INTRO!$E$38="Endemic", IF($H54>0, IF($H54=4,"Unknown", IF($H54=99,"Stopped", $D54)), 0),"Not required") -> 0 | M54: =IF(INTRO!$E$40="Endemic", IF($I54>0, IF($I54=4,"Unknown",IF($I54=99,"Stopped", $D54)), 0),"Not required") -> Not required | N54: =IF([1]INTRO!$E$41="Endemic", IF(AND($J54>1,$J54<5), IF($J54=4, "Unknown", E54+F54), 0),"Not required") -> 0 | O54: =IF([1]INTRO!$E$43="Endemic", IF(AND($K54>0,$K54<5), IF($K54=4,"Unknown", IF($K54=1, $F54*0.33, IF($K54=2, $F54*0.5+$G54*0.2, SUM(F54:G54)))), 0),"Not required") -> 0 | P54: 0 | Q54: 0 | R54: 1 | S54: 1 | T54: T2 (PZQ) | U54: T3 (ALB/MBD) | Y54: 52946 | Z54: Matobo | AA54: ='MDA2'!M54 -> 0 | AB54: ='T1'!O54 -> 0 | AC54: ='T2'!M54 -> 25445.72535 | AD54: =T3_R1!N54 -> 22892.5 | AH54: 0 | AI54: 0 | AL54: =_xlfn.XLOOKUP($Y54,[2]Sheet3!$C:$C,[2]Sheet3!E:E) -> 28.88888889 | AM54: =_xlfn.XLOOKUP($Y54,[2]Sheet3!$C:$C,[2]Sheet3!F:F) -> 3.796296296 | AO54: =_xlfn.XLOOKUP($Y54,[2]Sheet4!$B:$B,[2]Sheet4!$G:$G) -> 7.592592593 | AP54: 1 | AS54: =_xlfn.XLOOKUP($Y54,[3]COUNTRY_INFO!$Y$9:$Y$71,[3]COUNTRY_INFO!H$9:H$71) -> 0 | AT54: =_xlfn.XLOOKUP($Y54,[3]COUNTRY_INFO!$Y$9:$Y$71,[3]COUNTRY_INFO!I$9:I$71) -> 0 | AU54: =_xlfn.XLOOKUP($Y54,[3]COUNTRY_INFO!$Y$9:$Y$71,[3]COUNTRY_INFO!J$9:J$71) -> 0 | AV54: =_xlfn.XLOOKUP($Y54,[3]COUNTRY_INFO!$Y$9:$Y$71,[3]COUNTRY_INFO!K$9:K$71) -> 0 | AW54: TRUE | AX54: TRUE | AY54: TRUE | AZ54: TRUE
A55: =IF(INTRO!$E$34<>0,INTRO!$E$34,"") -> ZIMBABWE | B55: Matabeleland South | C55: Umzingwane | D55: 71586 | E55: =IF(INTRO!$E$48="","",ROUND($D55*INTRO!$E$48,0)) -> 8182 | F55: =IF(INTRO!$E$49="","",ROUND($D55*INTRO!$E$49,0)) -> 18977 | G55: =IF(INTRO!$E$50="","",ROUND($D55*INTRO!$E$50,0)) -> 42314 | H55: 0 | I55: 0 | J55: 0 | K55: 1 | L55: =IF(INTRO!$E$38="Endemic", IF($H55>0, IF($H55=4,"Unknown", IF($H55=99,"Stopped", $D55)), 0),"Not required") -> 0 | M55: =IF(INTRO!$E$40="Endemic", IF($I55>0, IF($I55=4,"Unknown",IF($I55=99,"Stopped", $D55)), 0),"Not required") -> Not required | N55: =IF([1]INTRO!$E$41="Endemic", IF(AND($J55>1,$J55<5), IF($J55=4, "Unknown", E55+F55), 0),"Not required") -> 0 | O55: =IF([1]INTRO!$E$43="Endemic", IF(AND($K55>0,$K55<5), IF($K55=4,"Unknown", IF($K55=1, $F55*0.33, IF($K55=2, $F55*0.5+$G55*0.2, SUM(F55:G55)))), 0),"Not required") -> 6262.41 | P55: 0 | Q55: 0 | R55: 0 | S55: 0 | Y55: 52947 | Z55: Umzingwane | AA55: ='MDA2'!M55 -> 0 | AB55: ='T1'!O55 -> 0 | AC55: ='T2'!M55 -> 0 | AD55: =T3_R1!N55 -> 0 | AH55: 0 | AI55: 0 | AL55: =_xlfn.XLOOKUP($Y55,[2]Sheet3!$C:$C,[2]Sheet3!E:E) -> 0 | AM55: =_xlfn.XLOOKUP($Y55,[2]Sheet3!$C:$C,[2]Sheet3!F:F) -> 0 | AO55: =_xlfn.XLOOKUP($Y55,[2]Sheet4!$B:$B,[2]Sheet4!$G:$G) -> 0 | AS55: =_xlfn.XLOOKUP($Y55,[3]COUNTRY_INFO!$Y$9:$Y$71,[3]COUNTRY_INFO!H$9:H$71) -> 0 | AT55: =_xlfn.XLOOKUP($Y55,[3]COUNTRY_INFO!$Y$9:$Y$71,[3]COUNTRY_INFO!I$9:I$71) -> 0 | AU55: =_xlfn.XLOOKUP($Y55,[3]COUNTRY_INFO!$Y$9:$Y$71,[3]COUNTRY_INFO!J$9:J$71) -> 0 | AV55: =_xlfn.XLOOKUP($Y55,[3]COUNTRY_INFO!$Y$9:$Y$71,[3]COUNTRY_INFO!K$9:K$71) -> 1 | AW55: TRUE | AX55: TRUE | AY55: TRUE | AZ55: TRUE
A56: =IF(INTRO!$E$34<>0,INTRO!$E$34,"") -> ZIMBABWE | B56: Midlands | C56: Chirumhanzi | D56: 91316 | E56: =IF(INTRO!$E$48="","",ROUND($D56*INTRO!$E$48,0)) -> 10437 | F56: =IF(INTRO!$E$49="","",ROUND($D56*INTRO!$E$49,0)) -> 24208 | G56: =IF(INTRO!$E$50="","",ROUND($D56*INTRO!$E$50,0)) -> 53977 | H56: 1 | I56: 0 | J56: 0 | K56: 2 | L56: =IF(INTRO!$E$38="Endemic", IF($H56>0, IF($H56=4,"Unknown", IF($H56=99,"Stopped", $D56)), 0),"Not required") -> 91316 | M56: =IF(INTRO!$E$40="Endemic", IF($I56>0, IF($I56=4,"Unknown",IF($I56=99,"Stopped", $D56)), 0),"Not required") -> Not required | N56: =IF([1]INTRO!$E$41="Endemic", IF(AND($J56>1,$J56<5), IF($J56=4, "Unknown", E56+F56), 0),"Not required") -> 0 | O56: =IF([1]INTRO!$E$43="Endemic", IF(AND($K56>0,$K56<5), IF($K56=4,"Unknown", IF($K56=1, $F56*0.33, IF($K56=2, $F56*0.5+$G56*0.2, SUM(F56:G56)))), 0),"Not required") -> 22899.4 | P56: 0 | Q56: 0 | R56: 0 | S56: 1 | T56: T2 (PZQ) | Y56: 52955 | Z56: Chirumhanzi | AA56: ='MDA2'!M56 -> 0 | AB56: ='T1'!O56 -> 0 | AC56: ='T2'!M56 -> 26625.11832 | AD56: =T3_R1!N56 -> 0 | AH56: 0 | AI56: 0 | AL56: =_xlfn.XLOOKUP($Y56,[2]Sheet3!$C:$C,[2]Sheet3!E:E) -> 5 | AM56: =_xlfn.XLOOKUP($Y56,[2]Sheet3!$C:$C,[2]Sheet3!F:F) -> 1.25 | AO56: =_xlfn.XLOOKUP($Y56,[2]Sheet4!$B:$B,[2]Sheet4!$G:$G) -> 1.666666667 | AP56: 1 | AS56: =_xlfn.XLOOKUP($Y56,[3]COUNTRY_INFO!$Y$9:$Y$71,[3]COUNTRY_INFO!H$9:H$71) -> 1 | AT56: =_xlfn.XLOOKUP($Y56,[3]COUNTRY_INFO!$Y$9:$Y$71,[3]COUNTRY_INFO!I$9:I$71) -> 0 | AU56: =_xlfn.XLOOKUP($Y56,[3]COUNTRY_INFO!$Y$9:$Y$71,[3]COUNTRY_INFO!J$9:J$71) -> 0 | AV56: =_xlfn.XLOOKUP($Y56,[3]COUNTRY_INFO!$Y$9:$Y$71,[3]COUNTRY_INFO!K$9:K$71) -> 2 | AW56: TRUE | AX56: TRUE | AY56: TRUE | AZ56: TRUE
A57: =IF(INTRO!$E$34<>0,INTRO!$E$34,"") -> ZIMBABWE | B57: Midlands | C57: Gokwe North | D57: 273152 | E57: =IF(INTRO!$E$48="","",ROUND($D57*INTRO!$E$48,0)) -> 31221 | F57: =IF(INTRO!$E$49="","",ROUND($D57*INTRO!$E$49,0)) -> 72413 | G57: =IF(INTRO!$E$50="","",ROUND($D57*INTRO!$E$50,0)) -> 161460 | H57: 1 | I57: 0 | J57: 1 | K57: 2 | L57: =IF(INTRO!$E$38="Endemic", IF($H57>0, IF($H57=4,"Unknown", IF($H57=99,"Stopped", $D57)), 0),"Not required") -> 273152 | M57: =IF(INTRO!$E$40="Endemic", IF($I57>0, IF($I57=4,"Unknown",IF($I57=99,"Stopped", $D57)), 0),"Not required") -> Not required | N57: =IF([1]INTRO!$E$41="Endemic", IF(AND($J57>1,$J57<5), IF($J57=4, "Unknown", E57+F57), 0),"Not required") -> 0 | O57: =IF([1]INTRO!$E$43="Endemic", IF(AND($K57>0,$K57<5), IF($K57=4,"Unknown", IF($K57=1, $F57*0.33, IF($K57=2, $F57*0.5+$G57*0.2, SUM(F57:G57)))), 0),"Not required") -> 68498.5 | P57: 0 | Q57: 0 | R57: 0 | S57: 0 | Y57: 52956 | Z57: Gokwe North | AA57: ='MDA2'!M57 -> 0 | AB57: ='T1'!O57 -> 0 | AC57: ='T2'!M57 -> 0 | AD57: =T3_R1!N57 -> 0 | AH57: 3.93258427 | AI57: 1 | AL57: =_xlfn.XLOOKUP($Y57,[2]Sheet3!$C:$C,[2]Sheet3!E:E) -> 0 | AM57: =_xlfn.XLOOKUP($Y57,[2]Sheet3!$C:$C,[2]Sheet3!F:F) -> 0 | AO57: =_xlfn.XLOOKUP($Y57,[2]Sheet4!$B:$B,[2]Sheet4!$G:$G) -> 0 | AS57: =_xlfn.XLOOKUP($Y57,[3]COUNTRY_INFO!$Y$9:$Y$71,[3]COUNTRY_INFO!H$9:H$71) -> 1 | AT57: =_xlfn.XLOOKUP($Y57,[3]COUNTRY_INFO!$Y$9:$Y$71,[3]COUNTRY_INFO!I$9:I$71) -> 0 | AU57: =_xlfn.XLOOKUP($Y57,[3]COUNTRY_INFO!$Y$9:$Y$71,[3]COUNTRY_INFO!J$9:J$71) -> 1 | AV57: =_xlfn.XLOOKUP($Y57,[3]COUNTRY_INFO!$Y$9:$Y$71,[3]COUNTRY_INFO!K$9:K$71) -> 2 | AW57: TRUE | AX57: TRUE | AY57: TRUE | AZ57: TRUE
A58: =IF(INTRO!$E$34<>0,INTRO!$E$34,"") -> ZIMBABWE | B58: Midlands | C58: Gokwe South | D58: 375075 | E58: =IF(INTRO!$E$48="","",ROUND($D58*INTRO!$E$48,0)) -> 42871 | F58: =IF(INTRO!$E$49="","",ROUND($D58*INTRO!$E$49,0)) -> 99432 | G58: =IF(INTRO!$E$50="","",ROUND($D58*INTRO!$E$50,0)) -> 221707 | H58: 1 | I58: 0 | J58: 1 | K58: 1 | L58: =IF(INTRO!$E$38="Endemic", IF($H58>0, IF($H58=4,"Unknown", IF($H58=99,"Stopped", $D58)), 0),"Not required") -> 375075 | M58: =IF(INTRO!$E$40="Endemic", IF($I58>0, IF($I58=4,"Unknown",IF($I58=99,"Stopped", $D58)), 0),"Not required") -> Not required | N58: =IF([1]INTRO!$E$41="Endemic", IF(AND($J58>1,$J58<5), IF($J58=4, "Unknown", E58+F58), 0),"Not required") -> 0 | O58: =IF([1]INTRO!$E$43="Endemic", IF(AND($K58>0,$K58<5), IF($K58=4,"Unknown", IF($K58=1, $F58*0.33, IF($K58=2, $F58*0.5+$G58*0.2, SUM(F58:G58)))), 0),"Not required") -> 32812.56 | P58: 0 | Q58: 0 | R58: 0 | S58: 0 | Y58: 52957 | Z58: Gokwe South | AA58: ='MDA2'!M58 -> 0 | AB58: ='T1'!O58 -> 0 | AC58: ='T2'!M58 -> 0 | AD58: =T3_R1!N58 -> 0 | AH58: 6.25 | AI58: 1 | AL58: =_xlfn.XLOOKUP($Y58,[2]Sheet3!$C:$C,[2]Sheet3!E:E) -> 0 | AM58: =_xlfn.XLOOKUP($Y58,[2]Sheet3!$C:$C,[2]Sheet3!F:F) -> 0 | AO58: =_xlfn.XLOOKUP($Y58,[2]Sheet4!$B:$B,[2]Sheet4!$G:$G) -> 0 | AS58: =_xlfn.XLOOKUP($Y58,[3]COUNTRY_INFO!$Y$9:$Y$71,[3]COUNTRY_INFO!H$9:H$71) -> 1 | AT58: =_xlfn.XLOOKUP($Y58,[3]COUNTRY_INFO!$Y$9:$Y$71,[3]COUNTRY_INFO!I$9:I$71) -> 0 | AU58: =_xlfn.XLOOKUP($Y58,[3]COUNTRY_INFO!$Y$9:$Y$71,[3]COUNTRY_INFO!J$9:J$71) -> 1 | AV58: =_xlfn.XLOOKUP($Y58,[3]COUNTRY_INFO!$Y$9:$Y$71,[3]COUNTRY_INFO!K$9:K$71) -> 1 | AW58: TRUE | AX58: TRUE | AY58: TRUE | AZ58: TRUE
A59: =IF(INTRO!$E$34<>0,INTRO!$E$34,"") -> ZIMBABWE | B59: Midlands | C59: Gweru | D59: 283742 | E59: =IF(INTRO!$E$48="","",ROUND($D59*INTRO!$E$48,0)) -> 32432 | F59: =IF(INTRO!$E$49="","",ROUND($D59*INTRO!$E$49,0)) -> 75220 | G59: =IF(INTRO!$E$50="","",ROUND($D59*INTRO!$E$50,0)) -> 167720 | H59: 0 | I59: 0 | J59: 4 | K59: 2 | L59: =IF(INTRO!$E$38="Endemic", IF($H59>0, IF($H59=4,"Unknown", IF($H59=99,"Stopped", $D59)), 0),"Not required") -> 0 | M59: =IF(INTRO!$E$40="Endemic", IF($I59>0, IF($I59=4,"Unknown",IF($I59=99,"Stopped", $D59)), 0),"Not required") -> Not required | N59: =IF([1]INTRO!$E$41="Endemic", IF(AND($J59>1,$J59<5), IF($J59=4, "Unknown", E59+F59), 0),"Not required") -> Unknown | O59: =IF([1]INTRO!$E$43="Endemic", IF(AND($K59>0,$K59<5), IF($K59=4,"Unknown", IF($K59=1, $F59*0.33, IF($K59=2, $F59*0.5+$G59*0.2, SUM(F59:G59)))), 0),"Not required") -> 71154 | P59: 0 | Q59: 0 | R59: 1 | S59: 1 | T59: T2 (PZQ) | U59: T3 (ALB/MBD) | Y59: 52958 | Z59: Gweru | AA59: ='MDA2'!M59 -> 0 | AB59: ='T1'!O59 -> 0 | AC59: ='T2'!M59 -> 74965.26744 | AD59: =T3_R1!N59 -> 62497 | AH59: No data | AI59: 4 | AL59: =_xlfn.XLOOKUP($Y59,[2]Sheet3!$C:$C,[2]Sheet3!E:E) -> 4.87804878 | AM59: =_xlfn.XLOOKUP($Y59,[2]Sheet3!$C:$C,[2]Sheet3!F:F) -> 0.487804878 | AO59: =_xlfn.XLOOKUP($Y59,[2]Sheet4!$B:$B,[2]Sheet4!$G:$G) -> 0.9756097561 | AP59: 1 | AS59: =_xlfn.XLOOKUP($Y59,[3]COUNTRY_INFO!$Y$9:$Y$71,[3]COUNTRY_INFO!H$9:H$71) -> 0 | AT59: =_xlfn.XLOOKUP($Y59,[3]COUNTRY_INFO!$Y$9:$Y$71,[3]COUNTRY_INFO!I$9:I$71) -> 0 | AU59: =_xlfn.XLOOKUP($Y59,[3]COUNTRY_INFO!$Y$9:$Y$71,[3]COUNTRY_INFO!J$9:J$71) -> 4 | AV59: =_xlfn.XLOOKUP($Y59,[3]COUNTRY_INFO!$Y$9:$Y$71,[3]COUNTRY_INFO!K$9:K$71) -> 2 | AW59: TRUE | AX59: TRUE | AY59: TRUE | AZ59: TRUE
A60: =IF(INTRO!$E$34<>0,INTRO!$E$34,"") -> ZIMBABWE | B60: Midlands | C60: Kwekwe | D60: 354073 | E60: =IF(INTRO!$E$48="","",ROUND($D60*INTRO!$E$48,0)) -> 40471 | F60: =IF(INTRO!$E$49="","",ROUND($D60*INTRO!$E$49,0)) -> 93865 | G60: =IF(INTRO!$E$50="","",ROUND($D60*INTRO!$E$50,0)) -> 209293 | H60: 1 | I60: 0 | J60: 0 | K60: 2 | L60: =IF(INTRO!$E$38="Endemic", IF($H60>0, IF($H60=4,"Unknown", IF($H60=99,"Stopped", $D60)), 0),"Not required") -> 354073 | M60: =IF(INTRO!$E$40="Endemic", IF($I60>0, IF($I60=4,"Unknown",IF($I60=99,"Stopped", $D60)), 0),"Not required") -> Not required | N60: =IF([1]INTRO!$E$41="Endemic", IF(AND($J60>1,$J60<5), IF($J60=4, "Unknown", E60+F60), 0),"Not required") -> 0 | O60: =IF([1]INTRO!$E$43="Endemic", IF(AND($K60>0,$K60<5), IF($K60=4,"Unknown", IF($K60=1, $F60*0.33, IF($K60=2, $F60*0.5+$G60*0.2, SUM(F60:G60)))), 0),"Not required") -> 88791.1 | P60: 0 | Q60: 0 | R60: 0 | S60: 0 | Y60: 52959 | Z60: Kwekwe | AA60: ='MDA2'!M60 -> 0 | AB60: ='T1'!O60 -> 0 | AC60: ='T2'!M60 -> 0 | AD60: =T3_R1!N60 -> 0 | AH60: 0 | AI60: 0 | AL60: =_xlfn.XLOOKUP($Y60,[2]Sheet3!$C:$C,[2]Sheet3!E:E) -> 9.090909091 | AM60: =_xlfn.XLOOKUP($Y60,[2]Sheet3!$C:$C,[2]Sheet3!F:F) -> 0.7575757576 | AO60: =_xlfn.XLOOKUP($Y60,[2]Sheet4!$B:$B,[2]Sheet4!$G:$G) -> 1.515151515 | AP60: 1 | AS60: =_xlfn.XLOOKUP($Y60,[3]COUNTRY_INFO!$Y$9:$Y$71,[3]COUNTRY_INFO!H$9:H$71) -> 1 | AT60: =_xlfn.XLOOKUP($Y60,[3]COUNTRY_INFO!$Y$9:$Y$71,[3]COUNTRY_INFO!I$9:I$71) -> 0 | AU60: =_xlfn.XLOOKUP($Y60,[3]COUNTRY_INFO!$Y$9:$Y$71,[3]COUNTRY_INFO!J$9:J$71) -> 0 | AV60: =_xlfn.XLOOKUP($Y60,[3]COUNTRY_INFO!$Y$9:$Y$71,[3]COUNTRY_INFO!K$9:K$71) -> 2 | AW60: TRUE | AX60: TRUE | AY60: TRUE | AZ60: TRUE
A61: =IF(INTRO!$E$34<>0,INTRO!$E$34,"") -> ZIMBABWE | B61: Midlands | C61: Mberengwa | D61: 211107 | E61: =IF(INTRO!$E$48="","",ROUND($D61*INTRO!$E$48,0)) -> 24130 | F61: =IF(INTRO!$E$49="","",ROUND($D61*INTRO!$E$49,0)) -> 55964 | G61: =IF(INTRO!$E$50="","",ROUND($D61*INTRO!$E$50,0)) -> 124785 | H61: 1 | I61: 0 | J61: 1 | K61: 2 | L61: =IF(INTRO!$E$38="Endemic", IF($H61>0, IF($H61=4,"Unknown", IF($H61=99,"Stopped", $D61)), 0),"Not required") -> 211107 | M61: =IF(INTRO!$E$40="Endemic", IF($I61>0, IF($I61=4,"Unknown",IF($I61=99,"Stopped", $D61)), 0),"Not required") -> Not required | N61: =IF([1]INTRO!$E$41="Endemic", IF(AND($J61>1,$J61<5), IF($J61=4, "Unknown", E61+F61), 0),"Not required") -> 0 | O61: =IF([1]INTRO!$E$43="Endemic", IF(AND($K61>0,$K61<5), IF($K61=4,"Unknown", IF($K61=1, $F61*0.33, IF($K61=2, $F61*0.5+$G61*0.2, SUM(F61:G61)))), 0),"Not required") -> 52939 | P61: 0 | Q61: 0 | R61: 1 | S61: 1 | T61: T2 (PZQ) | U61: T3 (ALB/MBD) | Y61: 52960 | Z61: Mberengwa | AA61: ='MDA2'!M61 -> 0 | AB61: ='T1'!O61 -> 0 | AC61: ='T2'!M61 -> 62555.77592 | AD61: =T3_R1!N61 -> 57662 | AH61: 2.985074627 | AI61: 1 | AL61: =_xlfn.XLOOKUP($Y61,[2]Sheet3!$C:$C,[2]Sheet3!E:E) -> 28.57142857 | AM61: =_xlfn.XLOOKUP($Y61,[2]Sheet3!$C:$C,[2]Sheet3!F:F) -> 4.544830723 | AO61: =_xlfn.XLOOKUP($Y61,[2]Sheet4!$B:$B,[2]Sheet4!$G:$G) -> 9.089661446 | AP61: 1 | AS61: =_xlfn.XLOOKUP($Y61,[3]COUNTRY_INFO!$Y$9:$Y$71,[3]COUNTRY_INFO!H$9:H$71) -> 1 | AT61: =_xlfn.XLOOKUP($Y61,[3]COUNTRY_INFO!$Y$9:$Y$71,[3]COUNTRY_INFO!I$9:I$71) -> 0 | AU61: =_xlfn.XLOOKUP($Y61,[3]COUNTRY_INFO!$Y$9:$Y$71,[3]COUNTRY_INFO!J$9:J$71) -> 1 | AV61: =_xlfn.XLOOKUP($Y61,[3]COUNTRY_INFO!$Y$9:$Y$71,[3]COUNTRY_INFO!K$9:K$71) -> 2 | AW61: TRUE | AX61: TRUE | AY61: TRUE | AZ61: TRUE
A62: =IF(INTRO!$E$34<>0,INTRO!$E$34,"") -> ZIMBABWE | B62: Midlands | C62: Shurugwi | D62: 113050 | E62: =IF(INTRO!$E$48="","",ROUND($D62*INTRO!$E$48,0)) -> 12922 | F62: =IF(INTRO!$E$49="","",ROUND($D62*INTRO!$E$49,0)) -> 29970 | G62: =IF(INTRO!$E$50="","",ROUND($D62*INTRO!$E$50,0)) -> 66824 | H62: 1 | I62: 0 | J62: 3 | K62: 3 | L62: =IF(INTRO!$E$38="Endemic", IF($H62>0, IF($H62=4,"Unknown", IF($H62=99,"Stopped", $D62)), 0),"Not required") -> 113050 | M62: =IF(INTRO!$E$40="Endemic", IF($I62>0, IF($I62=4,"Unknown",IF($I62=99,"Stopped", $D62)), 0),"Not required") -> Not required | N62: =IF([1]INTRO!$E$41="Endemic", IF(AND($J62>1,$J62<5), IF($J62=4, "Unknown", E62+F62), 0),"Not required") -> 42892 | O62: =IF([1]INTRO!$E$43="Endemic", IF(AND($K62>0,$K62<5), IF($K62=4,"Unknown", IF($K62=1, $F62*0.33, IF($K62=2, $F62*0.5+$G62*0.2, SUM(F62:G62)))), 0),"Not required") -> 96794 | P62: 0 | Q62: 0 | R62: 1 | S62: 1 | T62: T2 (PZQ) | U62: T3 (ALB/MBD) | Y62: 52961 | Z62: Shurugwi | AA62: ='MDA2'!M62 -> 0 | AB62: ='T1'!O62 -> 0 | AC62: ='T2'!M62 -> 27285.60145 | AD62: =T3_R1!N62 -> 26271 | AH62: 55.92105263 | AI62: 3 | AL62: =_xlfn.XLOOKUP($Y62,[2]Sheet3!$C:$C,[2]Sheet3!E:E) -> 11.42857143 | AM62: =_xlfn.XLOOKUP($Y62,[2]Sheet3!$C:$C,[2]Sheet3!F:F) -> 1.259136213 | AO62: =_xlfn.XLOOKUP($Y62,[2]Sheet4!$B:$B,[2]Sheet4!$G:$G) -> 2.518272425 | AP62: 1 | AS62: =_xlfn.XLOOKUP($Y62,[3]COUNTRY_INFO!$Y$9:$Y$71,[3]COUNTRY_INFO!H$9:H$71) -> 1 | AT62: =_xlfn.XLOOKUP($Y62,[3]COUNTRY_INFO!$Y$9:$Y$71,[3]COUNTRY_INFO!I$9:I$71) -> 0 | AU62: =_xlfn.XLOOKUP($Y62,[3]COUNTRY_INFO!$Y$9:$Y$71,[3]COUNTRY_INFO!J$9:J$71) -> 3 | AV62: =_xlfn.XLOOKUP($Y62,[3]COUNTRY_INFO!$Y$9:$Y$71,[3]COUNTRY_INFO!K$9:K$71) -> 3 | AW62: TRUE | AX62: TRUE | AY62: TRUE | AZ62: TRUE
A63: =IF(INTRO!$E$34<>0,INTRO!$E$34,"") -> ZIMBABWE | B63: Midlands | C63: Zvishavane | D63: 133811 | E63: =IF(INTRO!$E$48="","",ROUND($D63*INTRO!$E$48,0)) -> 15295 | F63: =IF(INTRO!$E$49="","",ROUND($D63*INTRO!$E$49,0)) -> 35473 | G63: =IF(INTRO!$E$50="","",ROUND($D63*INTRO!$E$50,0)) -> 79096 | H63: 1 | I63: 0 | J63: 1 | K63: 2 | L63: =IF(INTRO!$E$38="Endemic", IF($H63>0, IF($H63=4,"Unknown", IF($H63=99,"Stopped", $D63)), 0),"Not required") -> 133811 | M63: =IF(INTRO!$E$40="Endemic", IF($I63>0, IF($I63=4,"Unknown",IF($I63=99,"Stopped", $D63)), 0),"Not required") -> Not required | N63: =IF([1]INTRO!$E$41="Endemic", IF(AND($J63>1,$J63<5), IF($J63=4, "Unknown", E63+F63), 0),"Not required") -> 0 | O63: =IF([1]INTRO!$E$43="Endemic", IF(AND($K63>0,$K63<5), IF($K63=4,"Unknown", IF($K63=1, $F63*0.33, IF($K63=2, $F63*0.5+$G63*0.2, SUM(F63:G63)))), 0),"Not required") -> 33555.7 | P63: 0 | Q63: 0 | R63: 0 | S63: 1 | T63: T2 (PZQ) | Y63: 52962 | Z63: Zvishavane | AA63: ='MDA2'!M63 -> 0 | AB63: ='T1'!O63 -> 0 | AC63: ='T2'!M63 -> 37892.87938 | AD63: =T3_R1!N63 -> 0 | AH63: 2.824858757 | AI63: 1 | AL63: =_xlfn.XLOOKUP($Y63,[2]Sheet3!$C:$C,[2]Sheet3!E:E) -> 4.494382022 | AM63: =_xlfn.XLOOKUP($Y63,[2]Sheet3!$C:$C,[2]Sheet3!F:F) -> 0.8117977528 | AO63: =_xlfn.XLOOKUP($Y63,[2]Sheet4!$B:$B,[2]Sheet4!$G:$G) -> 1.123595506 | AP63: 1 | AS63: =_xlfn.XLOOKUP($Y63,[3]COUNTRY_INFO!$Y$9:$Y$71,[3]COUNTRY_INFO!H$9:H$71) -> 1 | AT63: =_xlfn.XLOOKUP($Y63,[3]COUNTRY_INFO!$Y$9:$Y$71,[3]COUNTRY_INFO!I$9:I$71) -> 0 | AU63: =_xlfn.XLOOKUP($Y63,[3]COUNTRY_INFO!$Y$9:$Y$71,[3]COUNTRY_INFO!J$9:J$71) -> 1 | AV63: =_xlfn.XLOOKUP($Y63,[3]COUNTRY_INFO!$Y$9:$Y$71,[3]COUNTRY_INFO!K$9:K$71) -> 2 | AW63: TRUE | AX63: TRUE | AY63: TRUE | AZ63: TRUE
A64: =IF(INTRO!$E$34<>0,INTRO!$E$34,"") -> ZIMBABWE | B64: Masvingo | C64: Bikita | D64: 184512 | E64: =IF(INTRO!$E$48="","",ROUND($D64*INTRO!$E$48,0)) -> 21090 | F64: =IF(INTRO!$E$49="","",ROUND($D64*INTRO!$E$49,0)) -> 48914 | G64: =IF(INTRO!$E$50="","",ROUND($D64*INTRO!$E$50,0)) -> 109065 | H64: 1 | I64: 0 | J64: 0 | K64: 2 | L64: =IF(INTRO!$E$38="Endemic", IF($H64>0, IF($H64=4,"Unknown", IF($H64=99,"Stopped", $D64)), 0),"Not required") -> 184512 | M64: =IF(INTRO!$E$40="Endemic", IF($I64>0, IF($I64=4,"Unknown",IF($I64=99,"Stopped", $D64)), 0),"Not required") -> Not required | N64: =IF([1]INTRO!$E$41="Endemic", IF(AND($J64>1,$J64<5), IF($J64=4, "Unknown", E64+F64), 0),"Not required") -> 0 | O64: =IF([1]INTRO!$E$43="Endemic", IF(AND($K64>0,$K64<5), IF($K64=4,"Unknown", IF($K64=1, $F64*0.33, IF($K64=2, $F64*0.5+$G64*0.2, SUM(F64:G64)))), 0),"Not required") -> 46270 | P64: 0 | Q64: 0 | R64: 0 | S64: 1 | T64: T2 (PZQ) | Y64: 52934 | Z64: Bikita | AA64: ='MDA2'!M64 -> 0 | AB64: ='T1'!O64 -> 0 | AC64: ='T2'!M64 -> 42817.67997 | AD64: =T3_R1!N64 -> 0 | AH64: 0.5376344086 | AI64: 0 | AL64: =_xlfn.XLOOKUP($Y64,[2]Sheet3!$C:$C,[2]Sheet3!E:E) -> 9.411764706 | AM64: =_xlfn.XLOOKUP($Y64,[2]Sheet3!$C:$C,[2]Sheet3!F:F) -> 0.9411764706 | AO64: =_xlfn.XLOOKUP($Y64,[2]Sheet4!$B:$B,[2]Sheet4!$G:$G) -> 1.882352941 | AP64: 1 | AS64: =_xlfn.XLOOKUP($Y64,[3]COUNTRY_INFO!$Y$9:$Y$71,[3]COUNTRY_INFO!H$9:H$71) -> 1 | AT64: =_xlfn.XLOOKUP($Y64,[3]COUNTRY_INFO!$Y$9:$Y$71,[3]COUNTRY_INFO!I$9:I$71) -> 0 | AU64: =_xlfn.XLOOKUP($Y64,[3]COUNTRY_INFO!$Y$9:$Y$71,[3]COUNTRY_INFO!J$9:J$71) -> 0 | AV64: =_xlfn.XLOOKUP($Y64,[3]COUNTRY_INFO!$Y$9:$Y$71,[3]COUNTRY_INFO!K$9:K$71) -> 2 | AW64: TRUE | AX64: TRUE | AY64: TRUE | AZ64: TRUE
A65: =IF(INTRO!$E$34<>0,INTRO!$E$34,"") -> ZIMBABWE | B65: Masvingo | C65: Chiredzi | D65: 347993 | E65: =IF(INTRO!$E$48="","",ROUND($D65*INTRO!$E$48,0)) -> 39776 | F65: =IF(INTRO!$E$49="","",ROUND($D65*INTRO!$E$49,0)) -> 92253 | G65: =IF(INTRO!$E$50="","",ROUND($D65*INTRO!$E$50,0)) -> 205699 | H65: 1 | I65: 0 | J65: 1 | K65: 3 | L65: =IF(INTRO!$E$38="Endemic", IF($H65>0, IF($H65=4,"Unknown", IF($H65=99,"Stopped", $D65)), 0),"Not required") -> 347993 | M65: =IF(INTRO!$E$40="Endemic", IF($I65>0, IF($I65=4,"Unknown",IF($I65=99,"Stopped", $D65)), 0),"Not required") -> Not required | N65: =IF([1]INTRO!$E$41="Endemic", IF(AND($J65>1,$J65<5), IF($J65=4, "Unknown", E65+F65), 0),"Not required") -> 0 | O65: =IF([1]INTRO!$E$43="Endemic", IF(AND($K65>0,$K65<5), IF($K65=4,"Unknown", IF($K65=1, $F65*0.33, IF($K65=2, $F65*0.5+$G65*0.2, SUM(F65:G65)))), 0),"Not required") -> 297952 | P65: 0 | Q65: 0 | R65: 0 | S65: 1 | T65: T2 (PZQ) | Y65: 52935 | Z65: Chiredzi | AA65: ='MDA2'!M65 -> 0 | AB65: ='T1'!O65 -> 0 | AC65: ='T2'!M65 -> 90119.71398 | AD65: =T3_R1!N65 -> 0 | AH65: 2.158273381 | AI65: 1 | AL65: =_xlfn.XLOOKUP($Y65,[2]Sheet3!$C:$C,[2]Sheet3!E:E) -> 16.66666667 | AM65: =_xlfn.XLOOKUP($Y65,[2]Sheet3!$C:$C,[2]Sheet3!F:F) -> 2.552231719 | AO65: =_xlfn.XLOOKUP($Y65,[2]Sheet4!$B:$B,[2]Sheet4!$G:$G) -> 2.777777778 | AP65: 1 | AS65: =_xlfn.XLOOKUP($Y65,[3]COUNTRY_INFO!$Y$9:$Y$71,[3]COUNTRY_INFO!H$9:H$71) -> 1 | AT65: =_xlfn.XLOOKUP($Y65,[3]COUNTRY_INFO!$Y$9:$Y$71,[3]COUNTRY_INFO!I$9:I$71) -> 0 | AU65: =_xlfn.XLOOKUP($Y65,[3]COUNTRY_INFO!$Y$9:$Y$71,[3]COUNTRY_INFO!J$9:J$71) -> 1 | AV65: =_xlfn.XLOOKUP($Y65,[3]COUNTRY_INFO!$Y$9:$Y$71,[3]COUNTRY_INFO!K$9:K$71) -> 3 | AW65: TRUE | AX65: TRUE | AY65: TRUE | AZ65: TRUE
A66: =IF(INTRO!$E$34<>0,INTRO!$E$34,"") -> ZIMBABWE | B66: Masvingo | C66: Chivi | D66: 188708 | E66: =IF(INTRO!$E$48="","",ROUND($D66*INTRO!$E$48,0)) -> 21569 | F66: =IF(INTRO!$E$49="","",ROUND($D66*INTRO!$E$49,0)) -> 50026 | G66: =IF(INTRO!$E$50="","",ROUND($D66*INTRO!$E$50,0)) -> 111545 | H66: 0 | I66: 0 | J66: 0 | K66: 2 | L66: =IF(INTRO!$E$38="Endemic", IF($H66>0, IF($H66=4,"Unknown", IF($H66=99,"Stopped", $D66)), 0),"Not required") -> 0 | M66: =IF(INTRO!$E$40="Endemic", IF($I66>0, IF($I66=4,"Unknown",IF($I66=99,"Stopped", $D66)), 0),"Not required") -> Not required | N66: =IF([1]INTRO!$E$41="Endemic", IF(AND($J66>1,$J66<5), IF($J66=4, "Unknown", E66+F66), 0),"Not required") -> 0 | O66: =IF([1]INTRO!$E$43="Endemic", IF(AND($K66>0,$K66<5), IF($K66=4,"Unknown", IF($K66=1, $F66*0.33, IF($K66=2, $F66*0.5+$G66*0.2, SUM(F66:G66)))), 0),"Not required") -> 47322 | P66: 0 | Q66: 0 | R66: 0 | S66: 0 | Y66: 52936 | Z66: Chivi | AA66: ='MDA2'!M66 -> 0 | AB66: ='T1'!O66 -> 0 | AC66: ='T2'!M66 -> 0 | AD66: =T3_R1!N66 -> 0 | AH66: 0 | AI66: 0 | AL66: =_xlfn.XLOOKUP($Y66,[2]Sheet3!$C:$C,[2]Sheet3!E:E) -> 2.173913043 | AM66: =_xlfn.XLOOKUP($Y66,[2]Sheet3!$C:$C,[2]Sheet3!F:F) -> 0.2173913043 | AO66: =_xlfn.XLOOKUP($Y66,[2]Sheet4!$B:$B,[2]Sheet4!$G:$G) -> 0.4347826087 | AS66: =_xlfn.XLOOKUP($Y66,[3]COUNTRY_INFO!$Y$9:$Y$71,[3]COUNTRY_INFO!H$9:H$71) -> 0 | AT66: =_xlfn.XLOOKUP($Y66,[3]COUNTRY_INFO!$Y$9:$Y$71,[3]COUNTRY_INFO!I$9:I$71) -> 0 | AU66: =_xlfn.XLOOKUP($Y66,[3]COUNTRY_INFO!$Y$9:$Y$71,[3]COUNTRY_INFO!J$9:J$71) -> 0 | AV66: =_xlfn.XLOOKUP($Y66,[3]COUNTRY_INFO!$Y$9:$Y$71,[3]COUNTRY_INFO!K$9:K$71) -> 2 | AW66: TRUE | AX66: TRUE | AY66: TRUE | AZ66: TRUE
A67: =IF(INTRO!$E$34<>0,INTRO!$E$34,"") -> ZIMBABWE | B67: Masvingo | C67: Gutu | D67: 230798 | E67: =IF(INTRO!$E$48="","",ROUND($D67*INTRO!$E$48,0)) -> 26380 | F67: =IF(INTRO!$E$49="","",ROUND($D67*INTRO!$E$49,0)) -> 61185 | G67: =IF(INTRO!$E$50="","",ROUND($D67*INTRO!$E$50,0)) -> 136425 | H67: 1 | I67: 0 | J67: 1 | K67: 2 | L67: =IF(INTRO!$E$38="Endemic", IF($H67>0, IF($H67=4,"Unknown", IF($H67=99,"Stopped", $D67)), 0),"Not required") -> 230798 | M67: =IF(INTRO!$E$40="Endemic", IF($I67>0, IF($I67=4,"Unknown",IF($I67=99,"Stopped", $D67)), 0),"Not required") -> Not required | N67: =IF([1]INTRO!$E$41="Endemic", IF(AND($J67>1,$J67<5), IF($J67=4, "Unknown", E67+F67), 0),"Not required") -> 0 | O67: =IF([1]INTRO!$E$43="Endemic", IF(AND($K67>0,$K67<5), IF($K67=4,"Unknown", IF($K67=1, $F67*0.33, IF($K67=2, $F67*0.5+$G67*0.2, SUM(F67:G67)))), 0),"Not required") -> 57877.5 | P67: 0 | Q67: 0 | R67: 0 | S67: 1 | T67: T2 (PZQ) | Y67: 52937 | Z67: Gutu | AA67: ='MDA2'!M67 -> 0 | AB67: ='T1'!O67 -> 0 | AC67: ='T2'!M67 -> 53016.27462 | AD67: =T3_R1!N67 -> 0 | AH67: 6.791569087 | AI67: 1 | AL67: =_xlfn.XLOOKUP($Y67,[2]Sheet3!$C:$C,[2]Sheet3!E:E) -> 3.797468354 | AM67: =_xlfn.XLOOKUP($Y67,[2]Sheet3!$C:$C,[2]Sheet3!F:F) -> 0.3164556962 | AO67: =_xlfn.XLOOKUP($Y67,[2]Sheet4!$B:$B,[2]Sheet4!$G:$G) -> 0.6329113924 | AS67: =_xlfn.XLOOKUP($Y67,[3]COUNTRY_INFO!$Y$9:$Y$71,[3]COUNTRY_INFO!H$9:H$71) -> 1 | AT67: =_xlfn.XLOOKUP($Y67,[3]COUNTRY_INFO!$Y$9:$Y$71,[3]COUNTRY_INFO!I$9:I$71) -> 0 | AU67: =_xlfn.XLOOKUP($Y67,[3]COUNTRY_INFO!$Y$9:$Y$71,[3]COUNTRY_INFO!J$9:J$71) -> 1 | AV67: =_xlfn.XLOOKUP($Y67,[3]COUNTRY_INFO!$Y$9:$Y$71,[3]COUNTRY_INFO!K$9:K$71) -> 2 | AW67: TRUE | AX67: TRUE | AY67: TRUE | AZ67: TRUE
A68: =IF(INTRO!$E$34<>0,INTRO!$E$34,"") -> ZIMBABWE | B68: Masvingo | C68: Masvingo | D68: 339917 | E68: =IF(INTRO!$E$48="","",ROUND($D68*INTRO!$E$48,0)) -> 38853 | F68: =IF(INTRO!$E$49="","",ROUND($D68*INTRO!$E$49,0)) -> 90112 | G68: =IF(INTRO!$E$50="","",ROUND($D68*INTRO!$E$50,0)) -> 200925 | H68: 0 | I68: 0 | J68: 1 | K68: 2 | L68: =IF(INTRO!$E$38="Endemic", IF($H68>0, IF($H68=4,"Unknown", IF($H68=99,"Stopped", $D68)), 0),"Not required") -> 0 | M68: =IF(INTRO!$E$40="Endemic", IF($I68>0, IF($I68=4,"Unknown",IF($I68=99,"Stopped", $D68)), 0),"Not required") -> Not required | N68: =IF([1]INTRO!$E$41="Endemic", IF(AND($J68>1,$J68<5), IF($J68=4, "Unknown", E68+F68), 0),"Not required") -> 0 | O68: =IF([1]INTRO!$E$43="Endemic", IF(AND($K68>0,$K68<5), IF($K68=4,"Unknown", IF($K68=1, $F68*0.33, IF($K68=2, $F68*0.5+$G68*0.2, SUM(F68:G68)))), 0),"Not required") -> 85241 | P68: 0 | Q68: 0 | R68: 0 | S68: 0 | Y68: 52938 | Z68: Masvingo | AA68: ='MDA2'!M68 -> 0 | AB68: ='T1'!O68 -> 0 | AC68: ='T2'!M68 -> 0 | AD68: =T3_R1!N68 -> 0 | AH68: 14.93055556 | AI68: 1 | AL68: =_xlfn.XLOOKUP($Y68,[2]Sheet3!$C:$C,[2]Sheet3!E:E) -> 5.555555556 | AM68: =_xlfn.XLOOKUP($Y68,[2]Sheet3!$C:$C,[2]Sheet3!F:F) -> 0.6052206052 | AO68: =_xlfn.XLOOKUP($Y68,[2]Sheet4!$B:$B,[2]Sheet4!$G:$G) -> 0.9401709402 | AS68: =_xlfn.XLOOKUP($Y68,[3]COUNTRY_INFO!$Y$9:$Y$71,[3]COUNTRY_INFO!H$9:H$71) -> 0 | AT68: =_xlfn.XLOOKUP($Y68,[3]COUNTRY_INFO!$Y$9:$Y$71,[3]COUNTRY_INFO!I$9:I$71) -> 0 | AU68: =_xlfn.XLOOKUP($Y68,[3]COUNTRY_INFO!$Y$9:$Y$71,[3]COUNTRY_INFO!J$9:J$71) -> 1 | AV68: =_xlfn.XLOOKUP($Y68,[3]COUNTRY_INFO!$Y$9:$Y$71,[3]COUNTRY_INFO!K$9:K$71) -> 2 | AW68: TRUE | AX68: TRUE | AY68: TRUE | AZ68: TRUE
A69: =IF(INTRO!$E$34<>0,INTRO!$E$34,"") -> ZIMBABWE | B69: Masvingo | C69: Mwenezi | D69: 189782 | E69: =IF(INTRO!$E$48="","",ROUND($D69*INTRO!$E$48,0)) -> 21692 | F69: =IF(INTRO!$E$49="","",ROUND($D69*INTRO!$E$49,0)) -> 50311 | G69: =IF(INTRO!$E$50="","",ROUND($D69*INTRO!$E$50,0)) -> 112180 | H69: 1 | I69: 0 | J69: 0 | K69: 2 | L69: =IF(INTRO!$E$38="Endemic", IF($H69>0, IF($H69=4,"Unknown", IF($H69=99,"Stopped", $D69)), 0),"Not required") -> 189782 | M69: =IF(INTRO!$E$40="Endemic", IF($I69>0, IF($I69=4,"Unknown",IF($I69=99,"Stopped", $D69)), 0),"Not required") -> Not required | N69: =IF([1]INTRO!$E$41="Endemic", IF(AND($J69>1,$J69<5), IF($J69=4, "Unknown", E69+F69), 0),"Not required") -> 0 | O69: =IF([1]INTRO!$E$43="Endemic", IF(AND($K69>0,$K69<5), IF($K69=4,"Unknown", IF($K69=1, $F69*0.33, IF($K69=2, $F69*0.5+$G69*0.2, SUM(F69:G69)))), 0),"Not required") -> 47591.5 | P69: 0 | Q69: 0 | R69: 0 | S69: 1 | T69: T2 (PZQ) | Y69: 52939 | Z69: Mwenezi | AA69: ='MDA2'!M69 -> 0 | AB69: ='T1'!O69 -> 0 | AC69: ='T2'!M69 -> 47500.213 | AD69: =T3_R1!N69 -> 0 | AH69: 0.5405405405 | AI69: 0 | AL69: =_xlfn.XLOOKUP($Y69,[2]Sheet3!$C:$C,[2]Sheet3!E:E) -> 6.666666667 | AM69: =_xlfn.XLOOKUP($Y69,[2]Sheet3!$C:$C,[2]Sheet3!F:F) -> 1.033991228 | AO69: =_xlfn.XLOOKUP($Y69,[2]Sheet4!$B:$B,[2]Sheet4!$G:$G) -> 2.067982456 | AP69: 1 | AS69: =_xlfn.XLOOKUP($Y69,[3]COUNTRY_INFO!$Y$9:$Y$71,[3]COUNTRY_INFO!H$9:H$71) -> 1 | AT69: =_xlfn.XLOOKUP($Y69,[3]COUNTRY_INFO!$Y$9:$Y$71,[3]COUNTRY_INFO!I$9:I$71) -> 0 | AU69: =_xlfn.XLOOKUP($Y69,[3]COUNTRY_INFO!$Y$9:$Y$71,[3]COUNTRY_INFO!J$9:J$71) -> 0 | AV69: =_xlfn.XLOOKUP($Y69,[3]COUNTRY_INFO!$Y$9:$Y$71,[3]COUNTRY_INFO!K$9:K$71) -> 2 | AW69: TRUE | AX69: TRUE | AY69: TRUE | AZ69: TRUE
A70: =IF(INTRO!$E$34<>0,INTRO!$E$34,"") -> ZIMBABWE | B70: Masvingo | C70: Zaka | D70: 206042 | E70: =IF(INTRO!$E$48="","",ROUND($D70*INTRO!$E$48,0)) -> 23551 | F70: =IF(INTRO!$E$49="","",ROUND($D70*INTRO!$E$49,0)) -> 54622 | G70: =IF(INTRO!$E$50="","",ROUND($D70*INTRO!$E$50,0)) -> 121791 | H70: 1 | I70: 0 | J70: 1 | K70: 2 | L70: =IF(INTRO!$E$38="Endemic", IF($H70>0, IF($H70=4,"Unknown", IF($H70=99,"Stopped", $D70)), 0),"Not required") -> 206042 | M70: =IF(INTRO!$E$40="Endemic", IF($I70>0, IF($I70=4,"Unknown",IF($I70=99,"Stopped", $D70)), 0),"Not required") -> Not required | N70: =IF([1]INTRO!$E$41="Endemic", IF(AND($J70>1,$J70<5), IF($J70=4, "Unknown", E70+F70), 0),"Not required") -> 0 | O70: =IF([1]INTRO!$E$43="Endemic", IF(AND($K70>0,$K70<5), IF($K70=4,"Unknown", IF($K70=1, $F70*0.33, IF($K70=2, $F70*0.5+$G70*0.2, SUM(F70:G70)))), 0),"Not required") -> 51669.2 | P70: 0 | Q70: 0 | R70: 0 | S70: 1 | T70: T2 (PZQ) | Y70: 52940 | Z70: Zaka | AA70: ='MDA2'!M70 -> 0 | AB70: ='T1'!O70 -> 0 | AC70: ='T2'!M70 -> 57955.58214 | AD70: =T3_R1!N70 -> 0 | AH70: 11.5942029 | AI70: 1 | AL70: =_xlfn.XLOOKUP($Y70,[2]Sheet3!$C:$C,[2]Sheet3!E:E) -> 9.677419355 | AM70: =_xlfn.XLOOKUP($Y70,[2]Sheet3!$C:$C,[2]Sheet3!F:F) -> 1.163820367 | AO70: =_xlfn.XLOOKUP($Y70,[2]Sheet4!$B:$B,[2]Sheet4!$G:$G) -> 2.327640734 | AP70: 1 | AS70: =_xlfn.XLOOKUP($Y70,[3]COUNTRY_INFO!$Y$9:$Y$71,[3]COUNTRY_INFO!H$9:H$71) -> 1 | AT70: =_xlfn.XLOOKUP($Y70,[3]COUNTRY_INFO!$Y$9:$Y$71,[3]COUNTRY_INFO!I$9:I$71) -> 0 | AU70: =_xlfn.XLOOKUP($Y70,[3]COUNTRY_INFO!$Y$9:$Y$71,[3]COUNTRY_INFO!J$9:J$71) -> 1 | AV70: =_xlfn.XLOOKUP($Y70,[3]COUNTRY_INFO!$Y$9:$Y$71,[3]COUNTRY_INFO!K$9:K$71) -> 2 | AW70: TRUE | AX70: TRUE | AY70: TRUE | AZ70: TRUE
A71: =IF(INTRO!$E$34<>0,INTRO!$E$34,"") -> ZIMBABWE | B71: Bulawayo | C71: Bulawayo | D71: 742495 | E71: =IF(INTRO!$E$48="","",ROUND($D71*INTRO!$E$48,0)) -> 84867 | F71: =IF(INTRO!$E$49="","",ROUND($D71*INTRO!$E$49,0)) -> 196835 | G71: =IF(INTRO!$E$50="","",ROUND($D71*INTRO!$E$50,0)) -> 438889 | H71: 1 | I71: 0 | J71: 0 | K71: 1 | L71: =IF(INTRO!$E$38="Endemic", IF($H71>0, IF($H71=4,"Unknown", IF($H71=99,"Stopped", $D71)), 0),"Not required") -> 742495 | M71: =IF(INTRO!$E$40="Endemic", IF($I71>0, IF($I71=4,"Unknown",IF($I71=99,"Stopped", $D71)), 0),"Not required") -> Not required | N71: =IF([1]INTRO!$E$41="Endemic", IF(AND($J71>1,$J71<5), IF($J71=4, "Unknown", E71+F71), 0),"Not required") -> 0 | O71: =IF([1]INTRO!$E$43="Endemic", IF(AND($K71>0,$K71<5), IF($K71=4,"Unknown", IF($K71=1, $F71*0.33, IF($K71=2, $F71*0.5+$G71*0.2, SUM(F71:G71)))), 0),"Not required") -> 64955.55 | P71: 0 | Q71: 0 | R71: 0 | S71: 0 | Y71: 52902 | Z71: Bulawayo | AA71: ='MDA2'!M71 -> 0 | AB71: ='T1'!O71 -> 0 | AC71: ='T2'!M71 -> 0 | AD71: =T3_R1!N71 -> 0 | AH71: 0.4373177843 | AI71: 0 | AL71: =_xlfn.XLOOKUP($Y71,[2]Sheet3!$C:$C,[2]Sheet3!E:E) -> 0 | AM71: =_xlfn.XLOOKUP($Y71,[2]Sheet3!$C:$C,[2]Sheet3!F:F) -> 0 | AO71: =_xlfn.XLOOKUP($Y71,[2]Sheet4!$B:$B,[2]Sheet4!$G:$G) -> 0 | AS71: =_xlfn.XLOOKUP($Y71,[3]COUNTRY_INFO!$Y$9:$Y$71,[3]COUNTRY_INFO!H$9:H$71) -> 1 | AT71: =_xlfn.XLOOKUP($Y71,[3]COUNTRY_INFO!$Y$9:$Y$71,[3]COUNTRY_INFO!I$9:I$71) -> 0 | AU71: =_xlfn.XLOOKUP($Y71,[3]COUNTRY_INFO!$Y$9:$Y$71,[3]COUNTRY_INFO!J$9:J$71) -> 0 | AV71: =_xlfn.XLOOKUP($Y71,[3]COUNTRY_INFO!$Y$9:$Y$71,[3]COUNTRY_INFO!K$9:K$71) -> 1 | AW71: TRUE | AX71: TRUE | AY71: TRUE | AZ71: TRUE

Sheet MDA1 (hidden)
A1: MDA 1 - Ivermectin (IVM) and Albendazole (ALB)
A2: Administrative structure, population requiring PC by age group, population treated by age group and coverage
A4: TOTAL | G4: =SUM(G$9:G$1000) -> 0 | H4: =SUM(H$9:H$1000) -> 0 | I4: =SUM(I$9:I$1000) -> 0 | K4: =SUM(K$9:K$1000) -> 0 | L4: =SUM(L$9:L$1000) -> 0 | M4: =SUM(M$9:M$1000) -> 0 | O4: =IF(G4<>0, IF(K4/G4*100=0, "-", K4/G4*100), " ") ->  | P4: =IF(H4<>0, IF(L4/H4*100=0, "-", L4/H4*100), " ") ->  | Q4: =IF(I4<>0, IF(M4/I4*100=0, "-", M4/I4*100), " ") -> 
D6: PC implemented | E6: Date | F6: Population targeted for MDA 1 | J6: Population treated | N6: Programme coverage (%)
A7: Country | B7: Province/State | C7: District | F7: PreSAC | G7: SAC | H7: Adults | I7: Total | J7: PreSAC | K7: SAC | L7: Adults | M7: Total | N7: PreSAC | O7: SAC | P7: Adults | Q7: Total
A9: =IF(COUNTRY_INFO!A9=0," ",COUNTRY_INFO!A9) -> ZIMBABWE | B9: =IF(COUNTRY_INFO!B9=0," ",COUNTRY_INFO!B9) -> Manicaland | C9: =IF(COUNTRY_INFO!C9=0," ",COUNTRY_INFO!C9) -> Buhera | D9: =IF(COUNTRY_INFO!$T$9:$T$1000="MDA1 (IVM+ALB)", COUNTRY_INFO!$T$9:$T$1000, " ") ->  | I9: =SUM(F9:H9) -> 0 | M9: =SUM(J9:L9) -> 0 | O9: =IF(G9<>0, IF(K9/G9*100=0, "-", K9/G9*100), " ") ->  | P9: =IF(H9<>0, IF(L9/H9*100=0, "-", L9/H9*100), " ") ->  | Q9: =IF(I9<>0, IF(M9/I9*100=0, "-", M9/I9*100), " ") -> 
A10: =IF(COUNTRY_INFO!A10=0," ",COUNTRY_INFO!A10) -> ZIMBABWE | B10: =IF(COUNTRY_INFO!B10=0," ",COUNTRY_INFO!B10) -> Manicaland | C10: =IF(COUNTRY_INFO!C10=0," ",COUNTRY_INFO!C10) -> Chimanimani | D10: =IF(COUNTRY_INFO!$T$9:$T$1000="MDA1 (IVM+ALB)", COUNTRY_INFO!$T$9:$T$1000, " ") ->  | I10: =SUM(F10:H10) -> 0 | M10: =SUM(J10:L10) -> 0 | O10: =IF(G10<>0, IF(K10/G10*100=0, "-", K10/G10*100), " ") ->  | P10: =IF(H10<>0, IF(L10/H10*100=0, "-", L10/H10*100), " ") ->  | Q10: =IF(I10<>0, IF(M10/I10*100=0, "-", M10/I10*100), " ") -> 
A11: =IF(COUNTRY_INFO!A11=0," ",COUNTRY_INFO!A11) -> ZIMBABWE | B11: =IF(COUNTRY_INFO!B11=0," ",COUNTRY_INFO!B11) -> Manicaland | C11: =IF(COUNTRY_INFO!C11=0," ",COUNTRY_INFO!C11) -> Chipinge | D11: =IF(COUNTRY_INFO!$T$9:$T$1000="MDA1 (IVM+ALB)", COUNTRY_INFO!$T$9:$T$1000, " ") ->  | I11: 0 | M11: 0
A12: =IF(COUNTRY_INFO!A12=0," ",COUNTRY_INFO!A12) -> ZIMBABWE | B12: =IF(COUNTRY_INFO!B12=0," ",COUNTRY_INFO!B12) -> Manicaland | C12: =IF(COUNTRY_INFO!C12=0," ",COUNTRY_INFO!C12) -> Makoni | D12: =IF(COUNTRY_INFO!$T$9:$T$1000="MDA1 (IVM+ALB)", COUNTRY_INFO!$T$9:$T$1000, " ") ->  | I12: 0 | M12: 0
A13: =IF(COUNTRY_INFO!A13=0," ",COUNTRY_INFO!A13) -> ZIMBABWE | B13: =IF(COUNTRY_INFO!B13=0," ",COUNTRY_INFO!B13) -> Manicaland | C13: =IF(COUNTRY_INFO!C13=0," ",COUNTRY_INFO!C13) -> Mutare | D13: =IF(COUNTRY_INFO!$T$9:$T$1000="MDA1 (IVM+ALB)", COUNTRY_INFO!$T$9:$T$1000, " ") ->  | I13: 0 | M13: 0
A14: =IF(COUNTRY_INFO!A14=0," ",COUNTRY_INFO!A14) -> ZIMBABWE | B14: =IF(COUNTRY_INFO!B14=0," ",COUNTRY_INFO!B14) -> Manicaland | C14: =IF(COUNTRY_INFO!C14=0," ",COUNTRY_INFO!C14) -> Mutasa | D14: =IF(COUNTRY_INFO!$T$9:$T$1000="MDA1 (IVM+ALB)", COUNTRY_INFO!$T$9:$T$1000, " ") ->  | I14: 0 | M14: 0
A15: =IF(COUNTRY_INFO!A15=0," ",COUNTRY_INFO!A15) -> ZIMBABWE | B15: =IF(COUNTRY_INFO!B15=0," ",COUNTRY_INFO!B15) -> Manicaland | C15: =IF(COUNTRY_INFO!C15=0," ",COUNTRY_INFO!C15) -> Nyanga | D15: =IF(COUNTRY_INFO!$T$9:$T$1000="MDA1 (IVM+ALB)", COUNTRY_INFO!$T$9:$T$1000, " ") ->  | I15: 0 | M15: 0
A16: =IF(COUNTRY_INFO!A16=0," ",COUNTRY_INFO!A16) -> ZIMBABWE | B16: =IF(COUNTRY_INFO!B16=0," ",COUNTRY_INFO!B16) -> Harare | C16: =IF(COUNTRY_INFO!C16=0," ",COUNTRY_INFO!C16) -> Chitungwiza | D16: =IF(COUNTRY_INFO!$T$9:$T$1000="MDA1 (IVM+ALB)", COUNTRY_INFO!$T$9:$T$1000, " ") ->  | I16: 0 | M16: 0
A17: =IF(COUNTRY_INFO!A17=0," ",COUNTRY_INFO!A17) -> ZIMBABWE | B17: =IF(COUNTRY_INFO!B17=0," ",COUNTRY_INFO!B17) -> Harare | C17: =IF(COUNTRY_INFO!C17=0," ",COUNTRY_INFO!C17) -> Harare | D17: =IF(COUNTRY_INFO!$T$9:$T$1000="MDA1 (IVM+ALB)", COUNTRY_INFO!$T$9:$T$1000, " ") ->  | I17: 0 | M17: 0
A18: =IF(COUNTRY_INFO!A18=0," ",COUNTRY_INFO!A18) -> ZIMBABWE | B18: =IF(COUNTRY_INFO!B18=0," ",COUNTRY_INFO!B18) -> Mashnaland Central | C18: =IF(COUNTRY_INFO!C18=0," ",COUNTRY_INFO!C18) -> Bindura | D18: =IF(COUNTRY_INFO!$T$9:$T$1000="MDA1 (IVM+ALB)", COUNTRY_INFO!$T$9:$T$1000, " ") ->  | I18: 0 | M18: 0
A19: =IF(COUNTRY_INFO!A19=0," ",COUNTRY_INFO!A19) -> ZIMBABWE | B19: =IF(COUNTRY_INFO!B19=0," ",COUNTRY_INFO!B19) -> Mashnaland Central | C19: =IF(COUNTRY_INFO!C19=0," ",COUNTRY_INFO!C19) -> Centenary | D19: =IF(COUNTRY_INFO!$T$9:$T$1000="MDA1 (IVM+ALB)", COUNTRY_INFO!$T$9:$T$1000, " ") ->  | I19: 0 | M19: 0
A20: =IF(COUNTRY_INFO!A20=0," ",COUNTRY_INFO!A20) -> ZIMBABWE | B20: =IF(COUNTRY_INFO!B20=0," ",COUNTRY_INFO!B20) -> Mashnaland Central | C20: =IF(COUNTRY_INFO!C20=0," ",COUNTRY_INFO!C20) -> Guruve | D20: =IF(COUNTRY_INFO!$T$9:$T$1000="MDA1 (IVM+ALB)", COUNTRY_INFO!$T$9:$T$1000, " ") ->  | I20: 0 | M20: 0
A21: =IF(COUNTRY_INFO!A21=0," ",COUNTRY_INFO!A21) -> ZIMBABWE | B21: =IF(COUNTRY_INFO!B21=0," ",COUNTRY_INFO!B21) -> Mashnaland Central | C21: =IF(COUNTRY_INFO!C21=0," ",COUNTRY_INFO!C21) -> Mazowe | D21: =IF(COUNTRY_INFO!$T$9:$T$1000="MDA1 (IVM+ALB)", COUNTRY_INFO!$T$9:$T$1000, " ") ->  | I21: 0 | M21: 0
A22: =IF(COUNTRY_INFO!A22=0," ",COUNTRY_INFO!A22) -> ZIMBABWE | B22: =IF(COUNTRY_INFO!B22=0," ",COUNTRY_INFO!B22) -> Mashnaland Central | C22: =IF(COUNTRY_INFO!C22=0," ",COUNTRY_INFO!C22) -> Mt Darwin | D22: =IF(COUNTRY_INFO!$T$9:$T$1000="MDA1 (IVM+ALB)", COUNTRY_INFO!$T$9:$T$1000, " ") ->  | I22: 0 | M22: 0
A23: =IF(COUNTRY_INFO!A23=0," ",COUNTRY_INFO!A23) -> ZIMBABWE | B23: =IF(COUNTRY_INFO!B23=0," ",COUNTRY_INFO!B23) -> Mashnaland Central | C23: =IF(COUNTRY_INFO!C23=0," ",COUNTRY_INFO!C23) -> Rushinga | D23: =IF(COUNTRY_INFO!$T$9:$T$1000="MDA1 (IVM+ALB)", COUNTRY_INFO!$T$9:$T$1000, " ") ->  | I23: 0 | M23: 0
A24: =IF(COUNTRY_INFO!A24=0," ",COUNTRY_INFO!A24) -> ZIMBABWE | B24: =IF(COUNTRY_INFO!B24=0," ",COUNTRY_INFO!B24) -> Mashnaland Central | C24: =IF(COUNTRY_INFO!C24=0," ",COUNTRY_INFO!C24) -> Shamva | D24: =IF(COUNTRY_INFO!$T$9:$T$1000="MDA1 (IVM+ALB)", COUNTRY_INFO!$T$9:$T$1000, " ") ->  | I24: 0 | M24: 0
A25: =IF(COUNTRY_INFO!A25=0," ",COUNTRY_INFO!A25) -> ZIMBABWE | B25: =IF(COUNTRY_INFO!B25=0," ",COUNTRY_INFO!B25) -> Mashnaland Central | C25: =IF(COUNTRY_INFO!C25=0," ",COUNTRY_INFO!C25) -> Mbire | D25: =IF(COUNTRY_INFO!$T$9:$T$1000="MDA1 (IVM+ALB)", COUNTRY_INFO!$T$9:$T$1000, " ") ->  | I25: 0 | M25: 0
A26: =IF(COUNTRY_INFO!A26=0," ",COUNTRY_INFO!A26) -> ZIMBABWE | B26: =IF(COUNTRY_INFO!B26=0," ",COUNTRY_INFO!B26) -> Mashonaland East | C26: =IF(COUNTRY_INFO!C26=0," ",COUNTRY_INFO!C26) -> Chikomba | D26: =IF(COUNTRY_INFO!$T$9:$T$1000="MDA1 (IVM+ALB)", COUNTRY_INFO!$T$9:$T$1000, " ") ->  | I26: 0 | M26: 0
A27: =IF(COUNTRY_INFO!A27=0," ",COUNTRY_INFO!A27) -> ZIMBABWE | B27: =IF(COUNTRY_INFO!B27=0," ",COUNTRY_INFO!B27) -> Mashonaland East | C27: =IF(COUNTRY_INFO!C27=0," ",COUNTRY_INFO!C27) -> Goromonzi | D27: =IF(COUNTRY_INFO!$T$9:$T$1000="MDA1 (IVM+ALB)", COUNTRY_INFO!$T$9:$T$1000, " ") ->  | I27: 0 | M27: 0
A28: =IF(COUNTRY_INFO!A28=0," ",COUNTRY_INFO!A28) -> ZIMBABWE | B28: =IF(COUNTRY_INFO!B28=0," ",COUNTRY_INFO!B28) -> Mashonaland East | C28: =IF(COUNTRY_INFO!C28=0," ",COUNTRY_INFO!C28) -> UMP | D28: =IF(COUNTRY_INFO!$T$9:$T$1000="MDA1 (IVM+ALB)", COUNTRY_INFO!$T$9:$T$1000, " ") ->  | I28: 0 | M28: 0
A29: =IF(COUNTRY_INFO!A29=0," ",COUNTRY_INFO!A29) -> ZIMBABWE | B29: =IF(COUNTRY_INFO!B29=0," ",COUNTRY_INFO!B29) -> Mashonaland East | C29: =IF(COUNTRY_INFO!C29=0," ",COUNTRY_INFO!C29) -> Hwedza | D29: =IF(COUNTRY_INFO!$T$9:$T$1000="MDA1 (IVM+ALB)", COUNTRY_INFO!$T$9:$T$1000, " ") ->  | I29: 0 | M29: 0
A30: =IF(COUNTRY_INFO!A30=0," ",COUNTRY_INFO!A30) -> ZIMBABWE | B30: =IF(COUNTRY_INFO!B30=0," ",COUNTRY_INFO!B30) -> Mashonaland East | C30: =IF(COUNTRY_INFO!C30=0," ",COUNTRY_INFO!C30) -> Marondera | D30: =IF(COUNTRY_INFO!$T$9:$T$1000="MDA1 (IVM+ALB)", COUNTRY_INFO!$T$9:$T$1000, " ") ->  | I30: 0 | M30: 0
A31: =IF(COUNTRY_INFO!A31=0," ",COUNTRY_INFO!A31) -> ZIMBABWE | B31: =IF(COUNTRY_INFO!B31=0," ",COUNTRY_INFO!B31) -> Mashonaland East | C31: =IF(COUNTRY_INFO!C31=0," ",COUNTRY_INFO!C31) -> Mudzi | D31: =IF(COUNTRY_INFO!$T$9:$T$1000="MDA1 (IVM+ALB)", COUNTRY_INFO!$T$9:$T$1000, " ") ->  | I31: 0 | M31: 0
A32: =IF(COUNTRY_INFO!A32=0," ",COUNTRY_INFO!A32) -> ZIMBABWE | B32: =IF(COUNTRY_INFO!B32=0," ",COUNTRY_INFO!B32) -> Mashonaland East | C32: =IF(COUNTRY_INFO!C32=0," ",COUNTRY_INFO!C32) -> Murewa | D32: =IF(COUNTRY_INFO!$T$9:$T$1000="MDA1 (IVM+ALB)", COUNTRY_INFO!$T$9:$T$1000, " ") ->  | I32: 0 | M32: 0
A33: =IF(COUNTRY_INFO!A33=0," ",COUNTRY_INFO!A33) -> ZIMBABWE | B33: =IF(COUNTRY_INFO!B33=0," ",COUNTRY_INFO!B33) -> Mashonaland East | C33: =IF(COUNTRY_INFO!C33=0," ",COUNTRY_INFO!C33) -> Mutoko | D33: =IF(COUNTRY_INFO!$T$9:$T$1000="MDA1 (IVM+ALB)", COUNTRY_INFO!$T$9:$T$1000, " ") ->  | I33: 0 | M33: 0
A34: =IF(COUNTRY_INFO!A34=0," ",COUNTRY_INFO!A34) -> ZIMBABWE | B34: =IF(COUNTRY_INFO!B34=0," ",COUNTRY_INFO!B34) -> Mashonaland East | C34: =IF(COUNTRY_INFO!C34=0," ",COUNTRY_INFO!C34) -> Seke | D34: =IF(COUNTRY_INFO!$T$9:$T$1000="MDA1 (IVM+ALB)", COUNTRY_INFO!$T$9:$T$1000, " ") ->  | I34: 0 | M34: 0
A35: =IF(COUNTRY_INFO!A35=0," ",COUNTRY_INFO!A35) -> ZIMBABWE | B35: =IF(COUNTRY_INFO!B35=0," ",COUNTRY_INFO!B35) -> Mashonaland West | C35: =IF(COUNTRY_INFO!C35=0," ",COUNTRY_INFO!C35) -> Chegutu | D35: =IF(COUNTRY_INFO!$T$9:$T$1000="MDA1 (IVM+ALB)", COUNTRY_INFO!$T$9:$T$1000, " ") ->  | I35: 0 | M35: 0
A36: =IF(COUNTRY_INFO!A36=0," ",COUNTRY_INFO!A36) -> ZIMBABWE | B36: =IF(COUNTRY_INFO!B36=0," ",COUNTRY_INFO!B36) -> Mashonaland West | C36: =IF(COUNTRY_INFO!C36=0," ",COUNTRY_INFO!C36) -> Hurungwe | D36: =IF(COUNTRY_INFO!$T$9:$T$1000="MDA1 (IVM+ALB)", COUNTRY_INFO!$T$9:$T$1000, " ") ->  | I36: 0 | M36: 0
A37: =IF(COUNTRY_INFO!A37=0," ",COUNTRY_INFO!A37) -> ZIMBABWE | B37: =IF(COUNTRY_INFO!B37=0," ",COUNTRY_INFO!B37) -> Mashonaland West | C37: =IF(COUNTRY_INFO!C37=0," ",COUNTRY_INFO!C37) -> Sanyati | D37: =IF(COUNTRY_INFO!$T$9:$T$1000="MDA1 (IVM+ALB)", COUNTRY_INFO!$T$9:$T$1000, " ") ->  | I37: 0 | M37: 0
A38: =IF(COUNTRY_INFO!A38=0," ",COUNTRY_INFO!A38) -> ZIMBABWE | B38: =IF(COUNTRY_INFO!B38=0," ",COUNTRY_INFO!B38) -> Mashonaland West | C38: =IF(COUNTRY_INFO!C38=0," ",COUNTRY_INFO!C38) -> Kariba | D38: =IF(COUNTRY_INFO!$T$9:$T$1000="MDA1 (IVM+ALB)", COUNTRY_INFO!$T$9:$T$1000, " ") ->  | I38: 0 | M38: 0
A39: =IF(COUNTRY_INFO!A39=0," ",COUNTRY_INFO!A39) -> ZIMBABWE | B39: =IF(COUNTRY_INFO!B39=0," ",COUNTRY_INFO!B39) -> Mashonaland West | C39: =IF(COUNTRY_INFO!C39=0," ",COUNTRY_INFO!C39) -> Makonde | D39: =IF(COUNTRY_INFO!$T$9:$T$1000="MDA1 (IVM+ALB)", COUNTRY_INFO!$T$9:$T$1000, " ") ->  | I39: 0 | M39: 0
A40: =IF(COUNTRY_INFO!A40=0," ",COUNTRY_INFO!A40) -> ZIMBABWE | B40: =IF(COUNTRY_INFO!B40=0," ",COUNTRY_INFO!B40) -> Mashonaland West | C40: =IF(COUNTRY_INFO!C40=0," ",COUNTRY_INFO!C40) -> Mhondoro-Ngezi | D40: =IF(COUNTRY_INFO!$T$9:$T$1000="MDA1 (IVM+ALB)", COUNTRY_INFO!$T$9:$T$1000, " ") ->  | I40: 0 | M40: 0
A41: =IF(COUNTRY_INFO!A41=0," ",COUNTRY_INFO!A41) -> ZIMBABWE | B41: =IF(COUNTRY_INFO!B41=0," ",COUNTRY_INFO!B41) -> Mashonaland West | C41: =IF(COUNTRY_INFO!C41=0," ",COUNTRY_INFO!C41) -> Zvimba | D41: =IF(COUNTRY_INFO!$T$9:$T$1000="MDA1 (IVM+ALB)", COUNTRY_INFO!$T$9:$T$1000, " ") ->  | I41: 0 | M41: 0
A42: =IF(COUNTRY_INFO!A42=0," ",COUNTRY_INFO!A42) -> ZIMBABWE | B42: =IF(COUNTRY_INFO!B42=0," ",COUNTRY_INFO!B42) -> Matabeleland North | C42: =IF(COUNTRY_INFO!C42=0," ",COUNTRY_INFO!C42) -> Binga | D42: =IF(COUNTRY_INFO!$T$9:$T$1000="MDA1 (IVM+ALB)", COUNTRY_INFO!$T$9:$T$1000, " ") ->  | I42: 0 | M42: 0
A43: =IF(COUNTRY_INFO!A43=0," ",COUNTRY_INFO!A43) -> ZIMBABWE | B43: =IF(COUNTRY_INFO!B43=0," ",COUNTRY_INFO!B43) -> Matabeleland North | C43: =IF(COUNTRY_INFO!C43=0," ",COUNTRY_INFO!C43) -> Bubi | D43: =IF(COUNTRY_INFO!$T$9:$T$1000="MDA1 (IVM+ALB)", COUNTRY_INFO!$T$9:$T$1000, " ") ->  | I43: 0 | M43: 0
A44: =IF(COUNTRY_INFO!A44=0," ",COUNTRY_INFO!A44) -> ZIMBABWE | B44: =IF(COUNTRY_INFO!B44=0," ",COUNTRY_INFO!B44) -> Matabeleland North | C44: =IF(COUNTRY_INFO!C44=0," ",COUNTRY_INFO!C44) -> Hwange | D44: =IF(COUNTRY_INFO!$T$9:$T$1000="MDA1 (IVM+ALB)", COUNTRY_INFO!$T$9:$T$1000, " ") ->  | I44: 0 | M44: 0
A45: =IF(COUNTRY_INFO!A45=0," ",COUNTRY_INFO!A45) -> ZIMBABWE | B45: =IF(COUNTRY_INFO!B45=0," ",COUNTRY_INFO!B45) -> Matabeleland North | C45: =IF(COUNTRY_INFO!C45=0," ",COUNTRY_INFO!C45) -> Lupane | D45: =IF(COUNTRY_INFO!$T$9:$T$1000="MDA1 (IVM+ALB)", COUNTRY_INFO!$T$9:$T$1000, " ") ->  | I45: 0 | M45: 0
A46: =IF(COUNTRY_INFO!A46=0," ",COUNTRY_INFO!A46) -> ZIMBABWE | B46: =IF(COUNTRY_INFO!B46=0," ",COUNTRY_INFO!B46) -> Matabeleland North | C46: =IF(COUNTRY_INFO!C46=0," ",COUNTRY_INFO!C46) -> Nkayi | D46: =IF(COUNTRY_INFO!$T$9:$T$1000="MDA1 (IVM+ALB)", COUNTRY_INFO!$T$9:$T$1000, " ") ->  | I46: 0 | M46: 0
A47: =IF(COUNTRY_INFO!A47=0," ",COUNTRY_INFO!A47) -> ZIMBABWE | B47: =IF(COUNTRY_INFO!B47=0," ",COUNTRY_INFO!B47) -> Matabeleland North | C47: =IF(COUNTRY_INFO!C47=0," ",COUNTRY_INFO!C47) -> Tsholotsho | D47: =IF(COUNTRY_INFO!$T$9:$T$1000="MDA1 (IVM+ALB)", COUNTRY_INFO!$T$9:$T$1000, " ") ->  | I47: 0 | M47: 0
A48: =IF(COUNTRY_INFO!A48=0," ",COUNTRY_INFO!A48) -> ZIMBABWE | B48: =IF(COUNTRY_INFO!B48=0," ",COUNTRY_INFO!B48) -> Matabeleland North | C48: =IF(COUNTRY_INFO!C48=0," ",COUNTRY_INFO!C48) -> Umguza | D48: =IF(COUNTRY_INFO!$T$9:$T$1000="MDA1 (IVM+ALB)", COUNTRY_INFO!$T$9:$T$1000, " ") ->  | I48: 0 | M48: 0
A49: =IF(COUNTRY_INFO!A49=0," ",COUNTRY_INFO!A49) -> ZIMBABWE | B49: =IF(COUNTRY_INFO!B49=0," ",COUNTRY_INFO!B49) -> Matabeleland South | C49: =IF(COUNTRY_INFO!C49=0," ",COUNTRY_INFO!C49) -> Beit Bridge | D49: =IF(COUNTRY_INFO!$T$9:$T$1000="MDA1 (IVM+ALB)", COUNTRY_INFO!$T$9:$T$1000, " ") ->  | I49: 0 | M49: 0
A50: =IF(COUNTRY_INFO!A50=0," ",COUNTRY_INFO!A50) -> ZIMBABWE | B50: =IF(COUNTRY_INFO!B50=0," ",COUNTRY_INFO!B50) -> Matabeleland South | C50: =IF(COUNTRY_INFO!C50=0," ",COUNTRY_INFO!C50) -> Bulilima | D50: =IF(COUNTRY_INFO!$T$9:$T$1000="MDA1 (IVM+ALB)", COUNTRY_INFO!$T$9:$T$1000, " ") ->  | I50: 0 | M50: 0
A51: =IF(COUNTRY_INFO!A51=0," ",COUNTRY_INFO!A51) -> ZIMBABWE | B51: =IF(COUNTRY_INFO!B51=0," ",COUNTRY_INFO!B51) -> Matabeleland South | C51: =IF(COUNTRY_INFO!C51=0," ",COUNTRY_INFO!C51) -> Gwanda | D51: =IF(COUNTRY_INFO!$T$9:$T$1000="MDA1 (IVM+ALB)", COUNTRY_INFO!$T$9:$T$1000, " ") ->  | I51: 0 | M51: 0
A52: =IF(COUNTRY_INFO!A52=0," ",COUNTRY_INFO!A52) -> ZIMBABWE | B52: =IF(COUNTRY_INFO!B52=0," ",COUNTRY_INFO!B52) -> Matabeleland South | C52: =IF(COUNTRY_INFO!C52=0," ",COUNTRY_INFO!C52) -> Insiza | D52: =IF(COUNTRY_INFO!$T$9:$T$1000="MDA1 (IVM+ALB)", COUNTRY_INFO!$T$9:$T$1000, " ") ->  | I52: 0 | M52: 0
A53: =IF(COUNTRY_INFO!A53=0," ",COUNTRY_INFO!A53) -> ZIMBABWE | B53: =IF(COUNTRY_INFO!B53=0," ",COUNTRY_INFO!B53) -> Matabeleland South | C53: =IF(COUNTRY_INFO!C53=0," ",COUNTRY_INFO!C53) -> Mangwe | D53: =IF(COUNTRY_INFO!$T$9:$T$1000="MDA1 (IVM+ALB)", COUNTRY_INFO!$T$9:$T$1000, " ") ->  | I53: 0 | M53: 0
A54: =IF(COUNTRY_INFO!A54=0," ",COUNTRY_INFO!A54) -> ZIMBABWE | B54: =IF(COUNTRY_INFO!B54=0," ",COUNTRY_INFO!B54) -> Matabeleland South | C54: =IF(COUNTRY_INFO!C54=0," ",COUNTRY_INFO!C54) -> Matobo | D54: =IF(COUNTRY_INFO!$T$9:$T$1000="MDA1 (IVM+ALB)", COUNTRY_INFO!$T$9:$T$1000, " ") ->  | I54: 0 | M54: 0
A55: =IF(COUNTRY_INFO!A55=0," ",COUNTRY_INFO!A55) -> ZIMBABWE | B55: =IF(COUNTRY_INFO!B55=0," ",COUNTRY_INFO!B55) -> Matabeleland South | C55: =IF(COUNTRY_INFO!C55=0," ",COUNTRY_INFO!C55) -> Umzingwane | D55: =IF(COUNTRY_INFO!$T$9:$T$1000="MDA1 (IVM+ALB)", COUNTRY_INFO!$T$9:$T$1000, " ") ->  | I55: 0 | M55: 0
A56: =IF(COUNTRY_INFO!A56=0," ",COUNTRY_INFO!A56) -> ZIMBABWE | B56: =IF(COUNTRY_INFO!B56=0," ",COUNTRY_INFO!B56) -> Midlands | C56: =IF(COUNTRY_INFO!C56=0," ",COUNTRY_INFO!C56) -> Chirumhanzi | D56: =IF(COUNTRY_INFO!$T$9:$T$1000="MDA1 (IVM+ALB)", COUNTRY_INFO!$T$9:$T$1000, " ") ->  | I56: 0 | M56: 0
A57: =IF(COUNTRY_INFO!A57=0," ",COUNTRY_INFO!A57) -> ZIMBABWE | B57: =IF(COUNTRY_INFO!B57=0," ",COUNTRY_INFO!B57) -> Midlands | C57: =IF(COUNTRY_INFO!C57=0," ",COUNTRY_INFO!C57) -> Gokwe North | D57: =IF(COUNTRY_INFO!$T$9:$T$1000="MDA1 (IVM+ALB)", COUNTRY_INFO!$T$9:$T$1000, " ") ->  | I57: 0 | M57: 0
A58: =IF(COUNTRY_INFO!A58=0," ",COUNTRY_INFO!A58) -> ZIMBABWE | B58: =IF(COUNTRY_INFO!B58=0," ",COUNTRY_INFO!B58) -> Midlands | C58: =IF(COUNTRY_INFO!C58=0," ",COUNTRY_INFO!C58) -> Gokwe South | D58: =IF(COUNTRY_INFO!$T$9:$T$1000="MDA1 (IVM+ALB)", COUNTRY_INFO!$T$9:$T$1000, " ") ->  | I58: 0 | M58: 0
A59: =IF(COUNTRY_INFO!A59=0," ",COUNTRY_INFO!A59) -> ZIMBABWE | B59: =IF(COUNTRY_INFO!B59=0," ",COUNTRY_INFO!B59) -> Midlands | C59: =IF(COUNTRY_INFO!C59=0," ",COUNTRY_INFO!C59) -> Gweru | D59: =IF(COUNTRY_INFO!$T$9:$T$1000="MDA1 (IVM+ALB)", COUNTRY_INFO!$T$9:$T$1000, " ") ->  | I59: 0 | M59: 0
A60: =IF(COUNTRY_INFO!A60=0," ",COUNTRY_INFO!A60) -> ZIMBABWE | B60: =IF(COUNTRY_INFO!B60=0," ",COUNTRY_INFO!B60) -> Midlands | C60: =IF(COUNTRY_INFO!C60=0," ",COUNTRY_INFO!C60) -> Kwekwe | D60: =IF(COUNTRY_INFO!$T$9:$T$1000="MDA1 (IVM+ALB)", COUNTRY_INFO!$T$9:$T$1000, " ") ->  | I60: 0 | M60: 0
A61: =IF(COUNTRY_INFO!A61=0," ",COUNTRY_INFO!A61) -> ZIMBABWE | B61: =IF(COUNTRY_INFO!B61=0," ",COUNTRY_INFO!B61) -> Midlands | C61: =IF(COUNTRY_INFO!C61=0," ",COUNTRY_INFO!C61) -> Mberengwa | D61: =IF(COUNTRY_INFO!$T$9:$T$1000="MDA1 (IVM+ALB)", COUNTRY_INFO!$T$9:$T$1000, " ") ->  | I61: 0 | M61: 0
A62: =IF(COUNTRY_INFO!A62=0," ",COUNTRY_INFO!A62) -> ZIMBABWE | B62: =IF(COUNTRY_INFO!B62=0," ",COUNTRY_INFO!B62) -> Midlands | C62: =IF(COUNTRY_INFO!C62=0," ",COUNTRY_INFO!C62) -> Shurugwi | D62: =IF(COUNTRY_INFO!$T$9:$T$1000="MDA1 (IVM+ALB)", COUNTRY_INFO!$T$9:$T$1000, " ") ->  | I62: 0 | M62: 0
A63: =IF(COUNTRY_INFO!A63=0," ",COUNTRY_INFO!A63) -> ZIMBABWE | B63: =IF(COUNTRY_INFO!B63=0," ",COUNTRY_INFO!B63) -> Midlands | C63: =IF(COUNTRY_INFO!C63=0," ",COUNTRY_INFO!C63) -> Zvishavane | D63: =IF(COUNTRY_INFO!$T$9:$T$1000="MDA1 (IVM+ALB)", COUNTRY_INFO!$T$9:$T$1000, " ") ->  | I63: 0 | M63: 0
A64: =IF(COUNTRY_INFO!A64=0," ",COUNTRY_INFO!A64) -> ZIMBABWE | B64: =IF(COUNTRY_INFO!B64=0," ",COUNTRY_INFO!B64) -> Masvingo | C64: =IF(COUNTRY_INFO!C64=0," ",COUNTRY_INFO!C64) -> Bikita | D64: =IF(COUNTRY_INFO!$T$9:$T$1000="MDA1 (IVM+ALB)", COUNTRY_INFO!$T$9:$T$1000, " ") ->  | I64: 0 | M64: 0
A65: =IF(COUNTRY_INFO!A65=0," ",COUNTRY_INFO!A65) -> ZIMBABWE | B65: =IF(COUNTRY_INFO!B65=0," ",COUNTRY_INFO!B65) -> Masvingo | C65: =IF(COUNTRY_INFO!C65=0," ",COUNTRY_INFO!C65) -> Chiredzi | D65: =IF(COUNTRY_INFO!$T$9:$T$1000="MDA1 (IVM+ALB)", COUNTRY_INFO!$T$9:$T$1000, " ") ->  | I65: 0 | M65: 0
A66: =IF(COUNTRY_INFO!A66=0," ",COUNTRY_INFO!A66) -> ZIMBABWE | B66: =IF(COUNTRY_INFO!B66=0," ",COUNTRY_INFO!B66) -> Masvingo | C66: =IF(COUNTRY_INFO!C66=0," ",COUNTRY_INFO!C66) -> Chivi | D66: =IF(COUNTRY_INFO!$T$9:$T$1000="MDA1 (IVM+ALB)", COUNTRY_INFO!$T$9:$T$1000, " ") ->  | I66: 0 | M66: 0
A67: =IF(COUNTRY_INFO!A67=0," ",COUNTRY_INFO!A67) -> ZIMBABWE | B67: =IF(COUNTRY_INFO!B67=0," ",COUNTRY_INFO!B67) -> Masvingo | C67: =IF(COUNTRY_INFO!C67=0," ",COUNTRY_INFO!C67) -> Gutu | D67: =IF(COUNTRY_INFO!$T$9:$T$1000="MDA1 (IVM+ALB)", COUNTRY_INFO!$T$9:$T$1000, " ") ->  | I67: 0 | M67: 0
A68: =IF(COUNTRY_INFO!A68=0," ",COUNTRY_INFO!A68) -> ZIMBABWE | B68: =IF(COUNTRY_INFO!B68=0," ",COUNTRY_INFO!B68) -> Masvingo | C68: =IF(COUNTRY_INFO!C68=0," ",COUNTRY_INFO!C68) -> Masvingo | D68: =IF(COUNTRY_INFO!$T$9:$T$1000="MDA1 (IVM+ALB)", COUNTRY_INFO!$T$9:$T$1000, " ") ->  | I68: 0 | M68: 0
A69: =IF(COUNTRY_INFO!A69=0," ",COUNTRY_INFO!A69) -> ZIMBABWE | B69: =IF(COUNTRY_INFO!B69=0," ",COUNTRY_INFO!B69) -> Masvingo | C69: =IF(COUNTRY_INFO!C69=0," ",COUNTRY_INFO!C69) -> Mwenezi | D69: =IF(COUNTRY_INFO!$T$9:$T$1000="MDA1 (IVM+ALB)", COUNTRY_INFO!$T$9:$T$1000, " ") ->  | I69: 0 | M69: 0
A70: =IF(COUNTRY_INFO!A70=0," ",COUNTRY_INFO!A70) -> ZIMBABWE | B70: =IF(COUNTRY_INFO!B70=0," ",COUNTRY_INFO!B70) -> Masvingo | C70: =IF(COUNTRY_INFO!C70=0," ",COUNTRY_INFO!C70) -> Zaka | D70: =IF(COUNTRY_INFO!$T$9:$T$1000="MDA1 (IVM+ALB)", COUNTRY_INFO!$T$9:$T$1000, " ") ->  | I70: 0 | M70: 0
A71: =IF(COUNTRY_INFO!A71=0," ",COUNTRY_INFO!A71) -> ZIMBABWE | B71: =IF(COUNTRY_INFO!B71=0," ",COUNTRY_INFO!B71) -> Bulawayo | C71: =IF(COUNTRY_INFO!C71=0," ",COUNTRY_INFO!C71) -> Bulawayo | D71: =IF(COUNTRY_INFO!$T$9:$T$1000="MDA1 (IVM+ALB)", COUNTRY_INFO!$T$9:$T$1000, " ") ->  | I71: 0 | M71: 0

Sheet MDA2
A1: MDA 2 - Diethylcarbamazine citrate (DEC) + Albendazole (ALB)
A2: Administrative structure, population requiring PC by age group, population treated by age group and coverage
A4: TOTAL | F4: =SUM(F$9:F$1000) -> 0 | G4: =SUM(G$9:G$1000) -> 0 | H4: 0 | I4: 0 | J4: 0 | K4: 0 | L4: 0 | M4: 0 | N4: =IF(F4<>0, IF(J4/F4*100=0, "-", J4/F4*100), " ") ->  | O4: =IF(G4<>0, IF(K4/G4*100=0, "-", K4/G4*100), " ") ->  | P4: =IF(H4<>0, IF(L4/H4*100=0, "-", L4/H4*100), " ") ->  | Q4: =IF(I4<>0, IF(M4/I4*100=0, "-", M4/I4*100), " ") -> 
D6: PC implemented | E6: Date | F6: Population targeted for MDA 2 | J6: Population treated | N6: Programme coverage (%)
A7: Country | B7: Province/State | C7: District | F7: PreSAC | G7: SAC | H7: Adults | I7: Total | J7: PreSAC | K7: SAC | L7: Adults | M7: Total | N7: PreSAC | O7: SAC | P7: Adults | Q7: Total
A9: =IF(COUNTRY_INFO!A9=0," ",COUNTRY_INFO!A9) -> ZIMBABWE | B9: =IF(COUNTRY_INFO!B9=0," ",COUNTRY_INFO!B9) -> Manicaland | C9: =IF(COUNTRY_INFO!C9=0," ",COUNTRY_INFO!C9) -> Buhera | D9: =IF(COUNTRY_INFO!$T$9:$T$1000="MDA2 (DEC+ALB)", COUNTRY_INFO!$T$9:$T$1000, " ") ->  | I9: =SUM(F9:H9) -> 0 | M9: =SUM(J9:L9) -> 0 | N9: =IF(F9<>0, IF(J9/F9*100=0, "-", J9/F9*100), " ") ->  | O9: =IF(G9<>0, IF(K9/G9*100=0, "-", K9/G9*100), " ") ->  | P9: =IF(H9<>0, IF(L9/H9*100=0, "-", L9/H9*100), " ") ->  | Q9: =IF(I9<>0, IF(M9/I9*100=0, "-", M9/I9*100), " ") -> 
A10: =IF(COUNTRY_INFO!A10=0," ",COUNTRY_INFO!A10) -> ZIMBABWE | B10: =IF(COUNTRY_INFO!B10=0," ",COUNTRY_INFO!B10) -> Manicaland | C10: =IF(COUNTRY_INFO!C10=0," ",COUNTRY_INFO!C10) -> Chimanimani | D10: =IF(COUNTRY_INFO!$T$9:$T$1000="MDA2 (DEC+ALB)", COUNTRY_INFO!$T$9:$T$1000, " ") ->  | I10: =SUM(F10:H10) -> 0 | M10: =SUM(J10:L10) -> 0 | N10: =IF(F10<>0, IF(J10/F10*100=0, "-", J10/F10*100), " ") ->  | O10: =IF(G10<>0, IF(K10/G10*100=0, "-", K10/G10*100), " ") ->  | P10: =IF(H10<>0, IF(L10/H10*100=0, "-", L10/H10*100), " ") ->  | Q10: =IF(I10<>0, IF(M10/I10*100=0, "-", M10/I10*100), " ") -> 
A11: =IF(COUNTRY_INFO!A11=0," ",COUNTRY_INFO!A11) -> ZIMBABWE | B11: =IF(COUNTRY_INFO!B11=0," ",COUNTRY_INFO!B11) -> Manicaland | C11: =IF(COUNTRY_INFO!C11=0," ",COUNTRY_INFO!C11) -> Chipinge | D11: =IF(COUNTRY_INFO!$T$9:$T$1000="MDA2 (DEC+ALB)", COUNTRY_INFO!$T$9:$T$1000, " ") ->  | I11: 0 | M11: 0
A12: =IF(COUNTRY_INFO!A12=0," ",COUNTRY_INFO!A12) -> ZIMBABWE | B12: =IF(COUNTRY_INFO!B12=0," ",COUNTRY_INFO!B12) -> Manicaland | C12: =IF(COUNTRY_INFO!C12=0," ",COUNTRY_INFO!C12) -> Makoni | D12: =IF(COUNTRY_INFO!$T$9:$T$1000="MDA2 (DEC+ALB)", COUNTRY_INFO!$T$9:$T$1000, " ") ->  | I12: 0 | M12: 0
A13: =IF(COUNTRY_INFO!A13=0," ",COUNTRY_INFO!A13) -> ZIMBABWE | B13: =IF(COUNTRY_INFO!B13=0," ",COUNTRY_INFO!B13) -> Manicaland | C13: =IF(COUNTRY_INFO!C13=0," ",COUNTRY_INFO!C13) -> Mutare | D13: =IF(COUNTRY_INFO!$T$9:$T$1000="MDA2 (DEC+ALB)", COUNTRY_INFO!$T$9:$T$1000, " ") ->  | I13: 0 | M13: 0
A14: =IF(COUNTRY_INFO!A14=0," ",COUNTRY_INFO!A14) -> ZIMBABWE | B14: =IF(COUNTRY_INFO!B14=0," ",COUNTRY_INFO!B14) -> Manicaland | C14: =IF(COUNTRY_INFO!C14=0," ",COUNTRY_INFO!C14) -> Mutasa | D14: =IF(COUNTRY_INFO!$T$9:$T$1000="MDA2 (DEC+ALB)", COUNTRY_INFO!$T$9:$T$1000, " ") ->  | I14: 0 | M14: 0
A15: =IF(COUNTRY_INFO!A15=0," ",COUNTRY_INFO!A15) -> ZIMBABWE | B15: =IF(COUNTRY_INFO!B15=0," ",COUNTRY_INFO!B15) -> Manicaland | C15: =IF(COUNTRY_INFO!C15=0," ",COUNTRY_INFO!C15) -> Nyanga | D15: =IF(COUNTRY_INFO!$T$9:$T$1000="MDA2 (DEC+ALB)", COUNTRY_INFO!$T$9:$T$1000, " ") ->  | I15: 0 | M15: 0
A16: =IF(COUNTRY_INFO!A16=0," ",COUNTRY_INFO!A16) -> ZIMBABWE | B16: =IF(COUNTRY_INFO!B16=0," ",COUNTRY_INFO!B16) -> Harare | C16: =IF(COUNTRY_INFO!C16=0," ",COUNTRY_INFO!C16) -> Chitungwiza | D16: =IF(COUNTRY_INFO!$T$9:$T$1000="MDA2 (DEC+ALB)", COUNTRY_INFO!$T$9:$T$1000, " ") ->  | I16: 0 | M16: 0
A17: =IF(COUNTRY_INFO!A17=0," ",COUNTRY_INFO!A17) -> ZIMBABWE | B17: =IF(COUNTRY_INFO!B17=0," ",COUNTRY_INFO!B17) -> Harare | C17: =IF(COUNTRY_INFO!C17=0," ",COUNTRY_INFO!C17) -> Harare | D17: =IF(COUNTRY_INFO!$T$9:$T$1000="MDA2 (DEC+ALB)", COUNTRY_INFO!$T$9:$T$1000, " ") ->  | I17: 0 | M17: 0
A18: =IF(COUNTRY_INFO!A18=0," ",COUNTRY_INFO!A18) -> ZIMBABWE | B18: =IF(COUNTRY_INFO!B18=0," ",COUNTRY_INFO!B18) -> Mashnaland Central | C18: =IF(COUNTRY_INFO!C18=0," ",COUNTRY_INFO!C18) -> Bindura | D18: =IF(COUNTRY_INFO!$T$9:$T$1000="MDA2 (DEC+ALB)", COUNTRY_INFO!$T$9:$T$1000, " ") ->  | I18: 0 | M18: 0
A19: =IF(COUNTRY_INFO!A19=0," ",COUNTRY_INFO!A19) -> ZIMBABWE | B19: =IF(COUNTRY_INFO!B19=0," ",COUNTRY_INFO!B19) -> Mashnaland Central | C19: =IF(COUNTRY_INFO!C19=0," ",COUNTRY_INFO!C19) -> Centenary | D19: =IF(COUNTRY_INFO!$T$9:$T$1000="MDA2 (DEC+ALB)", COUNTRY_INFO!$T$9:$T$1000, " ") ->  | I19: 0 | M19: 0
A20: =IF(COUNTRY_INFO!A20=0," ",COUNTRY_INFO!A20) -> ZIMBABWE | B20: =IF(COUNTRY_INFO!B20=0," ",COUNTRY_INFO!B20) -> Mashnaland Central | C20: =IF(COUNTRY_INFO!C20=0," ",COUNTRY_INFO!C20) -> Guruve | D20: =IF(COUNTRY_INFO!$T$9:$T$1000="MDA2 (DEC+ALB)", COUNTRY_INFO!$T$9:$T$1000, " ") ->  | I20: 0 | M20: 0
A21: =IF(COUNTRY_INFO!A21=0," ",COUNTRY_INFO!A21) -> ZIMBABWE | B21: =IF(COUNTRY_INFO!B21=0," ",COUNTRY_INFO!B21) -> Mashnaland Central | C21: =IF(COUNTRY_INFO!C21=0," ",COUNTRY_INFO!C21) -> Mazowe | D21: =IF(COUNTRY_INFO!$T$9:$T$1000="MDA2 (DEC+ALB)", COUNTRY_INFO!$T$9:$T$1000, " ") ->  | I21: 0 | M21: 0
A22: =IF(COUNTRY_INFO!A22=0," ",COUNTRY_INFO!A22) -> ZIMBABWE | B22: =IF(COUNTRY_INFO!B22=0," ",COUNTRY_INFO!B22) -> Mashnaland Central | C22: =IF(COUNTRY_INFO!C22=0," ",COUNTRY_INFO!C22) -> Mt Darwin | D22: =IF(COUNTRY_INFO!$T$9:$T$1000="MDA2 (DEC+ALB)", COUNTRY_INFO!$T$9:$T$1000, " ") ->  | I22: 0 | M22: 0
A23: =IF(COUNTRY_INFO!A23=0," ",COUNTRY_INFO!A23) -> ZIMBABWE | B23: =IF(COUNTRY_INFO!B23=0," ",COUNTRY_INFO!B23) -> Mashnaland Central | C23: =IF(COUNTRY_INFO!C23=0," ",COUNTRY_INFO!C23) -> Rushinga | D23: =IF(COUNTRY_INFO!$T$9:$T$1000="MDA2 (DEC+ALB)", COUNTRY_INFO!$T$9:$T$1000, " ") ->  | I23: 0 | M23: 0
A24: =IF(COUNTRY_INFO!A24=0," ",COUNTRY_INFO!A24) -> ZIMBABWE | B24: =IF(COUNTRY_INFO!B24=0," ",COUNTRY_INFO!B24) -> Mashnaland Central | C24: =IF(COUNTRY_INFO!C24=0," ",COUNTRY_INFO!C24) -> Shamva | D24: =IF(COUNTRY_INFO!$T$9:$T$1000="MDA2 (DEC+ALB)", COUNTRY_INFO!$T$9:$T$1000, " ") ->  | I24: 0 | M24: 0
A25: =IF(COUNTRY_INFO!A25=0," ",COUNTRY_INFO!A25) -> ZIMBABWE | B25: =IF(COUNTRY_INFO!B25=0," ",COUNTRY_INFO!B25) -> Mashnaland Central | C25: =IF(COUNTRY_INFO!C25=0," ",COUNTRY_INFO!C25) -> Mbire | D25: =IF(COUNTRY_INFO!$T$9:$T$1000="MDA2 (DEC+ALB)", COUNTRY_INFO!$T$9:$T$1000, " ") ->  | I25: 0 | M25: 0
A26: =IF(COUNTRY_INFO!A26=0," ",COUNTRY_INFO!A26) -> ZIMBABWE | B26: =IF(COUNTRY_INFO!B26=0," ",COUNTRY_INFO!B26) -> Mashonaland East | C26: =IF(COUNTRY_INFO!C26=0," ",COUNTRY_INFO!C26) -> Chikomba | D26: =IF(COUNTRY_INFO!$T$9:$T$1000="MDA2 (DEC+ALB)", COUNTRY_INFO!$T$9:$T$1000, " ") ->  | I26: 0 | M26: 0
A27: =IF(COUNTRY_INFO!A27=0," ",COUNTRY_INFO!A27) -> ZIMBABWE | B27: =IF(COUNTRY_INFO!B27=0," ",COUNTRY_INFO!B27) -> Mashonaland East | C27: =IF(COUNTRY_INFO!C27=0," ",COUNTRY_INFO!C27) -> Goromonzi | D27: =IF(COUNTRY_INFO!$T$9:$T$1000="MDA2 (DEC+ALB)", COUNTRY_INFO!$T$9:$T$1000, " ") ->  | I27: 0 | M27: 0
A28: =IF(COUNTRY_INFO!A28=0," ",COUNTRY_INFO!A28) -> ZIMBABWE | B28: =IF(COUNTRY_INFO!B28=0," ",COUNTRY_INFO!B28) -> Mashonaland East | C28: =IF(COUNTRY_INFO!C28=0," ",COUNTRY_INFO!C28) -> UMP | D28: =IF(COUNTRY_INFO!$T$9:$T$1000="MDA2 (DEC+ALB)", COUNTRY_INFO!$T$9:$T$1000, " ") ->  | I28: 0 | M28: 0
A29: =IF(COUNTRY_INFO!A29=0," ",COUNTRY_INFO!A29) -> ZIMBABWE | B29: =IF(COUNTRY_INFO!B29=0," ",COUNTRY_INFO!B29) -> Mashonaland East | C29: =IF(COUNTRY_INFO!C29=0," ",COUNTRY_INFO!C29) -> Hwedza | D29: =IF(COUNTRY_INFO!$T$9:$T$1000="MDA2 (DEC+ALB)", COUNTRY_INFO!$T$9:$T$1000, " ") ->  | I29: 0 | M29: 0
A30: =IF(COUNTRY_INFO!A30=0," ",COUNTRY_INFO!A30) -> ZIMBABWE | B30: =IF(COUNTRY_INFO!B30=0," ",COUNTRY_INFO!B30) -> Mashonaland East | C30: =IF(COUNTRY_INFO!C30=0," ",COUNTRY_INFO!C30) -> Marondera | D30: =IF(COUNTRY_INFO!$T$9:$T$1000="MDA2 (DEC+ALB)", COUNTRY_INFO!$T$9:$T$1000, " ") ->  | I30: 0 | M30: 0
A31: =IF(COUNTRY_INFO!A31=0," ",COUNTRY_INFO!A31) -> ZIMBABWE | B31: =IF(COUNTRY_INFO!B31=0," ",COUNTRY_INFO!B31) -> Mashonaland East | C31: =IF(COUNTRY_INFO!C31=0," ",COUNTRY_INFO!C31) -> Mudzi | D31: =IF(COUNTRY_INFO!$T$9:$T$1000="MDA2 (DEC+ALB)", COUNTRY_INFO!$T$9:$T$1000, " ") ->  | I31: 0 | M31: 0
A32: =IF(COUNTRY_INFO!A32=0," ",COUNTRY_INFO!A32) -> ZIMBABWE | B32: =IF(COUNTRY_INFO!B32=0," ",COUNTRY_INFO!B32) -> Mashonaland East | C32: =IF(COUNTRY_INFO!C32=0," ",COUNTRY_INFO!C32) -> Murewa | D32: =IF(COUNTRY_INFO!$T$9:$T$1000="MDA2 (DEC+ALB)", COUNTRY_INFO!$T$9:$T$1000, " ") ->  | I32: 0 | M32: 0
A33: =IF(COUNTRY_INFO!A33=0," ",COUNTRY_INFO!A33) -> ZIMBABWE | B33: =IF(COUNTRY_INFO!B33=0," ",COUNTRY_INFO!B33) -> Mashonaland East | C33: =IF(COUNTRY_INFO!C33=0," ",COUNTRY_INFO!C33) -> Mutoko | D33: =IF(COUNTRY_INFO!$T$9:$T$1000="MDA2 (DEC+ALB)", COUNTRY_INFO!$T$9:$T$1000, " ") ->  | I33: 0 | M33: 0
A34: =IF(COUNTRY_INFO!A34=0," ",COUNTRY_INFO!A34) -> ZIMBABWE | B34: =IF(COUNTRY_INFO!B34=0," ",COUNTRY_INFO!B34) -> Mashonaland East | C34: =IF(COUNTRY_INFO!C34=0," ",COUNTRY_INFO!C34) -> Seke | D34: =IF(COUNTRY_INFO!$T$9:$T$1000="MDA2 (DEC+ALB)", COUNTRY_INFO!$T$9:$T$1000, " ") ->  | I34: 0 | M34: 0
A35: =IF(COUNTRY_INFO!A35=0," ",COUNTRY_INFO!A35) -> ZIMBABWE | B35: =IF(COUNTRY_INFO!B35=0," ",COUNTRY_INFO!B35) -> Mashonaland West | C35: =IF(COUNTRY_INFO!C35=0," ",COUNTRY_INFO!C35) -> Chegutu | D35: =IF(COUNTRY_INFO!$T$9:$T$1000="MDA2 (DEC+ALB)", COUNTRY_INFO!$T$9:$T$1000, " ") ->  | I35: 0 | M35: 0
A36: =IF(COUNTRY_INFO!A36=0," ",COUNTRY_INFO!A36) -> ZIMBABWE | B36: =IF(COUNTRY_INFO!B36=0," ",COUNTRY_INFO!B36) -> Mashonaland West | C36: =IF(COUNTRY_INFO!C36=0," ",COUNTRY_INFO!C36) -> Hurungwe | D36: =IF(COUNTRY_INFO!$T$9:$T$1000="MDA2 (DEC+ALB)", COUNTRY_INFO!$T$9:$T$1000, " ") ->  | I36: 0 | M36: 0
A37: =IF(COUNTRY_INFO!A37=0," ",COUNTRY_INFO!A37) -> ZIMBABWE | B37: =IF(COUNTRY_INFO!B37=0," ",COUNTRY_INFO!B37) -> Mashonaland West | C37: =IF(COUNTRY_INFO!C37=0," ",COUNTRY_INFO!C37) -> Sanyati | D37: =IF(COUNTRY_INFO!$T$9:$T$1000="MDA2 (DEC+ALB)", COUNTRY_INFO!$T$9:$T$1000, " ") ->  | I37: 0 | M37: 0
A38: =IF(COUNTRY_INFO!A38=0," ",COUNTRY_INFO!A38) -> ZIMBABWE | B38: =IF(COUNTRY_INFO!B38=0," ",COUNTRY_INFO!B38) -> Mashonaland West | C38: =IF(COUNTRY_INFO!C38=0," ",COUNTRY_INFO!C38) -> Kariba | D38: =IF(COUNTRY_INFO!$T$9:$T$1000="MDA2 (DEC+ALB)", COUNTRY_INFO!$T$9:$T$1000, " ") ->  | I38: 0 | M38: 0
A39: =IF(COUNTRY_INFO!A39=0," ",COUNTRY_INFO!A39) -> ZIMBABWE | B39: =IF(COUNTRY_INFO!B39=0," ",COUNTRY_INFO!B39) -> Mashonaland West | C39: =IF(COUNTRY_INFO!C39=0," ",COUNTRY_INFO!C39) -> Makonde | D39: =IF(COUNTRY_INFO!$T$9:$T$1000="MDA2 (DEC+ALB)", COUNTRY_INFO!$T$9:$T$1000, " ") ->  | I39: 0 | M39: 0
A40: =IF(COUNTRY_INFO!A40=0," ",COUNTRY_INFO!A40) -> ZIMBABWE | B40: =IF(COUNTRY_INFO!B40=0," ",COUNTRY_INFO!B40) -> Mashonaland West | C40: =IF(COUNTRY_INFO!C40=0," ",COUNTRY_INFO!C40) -> Mhondoro-Ngezi | D40: =IF(COUNTRY_INFO!$T$9:$T$1000="MDA2 (DEC+ALB)", COUNTRY_INFO!$T$9:$T$1000, " ") ->  | I40: 0 | M40: 0
A41: =IF(COUNTRY_INFO!A41=0," ",COUNTRY_INFO!A41) -> ZIMBABWE | B41: =IF(COUNTRY_INFO!B41=0," ",COUNTRY_INFO!B41) -> Mashonaland West | C41: =IF(COUNTRY_INFO!C41=0," ",COUNTRY_INFO!C41) -> Zvimba | D41: =IF(COUNTRY_INFO!$T$9:$T$1000="MDA2 (DEC+ALB)", COUNTRY_INFO!$T$9:$T$1000, " ") ->  | I41: 0 | M41: 0
A42: =IF(COUNTRY_INFO!A42=0," ",COUNTRY_INFO!A42) -> ZIMBABWE | B42: =IF(COUNTRY_INFO!B42=0," ",COUNTRY_INFO!B42) -> Matabeleland North | C42: =IF(COUNTRY_INFO!C42=0," ",COUNTRY_INFO!C42) -> Binga | D42: =IF(COUNTRY_INFO!$T$9:$T$1000="MDA2 (DEC+ALB)", COUNTRY_INFO!$T$9:$T$1000, " ") ->  | I42: 0 | M42: 0
A43: =IF(COUNTRY_INFO!A43=0," ",COUNTRY_INFO!A43) -> ZIMBABWE | B43: =IF(COUNTRY_INFO!B43=0," ",COUNTRY_INFO!B43) -> Matabeleland North | C43: =IF(COUNTRY_INFO!C43=0," ",COUNTRY_INFO!C43) -> Bubi | D43: =IF(COUNTRY_INFO!$T$9:$T$1000="MDA2 (DEC+ALB)", COUNTRY_INFO!$T$9:$T$1000, " ") ->  | I43: 0 | M43: 0
A44: =IF(COUNTRY_INFO!A44=0," ",COUNTRY_INFO!A44) -> ZIMBABWE | B44: =IF(COUNTRY_INFO!B44=0," ",COUNTRY_INFO!B44) -> Matabeleland North | C44: =IF(COUNTRY_INFO!C44=0," ",COUNTRY_INFO!C44) -> Hwange | D44: =IF(COUNTRY_INFO!$T$9:$T$1000="MDA2 (DEC+ALB)", COUNTRY_INFO!$T$9:$T$1000, " ") ->  | I44: 0 | M44: 0
A45: =IF(COUNTRY_INFO!A45=0," ",COUNTRY_INFO!A45) -> ZIMBABWE | B45: =IF(COUNTRY_INFO!B45=0," ",COUNTRY_INFO!B45) -> Matabeleland North | C45: =IF(COUNTRY_INFO!C45=0," ",COUNTRY_INFO!C45) -> Lupane | D45: =IF(COUNTRY_INFO!$T$9:$T$1000="MDA2 (DEC+ALB)", COUNTRY_INFO!$T$9:$T$1000, " ") ->  | I45: 0 | M45: 0
A46: =IF(COUNTRY_INFO!A46=0," ",COUNTRY_INFO!A46) -> ZIMBABWE | B46: =IF(COUNTRY_INFO!B46=0," ",COUNTRY_INFO!B46) -> Matabeleland North | C46: =IF(COUNTRY_INFO!C46=0," ",COUNTRY_INFO!C46) -> Nkayi | D46: =IF(COUNTRY_INFO!$T$9:$T$1000="MDA2 (DEC+ALB)", COUNTRY_INFO!$T$9:$T$1000, " ") ->  | I46: 0 | M46: 0
A47: =IF(COUNTRY_INFO!A47=0," ",COUNTRY_INFO!A47) -> ZIMBABWE | B47: =IF(COUNTRY_INFO!B47=0," ",COUNTRY_INFO!B47) -> Matabeleland North | C47: =IF(COUNTRY_INFO!C47=0," ",COUNTRY_INFO!C47) -> Tsholotsho | D47: =IF(COUNTRY_INFO!$T$9:$T$1000="MDA2 (DEC+ALB)", COUNTRY_INFO!$T$9:$T$1000, " ") ->  | I47: 0 | M47: 0
A48: =IF(COUNTRY_INFO!A48=0," ",COUNTRY_INFO!A48) -> ZIMBABWE | B48: =IF(COUNTRY_INFO!B48=0," ",COUNTRY_INFO!B48) -> Matabeleland North | C48: =IF(COUNTRY_INFO!C48=0," ",COUNTRY_INFO!C48) -> Umguza | D48: =IF(COUNTRY_INFO!$T$9:$T$1000="MDA2 (DEC+ALB)", COUNTRY_INFO!$T$9:$T$1000, " ") ->  | I48: 0 | M48: 0
A49: =IF(COUNTRY_INFO!A49=0," ",COUNTRY_INFO!A49) -> ZIMBABWE | B49: =IF(COUNTRY_INFO!B49=0," ",COUNTRY_INFO!B49) -> Matabeleland South | C49: =IF(COUNTRY_INFO!C49=0," ",COUNTRY_INFO!C49) -> Beit Bridge | D49: =IF(COUNTRY_INFO!$T$9:$T$1000="MDA2 (DEC+ALB)", COUNTRY_INFO!$T$9:$T$1000, " ") ->  | I49: 0 | M49: 0
A50: =IF(COUNTRY_INFO!A50=0," ",COUNTRY_INFO!A50) -> ZIMBABWE | B50: =IF(COUNTRY_INFO!B50=0," ",COUNTRY_INFO!B50) -> Matabeleland South | C50: =IF(COUNTRY_INFO!C50=0," ",COUNTRY_INFO!C50) -> Bulilima | D50: =IF(COUNTRY_INFO!$T$9:$T$1000="MDA2 (DEC+ALB)", COUNTRY_INFO!$T$9:$T$1000, " ") ->  | I50: 0 | M50: 0
A51: =IF(COUNTRY_INFO!A51=0," ",COUNTRY_INFO!A51) -> ZIMBABWE | B51: =IF(COUNTRY_INFO!B51=0," ",COUNTRY_INFO!B51) -> Matabeleland South | C51: =IF(COUNTRY_INFO!C51=0," ",COUNTRY_INFO!C51) -> Gwanda | D51: =IF(COUNTRY_INFO!$T$9:$T$1000="MDA2 (DEC+ALB)", COUNTRY_INFO!$T$9:$T$1000, " ") ->  | I51: 0 | M51: 0
A52: =IF(COUNTRY_INFO!A52=0," ",COUNTRY_INFO!A52) -> ZIMBABWE | B52: =IF(COUNTRY_INFO!B52=0," ",COUNTRY_INFO!B52) -> Matabeleland South | C52: =IF(COUNTRY_INFO!C52=0," ",COUNTRY_INFO!C52) -> Insiza | D52: =IF(COUNTRY_INFO!$T$9:$T$1000="MDA2 (DEC+ALB)", COUNTRY_INFO!$T$9:$T$1000, " ") ->  | I52: 0 | M52: 0
A53: =IF(COUNTRY_INFO!A53=0," ",COUNTRY_INFO!A53) -> ZIMBABWE | B53: =IF(COUNTRY_INFO!B53=0," ",COUNTRY_INFO!B53) -> Matabeleland South | C53: =IF(COUNTRY_INFO!C53=0," ",COUNTRY_INFO!C53) -> Mangwe | D53: =IF(COUNTRY_INFO!$T$9:$T$1000="MDA2 (DEC+ALB)", COUNTRY_INFO!$T$9:$T$1000, " ") ->  | I53: 0 | M53: 0
A54: =IF(COUNTRY_INFO!A54=0," ",COUNTRY_INFO!A54) -> ZIMBABWE | B54: =IF(COUNTRY_INFO!B54=0," ",COUNTRY_INFO!B54) -> Matabeleland South | C54: =IF(COUNTRY_INFO!C54=0," ",COUNTRY_INFO!C54) -> Matobo | D54: =IF(COUNTRY_INFO!$T$9:$T$1000="MDA2 (DEC+ALB)", COUNTRY_INFO!$T$9:$T$1000, " ") ->  | I54: 0 | M54: 0
A55: =IF(COUNTRY_INFO!A55=0," ",COUNTRY_INFO!A55) -> ZIMBABWE | B55: =IF(COUNTRY_INFO!B55=0," ",COUNTRY_INFO!B55) -> Matabeleland South | C55: =IF(COUNTRY_INFO!C55=0," ",COUNTRY_INFO!C55) -> Umzingwane | D55: =IF(COUNTRY_INFO!$T$9:$T$1000="MDA2 (DEC+ALB)", COUNTRY_INFO!$T$9:$T$1000, " ") ->  | I55: 0 | M55: 0
A56: =IF(COUNTRY_INFO!A56=0," ",COUNTRY_INFO!A56) -> ZIMBABWE | B56: =IF(COUNTRY_INFO!B56=0," ",COUNTRY_INFO!B56) -> Midlands | C56: =IF(COUNTRY_INFO!C56=0," ",COUNTRY_INFO!C56) -> Chirumhanzi | D56: =IF(COUNTRY_INFO!$T$9:$T$1000="MDA2 (DEC+ALB)", COUNTRY_INFO!$T$9:$T$1000, " ") ->  | I56: 0 | M56: 0
A57: =IF(COUNTRY_INFO!A57=0," ",COUNTRY_INFO!A57) -> ZIMBABWE | B57: =IF(COUNTRY_INFO!B57=0," ",COUNTRY_INFO!B57) -> Midlands | C57: =IF(COUNTRY_INFO!C57=0," ",COUNTRY_INFO!C57) -> Gokwe North | D57: =IF(COUNTRY_INFO!$T$9:$T$1000="MDA2 (DEC+ALB)", COUNTRY_INFO!$T$9:$T$1000, " ") ->  | I57: 0 | M57: 0
A58: =IF(COUNTRY_INFO!A58=0," ",COUNTRY_INFO!A58) -> ZIMBABWE | B58: =IF(COUNTRY_INFO!B58=0," ",COUNTRY_INFO!B58) -> Midlands | C58: =IF(COUNTRY_INFO!C58=0," ",COUNTRY_INFO!C58) -> Gokwe South | D58: =IF(COUNTRY_INFO!$T$9:$T$1000="MDA2 (DEC+ALB)", COUNTRY_INFO!$T$9:$T$1000, " ") ->  | I58: 0 | M58: 0
A59: =IF(COUNTRY_INFO!A59=0," ",COUNTRY_INFO!A59) -> ZIMBABWE | B59: =IF(COUNTRY_INFO!B59=0," ",COUNTRY_INFO!B59) -> Midlands | C59: =IF(COUNTRY_INFO!C59=0," ",COUNTRY_INFO!C59) -> Gweru | D59: =IF(COUNTRY_INFO!$T$9:$T$1000="MDA2 (DEC+ALB)", COUNTRY_INFO!$T$9:$T$1000, " ") ->  | I59: 0 | M59: 0
A60: =IF(COUNTRY_INFO!A60=0," ",COUNTRY_INFO!A60) -> ZIMBABWE | B60: =IF(COUNTRY_INFO!B60=0," ",COUNTRY_INFO!B60) -> Midlands | C60: =IF(COUNTRY_INFO!C60=0," ",COUNTRY_INFO!C60) -> Kwekwe | D60: =IF(COUNTRY_INFO!$T$9:$T$1000="MDA2 (DEC+ALB)", COUNTRY_INFO!$T$9:$T$1000, " ") ->  | I60: 0 | M60: 0
A61: =IF(COUNTRY_INFO!A61=0," ",COUNTRY_INFO!A61) -> ZIMBABWE | B61: =IF(COUNTRY_INFO!B61=0," ",COUNTRY_INFO!B61) -> Midlands | C61: =IF(COUNTRY_INFO!C61=0," ",COUNTRY_INFO!C61) -> Mberengwa | D61: =IF(COUNTRY_INFO!$T$9:$T$1000="MDA2 (DEC+ALB)", COUNTRY_INFO!$T$9:$T$1000, " ") ->  | I61: 0 | M61: 0
A62: =IF(COUNTRY_INFO!A62=0," ",COUNTRY_INFO!A62) -> ZIMBABWE | B62: =IF(COUNTRY_INFO!B62=0," ",COUNTRY_INFO!B62) -> Midlands | C62: =IF(COUNTRY_INFO!C62=0," ",COUNTRY_INFO!C62) -> Shurugwi | D62: =IF(COUNTRY_INFO!$T$9:$T$1000="MDA2 (DEC+ALB)", COUNTRY_INFO!$T$9:$T$1000, " ") ->  | I62: 0 | M62: 0
A63: =IF(COUNTRY_INFO!A63=0," ",COUNTRY_INFO!A63) -> ZIMBABWE | B63: =IF(COUNTRY_INFO!B63=0," ",COUNTRY_INFO!B63) -> Midlands | C63: =IF(COUNTRY_INFO!C63=0," ",COUNTRY_INFO!C63) -> Zvishavane | D63: =IF(COUNTRY_INFO!$T$9:$T$1000="MDA2 (DEC+ALB)", COUNTRY_INFO!$T$9:$T$1000, " ") ->  | I63: 0 | M63: 0
A64: =IF(COUNTRY_INFO!A64=0," ",COUNTRY_INFO!A64) -> ZIMBABWE | B64: =IF(COUNTRY_INFO!B64=0," ",COUNTRY_INFO!B64) -> Masvingo | C64: =IF(COUNTRY_INFO!C64=0," ",COUNTRY_INFO!C64) -> Bikita | D64: =IF(COUNTRY_INFO!$T$9:$T$1000="MDA2 (DEC+ALB)", COUNTRY_INFO!$T$9:$T$1000, " ") ->  | I64: 0 | M64: 0
A65: =IF(COUNTRY_INFO!A65=0," ",COUNTRY_INFO!A65) -> ZIMBABWE | B65: =IF(COUNTRY_INFO!B65=0," ",COUNTRY_INFO!B65) -> Masvingo | C65: =IF(COUNTRY_INFO!C65=0," ",COUNTRY_INFO!C65) -> Chiredzi | D65: =IF(COUNTRY_INFO!$T$9:$T$1000="MDA2 (DEC+ALB)", COUNTRY_INFO!$T$9:$T$1000, " ") ->  | I65: 0 | M65: 0
A66: =IF(COUNTRY_INFO!A66=0," ",COUNTRY_INFO!A66) -> ZIMBABWE | B66: =IF(COUNTRY_INFO!B66=0," ",COUNTRY_INFO!B66) -> Masvingo | C66: =IF(COUNTRY_INFO!C66=0," ",COUNTRY_INFO!C66) -> Chivi | D66: =IF(COUNTRY_INFO!$T$9:$T$1000="MDA2 (DEC+ALB)", COUNTRY_INFO!$T$9:$T$1000, " ") ->  | I66: 0 | M66: 0
A67: =IF(COUNTRY_INFO!A67=0," ",COUNTRY_INFO!A67) -> ZIMBABWE | B67: =IF(COUNTRY_INFO!B67=0," ",COUNTRY_INFO!B67) -> Masvingo | C67: =IF(COUNTRY_INFO!C67=0," ",COUNTRY_INFO!C67) -> Gutu | D67: =IF(COUNTRY_INFO!$T$9:$T$1000="MDA2 (DEC+ALB)", COUNTRY_INFO!$T$9:$T$1000, " ") ->  | I67: 0 | M67: 0
A68: =IF(COUNTRY_INFO!A68=0," ",COUNTRY_INFO!A68) -> ZIMBABWE | B68: =IF(COUNTRY_INFO!B68=0," ",COUNTRY_INFO!B68) -> Masvingo | C68: =IF(COUNTRY_INFO!C68=0," ",COUNTRY_INFO!C68) -> Masvingo | D68: =IF(COUNTRY_INFO!$T$9:$T$1000="MDA2 (DEC+ALB)", COUNTRY_INFO!$T$9:$T$1000, " ") ->  | I68: 0 | M68: 0
A69: =IF(COUNTRY_INFO!A69=0," ",COUNTRY_INFO!A69) -> ZIMBABWE | B69: =IF(COUNTRY_INFO!B69=0," ",COUNTRY_INFO!B69) -> Masvingo | C69: =IF(COUNTRY_INFO!C69=0," ",COUNTRY_INFO!C69) -> Mwenezi | D69: =IF(COUNTRY_INFO!$T$9:$T$1000="MDA2 (DEC+ALB)", COUNTRY_INFO!$T$9:$T$1000, " ") ->  | I69: 0 | M69: 0
A70: =IF(COUNTRY_INFO!A70=0," ",COUNTRY_INFO!A70) -> ZIMBABWE | B70: =IF(COUNTRY_INFO!B70=0," ",COUNTRY_INFO!B70) -> Masvingo | C70: =IF(COUNTRY_INFO!C70=0," ",COUNTRY_INFO!C70) -> Zaka | D70: =IF(COUNTRY_INFO!$T$9:$T$1000="MDA2 (DEC+ALB)", COUNTRY_INFO!$T$9:$T$1000, " ") ->  | I70: 0 | M70: 0
A71: =IF(COUNTRY_INFO!A71=0," ",COUNTRY_INFO!A71) -> ZIMBABWE | B71: =IF(COUNTRY_INFO!B71=0," ",COUNTRY_INFO!B71) -> Bulawayo | C71: =IF(COUNTRY_INFO!C71=0," ",COUNTRY_INFO!C71) -> Bulawayo | D71: =IF(COUNTRY_INFO!$T$9:$T$1000="MDA2 (DEC+ALB)", COUNTRY_INFO!$T$9:$T$1000, " ") ->  | I71: 0 | M71: 0

Sheet MDA3 (hidden)
A1: MDA 3 - Ivermectin (IVM)
A2: Administrative structure, population requiring PC by age group, population treated by age group and coverage
A4: TOTAL | F4: =SUM(F$9:F$1000) -> 0 | G4: 0 | H4: 0 | I4: 0 | J4: 0 | K4: 0 | L4: 0 | M4: 0 | N4: 0 | O4: 0 | P4: 0 | Q4: 0 | R4: =IF(F4<>0, IF(O4/F4*100=0, "-", O4/F4*100), " ") ->  | S4: =IF(G4<>0, IF(P4/G4*100=0, "-", P4/G4*100), " ") ->  | T4: =IF(H4<>0, IF(Q4/H4*100=0, "-", Q4/H4*100), " ") -> 
D6: PC implemented | E6: Date | F6: Population targeted for MDA 3 | I6: Population treated - 1st round | L6: Population treated - 2nd round | O6: Population treated | R6: Programme coverage (%)
A7: Country | B7: Province/State | C7: District | F7: SAC | G7: Adults | H7: Total | I7: SAC | J7: Adults | K7: Total | L7: SAC | M7: Adults | N7: Total | O7: SAC | P7: Adults | Q7: Total | R7: SAC | S7: Adults | T7: Total
A9: =IF(COUNTRY_INFO!A9=0," ",COUNTRY_INFO!A9) -> ZIMBABWE | B9: =IF(COUNTRY_INFO!B9=0," ",COUNTRY_INFO!B9) -> Manicaland | C9: =IF(COUNTRY_INFO!C9=0," ",COUNTRY_INFO!C9) -> Buhera | D9: =IF(COUNTRY_INFO!$T$9:$T$1000="MDA3 (IVM)", COUNTRY_INFO!$T$9:$T$1000, " ") ->  | H9: =SUM(F9:G9) -> 0 | K9: =SUM(I9:J9) -> 0 | N9: =SUM(L9:M9) -> 0 | O9: =MAX(I9,L9) -> 0 | P9: =MAX(J9,M9) -> 0 | Q9: =SUM(O9:P9) -> 0 | R9: =IF(F9<>0, IF(MAX(I9,L9)/F9*100=0, "-", MAX(I9,L9)/F9*100), " ") ->  | S9: =IF(G9<>0, IF(MAX(J9,M9)/G9*100=0, "-", MAX(J9,M9)/G9*100), " ") ->  | T9: =IF(H9<>0, IF((MAX(I9,L9)+MAX(J9,M9))/H9*100=0, "-",(MAX(I9,L9)+MAX(J9,M9))/H9*100), " ") -> 
A10: =IF(COUNTRY_INFO!A10=0," ",COUNTRY_INFO!A10) -> ZIMBABWE | B10: =IF(COUNTRY_INFO!B10=0," ",COUNTRY_INFO!B10) -> Manicaland | C10: =IF(COUNTRY_INFO!C10=0," ",COUNTRY_INFO!C10) -> Chimanimani | D10: =IF(COUNTRY_INFO!$T$9:$T$1000="MDA3 (IVM)", COUNTRY_INFO!$T$9:$T$1000, " ") ->  | H10: =SUM(F10:G10) -> 0 | K10: =SUM(I10:J10) -> 0 | N10: =SUM(L10:M10) -> 0 | O10: =MAX(I10,L10) -> 0 | P10: =MAX(J10,M10) -> 0 | Q10: =SUM(O10:P10) -> 0 | R10: =IF(F10<>0, IF(MAX(I10,L10)/F10*100=0, "-", MAX(I10,L10)/F10*100), " ") ->  | S10: =IF(G10<>0, IF(MAX(J10,M10)/G10*100=0, "-", MAX(J10,M10)/G10*100), " ") ->  | T10: =IF(H10<>0, IF((MAX(I10,L10)+MAX(J10,M10))/H10*100=0, "-",(MAX(I10,L10)+MAX(J10,M10))/H10*100), " ") -> 
A11: =IF(COUNTRY_INFO!A11=0," ",COUNTRY_INFO!A11) -> ZIMBABWE | B11: =IF(COUNTRY_INFO!B11=0," ",COUNTRY_INFO!B11) -> Manicaland | C11: =IF(COUNTRY_INFO!C11=0," ",COUNTRY_INFO!C11) -> Chipinge | D11: =IF(COUNTRY_INFO!$T$9:$T$1000="MDA3 (IVM)", COUNTRY_INFO!$T$9:$T$1000, " ") ->  | H11: 0 | K11: 0 | N11: 0 | O11: 0 | P11: 0 | Q11: 0
A12: =IF(COUNTRY_INFO!A12=0," ",COUNTRY_INFO!A12) -> ZIMBABWE | B12: =IF(COUNTRY_INFO!B12=0," ",COUNTRY_INFO!B12) -> Manicaland | C12: =IF(COUNTRY_INFO!C12=0," ",COUNTRY_INFO!C12) -> Makoni | D12: =IF(COUNTRY_INFO!$T$9:$T$1000="MDA3 (IVM)", COUNTRY_INFO!$T$9:$T$1000, " ") ->  | H12: 0 | K12: 0 | N12: 0 | O12: 0 | P12: 0 | Q12: 0
A13: =IF(COUNTRY_INFO!A13=0," ",COUNTRY_INFO!A13) -> ZIMBABWE | B13: =IF(COUNTRY_INFO!B13=0," ",COUNTRY_INFO!B13) -> Manicaland | C13: =IF(COUNTRY_INFO!C13=0," ",COUNTRY_INFO!C13) -> Mutare | D13: =IF(COUNTRY_INFO!$T$9:$T$1000="MDA3 (IVM)", COUNTRY_INFO!$T$9:$T$1000, " ") ->  | H13: 0 | K13: 0 | N13: 0 | O13: 0 | P13: 0 | Q13: 0
A14: =IF(COUNTRY_INFO!A14=0," ",COUNTRY_INFO!A14) -> ZIMBABWE | B14: =IF(COUNTRY_INFO!B14=0," ",COUNTRY_INFO!B14) -> Manicaland | C14: =IF(COUNTRY_INFO!C14=0," ",COUNTRY_INFO!C14) -> Mutasa | D14: =IF(COUNTRY_INFO!$T$9:$T$1000="MDA3 (IVM)", COUNTRY_INFO!$T$9:$T$1000, " ") ->  | H14: 0 | K14: 0 | N14: 0 | O14: 0 | P14: 0 | Q14: 0
A15: =IF(COUNTRY_INFO!A15=0," ",COUNTRY_INFO!A15) -> ZIMBABWE | B15: =IF(COUNTRY_INFO!B15=0," ",COUNTRY_INFO!B15) -> Manicaland | C15: =IF(COUNTRY_INFO!C15=0," ",COUNTRY_INFO!C15) -> Nyanga | D15: =IF(COUNTRY_INFO!$T$9:$T$1000="MDA3 (IVM)", COUNTRY_INFO!$T$9:$T$1000, " ") ->  | H15: 0 | K15: 0 | N15: 0 | O15: 0 | P15: 0 | Q15: 0
A16: =IF(COUNTRY_INFO!A16=0," ",COUNTRY_INFO!A16) -> ZIMBABWE | B16: =IF(COUNTRY_INFO!B16=0," ",COUNTRY_INFO!B16) -> Harare | C16: =IF(COUNTRY_INFO!C16=0," ",COUNTRY_INFO!C16) -> Chitungwiza | D16: =IF(COUNTRY_INFO!$T$9:$T$1000="MDA3 (IVM)", COUNTRY_INFO!$T$9:$T$1000, " ") ->  | H16: 0 | K16: 0 | N16: 0 | O16: 0 | P16: 0 | Q16: 0
A17: =IF(COUNTRY_INFO!A17=0," ",COUNTRY_INFO!A17) -> ZIMBABWE | B17: =IF(COUNTRY_INFO!B17=0," ",COUNTRY_INFO!B17) -> Harare | C17: =IF(COUNTRY_INFO!C17=0," ",COUNTRY_INFO!C17) -> Harare | D17: =IF(COUNTRY_INFO!$T$9:$T$1000="MDA3 (IVM)", COUNTRY_INFO!$T$9:$T$1000, " ") ->  | H17: 0 | K17: 0 | N17: 0 | O17: 0 | P17: 0 | Q17: 0
A18: =IF(COUNTRY_INFO!A18=0," ",COUNTRY_INFO!A18) -> ZIMBABWE | B18: =IF(COUNTRY_INFO!B18=0," ",COUNTRY_INFO!B18) -> Mashnaland Central | C18: =IF(COUNTRY_INFO!C18=0," ",COUNTRY_INFO!C18) -> Bindura | D18: =IF(COUNTRY_INFO!$T$9:$T$1000="MDA3 (IVM)", COUNTRY_INFO!$T$9:$T$1000, " ") ->  | H18: 0 | K18: 0 | N18: 0 | O18: 0 | P18: 0 | Q18: 0
A19: =IF(COUNTRY_INFO!A19=0," ",COUNTRY_INFO!A19) -> ZIMBABWE | B19: =IF(COUNTRY_INFO!B19=0," ",COUNTRY_INFO!B19) -> Mashnaland Central | C19: =IF(COUNTRY_INFO!C19=0," ",COUNTRY_INFO!C19) -> Centenary | D19: =IF(COUNTRY_INFO!$T$9:$T$1000="MDA3 (IVM)", COUNTRY_INFO!$T$9:$T$1000, " ") ->  | H19: 0 | K19: 0 | N19: 0 | O19: 0 | P19: 0 | Q19: 0
A20: =IF(COUNTRY_INFO!A20=0," ",COUNTRY_INFO!A20) -> ZIMBABWE | B20: =IF(COUNTRY_INFO!B20=0," ",COUNTRY_INFO!B20) -> Mashnaland Central | C20: =IF(COUNTRY_INFO!C20=0," ",COUNTRY_INFO!C20) -> Guruve | D20: =IF(COUNTRY_INFO!$T$9:$T$1000="MDA3 (IVM)", COUNTRY_INFO!$T$9:$T$1000, " ") ->  | H20: 0 | K20: 0 | N20: 0 | O20: 0 | P20: 0 | Q20: 0
A21: =IF(COUNTRY_INFO!A21=0," ",COUNTRY_INFO!A21) -> ZIMBABWE | B21: =IF(COUNTRY_INFO!B21=0," ",COUNTRY_INFO!B21) -> Mashnaland Central | C21: =IF(COUNTRY_INFO!C21=0," ",COUNTRY_INFO!C21) -> Mazowe | D21: =IF(COUNTRY_INFO!$T$9:$T$1000="MDA3 (IVM)", COUNTRY_INFO!$T$9:$T$1000, " ") ->  | H21: 0 | K21: 0 | N21: 0 | O21: 0 | P21: 0 | Q21: 0
A22: =IF(COUNTRY_INFO!A22=0," ",COUNTRY_INFO!A22) -> ZIMBABWE | B22: =IF(COUNTRY_INFO!B22=0," ",COUNTRY_INFO!B22) -> Mashnaland Central | C22: =IF(COUNTRY_INFO!C22=0," ",COUNTRY_INFO!C22) -> Mt Darwin | D22: =IF(COUNTRY_INFO!$T$9:$T$1000="MDA3 (IVM)", COUNTRY_INFO!$T$9:$T$1000, " ") ->  | H22: 0 | K22: 0 | N22: 0 | O22: 0 | P22: 0 | Q22: 0
A23: =IF(COUNTRY_INFO!A23=0," ",COUNTRY_INFO!A23) -> ZIMBABWE | B23: =IF(COUNTRY_INFO!B23=0," ",COUNTRY_INFO!B23) -> Mashnaland Central | C23: =IF(COUNTRY_INFO!C23=0," ",COUNTRY_INFO!C23) -> Rushinga | D23: =IF(COUNTRY_INFO!$T$9:$T$1000="MDA3 (IVM)", COUNTRY_INFO!$T$9:$T$1000, " ") ->  | H23: 0 | K23: 0 | N23: 0 | O23: 0 | P23: 0 | Q23: 0
A24: =IF(COUNTRY_INFO!A24=0," ",COUNTRY_INFO!A24) -> ZIMBABWE | B24: =IF(COUNTRY_INFO!B24=0," ",COUNTRY_INFO!B24) -> Mashnaland Central | C24: =IF(COUNTRY_INFO!C24=0," ",COUNTRY_INFO!C24) -> Shamva | D24: =IF(COUNTRY_INFO!$T$9:$T$1000="MDA3 (IVM)", COUNTRY_INFO!$T$9:$T$1000, " ") ->  | H24: 0 | K24: 0 | N24: 0 | O24: 0 | P24: 0 | Q24: 0
A25: =IF(COUNTRY_INFO!A25=0," ",COUNTRY_INFO!A25) -> ZIMBABWE | B25: =IF(COUNTRY_INFO!B25=0," ",COUNTRY_INFO!B25) -> Mashnaland Central | C25: =IF(COUNTRY_INFO!C25=0," ",COUNTRY_INFO!C25) -> Mbire | D25: =IF(COUNTRY_INFO!$T$9:$T$1000="MDA3 (IVM)", COUNTRY_INFO!$T$9:$T$1000, " ") ->  | H25: 0 | K25: 0 | N25: 0 | O25: 0 | P25: 0 | Q25: 0
A26: =IF(COUNTRY_INFO!A26=0," ",COUNTRY_INFO!A26) -> ZIMBABWE | B26: =IF(COUNTRY_INFO!B26=0," ",COUNTRY_INFO!B26) -> Mashonaland East | C26: =IF(COUNTRY_INFO!C26=0," ",COUNTRY_INFO!C26) -> Chikomba | D26: =IF(COUNTRY_INFO!$T$9:$T$1000="MDA3 (IVM)", COUNTRY_INFO!$T$9:$T$1000, " ") ->  | H26: 0 | K26: 0 | N26: 0 | O26: 0 | P26: 0 | Q26: 0
A27: =IF(COUNTRY_INFO!A27=0," ",COUNTRY_INFO!A27) -> ZIMBABWE | B27: =IF(COUNTRY_INFO!B27=0," ",COUNTRY_INFO!B27) -> Mashonaland East | C27: =IF(COUNTRY_INFO!C27=0," ",COUNTRY_INFO!C27) -> Goromonzi | D27: =IF(COUNTRY_INFO!$T$9:$T$1000="MDA3 (IVM)", COUNTRY_INFO!$T$9:$T$1000, " ") ->  | H27: 0 | K27: 0 | N27: 0 | O27: 0 | P27: 0 | Q27: 0
A28: =IF(COUNTRY_INFO!A28=0," ",COUNTRY_INFO!A28) -> ZIMBABWE | B28: =IF(COUNTRY_INFO!B28=0," ",COUNTRY_INFO!B28) -> Mashonaland East | C28: =IF(COUNTRY_INFO!C28=0," ",COUNTRY_INFO!C28) -> UMP | D28: =IF(COUNTRY_INFO!$T$9:$T$1000="MDA3 (IVM)", COUNTRY_INFO!$T$9:$T$1000, " ") ->  | H28: 0 | K28: 0 | N28: 0 | O28: 0 | P28: 0 | Q28: 0
A29: =IF(COUNTRY_INFO!A29=0," ",COUNTRY_INFO!A29) -> ZIMBABWE | B29: =IF(COUNTRY_INFO!B29=0," ",COUNTRY_INFO!B29) -> Mashonaland East | C29: =IF(COUNTRY_INFO!C29=0," ",COUNTRY_INFO!C29) -> Hwedza | D29: =IF(COUNTRY_INFO!$T$9:$T$1000="MDA3 (IVM)", COUNTRY_INFO!$T$9:$T$1000, " ") ->  | H29: 0 | K29: 0 | N29: 0 | O29: 0 | P29: 0 | Q29: 0
A30: =IF(COUNTRY_INFO!A30=0," ",COUNTRY_INFO!A30) -> ZIMBABWE | B30: =IF(COUNTRY_INFO!B30=0," ",COUNTRY_INFO!B30) -> Mashonaland East | C30: =IF(COUNTRY_INFO!C30=0," ",COUNTRY_INFO!C30) -> Marondera | D30: =IF(COUNTRY_INFO!$T$9:$T$1000="MDA3 (IVM)", COUNTRY_INFO!$T$9:$T$1000, " ") ->  | H30: 0 | K30: 0 | N30: 0 | O30: 0 | P30: 0 | Q30: 0
A31: =IF(COUNTRY_INFO!A31=0," ",COUNTRY_INFO!A31) -> ZIMBABWE | B31: =IF(COUNTRY_INFO!B31=0," ",COUNTRY_INFO!B31) -> Mashonaland East | C31: =IF(COUNTRY_INFO!C31=0," ",COUNTRY_INFO!C31) -> Mudzi | D31: =IF(COUNTRY_INFO!$T$9:$T$1000="MDA3 (IVM)", COUNTRY_INFO!$T$9:$T$1000, " ") ->  | H31: 0 | K31: 0 | N31: 0 | O31: 0 | P31: 0 | Q31: 0
A32: =IF(COUNTRY_INFO!A32=0," ",COUNTRY_INFO!A32) -> ZIMBABWE | B32: =IF(COUNTRY_INFO!B32=0," ",COUNTRY_INFO!B32) -> Mashonaland East | C32: =IF(COUNTRY_INFO!C32=0," ",COUNTRY_INFO!C32) -> Murewa | D32: =IF(COUNTRY_INFO!$T$9:$T$1000="MDA3 (IVM)", COUNTRY_INFO!$T$9:$T$1000, " ") ->  | H32: 0 | K32: 0 | N32: 0 | O32: 0 | P32: 0 | Q32: 0
A33: =IF(COUNTRY_INFO!A33=0," ",COUNTRY_INFO!A33) -> ZIMBABWE | B33: =IF(COUNTRY_INFO!B33=0," ",COUNTRY_INFO!B33) -> Mashonaland East | C33: =IF(COUNTRY_INFO!C33=0," ",COUNTRY_INFO!C33) -> Mutoko | D33: =IF(COUNTRY_INFO!$T$9:$T$1000="MDA3 (IVM)", COUNTRY_INFO!$T$9:$T$1000, " ") ->  | H33: 0 | K33: 0 | N33: 0 | O33: 0 | P33: 0 | Q33: 0
A34: =IF(COUNTRY_INFO!A34=0," ",COUNTRY_INFO!A34) -> ZIMBABWE | B34: =IF(COUNTRY_INFO!B34=0," ",COUNTRY_INFO!B34) -> Mashonaland East | C34: =IF(COUNTRY_INFO!C34=0," ",COUNTRY_INFO!C34) -> Seke | D34: =IF(COUNTRY_INFO!$T$9:$T$1000="MDA3 (IVM)", COUNTRY_INFO!$T$9:$T$1000, " ") ->  | H34: 0 | K34: 0 | N34: 0 | O34: 0 | P34: 0 | Q34: 0
A35: =IF(COUNTRY_INFO!A35=0," ",COUNTRY_INFO!A35) -> ZIMBABWE | B35: =IF(COUNTRY_INFO!B35=0," ",COUNTRY_INFO!B35) -> Mashonaland West | C35: =IF(COUNTRY_INFO!C35=0," ",COUNTRY_INFO!C35) -> Chegutu | D35: =IF(COUNTRY_INFO!$T$9:$T$1000="MDA3 (IVM)", COUNTRY_INFO!$T$9:$T$1000, " ") ->  | H35: 0 | K35: 0 | N35: 0 | O35: 0 | P35: 0 | Q35: 0
A36: =IF(COUNTRY_INFO!A36=0," ",COUNTRY_INFO!A36) -> ZIMBABWE | B36: =IF(COUNTRY_INFO!B36=0," ",COUNTRY_INFO!B36) -> Mashonaland West | C36: =IF(COUNTRY_INFO!C36=0," ",COUNTRY_INFO!C36) -> Hurungwe | D36: =IF(COUNTRY_INFO!$T$9:$T$1000="MDA3 (IVM)", COUNTRY_INFO!$T$9:$T$1000, " ") ->  | H36: 0 | K36: 0 | N36: 0 | O36: 0 | P36: 0 | Q36: 0
A37: =IF(COUNTRY_INFO!A37=0," ",COUNTRY_INFO!A37) -> ZIMBABWE | B37: =IF(COUNTRY_INFO!B37=0," ",COUNTRY_INFO!B37) -> Mashonaland West | C37: =IF(COUNTRY_INFO!C37=0," ",COUNTRY_INFO!C37) -> Sanyati | D37: =IF(COUNTRY_INFO!$T$9:$T$1000="MDA3 (IVM)", COUNTRY_INFO!$T$9:$T$1000, " ") ->  | H37: 0 | K37: 0 | N37: 0 | O37: 0 | P37: 0 | Q37: 0
A38: =IF(COUNTRY_INFO!A38=0," ",COUNTRY_INFO!A38) -> ZIMBABWE | B38: =IF(COUNTRY_INFO!B38=0," ",COUNTRY_INFO!B38) -> Mashonaland West | C38: =IF(COUNTRY_INFO!C38=0," ",COUNTRY_INFO!C38) -> Kariba | D38: =IF(COUNTRY_INFO!$T$9:$T$1000="MDA3 (IVM)", COUNTRY_INFO!$T$9:$T$1000, " ") ->  | H38: 0 | K38: 0 | N38: 0 | O38: 0 | P38: 0 | Q38: 0
A39: =IF(COUNTRY_INFO!A39=0," ",COUNTRY_INFO!A39) -> ZIMBABWE | B39: =IF(COUNTRY_INFO!B39=0," ",COUNTRY_INFO!B39) -> Mashonaland West | C39: =IF(COUNTRY_INFO!C39=0," ",COUNTRY_INFO!C39) -> Makonde | D39: =IF(COUNTRY_INFO!$T$9:$T$1000="MDA3 (IVM)", COUNTRY_INFO!$T$9:$T$1000, " ") ->  | H39: 0 | K39: 0 | N39: 0 | O39: 0 | P39: 0 | Q39: 0
A40: =IF(COUNTRY_INFO!A40=0," ",COUNTRY_INFO!A40) -> ZIMBABWE | B40: =IF(COUNTRY_INFO!B40=0," ",COUNTRY_INFO!B40) -> Mashonaland West | C40: =IF(COUNTRY_INFO!C40=0," ",COUNTRY_INFO!C40) -> Mhondoro-Ngezi | D40: =IF(COUNTRY_INFO!$T$9:$T$1000="MDA3 (IVM)", COUNTRY_INFO!$T$9:$T$1000, " ") ->  | H40: 0 | K40: 0 | N40: 0 | O40: 0 | P40: 0 | Q40: 0
A41: =IF(COUNTRY_INFO!A41=0," ",COUNTRY_INFO!A41) -> ZIMBABWE | B41: =IF(COUNTRY_INFO!B41=0," ",COUNTRY_INFO!B41) -> Mashonaland West | C41: =IF(COUNTRY_INFO!C41=0," ",COUNTRY_INFO!C41) -> Zvimba | D41: =IF(COUNTRY_INFO!$T$9:$T$1000="MDA3 (IVM)", COUNTRY_INFO!$T$9:$T$1000, " ") ->  | H41: 0 | K41: 0 | N41: 0 | O41: 0 | P41: 0 | Q41: 0
A42: =IF(COUNTRY_INFO!A42=0," ",COUNTRY_INFO!A42) -> ZIMBABWE | B42: =IF(COUNTRY_INFO!B42=0," ",COUNTRY_INFO!B42) -> Matabeleland North | C42: =IF(COUNTRY_INFO!C42=0," ",COUNTRY_INFO!C42) -> Binga | D42: =IF(COUNTRY_INFO!$T$9:$T$1000="MDA3 (IVM)", COUNTRY_INFO!$T$9:$T$1000, " ") ->  | H42: 0 | K42: 0 | N42: 0 | O42: 0 | P42: 0 | Q42: 0
A43: =IF(COUNTRY_INFO!A43=0," ",COUNTRY_INFO!A43) -> ZIMBABWE | B43: =IF(COUNTRY_INFO!B43=0," ",COUNTRY_INFO!B43) -> Matabeleland North | C43: =IF(COUNTRY_INFO!C43=0," ",COUNTRY_INFO!C43) -> Bubi | D43: =IF(COUNTRY_INFO!$T$9:$T$1000="MDA3 (IVM)", COUNTRY_INFO!$T$9:$T$1000, " ") ->  | H43: 0 | K43: 0 | N43: 0 | O43: 0 | P43: 0 | Q43: 0
A44: =IF(COUNTRY_INFO!A44=0," ",COUNTRY_INFO!A44) -> ZIMBABWE | B44: =IF(COUNTRY_INFO!B44=0," ",COUNTRY_INFO!B44) -> Matabeleland North | C44: =IF(COUNTRY_INFO!C44=0," ",COUNTRY_INFO!C44) -> Hwange | D44: =IF(COUNTRY_INFO!$T$9:$T$1000="MDA3 (IVM)", COUNTRY_INFO!$T$9:$T$1000, " ") ->  | H44: 0 | K44: 0 | N44: 0 | O44: 0 | P44: 0 | Q44: 0
A45: =IF(COUNTRY_INFO!A45=0," ",COUNTRY_INFO!A45) -> ZIMBABWE | B45: =IF(COUNTRY_INFO!B45=0," ",COUNTRY_INFO!B45) -> Matabeleland North | C45: =IF(COUNTRY_INFO!C45=0," ",COUNTRY_INFO!C45) -> Lupane | D45: =IF(COUNTRY_INFO!$T$9:$T$1000="MDA3 (IVM)", COUNTRY_INFO!$T$9:$T$1000, " ") ->  | H45: 0 | K45: 0 | N45: 0 | O45: 0 | P45: 0 | Q45: 0
A46: =IF(COUNTRY_INFO!A46=0," ",COUNTRY_INFO!A46) -> ZIMBABWE | B46: =IF(COUNTRY_INFO!B46=0," ",COUNTRY_INFO!B46) -> Matabeleland North | C46: =IF(COUNTRY_INFO!C46=0," ",COUNTRY_INFO!C46) -> Nkayi | D46: =IF(COUNTRY_INFO!$T$9:$T$1000="MDA3 (IVM)", COUNTRY_INFO!$T$9:$T$1000, " ") ->  | H46: 0 | K46: 0 | N46: 0 | O46: 0 | P46: 0 | Q46: 0
A47: =IF(COUNTRY_INFO!A47=0," ",COUNTRY_INFO!A47) -> ZIMBABWE | B47: =IF(COUNTRY_INFO!B47=0," ",COUNTRY_INFO!B47) -> Matabeleland North | C47: =IF(COUNTRY_INFO!C47=0," ",COUNTRY_INFO!C47) -> Tsholotsho | D47: =IF(COUNTRY_INFO!$T$9:$T$1000="MDA3 (IVM)", COUNTRY_INFO!$T$9:$T$1000, " ") ->  | H47: 0 | K47: 0 | N47: 0 | O47: 0 | P47: 0 | Q47: 0
A48: =IF(COUNTRY_INFO!A48=0," ",COUNTRY_INFO!A48) -> ZIMBABWE | B48: =IF(COUNTRY_INFO!B48=0," ",COUNTRY_INFO!B48) -> Matabeleland North | C48: =IF(COUNTRY_INFO!C48=0," ",COUNTRY_INFO!C48) -> Umguza | D48: =IF(COUNTRY_INFO!$T$9:$T$1000="MDA3 (IVM)", COUNTRY_INFO!$T$9:$T$1000, " ") ->  | H48: 0 | K48: 0 | N48: 0 | O48: 0 | P48: 0 | Q48: 0
A49: =IF(COUNTRY_INFO!A49=0," ",COUNTRY_INFO!A49) -> ZIMBABWE | B49: =IF(COUNTRY_INFO!B49=0," ",COUNTRY_INFO!B49) -> Matabeleland South | C49: =IF(COUNTRY_INFO!C49=0," ",COUNTRY_INFO!C49) -> Beit Bridge | D49: =IF(COUNTRY_INFO!$T$9:$T$1000="MDA3 (IVM)", COUNTRY_INFO!$T$9:$T$1000, " ") ->  | H49: 0 | K49: 0 | N49: 0 | O49: 0 | P49: 0 | Q49: 0
A50: =IF(COUNTRY_INFO!A50=0," ",COUNTRY_INFO!A50) -> ZIMBABWE | B50: =IF(COUNTRY_INFO!B50=0," ",COUNTRY_INFO!B50) -> Matabeleland South | C50: =IF(COUNTRY_INFO!C50=0," ",COUNTRY_INFO!C50) -> Bulilima | D50: =IF(COUNTRY_INFO!$T$9:$T$1000="MDA3 (IVM)", COUNTRY_INFO!$T$9:$T$1000, " ") ->  | H50: 0 | K50: 0 | N50: 0 | O50: 0 | P50: 0 | Q50: 0
A51: =IF(COUNTRY_INFO!A51=0," ",COUNTRY_INFO!A51) -> ZIMBABWE | B51: =IF(COUNTRY_INFO!B51=0," ",COUNTRY_INFO!B51) -> Matabeleland South | C51: =IF(COUNTRY_INFO!C51=0," ",COUNTRY_INFO!C51) -> Gwanda | D51: =IF(COUNTRY_INFO!$T$9:$T$1000="MDA3 (IVM)", COUNTRY_INFO!$T$9:$T$1000, " ") ->  | H51: 0 | K51: 0 | N51: 0 | O51: 0 | P51: 0 | Q51: 0
A52: =IF(COUNTRY_INFO!A52=0," ",COUNTRY_INFO!A52) -> ZIMBABWE | B52: =IF(COUNTRY_INFO!B52=0," ",COUNTRY_INFO!B52) -> Matabeleland South | C52: =IF(COUNTRY_INFO!C52=0," ",COUNTRY_INFO!C52) -> Insiza | D52: =IF(COUNTRY_INFO!$T$9:$T$1000="MDA3 (IVM)", COUNTRY_INFO!$T$9:$T$1000, " ") ->  | H52: 0 | K52: 0 | N52: 0 | O52: 0 | P52: 0 | Q52: 0
A53: =IF(COUNTRY_INFO!A53=0," ",COUNTRY_INFO!A53) -> ZIMBABWE | B53: =IF(COUNTRY_INFO!B53=0," ",COUNTRY_INFO!B53) -> Matabeleland South | C53: =IF(COUNTRY_INFO!C53=0," ",COUNTRY_INFO!C53) -> Mangwe | D53: =IF(COUNTRY_INFO!$T$9:$T$1000="MDA3 (IVM)", COUNTRY_INFO!$T$9:$T$1000, " ") ->  | H53: 0 | K53: 0 | N53: 0 | O53: 0 | P53: 0 | Q53: 0
A54: =IF(COUNTRY_INFO!A54=0," ",COUNTRY_INFO!A54) -> ZIMBABWE | B54: =IF(COUNTRY_INFO!B54=0," ",COUNTRY_INFO!B54) -> Matabeleland South | C54: =IF(COUNTRY_INFO!C54=0," ",COUNTRY_INFO!C54) -> Matobo | D54: =IF(COUNTRY_INFO!$T$9:$T$1000="MDA3 (IVM)", COUNTRY_INFO!$T$9:$T$1000, " ") ->  | H54: 0 | K54: 0 | N54: 0 | O54: 0 | P54: 0 | Q54: 0
A55: =IF(COUNTRY_INFO!A55=0," ",COUNTRY_INFO!A55) -> ZIMBABWE | B55: =IF(COUNTRY_INFO!B55=0," ",COUNTRY_INFO!B55) -> Matabeleland South | C55: =IF(COUNTRY_INFO!C55=0," ",COUNTRY_INFO!C55) -> Umzingwane | D55: =IF(COUNTRY_INFO!$T$9:$T$1000="MDA3 (IVM)", COUNTRY_INFO!$T$9:$T$1000, " ") ->  | H55: 0 | K55: 0 | N55: 0 | O55: 0 | P55: 0 | Q55: 0
A56: =IF(COUNTRY_INFO!A56=0," ",COUNTRY_INFO!A56) -> ZIMBABWE | B56: =IF(COUNTRY_INFO!B56=0," ",COUNTRY_INFO!B56) -> Midlands | C56: =IF(COUNTRY_INFO!C56=0," ",COUNTRY_INFO!C56) -> Chirumhanzi | D56: =IF(COUNTRY_INFO!$T$9:$T$1000="MDA3 (IVM)", COUNTRY_INFO!$T$9:$T$1000, " ") ->  | H56: 0 | K56: 0 | N56: 0 | O56: 0 | P56: 0 | Q56: 0
A57: =IF(COUNTRY_INFO!A57=0," ",COUNTRY_INFO!A57) -> ZIMBABWE | B57: =IF(COUNTRY_INFO!B57=0," ",COUNTRY_INFO!B57) -> Midlands | C57: =IF(COUNTRY_INFO!C57=0," ",COUNTRY_INFO!C57) -> Gokwe North | D57: =IF(COUNTRY_INFO!$T$9:$T$1000="MDA3 (IVM)", COUNTRY_INFO!$T$9:$T$1000, " ") ->  | H57: 0 | K57: 0 | N57: 0 | O57: 0 | P57: 0 | Q57: 0
A58: =IF(COUNTRY_INFO!A58=0," ",COUNTRY_INFO!A58) -> ZIMBABWE | B58: =IF(COUNTRY_INFO!B58=0," ",COUNTRY_INFO!B58) -> Midlands | C58: =IF(COUNTRY_INFO!C58=0," ",COUNTRY_INFO!C58) -> Gokwe South | D58: =IF(COUNTRY_INFO!$T$9:$T$1000="MDA3 (IVM)", COUNTRY_INFO!$T$9:$T$1000, " ") ->  | H58: 0 | K58: 0 | N58: 0 | O58: 0 | P58: 0 | Q58: 0
A59: =IF(COUNTRY_INFO!A59=0," ",COUNTRY_INFO!A59) -> ZIMBABWE | B59: =IF(COUNTRY_INFO!B59=0," ",COUNTRY_INFO!B59) -> Midlands | C59: =IF(COUNTRY_INFO!C59=0," ",COUNTRY_INFO!C59) -> Gweru | D59: =IF(COUNTRY_INFO!$T$9:$T$1000="MDA3 (IVM)", COUNTRY_INFO!$T$9:$T$1000, " ") ->  | H59: 0 | K59: 0 | N59: 0 | O59: 0 | P59: 0 | Q59: 0
A60: =IF(COUNTRY_INFO!A60=0," ",COUNTRY_INFO!A60) -> ZIMBABWE | B60: =IF(COUNTRY_INFO!B60=0," ",COUNTRY_INFO!B60) -> Midlands | C60: =IF(COUNTRY_INFO!C60=0," ",COUNTRY_INFO!C60) -> Kwekwe | D60: =IF(COUNTRY_INFO!$T$9:$T$1000="MDA3 (IVM)", COUNTRY_INFO!$T$9:$T$1000, " ") ->  | H60: 0 | K60: 0 | N60: 0 | O60: 0 | P60: 0 | Q60: 0
A61: =IF(COUNTRY_INFO!A61=0," ",COUNTRY_INFO!A61) -> ZIMBABWE | B61: =IF(COUNTRY_INFO!B61=0," ",COUNTRY_INFO!B61) -> Midlands | C61: =IF(COUNTRY_INFO!C61=0," ",COUNTRY_INFO!C61) -> Mberengwa | D61: =IF(COUNTRY_INFO!$T$9:$T$1000="MDA3 (IVM)", COUNTRY_INFO!$T$9:$T$1000, " ") ->  | H61: 0 | K61: 0 | N61: 0 | O61: 0 | P61: 0 | Q61: 0
A62: =IF(COUNTRY_INFO!A62=0," ",COUNTRY_INFO!A62) -> ZIMBABWE | B62: =IF(COUNTRY_INFO!B62=0," ",COUNTRY_INFO!B62) -> Midlands | C62: =IF(COUNTRY_INFO!C62=0," ",COUNTRY_INFO!C62) -> Shurugwi | D62: =IF(COUNTRY_INFO!$T$9:$T$1000="MDA3 (IVM)", COUNTRY_INFO!$T$9:$T$1000, " ") ->  | H62: 0 | K62: 0 | N62: 0 | O62: 0 | P62: 0 | Q62: 0
A63: =IF(COUNTRY_INFO!A63=0," ",COUNTRY_INFO!A63) -> ZIMBABWE | B63: =IF(COUNTRY_INFO!B63=0," ",COUNTRY_INFO!B63) -> Midlands | C63: =IF(COUNTRY_INFO!C63=0," ",COUNTRY_INFO!C63) -> Zvishavane | D63: =IF(COUNTRY_INFO!$T$9:$T$1000="MDA3 (IVM)", COUNTRY_INFO!$T$9:$T$1000, " ") ->  | H63: 0 | K63: 0 | N63: 0 | O63: 0 | P63: 0 | Q63: 0
A64: =IF(COUNTRY_INFO!A64=0," ",COUNTRY_INFO!A64) -> ZIMBABWE | B64: =IF(COUNTRY_INFO!B64=0," ",COUNTRY_INFO!B64) -> Masvingo | C64: =IF(COUNTRY_INFO!C64=0," ",COUNTRY_INFO!C64) -> Bikita | D64: =IF(COUNTRY_INFO!$T$9:$T$1000="MDA3 (IVM)", COUNTRY_INFO!$T$9:$T$1000, " ") ->  | H64: 0 | K64: 0 | N64: 0 | O64: 0 | P64: 0 | Q64: 0
A65: =IF(COUNTRY_INFO!A65=0," ",COUNTRY_INFO!A65) -> ZIMBABWE | B65: =IF(COUNTRY_INFO!B65=0," ",COUNTRY_INFO!B65) -> Masvingo | C65: =IF(COUNTRY_INFO!C65=0," ",COUNTRY_INFO!C65) -> Chiredzi | D65: =IF(COUNTRY_INFO!$T$9:$T$1000="MDA3 (IVM)", COUNTRY_INFO!$T$9:$T$1000, " ") ->  | H65: 0 | K65: 0 | N65: 0 | O65: 0 | P65: 0 | Q65: 0
A66: =IF(COUNTRY_INFO!A66=0," ",COUNTRY_INFO!A66) -> ZIMBABWE | B66: =IF(COUNTRY_INFO!B66=0," ",COUNTRY_INFO!B66) -> Masvingo | C66: =IF(COUNTRY_INFO!C66=0," ",COUNTRY_INFO!C66) -> Chivi | D66: =IF(COUNTRY_INFO!$T$9:$T$1000="MDA3 (IVM)", COUNTRY_INFO!$T$9:$T$1000, " ") ->  | H66: 0 | K66: 0 | N66: 0 | O66: 0 | P66: 0 | Q66: 0
A67: =IF(COUNTRY_INFO!A67=0," ",COUNTRY_INFO!A67) -> ZIMBABWE | B67: =IF(COUNTRY_INFO!B67=0," ",COUNTRY_INFO!B67) -> Masvingo | C67: =IF(COUNTRY_INFO!C67=0," ",COUNTRY_INFO!C67) -> Gutu | D67: =IF(COUNTRY_INFO!$T$9:$T$1000="MDA3 (IVM)", COUNTRY_INFO!$T$9:$T$1000, " ") ->  | H67: 0 | K67: 0 | N67: 0 | O67: 0 | P67: 0 | Q67: 0
A68: =IF(COUNTRY_INFO!A68=0," ",COUNTRY_INFO!A68) -> ZIMBABWE | B68: =IF(COUNTRY_INFO!B68=0," ",COUNTRY_INFO!B68) -> Masvingo | C68: =IF(COUNTRY_INFO!C68=0," ",COUNTRY_INFO!C68) -> Masvingo | D68: =IF(COUNTRY_INFO!$T$9:$T$1000="MDA3 (IVM)", COUNTRY_INFO!$T$9:$T$1000, " ") ->  | H68: 0 | K68: 0 | N68: 0 | O68: 0 | P68: 0 | Q68: 0
A69: =IF(COUNTRY_INFO!A69=0," ",COUNTRY_INFO!A69) -> ZIMBABWE | B69: =IF(COUNTRY_INFO!B69=0," ",COUNTRY_INFO!B69) -> Masvingo | C69: =IF(COUNTRY_INFO!C69=0," ",COUNTRY_INFO!C69) -> Mwenezi | D69: =IF(COUNTRY_INFO!$T$9:$T$1000="MDA3 (IVM)", COUNTRY_INFO!$T$9:$T$1000, " ") ->  | H69: 0 | K69: 0 | N69: 0 | O69: 0 | P69: 0 | Q69: 0
A70: =IF(COUNTRY_INFO!A70=0," ",COUNTRY_INFO!A70) -> ZIMBABWE | B70: =IF(COUNTRY_INFO!B70=0," ",COUNTRY_INFO!B70) -> Masvingo | C70: =IF(COUNTRY_INFO!C70=0," ",COUNTRY_INFO!C70) -> Zaka | D70: =IF(COUNTRY_INFO!$T$9:$T$1000="MDA3 (IVM)", COUNTRY_INFO!$T$9:$T$1000, " ") ->  | H70: 0 | K70: 0 | N70: 0 | O70: 0 | P70: 0 | Q70: 0
A71: =IF(COUNTRY_INFO!A71=0," ",COUNTRY_INFO!A71) -> ZIMBABWE | B71: =IF(COUNTRY_INFO!B71=0," ",COUNTRY_INFO!B71) -> Bulawayo | C71: =IF(COUNTRY_INFO!C71=0," ",COUNTRY_INFO!C71) -> Bulawayo | D71: =IF(COUNTRY_INFO!$T$9:$T$1000="MDA3 (IVM)", COUNTRY_INFO!$T$9:$T$1000, " ") ->  | H71: 0 | K71: 0 | N71: 0 | O71: 0 | P71: 0 | Q71: 0

Sheet T1
A1: T 1 - Praziquantel (PZQ) and Albendazole (ALB) or Mebendazole (MBD)
A2: Administrative structure, population requiring PC by age group, population treated by age group and coverage
A4: TOTAL | G4: =SUM(G$9:G$1000) -> 0 | H4: 0 | I4: 0 | J4: 0 | K4: =SUM(K$9:K$1000) -> 0 | L4: 0 | M4: 0 | N4: 0 | O4: 0 | P4: =IF(G4<>0, IF(L4/G4*100=0, "-", L4/G4*100), " ") ->  | Q4: =IF(OR(I4<>0,H4<>0), IF(M4/MAX(H4,I4)*100=0, "-", M4/MAX(H4,I4)*100), " ") ->  | R4: =IF(J4<>0, IF(N4/J4*100=0, "-", N4/J4*100), " ") ->  | S4: =IF(K4<>0, IF(O4/K4*100=0, "-", O4/K4*100), " ") -> 
D6: PC implemented | E6: Medicine | F6: Date | G6: Population targeted for T1 | L6: Population treated | P6: Programme coverage (%)
A7: Country | B7: Province/State | C7: District | G7: PreSAC (ALB) | H7: SAC (ALB) | I7: SAC (PZQ) | J7: Adults (PZQ) | K7: Total | L7: PreSAC | M7: SAC | N7: Adults | O7: Total | P7: PreSAC | Q7: SAC | R7: Adults | S7: Total
A9: =IF(COUNTRY_INFO!A9=0," ",COUNTRY_INFO!A9) -> ZIMBABWE | B9: =IF(COUNTRY_INFO!B9=0," ",COUNTRY_INFO!B9) -> Manicaland | C9: =IF(COUNTRY_INFO!C9=0," ",COUNTRY_INFO!C9) -> Buhera | D9: =IF(OR(COUNTRY_INFO!$T$9:$T$1000="T1 (PZQ+ALB/MBD)",COUNTRY_INFO!$U$9:$U$1000="T1 (PZQ+ALB/MBD)"), "T1 (PZQ+ALB/MBD)", " ") ->  | K9: =MAX(H9:I9)+G9+J9 -> 0 | O9: =SUM(L9:N9) -> 0 | P9: =IF(G9<>0, IF(L9/G9*100=0, "-", L9/G9*100), " ") ->  | Q9: =IF(OR(I9<>0,H9<>0), IF(M9/MAX(H9,I9)*100=0, "-", M9/MAX(H9,I9)*100), " ") ->  | R9: =IF(J9<>0, IF(N9/J9*100=0, "-", N9/J9*100), " ") ->  | S9: =IF(K9<>0, IF(O9/K9*100=0, "-", O9/K9*100), " ") -> 
A10: =IF(COUNTRY_INFO!A10=0," ",COUNTRY_INFO!A10) -> ZIMBABWE | B10: =IF(COUNTRY_INFO!B10=0," ",COUNTRY_INFO!B10) -> Manicaland | C10: =IF(COUNTRY_INFO!C10=0," ",COUNTRY_INFO!C10) -> Chimanimani | D10: =IF(OR(COUNTRY_INFO!$T$9:$T$1000="T1 (PZQ+ALB/MBD)",COUNTRY_INFO!$U$9:$U$1000="T1 (PZQ+ALB/MBD)"), "T1 (PZQ+ALB/MBD)", " ") ->  | K10: =MAX(H10:I10)+G10+J10 -> 0 | O10: =SUM(L10:N10) -> 0 | P10: =IF(G10<>0, IF(L10/G10*100=0, "-", L10/G10*100), " ") ->  | Q10: =IF(OR(I10<>0,H10<>0), IF(M10/MAX(H10,I10)*100=0, "-", M10/MAX(H10,I10)*100), " ") ->  | R10: =IF(J10<>0, IF(N10/J10*100=0, "-", N10/J10*100), " ") ->  | S10: =IF(K10<>0, IF(O10/K10*100=0, "-", O10/K10*100), " ") -> 
A11: =IF(COUNTRY_INFO!A11=0," ",COUNTRY_INFO!A11) -> ZIMBABWE | B11: =IF(COUNTRY_INFO!B11=0," ",COUNTRY_INFO!B11) -> Manicaland | C11: =IF(COUNTRY_INFO!C11=0," ",COUNTRY_INFO!C11) -> Chipinge | D11: =IF(OR(COUNTRY_INFO!$T$9:$T$1000="T1 (PZQ+ALB/MBD)",COUNTRY_INFO!$U$9:$U$1000="T1 (PZQ+ALB/MBD)"), "T1 (PZQ+ALB/MBD)", " ") ->  | K11: 0 | O11: 0
A12: =IF(COUNTRY_INFO!A12=0," ",COUNTRY_INFO!A12) -> ZIMBABWE | B12: =IF(COUNTRY_INFO!B12=0," ",COUNTRY_INFO!B12) -> Manicaland | C12: =IF(COUNTRY_INFO!C12=0," ",COUNTRY_INFO!C12) -> Makoni | D12: =IF(OR(COUNTRY_INFO!$T$9:$T$1000="T1 (PZQ+ALB/MBD)",COUNTRY_INFO!$U$9:$U$1000="T1 (PZQ+ALB/MBD)"), "T1 (PZQ+ALB/MBD)", " ") ->  | K12: 0 | O12: 0
A13: =IF(COUNTRY_INFO!A13=0," ",COUNTRY_INFO!A13) -> ZIMBABWE | B13: =IF(COUNTRY_INFO!B13=0," ",COUNTRY_INFO!B13) -> Manicaland | C13: =IF(COUNTRY_INFO!C13=0," ",COUNTRY_INFO!C13) -> Mutare | D13: =IF(OR(COUNTRY_INFO!$T$9:$T$1000="T1 (PZQ+ALB/MBD)",COUNTRY_INFO!$U$9:$U$1000="T1 (PZQ+ALB/MBD)"), "T1 (PZQ+ALB/MBD)", " ") ->  | K13: 0 | O13: 0
A14: =IF(COUNTRY_INFO!A14=0," ",COUNTRY_INFO!A14) -> ZIMBABWE | B14: =IF(COUNTRY_INFO!B14=0," ",COUNTRY_INFO!B14) -> Manicaland | C14: =IF(COUNTRY_INFO!C14=0," ",COUNTRY_INFO!C14) -> Mutasa | D14: =IF(OR(COUNTRY_INFO!$T$9:$T$1000="T1 (PZQ+ALB/MBD)",COUNTRY_INFO!$U$9:$U$1000="T1 (PZQ+ALB/MBD)"), "T1 (PZQ+ALB/MBD)", " ") ->  | K14: 0 | O14: 0
A15: =IF(COUNTRY_INFO!A15=0," ",COUNTRY_INFO!A15) -> ZIMBABWE | B15: =IF(COUNTRY_INFO!B15=0," ",COUNTRY_INFO!B15) -> Manicaland | C15: =IF(COUNTRY_INFO!C15=0," ",COUNTRY_INFO!C15) -> Nyanga | D15: =IF(OR(COUNTRY_INFO!$T$9:$T$1000="T1 (PZQ+ALB/MBD)",COUNTRY_INFO!$U$9:$U$1000="T1 (PZQ+ALB/MBD)"), "T1 (PZQ+ALB/MBD)", " ") ->  | K15: 0 | O15: 0
A16: =IF(COUNTRY_INFO!A16=0," ",COUNTRY_INFO!A16) -> ZIMBABWE | B16: =IF(COUNTRY_INFO!B16=0," ",COUNTRY_INFO!B16) -> Harare | C16: =IF(COUNTRY_INFO!C16=0," ",COUNTRY_INFO!C16) -> Chitungwiza | D16: =IF(OR(COUNTRY_INFO!$T$9:$T$1000="T1 (PZQ+ALB/MBD)",COUNTRY_INFO!$U$9:$U$1000="T1 (PZQ+ALB/MBD)"), "T1 (PZQ+ALB/MBD)", " ") ->  | K16: 0 | O16: 0
A17: =IF(COUNTRY_INFO!A17=0," ",COUNTRY_INFO!A17) -> ZIMBABWE | B17: =IF(COUNTRY_INFO!B17=0," ",COUNTRY_INFO!B17) -> Harare | C17: =IF(COUNTRY_INFO!C17=0," ",COUNTRY_INFO!C17) -> Harare | D17: =IF(OR(COUNTRY_INFO!$T$9:$T$1000="T1 (PZQ+ALB/MBD)",COUNTRY_INFO!$U$9:$U$1000="T1 (PZQ+ALB/MBD)"), "T1 (PZQ+ALB/MBD)", " ") ->  | K17: 0 | O17: 0
A18: =IF(COUNTRY_INFO!A18=0," ",COUNTRY_INFO!A18) -> ZIMBABWE | B18: =IF(COUNTRY_INFO!B18=0," ",COUNTRY_INFO!B18) -> Mashnaland Central | C18: =IF(COUNTRY_INFO!C18=0," ",COUNTRY_INFO!C18) -> Bindura | D18: =IF(OR(COUNTRY_INFO!$T$9:$T$1000="T1 (PZQ+ALB/MBD)",COUNTRY_INFO!$U$9:$U$1000="T1 (PZQ+ALB/MBD)"), "T1 (PZQ+ALB/MBD)", " ") ->  | K18: 0 | O18: 0
A19: =IF(COUNTRY_INFO!A19=0," ",COUNTRY_INFO!A19) -> ZIMBABWE | B19: =IF(COUNTRY_INFO!B19=0," ",COUNTRY_INFO!B19) -> Mashnaland Central | C19: =IF(COUNTRY_INFO!C19=0," ",COUNTRY_INFO!C19) -> Centenary | D19: =IF(OR(COUNTRY_INFO!$T$9:$T$1000="T1 (PZQ+ALB/MBD)",COUNTRY_INFO!$U$9:$U$1000="T1 (PZQ+ALB/MBD)"), "T1 (PZQ+ALB/MBD)", " ") ->  | K19: 0 | O19: 0
A20: =IF(COUNTRY_INFO!A20=0," ",COUNTRY_INFO!A20) -> ZIMBABWE | B20: =IF(COUNTRY_INFO!B20=0," ",COUNTRY_INFO!B20) -> Mashnaland Central | C20: =IF(COUNTRY_INFO!C20=0," ",COUNTRY_INFO!C20) -> Guruve | D20: =IF(OR(COUNTRY_INFO!$T$9:$T$1000="T1 (PZQ+ALB/MBD)",COUNTRY_INFO!$U$9:$U$1000="T1 (PZQ+ALB/MBD)"), "T1 (PZQ+ALB/MBD)", " ") ->  | K20: 0 | O20: 0
A21: =IF(COUNTRY_INFO!A21=0," ",COUNTRY_INFO!A21) -> ZIMBABWE | B21: =IF(COUNTRY_INFO!B21=0," ",COUNTRY_INFO!B21) -> Mashnaland Central | C21: =IF(COUNTRY_INFO!C21=0," ",COUNTRY_INFO!C21) -> Mazowe | D21: =IF(OR(COUNTRY_INFO!$T$9:$T$1000="T1 (PZQ+ALB/MBD)",COUNTRY_INFO!$U$9:$U$1000="T1 (PZQ+ALB/MBD)"), "T1 (PZQ+ALB/MBD)", " ") ->  | K21: 0 | O21: 0
A22: =IF(COUNTRY_INFO!A22=0," ",COUNTRY_INFO!A22) -> ZIMBABWE | B22: =IF(COUNTRY_INFO!B22=0," ",COUNTRY_INFO!B22) -> Mashnaland Central | C22: =IF(COUNTRY_INFO!C22=0," ",COUNTRY_INFO!C22) -> Mt Darwin | D22: =IF(OR(COUNTRY_INFO!$T$9:$T$1000="T1 (PZQ+ALB/MBD)",COUNTRY_INFO!$U$9:$U$1000="T1 (PZQ+ALB/MBD)"), "T1 (PZQ+ALB/MBD)", " ") ->  | K22: 0 | O22: 0
A23: =IF(COUNTRY_INFO!A23=0," ",COUNTRY_INFO!A23) -> ZIMBABWE | B23: =IF(COUNTRY_INFO!B23=0," ",COUNTRY_INFO!B23) -> Mashnaland Central | C23: =IF(COUNTRY_INFO!C23=0," ",COUNTRY_INFO!C23) -> Rushinga | D23: =IF(OR(COUNTRY_INFO!$T$9:$T$1000="T1 (PZQ+ALB/MBD)",COUNTRY_INFO!$U$9:$U$1000="T1 (PZQ+ALB/MBD)"), "T1 (PZQ+ALB/MBD)", " ") ->  | K23: 0 | O23: 0
A24: =IF(COUNTRY_INFO!A24=0," ",COUNTRY_INFO!A24) -> ZIMBABWE | B24: =IF(COUNTRY_INFO!B24=0," ",COUNTRY_INFO!B24) -> Mashnaland Central | C24: =IF(COUNTRY_INFO!C24=0," ",COUNTRY_INFO!C24) -> Shamva | D24: =IF(OR(COUNTRY_INFO!$T$9:$T$1000="T1 (PZQ+ALB/MBD)",COUNTRY_INFO!$U$9:$U$1000="T1 (PZQ+ALB/MBD)"), "T1 (PZQ+ALB/MBD)", " ") ->  | K24: 0 | O24: 0
A25: =IF(COUNTRY_INFO!A25=0," ",COUNTRY_INFO!A25) -> ZIMBABWE | B25: =IF(COUNTRY_INFO!B25=0," ",COUNTRY_INFO!B25) -> Mashnaland Central | C25: =IF(COUNTRY_INFO!C25=0," ",COUNTRY_INFO!C25) -> Mbire | D25: =IF(OR(COUNTRY_INFO!$T$9:$T$1000="T1 (PZQ+ALB/MBD)",COUNTRY_INFO!$U$9:$U$1000="T1 (PZQ+ALB/MBD)"), "T1 (PZQ+ALB/MBD)", " ") ->  | K25: 0 | O25: 0
A26: =IF(COUNTRY_INFO!A26=0," ",COUNTRY_INFO!A26) -> ZIMBABWE | B26: =IF(COUNTRY_INFO!B26=0," ",COUNTRY_INFO!B26) -> Mashonaland East | C26: =IF(COUNTRY_INFO!C26=0," ",COUNTRY_INFO!C26) -> Chikomba | D26: =IF(OR(COUNTRY_INFO!$T$9:$T$1000="T1 (PZQ+ALB/MBD)",COUNTRY_INFO!$U$9:$U$1000="T1 (PZQ+ALB/MBD)"), "T1 (PZQ+ALB/MBD)", " ") ->  | K26: 0 | O26: 0
A27: =IF(COUNTRY_INFO!A27=0," ",COUNTRY_INFO!A27) -> ZIMBABWE | B27: =IF(COUNTRY_INFO!B27=0," ",COUNTRY_INFO!B27) -> Mashonaland East | C27: =IF(COUNTRY_INFO!C27=0," ",COUNTRY_INFO!C27) -> Goromonzi | D27: =IF(OR(COUNTRY_INFO!$T$9:$T$1000="T1 (PZQ+ALB/MBD)",COUNTRY_INFO!$U$9:$U$1000="T1 (PZQ+ALB/MBD)"), "T1 (PZQ+ALB/MBD)", " ") ->  | K27: 0 | O27: 0
A28: =IF(COUNTRY_INFO!A28=0," ",COUNTRY_INFO!A28) -> ZIMBABWE | B28: =IF(COUNTRY_INFO!B28=0," ",COUNTRY_INFO!B28) -> Mashonaland East | C28: =IF(COUNTRY_INFO!C28=0," ",COUNTRY_INFO!C28) -> UMP | D28: =IF(OR(COUNTRY_INFO!$T$9:$T$1000="T1 (PZQ+ALB/MBD)",COUNTRY_INFO!$U$9:$U$1000="T1 (PZQ+ALB/MBD)"), "T1 (PZQ+ALB/MBD)", " ") ->  | K28: 0 | O28: 0
A29: =IF(COUNTRY_INFO!A29=0," ",COUNTRY_INFO!A29) -> ZIMBABWE | B29: =IF(COUNTRY_INFO!B29=0," ",COUNTRY_INFO!B29) -> Mashonaland East | C29: =IF(COUNTRY_INFO!C29=0," ",COUNTRY_INFO!C29) -> Hwedza | D29: =IF(OR(COUNTRY_INFO!$T$9:$T$1000="T1 (PZQ+ALB/MBD)",COUNTRY_INFO!$U$9:$U$1000="T1 (PZQ+ALB/MBD)"), "T1 (PZQ+ALB/MBD)", " ") ->  | K29: 0 | O29: 0
A30: =IF(COUNTRY_INFO!A30=0," ",COUNTRY_INFO!A30) -> ZIMBABWE | B30: =IF(COUNTRY_INFO!B30=0," ",COUNTRY_INFO!B30) -> Mashonaland East | C30: =IF(COUNTRY_INFO!C30=0," ",COUNTRY_INFO!C30) -> Marondera | D30: =IF(OR(COUNTRY_INFO!$T$9:$T$1000="T1 (PZQ+ALB/MBD)",COUNTRY_INFO!$U$9:$U$1000="T1 (PZQ+ALB/MBD)"), "T1 (PZQ+ALB/MBD)", " ") ->  | K30: 0 | O30: 0
A31: =IF(COUNTRY_INFO!A31=0," ",COUNTRY_INFO!A31) -> ZIMBABWE | B31: =IF(COUNTRY_INFO!B31=0," ",COUNTRY_INFO!B31) -> Mashonaland East | C31: =IF(COUNTRY_INFO!C31=0," ",COUNTRY_INFO!C31) -> Mudzi | D31: =IF(OR(COUNTRY_INFO!$T$9:$T$1000="T1 (PZQ+ALB/MBD)",COUNTRY_INFO!$U$9:$U$1000="T1 (PZQ+ALB/MBD)"), "T1 (PZQ+ALB/MBD)", " ") ->  | K31: 0 | O31: 0
A32: =IF(COUNTRY_INFO!A32=0," ",COUNTRY_INFO!A32) -> ZIMBABWE | B32: =IF(COUNTRY_INFO!B32=0," ",COUNTRY_INFO!B32) -> Mashonaland East | C32: =IF(COUNTRY_INFO!C32=0," ",COUNTRY_INFO!C32) -> Murewa | D32: =IF(OR(COUNTRY_INFO!$T$9:$T$1000="T1 (PZQ+ALB/MBD)",COUNTRY_INFO!$U$9:$U$1000="T1 (PZQ+ALB/MBD)"), "T1 (PZQ+ALB/MBD)", " ") ->  | K32: 0 | O32: 0
A33: =IF(COUNTRY_INFO!A33=0," ",COUNTRY_INFO!A33) -> ZIMBABWE | B33: =IF(COUNTRY_INFO!B33=0," ",COUNTRY_INFO!B33) -> Mashonaland East | C33: =IF(COUNTRY_INFO!C33=0," ",COUNTRY_INFO!C33) -> Mutoko | D33: =IF(OR(COUNTRY_INFO!$T$9:$T$1000="T1 (PZQ+ALB/MBD)",COUNTRY_INFO!$U$9:$U$1000="T1 (PZQ+ALB/MBD)"), "T1 (PZQ+ALB/MBD)", " ") ->  | K33: 0 | O33: 0
A34: =IF(COUNTRY_INFO!A34=0," ",COUNTRY_INFO!A34) -> ZIMBABWE | B34: =IF(COUNTRY_INFO!B34=0," ",COUNTRY_INFO!B34) -> Mashonaland East | C34: =IF(COUNTRY_INFO!C34=0," ",COUNTRY_INFO!C34) -> Seke | D34: =IF(OR(COUNTRY_INFO!$T$9:$T$1000="T1 (PZQ+ALB/MBD)",COUNTRY_INFO!$U$9:$U$1000="T1 (PZQ+ALB/MBD)"), "T1 (PZQ+ALB/MBD)", " ") ->  | K34: 0 | O34: 0
A35: =IF(COUNTRY_INFO!A35=0," ",COUNTRY_INFO!A35) -> ZIMBABWE | B35: =IF(COUNTRY_INFO!B35=0," ",COUNTRY_INFO!B35) -> Mashonaland West | C35: =IF(COUNTRY_INFO!C35=0," ",COUNTRY_INFO!C35) -> Chegutu | D35: =IF(OR(COUNTRY_INFO!$T$9:$T$1000="T1 (PZQ+ALB/MBD)",COUNTRY_INFO!$U$9:$U$1000="T1 (PZQ+ALB/MBD)"), "T1 (PZQ+ALB/MBD)", " ") ->  | K35: 0 | O35: 0
A36: =IF(COUNTRY_INFO!A36=0," ",COUNTRY_INFO!A36) -> ZIMBABWE | B36: =IF(COUNTRY_INFO!B36=0," ",COUNTRY_INFO!B36) -> Mashonaland West | C36: =IF(COUNTRY_INFO!C36=0," ",COUNTRY_INFO!C36) -> Hurungwe | D36: =IF(OR(COUNTRY_INFO!$T$9:$T$1000="T1 (PZQ+ALB/MBD)",COUNTRY_INFO!$U$9:$U$1000="T1 (PZQ+ALB/MBD)"), "T1 (PZQ+ALB/MBD)", " ") ->  | K36: 0 | O36: 0
A37: =IF(COUNTRY_INFO!A37=0," ",COUNTRY_INFO!A37) -> ZIMBABWE | B37: =IF(COUNTRY_INFO!B37=0," ",COUNTRY_INFO!B37) -> Mashonaland West | C37: =IF(COUNTRY_INFO!C37=0," ",COUNTRY_INFO!C37) -> Sanyati | D37: =IF(OR(COUNTRY_INFO!$T$9:$T$1000="T1 (PZQ+ALB/MBD)",COUNTRY_INFO!$U$9:$U$1000="T1 (PZQ+ALB/MBD)"), "T1 (PZQ+ALB/MBD)", " ") ->  | K37: 0 | O37: 0
A38: =IF(COUNTRY_INFO!A38=0," ",COUNTRY_INFO!A38) -> ZIMBABWE | B38: =IF(COUNTRY_INFO!B38=0," ",COUNTRY_INFO!B38) -> Mashonaland West | C38: =IF(COUNTRY_INFO!C38=0," ",COUNTRY_INFO!C38) -> Kariba | D38: =IF(OR(COUNTRY_INFO!$T$9:$T$1000="T1 (PZQ+ALB/MBD)",COUNTRY_INFO!$U$9:$U$1000="T1 (PZQ+ALB/MBD)"), "T1 (PZQ+ALB/MBD)", " ") ->  | K38: 0 | O38: 0
A39: =IF(COUNTRY_INFO!A39=0," ",COUNTRY_INFO!A39) -> ZIMBABWE | B39: =IF(COUNTRY_INFO!B39=0," ",COUNTRY_INFO!B39) -> Mashonaland West | C39: =IF(COUNTRY_INFO!C39=0," ",COUNTRY_INFO!C39) -> Makonde | D39: =IF(OR(COUNTRY_INFO!$T$9:$T$1000="T1 (PZQ+ALB/MBD)",COUNTRY_INFO!$U$9:$U$1000="T1 (PZQ+ALB/MBD)"), "T1 (PZQ+ALB/MBD)", " ") ->  | K39: 0 | O39: 0
A40: =IF(COUNTRY_INFO!A40=0," ",COUNTRY_INFO!A40) -> ZIMBABWE | B40: =IF(COUNTRY_INFO!B40=0," ",COUNTRY_INFO!B40) -> Mashonaland West | C40: =IF(COUNTRY_INFO!C40=0," ",COUNTRY_INFO!C40) -> Mhondoro-Ngezi | D40: =IF(OR(COUNTRY_INFO!$T$9:$T$1000="T1 (PZQ+ALB/MBD)",COUNTRY_INFO!$U$9:$U$1000="T1 (PZQ+ALB/MBD)"), "T1 (PZQ+ALB/MBD)", " ") ->  | K40: 0 | O40: 0
A41: =IF(COUNTRY_INFO!A41=0," ",COUNTRY_INFO!A41) -> ZIMBABWE | B41: =IF(COUNTRY_INFO!B41=0," ",COUNTRY_INFO!B41) -> Mashonaland West | C41: =IF(COUNTRY_INFO!C41=0," ",COUNTRY_INFO!C41) -> Zvimba | D41: =IF(OR(COUNTRY_INFO!$T$9:$T$1000="T1 (PZQ+ALB/MBD)",COUNTRY_INFO!$U$9:$U$1000="T1 (PZQ+ALB/MBD)"), "T1 (PZQ+ALB/MBD)", " ") ->  | K41: 0 | O41: 0
A42: =IF(COUNTRY_INFO!A42=0," ",COUNTRY_INFO!A42) -> ZIMBABWE | B42: =IF(COUNTRY_INFO!B42=0," ",COUNTRY_INFO!B42) -> Matabeleland North | C42: =IF(COUNTRY_INFO!C42=0," ",COUNTRY_INFO!C42) -> Binga | D42: =IF(OR(COUNTRY_INFO!$T$9:$T$1000="T1 (PZQ+ALB/MBD)",COUNTRY_INFO!$U$9:$U$1000="T1 (PZQ+ALB/MBD)"), "T1 (PZQ+ALB/MBD)", " ") ->  | K42: 0 | O42: 0
A43: =IF(COUNTRY_INFO!A43=0," ",COUNTRY_INFO!A43) -> ZIMBABWE | B43: =IF(COUNTRY_INFO!B43=0," ",COUNTRY_INFO!B43) -> Matabeleland North | C43: =IF(COUNTRY_INFO!C43=0," ",COUNTRY_INFO!C43) -> Bubi | D43: =IF(OR(COUNTRY_INFO!$T$9:$T$1000="T1 (PZQ+ALB/MBD)",COUNTRY_INFO!$U$9:$U$1000="T1 (PZQ+ALB/MBD)"), "T1 (PZQ+ALB/MBD)", " ") ->  | K43: 0 | O43: 0
A44: =IF(COUNTRY_INFO!A44=0," ",COUNTRY_INFO!A44) -> ZIMBABWE | B44: =IF(COUNTRY_INFO!B44=0," ",COUNTRY_INFO!B44) -> Matabeleland North | C44: =IF(COUNTRY_INFO!C44=0," ",COUNTRY_INFO!C44) -> Hwange | D44: =IF(OR(COUNTRY_INFO!$T$9:$T$1000="T1 (PZQ+ALB/MBD)",COUNTRY_INFO!$U$9:$U$1000="T1 (PZQ+ALB/MBD)"), "T1 (PZQ+ALB/MBD)", " ") ->  | K44: 0 | O44: 0
A45: =IF(COUNTRY_INFO!A45=0," ",COUNTRY_INFO!A45) -> ZIMBABWE | B45: =IF(COUNTRY_INFO!B45=0," ",COUNTRY_INFO!B45) -> Matabeleland North | C45: =IF(COUNTRY_INFO!C45=0," ",COUNTRY_INFO!C45) -> Lupane | D45: =IF(OR(COUNTRY_INFO!$T$9:$T$1000="T1 (PZQ+ALB/MBD)",COUNTRY_INFO!$U$9:$U$1000="T1 (PZQ+ALB/MBD)"), "T1 (PZQ+ALB/MBD)", " ") ->  | K45: 0 | O45: 0
A46: =IF(COUNTRY_INFO!A46=0," ",COUNTRY_INFO!A46) -> ZIMBABWE | B46: =IF(COUNTRY_INFO!B46=0," ",COUNTRY_INFO!B46) -> Matabeleland North | C46: =IF(COUNTRY_INFO!C46=0," ",COUNTRY_INFO!C46) -> Nkayi | D46: =IF(OR(COUNTRY_INFO!$T$9:$T$1000="T1 (PZQ+ALB/MBD)",COUNTRY_INFO!$U$9:$U$1000="T1 (PZQ+ALB/MBD)"), "T1 (PZQ+ALB/MBD)", " ") ->  | K46: 0 | O46: 0
A47: =IF(COUNTRY_INFO!A47=0," ",COUNTRY_INFO!A47) -> ZIMBABWE | B47: =IF(COUNTRY_INFO!B47=0," ",COUNTRY_INFO!B47) -> Matabeleland North | C47: =IF(COUNTRY_INFO!C47=0," ",COUNTRY_INFO!C47) -> Tsholotsho | D47: =IF(OR(COUNTRY_INFO!$T$9:$T$1000="T1 (PZQ+ALB/MBD)",COUNTRY_INFO!$U$9:$U$1000="T1 (PZQ+ALB/MBD)"), "T1 (PZQ+ALB/MBD)", " ") ->  | K47: 0 | O47: 0
A48: =IF(COUNTRY_INFO!A48=0," ",COUNTRY_INFO!A48) -> ZIMBABWE | B48: =IF(COUNTRY_INFO!B48=0," ",COUNTRY_INFO!B48) -> Matabeleland North | C48: =IF(COUNTRY_INFO!C48=0," ",COUNTRY_INFO!C48) -> Umguza | D48: =IF(OR(COUNTRY_INFO!$T$9:$T$1000="T1 (PZQ+ALB/MBD)",COUNTRY_INFO!$U$9:$U$1000="T1 (PZQ+ALB/MBD)"), "T1 (PZQ+ALB/MBD)", " ") ->  | K48: 0 | O48: 0
A49: =IF(COUNTRY_INFO!A49=0," ",COUNTRY_INFO!A49) -> ZIMBABWE | B49: =IF(COUNTRY_INFO!B49=0," ",COUNTRY_INFO!B49) -> Matabeleland South | C49: =IF(COUNTRY_INFO!C49=0," ",COUNTRY_INFO!C49) -> Beit Bridge | D49: =IF(OR(COUNTRY_INFO!$T$9:$T$1000="T1 (PZQ+ALB/MBD)",COUNTRY_INFO!$U$9:$U$1000="T1 (PZQ+ALB/MBD)"), "T1 (PZQ+ALB/MBD)", " ") ->  | K49: 0 | O49: 0
A50: =IF(COUNTRY_INFO!A50=0," ",COUNTRY_INFO!A50) -> ZIMBABWE | B50: =IF(COUNTRY_INFO!B50=0," ",COUNTRY_INFO!B50) -> Matabeleland South | C50: =IF(COUNTRY_INFO!C50=0," ",COUNTRY_INFO!C50) -> Bulilima | D50: =IF(OR(COUNTRY_INFO!$T$9:$T$1000="T1 (PZQ+ALB/MBD)",COUNTRY_INFO!$U$9:$U$1000="T1 (PZQ+ALB/MBD)"), "T1 (PZQ+ALB/MBD)", " ") ->  | K50: 0 | O50: 0
A51: =IF(COUNTRY_INFO!A51=0," ",COUNTRY_INFO!A51) -> ZIMBABWE | B51: =IF(COUNTRY_INFO!B51=0," ",COUNTRY_INFO!B51) -> Matabeleland South | C51: =IF(COUNTRY_INFO!C51=0," ",COUNTRY_INFO!C51) -> Gwanda | D51: =IF(OR(COUNTRY_INFO!$T$9:$T$1000="T1 (PZQ+ALB/MBD)",COUNTRY_INFO!$U$9:$U$1000="T1 (PZQ+ALB/MBD)"), "T1 (PZQ+ALB/MBD)", " ") ->  | K51: 0 | O51: 0
A52: =IF(COUNTRY_INFO!A52=0," ",COUNTRY_INFO!A52) -> ZIMBABWE | B52: =IF(COUNTRY_INFO!B52=0," ",COUNTRY_INFO!B52) -> Matabeleland South | C52: =IF(COUNTRY_INFO!C52=0," ",COUNTRY_INFO!C52) -> Insiza | D52: =IF(OR(COUNTRY_INFO!$T$9:$T$1000="T1 (PZQ+ALB/MBD)",COUNTRY_INFO!$U$9:$U$1000="T1 (PZQ+ALB/MBD)"), "T1 (PZQ+ALB/MBD)", " ") ->  | K52: 0 | O52: 0
A53: =IF(COUNTRY_INFO!A53=0," ",COUNTRY_INFO!A53) -> ZIMBABWE | B53: =IF(COUNTRY_INFO!B53=0," ",COUNTRY_INFO!B53) -> Matabeleland South | C53: =IF(COUNTRY_INFO!C53=0," ",COUNTRY_INFO!C53) -> Mangwe | D53: =IF(OR(COUNTRY_INFO!$T$9:$T$1000="T1 (PZQ+ALB/MBD)",COUNTRY_INFO!$U$9:$U$1000="T1 (PZQ+ALB/MBD)"), "T1 (PZQ+ALB/MBD)", " ") ->  | K53: 0 | O53: 0
A54: =IF(COUNTRY_INFO!A54=0," ",COUNTRY_INFO!A54) -> ZIMBABWE | B54: =IF(COUNTRY_INFO!B54=0," ",COUNTRY_INFO!B54) -> Matabeleland South | C54: =IF(COUNTRY_INFO!C54=0," ",COUNTRY_INFO!C54) -> Matobo | D54: =IF(OR(COUNTRY_INFO!$T$9:$T$1000="T1 (PZQ+ALB/MBD)",COUNTRY_INFO!$U$9:$U$1000="T1 (PZQ+ALB/MBD)"), "T1 (PZQ+ALB/MBD)", " ") ->  | K54: 0 | O54: 0
A55: =IF(COUNTRY_INFO!A55=0," ",COUNTRY_INFO!A55) -> ZIMBABWE | B55: =IF(COUNTRY_INFO!B55=0," ",COUNTRY_INFO!B55) -> Matabeleland South | C55: =IF(COUNTRY_INFO!C55=0," ",COUNTRY_INFO!C55) -> Umzingwane | D55: =IF(OR(COUNTRY_INFO!$T$9:$T$1000="T1 (PZQ+ALB/MBD)",COUNTRY_INFO!$U$9:$U$1000="T1 (PZQ+ALB/MBD)"), "T1 (PZQ+ALB/MBD)", " ") ->  | K55: 0 | O55: 0
A56: =IF(COUNTRY_INFO!A56=0," ",COUNTRY_INFO!A56) -> ZIMBABWE | B56: =IF(COUNTRY_INFO!B56=0," ",COUNTRY_INFO!B56) -> Midlands | C56: =IF(COUNTRY_INFO!C56=0," ",COUNTRY_INFO!C56) -> Chirumhanzi | D56: =IF(OR(COUNTRY_INFO!$T$9:$T$1000="T1 (PZQ+ALB/MBD)",COUNTRY_INFO!$U$9:$U$1000="T1 (PZQ+ALB/MBD)"), "T1 (PZQ+ALB/MBD)", " ") ->  | K56: 0 | O56: 0
A57: =IF(COUNTRY_INFO!A57=0," ",COUNTRY_INFO!A57) -> ZIMBABWE | B57: =IF(COUNTRY_INFO!B57=0," ",COUNTRY_INFO!B57) -> Midlands | C57: =IF(COUNTRY_INFO!C57=0," ",COUNTRY_INFO!C57) -> Gokwe North | D57: =IF(OR(COUNTRY_INFO!$T$9:$T$1000="T1 (PZQ+ALB/MBD)",COUNTRY_INFO!$U$9:$U$1000="T1 (PZQ+ALB/MBD)"), "T1 (PZQ+ALB/MBD)", " ") ->  | K57: 0 | O57: 0
A58: =IF(COUNTRY_INFO!A58=0," ",COUNTRY_INFO!A58) -> ZIMBABWE | B58: =IF(COUNTRY_INFO!B58=0," ",COUNTRY_INFO!B58) -> Midlands | C58: =IF(COUNTRY_INFO!C58=0," ",COUNTRY_INFO!C58) -> Gokwe South | D58: =IF(OR(COUNTRY_INFO!$T$9:$T$1000="T1 (PZQ+ALB/MBD)",COUNTRY_INFO!$U$9:$U$1000="T1 (PZQ+ALB/MBD)"), "T1 (PZQ+ALB/MBD)", " ") ->  | K58: 0 | O58: 0
A59: =IF(COUNTRY_INFO!A59=0," ",COUNTRY_INFO!A59) -> ZIMBABWE | B59: =IF(COUNTRY_INFO!B59=0," ",COUNTRY_INFO!B59) -> Midlands | C59: =IF(COUNTRY_INFO!C59=0," ",COUNTRY_INFO!C59) -> Gweru | D59: =IF(OR(COUNTRY_INFO!$T$9:$T$1000="T1 (PZQ+ALB/MBD)",COUNTRY_INFO!$U$9:$U$1000="T1 (PZQ+ALB/MBD)"), "T1 (PZQ+ALB/MBD)", " ") ->  | K59: 0 | O59: 0
A60: =IF(COUNTRY_INFO!A60=0," ",COUNTRY_INFO!A60) -> ZIMBABWE | B60: =IF(COUNTRY_INFO!B60=0," ",COUNTRY_INFO!B60) -> Midlands | C60: =IF(COUNTRY_INFO!C60=0," ",COUNTRY_INFO!C60) -> Kwekwe | D60: =IF(OR(COUNTRY_INFO!$T$9:$T$1000="T1 (PZQ+ALB/MBD)",COUNTRY_INFO!$U$9:$U$1000="T1 (PZQ+ALB/MBD)"), "T1 (PZQ+ALB/MBD)", " ") ->  | K60: 0 | O60: 0
A61: =IF(COUNTRY_INFO!A61=0," ",COUNTRY_INFO!A61) -> ZIMBABWE | B61: =IF(COUNTRY_INFO!B61=0," ",COUNTRY_INFO!B61) -> Midlands | C61: =IF(COUNTRY_INFO!C61=0," ",COUNTRY_INFO!C61) -> Mberengwa | D61: =IF(OR(COUNTRY_INFO!$T$9:$T$1000="T1 (PZQ+ALB/MBD)",COUNTRY_INFO!$U$9:$U$1000="T1 (PZQ+ALB/MBD)"), "T1 (PZQ+ALB/MBD)", " ") ->  | K61: 0 | O61: 0
A62: =IF(COUNTRY_INFO!A62=0," ",COUNTRY_INFO!A62) -> ZIMBABWE | B62: =IF(COUNTRY_INFO!B62=0," ",COUNTRY_INFO!B62) -> Midlands | C62: =IF(COUNTRY_INFO!C62=0," ",COUNTRY_INFO!C62) -> Shurugwi | D62: =IF(OR(COUNTRY_INFO!$T$9:$T$1000="T1 (PZQ+ALB/MBD)",COUNTRY_INFO!$U$9:$U$1000="T1 (PZQ+ALB/MBD)"), "T1 (PZQ+ALB/MBD)", " ") ->  | K62: 0 | O62: 0
A63: =IF(COUNTRY_INFO!A63=0," ",COUNTRY_INFO!A63) -> ZIMBABWE | B63: =IF(COUNTRY_INFO!B63=0," ",COUNTRY_INFO!B63) -> Midlands | C63: =IF(COUNTRY_INFO!C63=0," ",COUNTRY_INFO!C63) -> Zvishavane | D63: =IF(OR(COUNTRY_INFO!$T$9:$T$1000="T1 (PZQ+ALB/MBD)",COUNTRY_INFO!$U$9:$U$1000="T1 (PZQ+ALB/MBD)"), "T1 (PZQ+ALB/MBD)", " ") ->  | K63: 0 | O63: 0
A64: =IF(COUNTRY_INFO!A64=0," ",COUNTRY_INFO!A64) -> ZIMBABWE | B64: =IF(COUNTRY_INFO!B64=0," ",COUNTRY_INFO!B64) -> Masvingo | C64: =IF(COUNTRY_INFO!C64=0," ",COUNTRY_INFO!C64) -> Bikita | D64: =IF(OR(COUNTRY_INFO!$T$9:$T$1000="T1 (PZQ+ALB/MBD)",COUNTRY_INFO!$U$9:$U$1000="T1 (PZQ+ALB/MBD)"), "T1 (PZQ+ALB/MBD)", " ") ->  | K64: 0 | O64: 0
A65: =IF(COUNTRY_INFO!A65=0," ",COUNTRY_INFO!A65) -> ZIMBABWE | B65: =IF(COUNTRY_INFO!B65=0," ",COUNTRY_INFO!B65) -> Masvingo | C65: =IF(COUNTRY_INFO!C65=0," ",COUNTRY_INFO!C65) -> Chiredzi | D65: =IF(OR(COUNTRY_INFO!$T$9:$T$1000="T1 (PZQ+ALB/MBD)",COUNTRY_INFO!$U$9:$U$1000="T1 (PZQ+ALB/MBD)"), "T1 (PZQ+ALB/MBD)", " ") ->  | K65: 0 | O65: 0
A66: =IF(COUNTRY_INFO!A66=0," ",COUNTRY_INFO!A66) -> ZIMBABWE | B66: =IF(COUNTRY_INFO!B66=0," ",COUNTRY_INFO!B66) -> Masvingo | C66: =IF(COUNTRY_INFO!C66=0," ",COUNTRY_INFO!C66) -> Chivi | D66: =IF(OR(COUNTRY_INFO!$T$9:$T$1000="T1 (PZQ+ALB/MBD)",COUNTRY_INFO!$U$9:$U$1000="T1 (PZQ+ALB/MBD)"), "T1 (PZQ+ALB/MBD)", " ") ->  | K66: 0 | O66: 0
A67: =IF(COUNTRY_INFO!A67=0," ",COUNTRY_INFO!A67) -> ZIMBABWE | B67: =IF(COUNTRY_INFO!B67=0," ",COUNTRY_INFO!B67) -> Masvingo | C67: =IF(COUNTRY_INFO!C67=0," ",COUNTRY_INFO!C67) -> Gutu | D67: =IF(OR(COUNTRY_INFO!$T$9:$T$1000="T1 (PZQ+ALB/MBD)",COUNTRY_INFO!$U$9:$U$1000="T1 (PZQ+ALB/MBD)"), "T1 (PZQ+ALB/MBD)", " ") ->  | K67: 0 | O67: 0
A68: =IF(COUNTRY_INFO!A68=0," ",COUNTRY_INFO!A68) -> ZIMBABWE | B68: =IF(COUNTRY_INFO!B68=0," ",COUNTRY_INFO!B68) -> Masvingo | C68: =IF(COUNTRY_INFO!C68=0," ",COUNTRY_INFO!C68) -> Masvingo | D68: =IF(OR(COUNTRY_INFO!$T$9:$T$1000="T1 (PZQ+ALB/MBD)",COUNTRY_INFO!$U$9:$U$1000="T1 (PZQ+ALB/MBD)"), "T1 (PZQ+ALB/MBD)", " ") ->  | K68: 0 | O68: 0
A69: =IF(COUNTRY_INFO!A69=0," ",COUNTRY_INFO!A69) -> ZIMBABWE | B69: =IF(COUNTRY_INFO!B69=0," ",COUNTRY_INFO!B69) -> Masvingo | C69: =IF(COUNTRY_INFO!C69=0," ",COUNTRY_INFO!C69) -> Mwenezi | D69: =IF(OR(COUNTRY_INFO!$T$9:$T$1000="T1 (PZQ+ALB/MBD)",COUNTRY_INFO!$U$9:$U$1000="T1 (PZQ+ALB/MBD)"), "T1 (PZQ+ALB/MBD)", " ") ->  | K69: 0 | O69: 0
A70: =IF(COUNTRY_INFO!A70=0," ",COUNTRY_INFO!A70) -> ZIMBABWE | B70: =IF(COUNTRY_INFO!B70=0," ",COUNTRY_INFO!B70) -> Masvingo | C70: =IF(COUNTRY_INFO!C70=0," ",COUNTRY_INFO!C70) -> Zaka | D70: =IF(OR(COUNTRY_INFO!$T$9:$T$1000="T1 (PZQ+ALB/MBD)",COUNTRY_INFO!$U$9:$U$1000="T1 (PZQ+ALB/MBD)"), "T1 (PZQ+ALB/MBD)", " ") ->  | K70: 0 | O70: 0
A71: =IF(COUNTRY_INFO!A71=0," ",COUNTRY_INFO!A71) -> ZIMBABWE | B71: =IF(COUNTRY_INFO!B71=0," ",COUNTRY_INFO!B71) -> Bulawayo | C71: =IF(COUNTRY_INFO!C71=0," ",COUNTRY_INFO!C71) -> Bulawayo | D71: =IF(OR(COUNTRY_INFO!$T$9:$T$1000="T1 (PZQ+ALB/MBD)",COUNTRY_INFO!$U$9:$U$1000="T1 (PZQ+ALB/MBD)"), "T1 (PZQ+ALB/MBD)", " ") ->  | K71: 0 | O71: 0

Sheet T2
A1: T 2 - Praziquantel (PZQ)
A2: Administrative structure, population requiring PC by age group, population treated by age group and coverage
A4: TOTAL | F4: =SUM(F$9:F$1000) -> 0 | G4: 1908609.225 | H4: 429945.3649 | I4: 2338554.589 | J4: 0 | K4: 1421562 | L4: 262929.3845 | M4: 1684491.385 | N4: =IF(F4<>0, IF(J4/F4*100=0, "-", J4/F4*100), " ") ->  | O4: =IF(G4<>0, IF(K4/G4*100=0, "-", K4/G4*100), " ") -> 74.48156394 | P4: =IF(H4<>0, IF(L4/H4*100=0, "-", L4/H4*100), " ") -> 61.15413864 | Q4: =IF(I4<>0, IF(M4/I4*100=0, "-", M4/I4*100), " ") -> 72.03130481
D6: PC implemented | E6: Date | F6: Population targeted for T2 | J6: Population treated | N6: Programme coverage (%)
A7: Country | B7: Province/State | C7: District | F7: PreSAC | G7: SAC | H7: Adults | I7: Total | J7: PreSAC | K7: SAC | L7: Adults | M7: Total | N7: PreSAC | O7: SAC | P7: Adults | Q7: Total
A9: =IF(COUNTRY_INFO!A9=0," ",COUNTRY_INFO!A9) -> ZIMBABWE | B9: =IF(COUNTRY_INFO!B9=0," ",COUNTRY_INFO!B9) -> Manicaland | C9: =IF(COUNTRY_INFO!C9=0," ",COUNTRY_INFO!C9) -> Buhera | D9: =IF(OR(COUNTRY_INFO!$T$9:$T$1000="T2 (PZQ)",COUNTRY_INFO!$U$9:$U$1000="T2 (PZQ)"), "T2 (PZQ)", " ") -> T2 (PZQ) | E9: 01 April 2022 | G9: 74077.1581 | H9: 18482.8419 | I9: =SUM(F9:H9) -> 92560 | K9: 69618 | L9: 9775 | M9: =SUM(J9:L9) -> 79393 | N9: =IF(F9<>0, IF(J9/F9*100=0, "-", J9/F9*100), " ") ->  | O9: =IF(G9<>0, IF(K9/G9*100=0, "-", K9/G9*100), " ") -> 93.98038719 | P9: =IF(H9<>0, IF(L9/H9*100=0, "-", L9/H9*100), " ") -> 52.88688857 | Q9: =IF(I9<>0, IF(M9/I9*100=0, "-", M9/I9*100), " ") -> 85.77463267
A10: =IF(COUNTRY_INFO!A10=0," ",COUNTRY_INFO!A10) -> ZIMBABWE | B10: =IF(COUNTRY_INFO!B10=0," ",COUNTRY_INFO!B10) -> Manicaland | C10: =IF(COUNTRY_INFO!C10=0," ",COUNTRY_INFO!C10) -> Chimanimani | D10: =IF(OR(COUNTRY_INFO!$T$9:$T$1000="T2 (PZQ)",COUNTRY_INFO!$U$9:$U$1000="T2 (PZQ)"), "T2 (PZQ)", " ") -> T2 (PZQ) | E10: 01 April 2022 | G10: 57850 | H10: 17195.5895 | I10: =SUM(F10:H10) -> 75045.5895 | K10: 48666 | L10: 10489 | M10: =SUM(J10:L10) -> 59155 | N10: =IF(F10<>0, IF(J10/F10*100=0, "-", J10/F10*100), " ") ->  | O10: =IF(G10<>0, IF(K10/G10*100=0, "-", K10/G10*100), " ") -> 84.12445981 | P10: =IF(H10<>0, IF(L10/H10*100=0, "-", L10/H10*100), " ") -> 60.99819957 | Q10: =IF(I10<>0, IF(M10/I10*100=0, "-", M10/I10*100), " ") -> 78.82541851
A11: =IF(COUNTRY_INFO!A11=0," ",COUNTRY_INFO!A11) -> ZIMBABWE | B11: =IF(COUNTRY_INFO!B11=0," ",COUNTRY_INFO!B11) -> Manicaland | C11: =IF(COUNTRY_INFO!C11=0," ",COUNTRY_INFO!C11) -> Chipinge | D11: =IF(OR(COUNTRY_INFO!$T$9:$T$1000="T2 (PZQ)",COUNTRY_INFO!$U$9:$U$1000="T2 (PZQ)"), "T2 (PZQ)", " ") -> T2 (PZQ) | E11: 01 April 2022 | G11: 97654.0917 | H11: 20674.9083 | I11: 118329 | K11: 90305 | L11: 13613 | M11: 103918 | O11: 92.47436378 | P11: 65.84309735 | Q11: 87.82124416
A12: =IF(COUNTRY_INFO!A12=0," ",COUNTRY_INFO!A12) -> ZIMBABWE | B12: =IF(COUNTRY_INFO!B12=0," ",COUNTRY_INFO!B12) -> Manicaland | C12: =IF(COUNTRY_INFO!C12=0," ",COUNTRY_INFO!C12) -> Makoni | D12: =IF(OR(COUNTRY_INFO!$T$9:$T$1000="T2 (PZQ)",COUNTRY_INFO!$U$9:$U$1000="T2 (PZQ)"), "T2 (PZQ)", " ") -> T2 (PZQ) | E12: 01 April 2022 | G12: 91183.2658 | H12: 11185.7342 | I12: 102369 | K12: 67454 | L12: 8823 | M12: 76277 | O12: 73.97629314 | P12: 78.87725421 | Q12: 74.5118151
A13: =IF(COUNTRY_INFO!A13=0," ",COUNTRY_INFO!A13) -> ZIMBABWE | B13: =IF(COUNTRY_INFO!B13=0," ",COUNTRY_INFO!B13) -> Manicaland | C13: =IF(COUNTRY_INFO!C13=0," ",COUNTRY_INFO!C13) -> Mutare | D13: =IF(OR(COUNTRY_INFO!$T$9:$T$1000="T2 (PZQ)",COUNTRY_INFO!$U$9:$U$1000="T2 (PZQ)"), "T2 (PZQ)", " ") ->  | I13: 0 | M13: 0
A14: =IF(COUNTRY_INFO!A14=0," ",COUNTRY_INFO!A14) -> ZIMBABWE | B14: =IF(COUNTRY_INFO!B14=0," ",COUNTRY_INFO!B14) -> Manicaland | C14: =IF(COUNTRY_INFO!C14=0," ",COUNTRY_INFO!C14) -> Mutasa | D14: =IF(OR(COUNTRY_INFO!$T$9:$T$1000="T2 (PZQ)",COUNTRY_INFO!$U$9:$U$1000="T2 (PZQ)"), "T2 (PZQ)", " ") -> T2 (PZQ) | E14: 01 April 2022 | G14: 50839.5525 | H14: 3162.4475 | I14: 54002 | K14: 48637 | L14: 1929 | M14: 50566 | O14: 95.66763988 | P14: 60.99706003 | Q14: 93.63727269
A15: =IF(COUNTRY_INFO!A15=0," ",COUNTRY_INFO!A15) -> ZIMBABWE | B15: =IF(COUNTRY_INFO!B15=0," ",COUNTRY_INFO!B15) -> Manicaland | C15: =IF(COUNTRY_INFO!C15=0," ",COUNTRY_INFO!C15) -> Nyanga | D15: =IF(OR(COUNTRY_INFO!$T$9:$T$1000="T2 (PZQ)",COUNTRY_INFO!$U$9:$U$1000="T2 (PZQ)"), "T2 (PZQ)", " ") -> T2 (PZQ) | E15: 01 April 2022 | G15: 42403 | I15: 42403 | K15: 40538 | M15: 40538 | O15: 95.60172629 | Q15: 95.60172629
A16: =IF(COUNTRY_INFO!A16=0," ",COUNTRY_INFO!A16) -> ZIMBABWE | B16: =IF(COUNTRY_INFO!B16=0," ",COUNTRY_INFO!B16) -> Harare | C16: =IF(COUNTRY_INFO!C16=0," ",COUNTRY_INFO!C16) -> Chitungwiza | D16: =IF(OR(COUNTRY_INFO!$T$9:$T$1000="T2 (PZQ)",COUNTRY_INFO!$U$9:$U$1000="T2 (PZQ)"), "T2 (PZQ)", " ") ->  | I16: 0 | M16: 0
A17: =IF(COUNTRY_INFO!A17=0," ",COUNTRY_INFO!A17) -> ZIMBABWE | B17: =IF(COUNTRY_INFO!B17=0," ",COUNTRY_INFO!B17) -> Harare | C17: =IF(COUNTRY_INFO!C17=0," ",COUNTRY_INFO!C17) -> Harare | D17: =IF(OR(COUNTRY_INFO!$T$9:$T$1000="T2 (PZQ)",COUNTRY_INFO!$U$9:$U$1000="T2 (PZQ)"), "T2 (PZQ)", " ") ->  | I17: 0 | M17: 0
A18: =IF(COUNTRY_INFO!A18=0," ",COUNTRY_INFO!A18) -> ZIMBABWE | B18: =IF(COUNTRY_INFO!B18=0," ",COUNTRY_INFO!B18) -> Mashnaland Central | C18: =IF(COUNTRY_INFO!C18=0," ",COUNTRY_INFO!C18) -> Bindura | D18: =IF(OR(COUNTRY_INFO!$T$9:$T$1000="T2 (PZQ)",COUNTRY_INFO!$U$9:$U$1000="T2 (PZQ)"), "T2 (PZQ)", " ") -> T2 (PZQ) | E18: 01 April 2022 | G18: 50884 | H18: 9505 | I18: 60389 | K18: 38358 | L18: 5798 | M18: 44156 | O18: 75.38322459 | P18: 60.99947396 | Q18: 73.11927669
A19: =IF(COUNTRY_INFO!A19=0," ",COUNTRY_INFO!A19) -> ZIMBABWE | B19: =IF(COUNTRY_INFO!B19=0," ",COUNTRY_INFO!B19) -> Mashnaland Central | C19: =IF(COUNTRY_INFO!C19=0," ",COUNTRY_INFO!C19) -> Centenary | D19: =IF(OR(COUNTRY_INFO!$T$9:$T$1000="T2 (PZQ)",COUNTRY_INFO!$U$9:$U$1000="T2 (PZQ)"), "T2 (PZQ)", " ") ->  | I19: 0 | M19: 0
A20: =IF(COUNTRY_INFO!A20=0," ",COUNTRY_INFO!A20) -> ZIMBABWE | B20: =IF(COUNTRY_INFO!B20=0," ",COUNTRY_INFO!B20) -> Mashnaland Central | C20: =IF(COUNTRY_INFO!C20=0," ",COUNTRY_INFO!C20) -> Guruve | D20: =IF(OR(COUNTRY_INFO!$T$9:$T$1000="T2 (PZQ)",COUNTRY_INFO!$U$9:$U$1000="T2 (PZQ)"), "T2 (PZQ)", " ") ->  | I20: 0 | M20: 0
A21: =IF(COUNTRY_INFO!A21=0," ",COUNTRY_INFO!A21) -> ZIMBABWE | B21: =IF(COUNTRY_INFO!B21=0," ",COUNTRY_INFO!B21) -> Mashnaland Central | C21: =IF(COUNTRY_INFO!C21=0," ",COUNTRY_INFO!C21) -> Mazowe | D21: =IF(OR(COUNTRY_INFO!$T$9:$T$1000="T2 (PZQ)",COUNTRY_INFO!$U$9:$U$1000="T2 (PZQ)"), "T2 (PZQ)", " ") ->  | I21: 0 | M21: 0
A22: =IF(COUNTRY_INFO!A22=0," ",COUNTRY_INFO!A22) -> ZIMBABWE | B22: =IF(COUNTRY_INFO!B22=0," ",COUNTRY_INFO!B22) -> Mashnaland Central | C22: =IF(COUNTRY_INFO!C22=0," ",COUNTRY_INFO!C22) -> Mt Darwin | D22: =IF(OR(COUNTRY_INFO!$T$9:$T$1000="T2 (PZQ)",COUNTRY_INFO!$U$9:$U$1000="T2 (PZQ)"), "T2 (PZQ)", " ") -> T2 (PZQ) | G22: 64089 | H22: 14071 | I22: 78160 | K22: 50639 | L22: 8645 | M22: 59284 | O22: 79.01355927 | P22: 61.43841944 | Q22: 75.84953941
A23: =IF(COUNTRY_INFO!A23=0," ",COUNTRY_INFO!A23) -> ZIMBABWE | B23: =IF(COUNTRY_INFO!B23=0," ",COUNTRY_INFO!B23) -> Mashnaland Central | C23: =IF(COUNTRY_INFO!C23=0," ",COUNTRY_INFO!C23) -> Rushinga | D23: =IF(OR(COUNTRY_INFO!$T$9:$T$1000="T2 (PZQ)",COUNTRY_INFO!$U$9:$U$1000="T2 (PZQ)"), "T2 (PZQ)", " ") ->  | I23: 0 | M23: 0
A24: =IF(COUNTRY_INFO!A24=0," ",COUNTRY_INFO!A24) -> ZIMBABWE | B24: =IF(COUNTRY_INFO!B24=0," ",COUNTRY_INFO!B24) -> Mashnaland Central | C24: =IF(COUNTRY_INFO!C24=0," ",COUNTRY_INFO!C24) -> Shamva | D24: =IF(OR(COUNTRY_INFO!$T$9:$T$1000="T2 (PZQ)",COUNTRY_INFO!$U$9:$U$1000="T2 (PZQ)"), "T2 (PZQ)", " ") -> T2 (PZQ) | E24: 01 April 2022 | G24: 37252.9124 | H24: 14071.0876 | I24: 51324 | K24: 37521 | L24: 8583.363436 | M24: 46104.36344 | O24: 100.719642 | P24: 61 | Q24: 89.83002774
A25: =IF(COUNTRY_INFO!A25=0," ",COUNTRY_INFO!A25) -> ZIMBABWE | B25: =IF(COUNTRY_INFO!B25=0," ",COUNTRY_INFO!B25) -> Mashnaland Central | C25: =IF(COUNTRY_INFO!C25=0," ",COUNTRY_INFO!C25) -> Mbire | D25: =IF(OR(COUNTRY_INFO!$T$9:$T$1000="T2 (PZQ)",COUNTRY_INFO!$U$9:$U$1000="T2 (PZQ)"), "T2 (PZQ)", " ") ->  | I25: 0 | M25: 0
A26: =IF(COUNTRY_INFO!A26=0," ",COUNTRY_INFO!A26) -> ZIMBABWE | B26: =IF(COUNTRY_INFO!B26=0," ",COUNTRY_INFO!B26) -> Mashonaland East | C26: =IF(COUNTRY_INFO!C26=0," ",COUNTRY_INFO!C26) -> Chikomba | D26: =IF(OR(COUNTRY_INFO!$T$9:$T$1000="T2 (PZQ)",COUNTRY_INFO!$U$9:$U$1000="T2 (PZQ)"), "T2 (PZQ)", " ") -> T2 (PZQ) | E26: 01 April 2022 | G26: 36450.1896 | H26: 5856.8104 | I26: 42307 | K26: 32570 | L26: 3072.654344 | M26: 35642.65434 | O26: 89.35481642 | P26: 52.46293006 | Q26: 84.2476525
A27: =IF(COUNTRY_INFO!A27=0," ",COUNTRY_INFO!A27) -> ZIMBABWE | B27: =IF(COUNTRY_INFO!B27=0," ",COUNTRY_INFO!B27) -> Mashonaland East | C27: =IF(COUNTRY_INFO!C27=0," ",COUNTRY_INFO!C27) -> Goromonzi | D27: =IF(OR(COUNTRY_INFO!$T$9:$T$1000="T2 (PZQ)",COUNTRY_INFO!$U$9:$U$1000="T2 (PZQ)"), "T2 (PZQ)", " ") -> T2 (PZQ) | E27: 01 April 2022 | G27: 67783.419 | H27: 37063.581 | I27: 104847 | K27: 58398 | L27: 22608.78441 | M27: 81006.78441 | O27: 86.15381293 | P27: 61 | Q27: 77.26190011
A28: =IF(COUNTRY_INFO!A28=0," ",COUNTRY_INFO!A28) -> ZIMBABWE | B28: =IF(COUNTRY_INFO!B28=0," ",COUNTRY_INFO!B28) -> Mashonaland East | C28: =IF(COUNTRY_INFO!C28=0," ",COUNTRY_INFO!C28) -> UMP | D28: =IF(OR(COUNTRY_INFO!$T$9:$T$1000="T2 (PZQ)",COUNTRY_INFO!$U$9:$U$1000="T2 (PZQ)"), "T2 (PZQ)", " ") ->  | I28: 0 | M28: 0
A29: =IF(COUNTRY_INFO!A29=0," ",COUNTRY_INFO!A29) -> ZIMBABWE | B29: =IF(COUNTRY_INFO!B29=0," ",COUNTRY_INFO!B29) -> Mashonaland East | C29: =IF(COUNTRY_INFO!C29=0," ",COUNTRY_INFO!C29) -> Hwedza | D29: =IF(OR(COUNTRY_INFO!$T$9:$T$1000="T2 (PZQ)",COUNTRY_INFO!$U$9:$U$1000="T2 (PZQ)"), "T2 (PZQ)", " ") -> T2 (PZQ) | E29: 01 April 2022 | G29: 21381.3754 | H29: 3819.6246 | I29: 25201 | K29: 19513 | L29: 2029.971006 | M29: 21542.97101 | O29: 91.26166879 | P29: 53.14582501 | Q29: 85.48458794
A30: =IF(COUNTRY_INFO!A30=0," ",COUNTRY_INFO!A30) -> ZIMBABWE | B30: =IF(COUNTRY_INFO!B30=0," ",COUNTRY_INFO!B30) -> Mashonaland East | C30: =IF(COUNTRY_INFO!C30=0," ",COUNTRY_INFO!C30) -> Marondera | D30: =IF(OR(COUNTRY_INFO!$T$9:$T$1000="T2 (PZQ)",COUNTRY_INFO!$U$9:$U$1000="T2 (PZQ)"), "T2 (PZQ)", " ") -> T2 (PZQ) | E30: 01 April 2022 | G30: 53923.4608 | H30: 15425.5392 | I30: 69349 | K30: 37526 | L30: 9409.578912 | M30: 46935.57891 | O30: 69.59123069 | P30: 61 | Q30: 67.68025337
A31: =IF(COUNTRY_INFO!A31=0," ",COUNTRY_INFO!A31) -> ZIMBABWE | B31: =IF(COUNTRY_INFO!B31=0," ",COUNTRY_INFO!B31) -> Mashonaland East | C31: =IF(COUNTRY_INFO!C31=0," ",COUNTRY_INFO!C31) -> Mudzi | D31: =IF(OR(COUNTRY_INFO!$T$9:$T$1000="T2 (PZQ)",COUNTRY_INFO!$U$9:$U$1000="T2 (PZQ)"), "T2 (PZQ)", " ") ->  | I31: 0 | M31: 0
A32: =IF(COUNTRY_INFO!A32=0," ",COUNTRY_INFO!A32) -> ZIMBABWE | B32: =IF(COUNTRY_INFO!B32=0," ",COUNTRY_INFO!B32) -> Mashonaland East | C32: =IF(COUNTRY_INFO!C32=0," ",COUNTRY_INFO!C32) -> Murewa | D32: =IF(OR(COUNTRY_INFO!$T$9:$T$1000="T2 (PZQ)",COUNTRY_INFO!$U$9:$U$1000="T2 (PZQ)"), "T2 (PZQ)", " ") -> T2 (PZQ) | E32: 01 April 2022 | G32: 60136.8746 | H32: 17244.1254 | I32: 77381 | K32: 40873 | L32: 9518.916494 | M32: 50391.91649 | O32: 67.96661827 | P32: 55.20092364 | Q32: 65.12182124
A33: =IF(COUNTRY_INFO!A33=0," ",COUNTRY_INFO!A33) -> ZIMBABWE | B33: =IF(COUNTRY_INFO!B33=0," ",COUNTRY_INFO!B33) -> Mashonaland East | C33: =IF(COUNTRY_INFO!C33=0," ",COUNTRY_INFO!C33) -> Mutoko | D33: =IF(OR(COUNTRY_INFO!$T$9:$T$1000="T2 (PZQ)",COUNTRY_INFO!$U$9:$U$1000="T2 (PZQ)"), "T2 (PZQ)", " ") ->  | I33: 0 | M33: 0
A34: =IF(COUNTRY_INFO!A34=0," ",COUNTRY_INFO!A34) -> ZIMBABWE | B34: =IF(COUNTRY_INFO!B34=0," ",COUNTRY_INFO!B34) -> Mashonaland East | C34: =IF(COUNTRY_INFO!C34=0," ",COUNTRY_INFO!C34) -> Seke | D34: =IF(OR(COUNTRY_INFO!$T$9:$T$1000="T2 (PZQ)",COUNTRY_INFO!$U$9:$U$1000="T2 (PZQ)"), "T2 (PZQ)", " ") ->  | I34: 0 | M34: 0
A35: =IF(COUNTRY_INFO!A35=0," ",COUNTRY_INFO!A35) -> ZIMBABWE | B35: =IF(COUNTRY_INFO!B35=0," ",COUNTRY_INFO!B35) -> Mashonaland West | C35: =IF(COUNTRY_INFO!C35=0," ",COUNTRY_INFO!C35) -> Chegutu | D35: =IF(OR(COUNTRY_INFO!$T$9:$T$1000="T2 (PZQ)",COUNTRY_INFO!$U$9:$U$1000="T2 (PZQ)"), "T2 (PZQ)", " ") -> T2 (PZQ) | E35: 01 April 2022 | G35: 67178 | I35: 67178 | K35: 41316 | M35: 41316 | O35: 61.50227753 | Q35: 61.50227753
A36: =IF(COUNTRY_INFO!A36=0," ",COUNTRY_INFO!A36) -> ZIMBABWE | B36: =IF(COUNTRY_INFO!B36=0," ",COUNTRY_INFO!B36) -> Mashonaland West | C36: =IF(COUNTRY_INFO!C36=0," ",COUNTRY_INFO!C36) -> Hurungwe | D36: =IF(OR(COUNTRY_INFO!$T$9:$T$1000="T2 (PZQ)",COUNTRY_INFO!$U$9:$U$1000="T2 (PZQ)"), "T2 (PZQ)", " ") -> T2 (PZQ) | E36: 01 April 2022 | G36: 106412 | I36: 106412 | K36: 28811 | M36: 28811 | O36: 27.07495395 | Q36: 27.07495395
A37: =IF(COUNTRY_INFO!A37=0," ",COUNTRY_INFO!A37) -> ZIMBABWE | B37: =IF(COUNTRY_INFO!B37=0," ",COUNTRY_INFO!B37) -> Mashonaland West | C37: =IF(COUNTRY_INFO!C37=0," ",COUNTRY_INFO!C37) -> Sanyati | D37: =IF(OR(COUNTRY_INFO!$T$9:$T$1000="T2 (PZQ)",COUNTRY_INFO!$U$9:$U$1000="T2 (PZQ)"), "T2 (PZQ)", " ") -> T2 (PZQ) | E37: 01 April 2022 | G37: 61872.2192 | H37: 27546.7808 | I37: 89419 | K37: 22852 | L37: 16803.53629 | M37: 39655.53629 | O37: 36.93418516 | P37: 61 | Q37: 44.34799795
A38: =IF(COUNTRY_INFO!A38=0," ",COUNTRY_INFO!A38) -> ZIMBABWE | B38: =IF(COUNTRY_INFO!B38=0," ",COUNTRY_INFO!B38) -> Mashonaland West | C38: =IF(COUNTRY_INFO!C38=0," ",COUNTRY_INFO!C38) -> Kariba | D38: =IF(OR(COUNTRY_INFO!$T$9:$T$1000="T2 (PZQ)",COUNTRY_INFO!$U$9:$U$1000="T2 (PZQ)"), "T2 (PZQ)", " ") ->  | I38: 0 | M38: 0
A39: =IF(COUNTRY_INFO!A39=0," ",COUNTRY_INFO!A39) -> ZIMBABWE | B39: =IF(COUNTRY_INFO!B39=0," ",COUNTRY_INFO!B39) -> Mashonaland West | C39: =IF(COUNTRY_INFO!C39=0," ",COUNTRY_INFO!C39) -> Makonde | D39: =IF(OR(COUNTRY_INFO!$T$9:$T$1000="T2 (PZQ)",COUNTRY_INFO!$U$9:$U$1000="T2 (PZQ)"), "T2 (PZQ)", " ") -> T2 (PZQ) | E39: 01 April 2022 | G39: 69736.1456 | H39: 11869.8544 | I39: 81606 | K39: 31426 | L39: 7240.611184 | M39: 38666.61118 | O39: 45.0641482 | P39: 61 | Q39: 47.38206895
A40: =IF(COUNTRY_INFO!A40=0," ",COUNTRY_INFO!A40) -> ZIMBABWE | B40: =IF(COUNTRY_INFO!B40=0," ",COUNTRY_INFO!B40) -> Mashonaland West | C40: =IF(COUNTRY_INFO!C40=0," ",COUNTRY_INFO!C40) -> Mhondoro-Ngezi | D40: =IF(OR(COUNTRY_INFO!$T$9:$T$1000="T2 (PZQ)",COUNTRY_INFO!$U$9:$U$1000="T2 (PZQ)"), "T2 (PZQ)", " ") -> T2 (PZQ) | E40: 01 April 2022 | G40: 25863 | I40: 25863 | K40: 18545 | M40: 18545 | O40: 71.70475196 | Q40: 71.70475196
A41: =IF(COUNTRY_INFO!A41=0," ",COUNTRY_INFO!A41) -> ZIMBABWE | B41: =IF(COUNTRY_INFO!B41=0," ",COUNTRY_INFO!B41) -> Mashonaland West | C41: =IF(COUNTRY_INFO!C41=0," ",COUNTRY_INFO!C41) -> Zvimba | D41: =IF(OR(COUNTRY_INFO!$T$9:$T$1000="T2 (PZQ)",COUNTRY_INFO!$U$9:$U$1000="T2 (PZQ)"), "T2 (PZQ)", " ") -> T2 (PZQ) | E41: 01 April 2022 | G41: 79242.1014 | H41: 8562.8986 | I41: 87805 | K41: 49238 | L41: 5223.368146 | M41: 54461.36815 | O41: 62.13616137 | P41: 61 | Q41: 62.02536091
A42: =IF(COUNTRY_INFO!A42=0," ",COUNTRY_INFO!A42) -> ZIMBABWE | B42: =IF(COUNTRY_INFO!B42=0," ",COUNTRY_INFO!B42) -> Matabeleland North | C42: =IF(COUNTRY_INFO!C42=0," ",COUNTRY_INFO!C42) -> Binga | D42: =IF(OR(COUNTRY_INFO!$T$9:$T$1000="T2 (PZQ)",COUNTRY_INFO!$U$9:$U$1000="T2 (PZQ)"), "T2 (PZQ)", " ") -> T2 (PZQ) | E42: 01 April 2022 | G42: 41905.1523 | H42: 20046.8477 | I42: 61952 | K42: 27517 | L42: 12228.5771 | M42: 39745.5771 | O42: 65.66495643 | P42: 61 | Q42: 64.15543824
A43: =IF(COUNTRY_INFO!A43=0," ",COUNTRY_INFO!A43) -> ZIMBABWE | B43: =IF(COUNTRY_INFO!B43=0," ",COUNTRY_INFO!B43) -> Matabeleland North | C43: =IF(COUNTRY_INFO!C43=0," ",COUNTRY_INFO!C43) -> Bubi | D43: =IF(OR(COUNTRY_INFO!$T$9:$T$1000="T2 (PZQ)",COUNTRY_INFO!$U$9:$U$1000="T2 (PZQ)"), "T2 (PZQ)", " ") ->  | I43: 0 | M43: 0
A44: =IF(COUNTRY_INFO!A44=0," ",COUNTRY_INFO!A44) -> ZIMBABWE | B44: =IF(COUNTRY_INFO!B44=0," ",COUNTRY_INFO!B44) -> Matabeleland North | C44: =IF(COUNTRY_INFO!C44=0," ",COUNTRY_INFO!C44) -> Hwange | D44: =IF(OR(COUNTRY_INFO!$T$9:$T$1000="T2 (PZQ)",COUNTRY_INFO!$U$9:$U$1000="T2 (PZQ)"), "T2 (PZQ)", " ") ->  | I44: 0 | M44: 0
A45: =IF(COUNTRY_INFO!A45=0," ",COUNTRY_INFO!A45) -> ZIMBABWE | B45: =IF(COUNTRY_INFO!B45=0," ",COUNTRY_INFO!B45) -> Matabeleland North | C45: =IF(COUNTRY_INFO!C45=0," ",COUNTRY_INFO!C45) -> Lupane | D45: =IF(OR(COUNTRY_INFO!$T$9:$T$1000="T2 (PZQ)",COUNTRY_INFO!$U$9:$U$1000="T2 (PZQ)"), "T2 (PZQ)", " ") ->  | I45: 0 | M45: 0
A46: =IF(COUNTRY_INFO!A46=0," ",COUNTRY_INFO!A46) -> ZIMBABWE | B46: =IF(COUNTRY_INFO!B46=0," ",COUNTRY_INFO!B46) -> Matabeleland North | C46: =IF(COUNTRY_INFO!C46=0," ",COUNTRY_INFO!C46) -> Nkayi | D46: =IF(OR(COUNTRY_INFO!$T$9:$T$1000="T2 (PZQ)",COUNTRY_INFO!$U$9:$U$1000="T2 (PZQ)"), "T2 (PZQ)", " ") ->  | I46: 0 | M46: 0
A47: =IF(COUNTRY_INFO!A47=0," ",COUNTRY_INFO!A47) -> ZIMBABWE | B47: =IF(COUNTRY_INFO!B47=0," ",COUNTRY_INFO!B47) -> Matabeleland North | C47: =IF(COUNTRY_INFO!C47=0," ",COUNTRY_INFO!C47) -> Tsholotsho | D47: =IF(OR(COUNTRY_INFO!$T$9:$T$1000="T2 (PZQ)",COUNTRY_INFO!$U$9:$U$1000="T2 (PZQ)"), "T2 (PZQ)", " ") ->  | I47: 0 | M47: 0
A48: =IF(COUNTRY_INFO!A48=0," ",COUNTRY_INFO!A48) -> ZIMBABWE | B48: =IF(COUNTRY_INFO!B48=0," ",COUNTRY_INFO!B48) -> Matabeleland North | C48: =IF(COUNTRY_INFO!C48=0," ",COUNTRY_INFO!C48) -> Umguza | D48: =IF(OR(COUNTRY_INFO!$T$9:$T$1000="T2 (PZQ)",COUNTRY_INFO!$U$9:$U$1000="T2 (PZQ)"), "T2 (PZQ)", " ") -> T2 (PZQ) | E48: 01 April 2022 | G48: 27020.8477 | H48: 11156.1523 | I48: 38177 | K48: 18005 | L48: 6805.252903 | M48: 24810.2529 | O48: 66.63373481 | P48: 61 | Q48: 64.98743459
A49: =IF(COUNTRY_INFO!A49=0," ",COUNTRY_INFO!A49) -> ZIMBABWE | B49: =IF(COUNTRY_INFO!B49=0," ",COUNTRY_INFO!B49) -> Matabeleland South | C49: =IF(COUNTRY_INFO!C49=0," ",COUNTRY_INFO!C49) -> Beit Bridge | D49: =IF(OR(COUNTRY_INFO!$T$9:$T$1000="T2 (PZQ)",COUNTRY_INFO!$U$9:$U$1000="T2 (PZQ)"), "T2 (PZQ)", " ") -> T2 (PZQ) | E49: 01 April 2022 | G49: 36821.8598 | H49: 4936.1402 | I49: 41758 | K49: 25548 | L49: 3011.045522 | M49: 28559.04552 | O49: 69.38269859 | P49: 61 | Q49: 68.39179444
A50: =IF(COUNTRY_INFO!A50=0," ",COUNTRY_INFO!A50) -> ZIMBABWE | B50: =IF(COUNTRY_INFO!B50=0," ",COUNTRY_INFO!B50) -> Matabeleland South | C50: =IF(COUNTRY_INFO!C50=0," ",COUNTRY_INFO!C50) -> Bulilima | D50: =IF(OR(COUNTRY_INFO!$T$9:$T$1000="T2 (PZQ)",COUNTRY_INFO!$U$9:$U$1000="T2 (PZQ)"), "T2 (PZQ)", " ") ->  | I50: 0 | M50: 0
A51: =IF(COUNTRY_INFO!A51=0," ",COUNTRY_INFO!A51) -> ZIMBABWE | B51: =IF(COUNTRY_INFO!B51=0," ",COUNTRY_INFO!B51) -> Matabeleland South | C51: =IF(COUNTRY_INFO!C51=0," ",COUNTRY_INFO!C51) -> Gwanda | D51: =IF(OR(COUNTRY_INFO!$T$9:$T$1000="T2 (PZQ)",COUNTRY_INFO!$U$9:$U$1000="T2 (PZQ)"), "T2 (PZQ)", " ") ->  | I51: 0 | M51: 0
A52: =IF(COUNTRY_INFO!A52=0," ",COUNTRY_INFO!A52) -> ZIMBABWE | B52: =IF(COUNTRY_INFO!B52=0," ",COUNTRY_INFO!B52) -> Matabeleland South | C52: =IF(COUNTRY_INFO!C52=0," ",COUNTRY_INFO!C52) -> Insiza | D52: =IF(OR(COUNTRY_INFO!$T$9:$T$1000="T2 (PZQ)",COUNTRY_INFO!$U$9:$U$1000="T2 (PZQ)"), "T2 (PZQ)", " ") -> T2 (PZQ) | E52: 01 April 2022 | G52: 30228.0275 | H52: 12630.9725 | I52: 42859 | K52: 21125 | L52: 7704.893225 | M52: 28829.89322 | O52: 69.88547301 | P52: 61 | Q52: 67.26683596
A53: =IF(COUNTRY_INFO!A53=0," ",COUNTRY_INFO!A53) -> ZIMBABWE | B53: =IF(COUNTRY_INFO!B53=0," ",COUNTRY_INFO!B53) -> Matabeleland South | C53: =IF(COUNTRY_INFO!C53=0," ",COUNTRY_INFO!C53) -> Mangwe | D53: =IF(OR(COUNTRY_INFO!$T$9:$T$1000="T2 (PZQ)",COUNTRY_INFO!$U$9:$U$1000="T2 (PZQ)"), "T2 (PZQ)", " ") ->  | I53: 0 | M53: 0
A54: =IF(COUNTRY_INFO!A54=0," ",COUNTRY_INFO!A54) -> ZIMBABWE | B54: =IF(COUNTRY_INFO!B54=0," ",COUNTRY_INFO!B54) -> Matabeleland South | C54: =IF(COUNTRY_INFO!C54=0," ",COUNTRY_INFO!C54) -> Matobo | D54: =IF(OR(COUNTRY_INFO!$T$9:$T$1000="T2 (PZQ)",COUNTRY_INFO!$U$9:$U$1000="T2 (PZQ)"), "T2 (PZQ)", " ") -> T2 (PZQ) | E54: 01 April 2022 | G54: 28301.8109 | H54: 5851.1891 | I54: 34153 | K54: 21876.5 | L54: 3569.225351 | M54: 25445.72535 | O54: 77.29717394 | P54: 61 | Q54: 74.50509575
A55: =IF(COUNTRY_INFO!A55=0," ",COUNTRY_INFO!A55) -> ZIMBABWE | B55: =IF(COUNTRY_INFO!B55=0," ",COUNTRY_INFO!B55) -> Matabeleland South | C55: =IF(COUNTRY_INFO!C55=0," ",COUNTRY_INFO!C55) -> Umzingwane | D55: =IF(OR(COUNTRY_INFO!$T$9:$T$1000="T2 (PZQ)",COUNTRY_INFO!$U$9:$U$1000="T2 (PZQ)"), "T2 (PZQ)", " ") ->  | I55: 0 | M55: 0
A56: =IF(COUNTRY_INFO!A56=0," ",COUNTRY_INFO!A56) -> ZIMBABWE | B56: =IF(COUNTRY_INFO!B56=0," ",COUNTRY_INFO!B56) -> Midlands | C56: =IF(COUNTRY_INFO!C56=0," ",COUNTRY_INFO!C56) -> Chirumhanzi | D56: =IF(OR(COUNTRY_INFO!$T$9:$T$1000="T2 (PZQ)",COUNTRY_INFO!$U$9:$U$1000="T2 (PZQ)"), "T2 (PZQ)", " ") -> T2 (PZQ) | E56: 01 April 2022 | G56: 24207.8716 | H56: 3264.1284 | I56: 27472 | K56: 24634 | L56: 1991.118324 | M56: 26625.11832 | O56: 101.7602886 | P56: 61 | Q56: 96.91729151
A57: =IF(COUNTRY_INFO!A57=0," ",COUNTRY_INFO!A57) -> ZIMBABWE | B57: =IF(COUNTRY_INFO!B57=0," ",COUNTRY_INFO!B57) -> Midlands | C57: =IF(COUNTRY_INFO!C57=0," ",COUNTRY_INFO!C57) -> Gokwe North | D57: =IF(OR(COUNTRY_INFO!$T$9:$T$1000="T2 (PZQ)",COUNTRY_INFO!$U$9:$U$1000="T2 (PZQ)"), "T2 (PZQ)", " ") ->  | I57: 0 | M57: 0
A58: =IF(COUNTRY_INFO!A58=0," ",COUNTRY_INFO!A58) -> ZIMBABWE | B58: =IF(COUNTRY_INFO!B58=0," ",COUNTRY_INFO!B58) -> Midlands | C58: =IF(COUNTRY_INFO!C58=0," ",COUNTRY_INFO!C58) -> Gokwe South | D58: =IF(OR(COUNTRY_INFO!$T$9:$T$1000="T2 (PZQ)",COUNTRY_INFO!$U$9:$U$1000="T2 (PZQ)"), "T2 (PZQ)", " ") ->  | I58: 0 | M58: 0
A59: =IF(COUNTRY_INFO!A59=0," ",COUNTRY_INFO!A59) -> ZIMBABWE | B59: =IF(COUNTRY_INFO!B59=0," ",COUNTRY_INFO!B59) -> Midlands | C59: =IF(COUNTRY_INFO!C59=0," ",COUNTRY_INFO!C59) -> Gweru | D59: =IF(OR(COUNTRY_INFO!$T$9:$T$1000="T2 (PZQ)",COUNTRY_INFO!$U$9:$U$1000="T2 (PZQ)"), "T2 (PZQ)", " ") -> T2 (PZQ) | E59: 01 April 2022 | G59: 75220.0042 | H59: 31506.9958 | I59: 106727 | K59: 55746 | L59: 19219.26744 | M59: 74965.26744 | O59: 74.11060474 | P59: 61 | Q59: 70.24020861
A60: =IF(COUNTRY_INFO!A60=0," ",COUNTRY_INFO!A60) -> ZIMBABWE | B60: =IF(COUNTRY_INFO!B60=0," ",COUNTRY_INFO!B60) -> Midlands | C60: =IF(COUNTRY_INFO!C60=0," ",COUNTRY_INFO!C60) -> Kwekwe | D60: =IF(OR(COUNTRY_INFO!$T$9:$T$1000="T2 (PZQ)",COUNTRY_INFO!$U$9:$U$1000="T2 (PZQ)"), "T2 (PZQ)", " ") ->  | I60: 0 | M60: 0
A61: =IF(COUNTRY_INFO!A61=0," ",COUNTRY_INFO!A61) -> ZIMBABWE | B61: =IF(COUNTRY_INFO!B61=0," ",COUNTRY_INFO!B61) -> Midlands | C61: =IF(COUNTRY_INFO!C61=0," ",COUNTRY_INFO!C61) -> Mberengwa | D61: =IF(OR(COUNTRY_INFO!$T$9:$T$1000="T2 (PZQ)",COUNTRY_INFO!$U$9:$U$1000="T2 (PZQ)"), "T2 (PZQ)", " ") -> T2 (PZQ) | E61: 01 April 2022 | G61: 55964.4657 | H61: 17045.5343 | I61: 73010 | K61: 53158 | L61: 9397.775923 | M61: 62555.77592 | O61: 94.98527206 | P61: 55.13336078 | Q61: 85.68110659
A62: =IF(COUNTRY_INFO!A62=0," ",COUNTRY_INFO!A62) -> ZIMBABWE | B62: =IF(COUNTRY_INFO!B62=0," ",COUNTRY_INFO!B62) -> Midlands | C62: =IF(COUNTRY_INFO!C62=0," ",COUNTRY_INFO!C62) -> Shurugwi | D62: =IF(OR(COUNTRY_INFO!$T$9:$T$1000="T2 (PZQ)",COUNTRY_INFO!$U$9:$U$1000="T2 (PZQ)"), "T2 (PZQ)", " ") -> T2 (PZQ) | E62: 01 April 2022 | G62: 29969.555 | H62: 5353.445 | I62: 35323 | K62: 23020 | L62: 4265.60145 | M62: 27285.60145 | O62: 76.81128398 | P62: 79.67956054 | Q62: 77.24599114
A63: =IF(COUNTRY_INFO!A63=0," ",COUNTRY_INFO!A63) -> ZIMBABWE | B63: =IF(COUNTRY_INFO!B63=0," ",COUNTRY_INFO!B63) -> Midlands | C63: =IF(COUNTRY_INFO!C63=0," ",COUNTRY_INFO!C63) -> Zvishavane | D63: =IF(OR(COUNTRY_INFO!$T$9:$T$1000="T2 (PZQ)",COUNTRY_INFO!$U$9:$U$1000="T2 (PZQ)"), "T2 (PZQ)", " ") -> T2 (PZQ) | E63: 01 April 2022 | G63: 35473.2961 | H63: 7845.7039 | I63: 43319 | K63: 33007 | L63: 4885.879379 | M63: 37892.87938 | O63: 93.04745718 | P63: 62.2745829 | Q63: 87.47403998
A64: =IF(COUNTRY_INFO!A64=0," ",COUNTRY_INFO!A64) -> ZIMBABWE | B64: =IF(COUNTRY_INFO!B64=0," ",COUNTRY_INFO!B64) -> Masvingo | C64: =IF(COUNTRY_INFO!C64=0," ",COUNTRY_INFO!C64) -> Bikita | D64: =IF(OR(COUNTRY_INFO!$T$9:$T$1000="T2 (PZQ)",COUNTRY_INFO!$U$9:$U$1000="T2 (PZQ)"), "T2 (PZQ)", " ") -> T2 (PZQ) | E64: 01 April 2022 | G64: 48914.1312 | H64: 13015.8688 | I64: 61930 | K64: 35078 | L64: 7739.679968 | M64: 42817.67997 | O64: 71.71342747 | P64: 59.46341414 | Q64: 69.13883412
A65: =IF(COUNTRY_INFO!A65=0," ",COUNTRY_INFO!A65) -> ZIMBABWE | B65: =IF(COUNTRY_INFO!B65=0," ",COUNTRY_INFO!B65) -> Masvingo | C65: =IF(COUNTRY_INFO!C65=0," ",COUNTRY_INFO!C65) -> Chiredzi | D65: =IF(OR(COUNTRY_INFO!$T$9:$T$1000="T2 (PZQ)",COUNTRY_INFO!$U$9:$U$1000="T2 (PZQ)"), "T2 (PZQ)", " ") -> T2 (PZQ) | E65: 01 April 2022 | G65: 92252.9443 | H65: 31638.0557 | I65: 123891 | K65: 70720.5 | L65: 19399.21398 | M65: 90119.71398 | O65: 76.65934192 | P65: 61.31607505 | Q65: 72.74113049
A66: =IF(COUNTRY_INFO!A66=0," ",COUNTRY_INFO!A66) -> ZIMBABWE | B66: =IF(COUNTRY_INFO!B66=0," ",COUNTRY_INFO!B66) -> Masvingo | C66: =IF(COUNTRY_INFO!C66=0," ",COUNTRY_INFO!C66) -> Chivi | D66: =IF(OR(COUNTRY_INFO!$T$9:$T$1000="T2 (PZQ)",COUNTRY_INFO!$U$9:$U$1000="T2 (PZQ)"), "T2 (PZQ)", " ") ->  | I66: 0 | M66: 0
A67: =IF(COUNTRY_INFO!A67=0," ",COUNTRY_INFO!A67) -> ZIMBABWE | B67: =IF(COUNTRY_INFO!B67=0," ",COUNTRY_INFO!B67) -> Masvingo | C67: =IF(COUNTRY_INFO!C67=0," ",COUNTRY_INFO!C67) -> Gutu | D67: =IF(OR(COUNTRY_INFO!$T$9:$T$1000="T2 (PZQ)",COUNTRY_INFO!$U$9:$U$1000="T2 (PZQ)"), "T2 (PZQ)", " ") -> T2 (PZQ) | E67: 01 April 2022 | G67: 61184.5498 | H67: 6900.4502 | I67: 68085 | K67: 48307 | L67: 4709.274622 | M67: 53016.27462 | O67: 78.95293854 | P67: 68.24590404 | Q67: 77.86777502
A68: =IF(COUNTRY_INFO!A68=0," ",COUNTRY_INFO!A68) -> ZIMBABWE | B68: =IF(COUNTRY_INFO!B68=0," ",COUNTRY_INFO!B68) -> Masvingo | C68: =IF(COUNTRY_INFO!C68=0," ",COUNTRY_INFO!C68) -> Masvingo | D68: =IF(OR(COUNTRY_INFO!$T$9:$T$1000="T2 (PZQ)",COUNTRY_INFO!$U$9:$U$1000="T2 (PZQ)"), "T2 (PZQ)", " ") ->  | I68: 0 | M68: 0
A69: =IF(COUNTRY_INFO!A69=0," ",COUNTRY_INFO!A69) -> ZIMBABWE | B69: =IF(COUNTRY_INFO!B69=0," ",COUNTRY_INFO!B69) -> Masvingo | C69: =IF(COUNTRY_INFO!C69=0," ",COUNTRY_INFO!C69) -> Mwenezi | D69: =IF(OR(COUNTRY_INFO!$T$9:$T$1000="T2 (PZQ)",COUNTRY_INFO!$U$9:$U$1000="T2 (PZQ)"), "T2 (PZQ)", " ") -> T2 (PZQ) | E69: 01 April 2022 | G69: 50311.2082 | H69: 15193.7918 | I69: 65505 | K69: 38032 | L69: 9468.212998 | M69: 47500.213 | O69: 75.5934937 | P69: 62.31632711 | Q69: 72.51387375
A70: =IF(COUNTRY_INFO!A70=0," ",COUNTRY_INFO!A70) -> ZIMBABWE | B70: =IF(COUNTRY_INFO!B70=0," ",COUNTRY_INFO!B70) -> Masvingo | C70: =IF(COUNTRY_INFO!C70=0," ",COUNTRY_INFO!C70) -> Zaka | D70: =IF(OR(COUNTRY_INFO!$T$9:$T$1000="T2 (PZQ)",COUNTRY_INFO!$U$9:$U$1000="T2 (PZQ)"), "T2 (PZQ)", " ") -> T2 (PZQ) | E70: 01 April 2022 | G70: 54621.7342 | H70: 7822.2658 | I70: 62444 | K70: 52984 | L70: 4971.582138 | M70: 57955.58214 | O70: 97.00168033 | P70: 63.55680394 | Q70: 92.81209105
A71: =IF(COUNTRY_INFO!A71=0," ",COUNTRY_INFO!A71) -> ZIMBABWE | B71: =IF(COUNTRY_INFO!B71=0," ",COUNTRY_INFO!B71) -> Bulawayo | C71: =IF(COUNTRY_INFO!C71=0," ",COUNTRY_INFO!C71) -> Bulawayo | D71: =IF(OR(COUNTRY_INFO!$T$9:$T$1000="T2 (PZQ)",COUNTRY_INFO!$U$9:$U$1000="T2 (PZQ)"), "T2 (PZQ)", " ") ->  | I71: 0 | M71: 0

Sheet T3_R1
A1: T 3 - Albendazole (ALB) or Mebendazole (MBD) - Round 1
A2: Administrative structure, population requiring PC by age group, population treated by age group and coverage
U3: =63907+1500 -> 65407 | X3: =11275-1500 -> 9775
A4: TOTAL | G4: =SUM(G$9:G$1000) -> 335040 | H4: 848989.3875 | I4: 150110.3601 | J4: 1334139.748 | K4: 46361.5 | L4: 671070 | M4: 91268.90517 | N4: 808700.4052 | O4: =IF(G4<>0, IF(K4/G4*100=0, "-", K4/G4*100), " ") -> 13.83760148 | P4: =IF(H4<>0, IF(L4/H4*100=0, "-", L4/H4*100), " ") -> 79.04339087 | Q4: =IF(I4<>0, IF(M4/I4*100=0, "-", M4/I4*100), " ") -> 60.80120326 | R4: =IF(J4<>0, IF(N4/J4*100=0, "-", N4/J4*100), " ") -> 60.61586926
D6: PC implemented | E6: Medicine | F6: Date | G6: Population targeted for T3 | K6: Population treated | O6: Programme coverage (%)
A7: Country | B7: Province/State | C7: District | G7: PreSAC | H7: SAC | I7: Adults | J7: Total | K7: PreSAC | L7: SAC | M7: Adults | N7: Total | O7: PreSAC | P7: SAC | Q7: Adults | R7: Total
A9: =IF(COUNTRY_INFO!A9=0," ",COUNTRY_INFO!A9) -> ZIMBABWE | B9: =IF(COUNTRY_INFO!B9=0," ",COUNTRY_INFO!B9) -> Manicaland | C9: =IF(COUNTRY_INFO!C9=0," ",COUNTRY_INFO!C9) -> Buhera | D9: =IF(OR(COUNTRY_INFO!$T$9:$T$1000="T3 (ALB/MBD)",COUNTRY_INFO!$U$9:$U$1000="T3 (ALB/MBD)"), "T3 (ALB/MBD)", " ") -> T3 (ALB/MBD) | E9: ALB | F9: 01 April 2022 | G9: 31939 | H9: 74077.1581 | I9: 18482 | J9: =SUM(G9:I9) -> 124498.1581 | K9: 206 | L9: 65407 | M9: 9775 | N9: =SUM(K9:M9) -> 75388 | O9: =IF(G9<>0, IF(K9/G9*100=0, "-", K9/G9*100), " ") -> 0.6449794922 | P9: =IF(H9<>0, IF(L9/H9*100=0, "-", L9/H9*100), " ") -> 88.29577386 | Q9: =IF(I9<>0, IF(M9/I9*100=0, "-", M9/I9*100), " ") -> 52.8892977 | R9: =IF(J9<>0, IF(N9/J9*100=0, "-", N9/J9*100), " ") -> 60.55350629
A10: =IF(COUNTRY_INFO!A10=0," ",COUNTRY_INFO!A10) -> ZIMBABWE | B10: =IF(COUNTRY_INFO!B10=0," ",COUNTRY_INFO!B10) -> Manicaland | C10: =IF(COUNTRY_INFO!C10=0," ",COUNTRY_INFO!C10) -> Chimanimani | D10: =IF(OR(COUNTRY_INFO!$T$9:$T$1000="T3 (ALB/MBD)",COUNTRY_INFO!$U$9:$U$1000="T3 (ALB/MBD)"), "T3 (ALB/MBD)", " ") -> T3 (ALB/MBD) | E10: ALB | F10: 01 April 2022 | G10: 17528 | H10: 57850 | I10: 17195.5895 | J10: =SUM(G10:I10) -> 92573.5895 | K10: 4 | L10: 48429 | M10: 10489 | N10: =SUM(K10:M10) -> 58922 | O10: =IF(G10<>0, IF(K10/G10*100=0, "-", K10/G10*100), " ") -> 0.02282062985 | P10: =IF(H10<>0, IF(L10/H10*100=0, "-", L10/H10*100), " ") -> 83.7147796 | Q10: =IF(I10<>0, IF(M10/I10*100=0, "-", M10/I10*100), " ") -> 60.99819957 | R10: =IF(J10<>0, IF(N10/J10*100=0, "-", N10/J10*100), " ") -> 63.64882286
A11: =IF(COUNTRY_INFO!A11=0," ",COUNTRY_INFO!A11) -> ZIMBABWE | B11: =IF(COUNTRY_INFO!B11=0," ",COUNTRY_INFO!B11) -> Manicaland | C11: =IF(COUNTRY_INFO!C11=0," ",COUNTRY_INFO!C11) -> Chipinge | D11: =IF(OR(COUNTRY_INFO!$T$9:$T$1000="T3 (ALB/MBD)",COUNTRY_INFO!$U$9:$U$1000="T3 (ALB/MBD)"), "T3 (ALB/MBD)", " ") -> T3 (ALB/MBD) | E11: ALB | F11: 01 April 2022 | G11: 39314 | H11: 97654.0917 | I11: 20674.9083 | J11: 157643 | K11: 27 | L11: 84864 | M11: 13613 | N11: 98504 | O11: 0.06867782469 | P11: 86.90265663 | Q11: 65.84309735 | R11: 62.48548937
A12: =IF(COUNTRY_INFO!A12=0," ",COUNTRY_INFO!A12) -> ZIMBABWE | B12: =IF(COUNTRY_INFO!B12=0," ",COUNTRY_INFO!B12) -> Manicaland | C12: =IF(COUNTRY_INFO!C12=0," ",COUNTRY_INFO!C12) -> Makoni | D12: =IF(OR(COUNTRY_INFO!$T$9:$T$1000="T3 (ALB/MBD)",COUNTRY_INFO!$U$9:$U$1000="T3 (ALB/MBD)"), "T3 (ALB/MBD)", " ") -> T3 (ALB/MBD) | E12: ALB | F12: 01 April 2022 | G12: 39314 | H12: 91183.2658 | I12: 11185.7342 | J12: 141683 | K12: 0 | L12: 61594 | M12: 8823 | N12: 70417 | O12: - | P12: 67.54967533 | Q12: 78.87725421 | R12: 49.70038748
A13: =IF(COUNTRY_INFO!A13=0," ",COUNTRY_INFO!A13) -> ZIMBABWE | B13: =IF(COUNTRY_INFO!B13=0," ",COUNTRY_INFO!B13) -> Manicaland | C13: =IF(COUNTRY_INFO!C13=0," ",COUNTRY_INFO!C13) -> Mutare | D13: =IF(OR(COUNTRY_INFO!$T$9:$T$1000="T3 (ALB/MBD)",COUNTRY_INFO!$U$9:$U$1000="T3 (ALB/MBD)"), "T3 (ALB/MBD)", " ") ->  | G13: 0 | H13: 0 | J13: 0 | N13: 0
A14: =IF(COUNTRY_INFO!A14=0," ",COUNTRY_INFO!A14) -> ZIMBABWE | B14: =IF(COUNTRY_INFO!B14=0," ",COUNTRY_INFO!B14) -> Manicaland | C14: =IF(COUNTRY_INFO!C14=0," ",COUNTRY_INFO!C14) -> Mutasa | D14: =IF(OR(COUNTRY_INFO!$T$9:$T$1000="T3 (ALB/MBD)",COUNTRY_INFO!$U$9:$U$1000="T3 (ALB/MBD)"), "T3 (ALB/MBD)", " ") -> T3 (ALB/MBD) | E14: ALB | F14: 01 April 2022 | G14: 21920 | H14: 50839.5525 | I14: 3162.4475 | J14: 75922 | K14: 8279 | L14: 48637 | M14: 1929 | N14: 58845 | O14: 37.76916058 | P14: 95.66763988 | Q14: 60.99706003 | R14: 77.50717842
A15: =IF(COUNTRY_INFO!A15=0," ",COUNTRY_INFO!A15) -> ZIMBABWE | B15: =IF(COUNTRY_INFO!B15=0," ",COUNTRY_INFO!B15) -> Manicaland | C15: =IF(COUNTRY_INFO!C15=0," ",COUNTRY_INFO!C15) -> Nyanga | D15: =IF(OR(COUNTRY_INFO!$T$9:$T$1000="T3 (ALB/MBD)",COUNTRY_INFO!$U$9:$U$1000="T3 (ALB/MBD)"), "T3 (ALB/MBD)", " ") -> T3 (ALB/MBD) | E15: ALB | F15: 01 April 2022 | G15: 0 | H15: 42403 | J15: 42403 | K15: 0 | L15: 39833 | N15: 39833 | P15: 93.93910808 | R15: 93.93910808
A16: =IF(COUNTRY_INFO!A16=0," ",COUNTRY_INFO!A16) -> ZIMBABWE | B16: =IF(COUNTRY_INFO!B16=0," ",COUNTRY_INFO!B16) -> Harare | C16: =IF(COUNTRY_INFO!C16=0," ",COUNTRY_INFO!C16) -> Chitungwiza | D16: =IF(OR(COUNTRY_INFO!$T$9:$T$1000="T3 (ALB/MBD)",COUNTRY_INFO!$U$9:$U$1000="T3 (ALB/MBD)"), "T3 (ALB/MBD)", " ") ->  | G16: 0 | H16: 0 | J16: 0 | N16: 0
A17: =IF(COUNTRY_INFO!A17=0," ",COUNTRY_INFO!A17) -> ZIMBABWE | B17: =IF(COUNTRY_INFO!B17=0," ",COUNTRY_INFO!B17) -> Harare | C17: =IF(COUNTRY_INFO!C17=0," ",COUNTRY_INFO!C17) -> Harare | D17: =IF(OR(COUNTRY_INFO!$T$9:$T$1000="T3 (ALB/MBD)",COUNTRY_INFO!$U$9:$U$1000="T3 (ALB/MBD)"), "T3 (ALB/MBD)", " ") ->  | G17: 0 | H17: 0 | J17: 0 | N17: 0
A18: =IF(COUNTRY_INFO!A18=0," ",COUNTRY_INFO!A18) -> ZIMBABWE | B18: =IF(COUNTRY_INFO!B18=0," ",COUNTRY_INFO!B18) -> Mashnaland Central | C18: =IF(COUNTRY_INFO!C18=0," ",COUNTRY_INFO!C18) -> Bindura | D18: =IF(OR(COUNTRY_INFO!$T$9:$T$1000="T3 (ALB/MBD)",COUNTRY_INFO!$U$9:$U$1000="T3 (ALB/MBD)"), "T3 (ALB/MBD)", " ") ->  | G18: 0 | H18: 0 | J18: 0 | K18: 0 | L18: 0 | N18: 0
A19: =IF(COUNTRY_INFO!A19=0," ",COUNTRY_INFO!A19) -> ZIMBABWE | B19: =IF(COUNTRY_INFO!B19=0," ",COUNTRY_INFO!B19) -> Mashnaland Central | C19: =IF(COUNTRY_INFO!C19=0," ",COUNTRY_INFO!C19) -> Centenary | D19: =IF(OR(COUNTRY_INFO!$T$9:$T$1000="T3 (ALB/MBD)",COUNTRY_INFO!$U$9:$U$1000="T3 (ALB/MBD)"), "T3 (ALB/MBD)", " ") ->  | G19: 0 | H19: 0 | J19: 0 | N19: 0
A20: =IF(COUNTRY_INFO!A20=0," ",COUNTRY_INFO!A20) -> ZIMBABWE | B20: =IF(COUNTRY_INFO!B20=0," ",COUNTRY_INFO!B20) -> Mashnaland Central | C20: =IF(COUNTRY_INFO!C20=0," ",COUNTRY_INFO!C20) -> Guruve | D20: =IF(OR(COUNTRY_INFO!$T$9:$T$1000="T3 (ALB/MBD)",COUNTRY_INFO!$U$9:$U$1000="T3 (ALB/MBD)"), "T3 (ALB/MBD)", " ") ->  | G20: 0 | H20: 0 | J20: 0 | N20: 0
A21: =IF(COUNTRY_INFO!A21=0," ",COUNTRY_INFO!A21) -> ZIMBABWE | B21: =IF(COUNTRY_INFO!B21=0," ",COUNTRY_INFO!B21) -> Mashnaland Central | C21: =IF(COUNTRY_INFO!C21=0," ",COUNTRY_INFO!C21) -> Mazowe | D21: =IF(OR(COUNTRY_INFO!$T$9:$T$1000="T3 (ALB/MBD)",COUNTRY_INFO!$U$9:$U$1000="T3 (ALB/MBD)"), "T3 (ALB/MBD)", " ") ->  | G21: 0 | H21: 0 | J21: 0 | N21: 0
A22: =IF(COUNTRY_INFO!A22=0," ",COUNTRY_INFO!A22) -> ZIMBABWE | B22: =IF(COUNTRY_INFO!B22=0," ",COUNTRY_INFO!B22) -> Mashnaland Central | C22: =IF(COUNTRY_INFO!C22=0," ",COUNTRY_INFO!C22) -> Mt Darwin | D22: =IF(OR(COUNTRY_INFO!$T$9:$T$1000="T3 (ALB/MBD)",COUNTRY_INFO!$U$9:$U$1000="T3 (ALB/MBD)"), "T3 (ALB/MBD)", " ") ->  | G22: 0 | H22: 0 | I22: 0 | J22: 0 | N22: 0
A23: =IF(COUNTRY_INFO!A23=0," ",COUNTRY_INFO!A23) -> ZIMBABWE | B23: =IF(COUNTRY_INFO!B23=0," ",COUNTRY_INFO!B23) -> Mashnaland Central | C23: =IF(COUNTRY_INFO!C23=0," ",COUNTRY_INFO!C23) -> Rushinga | D23: =IF(OR(COUNTRY_INFO!$T$9:$T$1000="T3 (ALB/MBD)",COUNTRY_INFO!$U$9:$U$1000="T3 (ALB/MBD)"), "T3 (ALB/MBD)", " ") ->  | G23: 0 | H23: 0 | J23: 0 | N23: 0
A24: =IF(COUNTRY_INFO!A24=0," ",COUNTRY_INFO!A24) -> ZIMBABWE | B24: =IF(COUNTRY_INFO!B24=0," ",COUNTRY_INFO!B24) -> Mashnaland Central | C24: =IF(COUNTRY_INFO!C24=0," ",COUNTRY_INFO!C24) -> Shamva | D24: =IF(OR(COUNTRY_INFO!$T$9:$T$1000="T3 (ALB/MBD)",COUNTRY_INFO!$U$9:$U$1000="T3 (ALB/MBD)"), "T3 (ALB/MBD)", " ") ->  | G24: 0 | H24: 0 | J24: 0 | K24: 0 | L24: 0 | N24: 0
A25: =IF(COUNTRY_INFO!A25=0," ",COUNTRY_INFO!A25) -> ZIMBABWE | B25: =IF(COUNTRY_INFO!B25=0," ",COUNTRY_INFO!B25) -> Mashnaland Central | C25: =IF(COUNTRY_INFO!C25=0," ",COUNTRY_INFO!C25) -> Mbire | D25: =IF(OR(COUNTRY_INFO!$T$9:$T$1000="T3 (ALB/MBD)",COUNTRY_INFO!$U$9:$U$1000="T3 (ALB/MBD)"), "T3 (ALB/MBD)", " ") ->  | G25: 0 | H25: 0 | J25: 0 | N25: 0
A26: =IF(COUNTRY_INFO!A26=0," ",COUNTRY_INFO!A26) -> ZIMBABWE | B26: =IF(COUNTRY_INFO!B26=0," ",COUNTRY_INFO!B26) -> Mashonaland East | C26: =IF(COUNTRY_INFO!C26=0," ",COUNTRY_INFO!C26) -> Chikomba | D26: =IF(OR(COUNTRY_INFO!$T$9:$T$1000="T3 (ALB/MBD)",COUNTRY_INFO!$U$9:$U$1000="T3 (ALB/MBD)"), "T3 (ALB/MBD)", " ") -> T3 (ALB/MBD) | E26: ALB | F26: 01 April 2022 | G26: 15716 | H26: 36450.1896 | I26: 5856.8104 | J26: 58023 | K26: 4397 | L26: 32662 | M26: 3072.654344 | N26: 40131.65434 | O26: 27.97785696 | P26: 89.60721565 | Q26: 52.46293006 | R26: 69.16507996
A27: =IF(COUNTRY_INFO!A27=0," ",COUNTRY_INFO!A27) -> ZIMBABWE | B27: =IF(COUNTRY_INFO!B27=0," ",COUNTRY_INFO!B27) -> Mashonaland East | C27: =IF(COUNTRY_INFO!C27=0," ",COUNTRY_INFO!C27) -> Goromonzi | D27: =IF(OR(COUNTRY_INFO!$T$9:$T$1000="T3 (ALB/MBD)",COUNTRY_INFO!$U$9:$U$1000="T3 (ALB/MBD)"), "T3 (ALB/MBD)", " ") -> T3 (ALB/MBD) | E27: ALB | F27: 01 April 2022 | G27: 29225 | H27: 67783.419 | I27: 37063.581 | J27: 134072 | K27: 3958 | L27: 48486 | M27: 22608.78441 | N27: 75052.78441 | O27: 13.54319932 | P27: 71.53076772 | Q27: 61 | R27: 55.97946209
A28: =IF(COUNTRY_INFO!A28=0," ",COUNTRY_INFO!A28) -> ZIMBABWE | B28: =IF(COUNTRY_INFO!B28=0," ",COUNTRY_INFO!B28) -> Mashonaland East | C28: =IF(COUNTRY_INFO!C28=0," ",COUNTRY_INFO!C28) -> UMP | D28: =IF(OR(COUNTRY_INFO!$T$9:$T$1000="T3 (ALB/MBD)",COUNTRY_INFO!$U$9:$U$1000="T3 (ALB/MBD)"), "T3 (ALB/MBD)", " ") ->  | G28: 0 | J28: 0 | N28: 0
A29: =IF(COUNTRY_INFO!A29=0," ",COUNTRY_INFO!A29) -> ZIMBABWE | B29: =IF(COUNTRY_INFO!B29=0," ",COUNTRY_INFO!B29) -> Mashonaland East | C29: =IF(COUNTRY_INFO!C29=0," ",COUNTRY_INFO!C29) -> Hwedza | D29: =IF(OR(COUNTRY_INFO!$T$9:$T$1000="T3 (ALB/MBD)",COUNTRY_INFO!$U$9:$U$1000="T3 (ALB/MBD)"), "T3 (ALB/MBD)", " ") -> T3 (ALB/MBD) | E29: ALB | F29: 01 April 2022 | G29: 9219 | H29: 21381.3754 | I29: 3819.6246 | J29: 34420 | K29: 2663 | L29: 19306 | M29: 2029.971006 | N29: 23998.97101 | O29: 28.88599631 | P29: 90.2935365 | Q29: 53.14582501 | R29: 69.72391344
A30: =IF(COUNTRY_INFO!A30=0," ",COUNTRY_INFO!A30) -> ZIMBABWE | B30: =IF(COUNTRY_INFO!B30=0," ",COUNTRY_INFO!B30) -> Mashonaland East | C30: =IF(COUNTRY_INFO!C30=0," ",COUNTRY_INFO!C30) -> Marondera | D30: =IF(OR(COUNTRY_INFO!$T$9:$T$1000="T3 (ALB/MBD)",COUNTRY_INFO!$U$9:$U$1000="T3 (ALB/MBD)"), "T3 (ALB/MBD)", " ") -> T3 (ALB/MBD) | E30: ALB | F30: 01 April 2022 | G30: 23250 | H30: 53923.4608 | I30: 15425.5392 | J30: 92599 | K30: 4385 | L30: 33912 | M30: 9409.578912 | N30: 47706.57891 | O30: 18.86021505 | P30: 62.8891386 | Q30: 61 | R30: 51.51954007
A31: =IF(COUNTRY_INFO!A31=0," ",COUNTRY_INFO!A31) -> ZIMBABWE | B31: =IF(COUNTRY_INFO!B31=0," ",COUNTRY_INFO!B31) -> Mashonaland East | C31: =IF(COUNTRY_INFO!C31=0," ",COUNTRY_INFO!C31) -> Mudzi | D31: =IF(OR(COUNTRY_INFO!$T$9:$T$1000="T3 (ALB/MBD)",COUNTRY_INFO!$U$9:$U$1000="T3 (ALB/MBD)"), "T3 (ALB/MBD)", " ") ->  | G31: 0 | J31: 0 | N31: 0
A32: =IF(COUNTRY_INFO!A32=0," ",COUNTRY_INFO!A32) -> ZIMBABWE | B32: =IF(COUNTRY_INFO!B32=0," ",COUNTRY_INFO!B32) -> Mashonaland East | C32: =IF(COUNTRY_INFO!C32=0," ",COUNTRY_INFO!C32) -> Murewa | D32: =IF(OR(COUNTRY_INFO!$T$9:$T$1000="T3 (ALB/MBD)",COUNTRY_INFO!$U$9:$U$1000="T3 (ALB/MBD)"), "T3 (ALB/MBD)", " ") -> T3 (ALB/MBD) | E32: ALB | F32: 01 April 2022 | G32: 25928 | H32: 60136.8746 | I32: 17244.1254 | J32: 103309 | K32: 3472 | L32: 37588 | M32: 9518.916494 | N32: 50578.91649 | O32: 13.39092873 | P32: 62.50407965 | Q32: 55.20092364 | R32: 48.95886757
A33: =IF(COUNTRY_INFO!A33=0," ",COUNTRY_INFO!A33) -> ZIMBABWE | B33: =IF(COUNTRY_INFO!B33=0," ",COUNTRY_INFO!B33) -> Mashonaland East | C33: =IF(COUNTRY_INFO!C33=0," ",COUNTRY_INFO!C33) -> Mutoko | D33: =IF(OR(COUNTRY_INFO!$T$9:$T$1000="T3 (ALB/MBD)",COUNTRY_INFO!$U$9:$U$1000="T3 (ALB/MBD)"), "T3 (ALB/MBD)", " ") ->  | G33: 0 | H33: 0 | J33: 0 | N33: 0
A34: =IF(COUNTRY_INFO!A34=0," ",COUNTRY_INFO!A34) -> ZIMBABWE | B34: =IF(COUNTRY_INFO!B34=0," ",COUNTRY_INFO!B34) -> Mashonaland East | C34: =IF(COUNTRY_INFO!C34=0," ",COUNTRY_INFO!C34) -> Seke | D34: =IF(OR(COUNTRY_INFO!$T$9:$T$1000="T3 (ALB/MBD)",COUNTRY_INFO!$U$9:$U$1000="T3 (ALB/MBD)"), "T3 (ALB/MBD)", " ") ->  | G34: 0 | H34: 0 | J34: 0 | N34: 0
A35: =IF(COUNTRY_INFO!A35=0," ",COUNTRY_INFO!A35) -> ZIMBABWE | B35: =IF(COUNTRY_INFO!B35=0," ",COUNTRY_INFO!B35) -> Mashonaland West | C35: =IF(COUNTRY_INFO!C35=0," ",COUNTRY_INFO!C35) -> Chegutu | D35: =IF(OR(COUNTRY_INFO!$T$9:$T$1000="T3 (ALB/MBD)",COUNTRY_INFO!$U$9:$U$1000="T3 (ALB/MBD)"), "T3 (ALB/MBD)", " ") ->  | G35: 0 | H35: 0 | J35: 0 | K35: 0 | L35: 0 | N35: 0
A36: =IF(COUNTRY_INFO!A36=0," ",COUNTRY_INFO!A36) -> ZIMBABWE | B36: =IF(COUNTRY_INFO!B36=0," ",COUNTRY_INFO!B36) -> Mashonaland West | C36: =IF(COUNTRY_INFO!C36=0," ",COUNTRY_INFO!C36) -> Hurungwe | D36: =IF(OR(COUNTRY_INFO!$T$9:$T$1000="T3 (ALB/MBD)",COUNTRY_INFO!$U$9:$U$1000="T3 (ALB/MBD)"), "T3 (ALB/MBD)", " ") ->  | G36: 0 | H36: 0 | J36: 0 | K36: 0 | L36: 0 | N36: 0
A37: =IF(COUNTRY_INFO!A37=0," ",COUNTRY_INFO!A37) -> ZIMBABWE | B37: =IF(COUNTRY_INFO!B37=0," ",COUNTRY_INFO!B37) -> Mashonaland West | C37: =IF(COUNTRY_INFO!C37=0," ",COUNTRY_INFO!C37) -> Sanyati | D37: =IF(OR(COUNTRY_INFO!$T$9:$T$1000="T3 (ALB/MBD)",COUNTRY_INFO!$U$9:$U$1000="T3 (ALB/MBD)"), "T3 (ALB/MBD)", " ") ->  | G37: 0 | H37: 0 | J37: 0 | K37: 0 | L37: 0 | N37: 0
A38: =IF(COUNTRY_INFO!A38=0," ",COUNTRY_INFO!A38) -> ZIMBABWE | B38: =IF(COUNTRY_INFO!B38=0," ",COUNTRY_INFO!B38) -> Mashonaland West | C38: =IF(COUNTRY_INFO!C38=0," ",COUNTRY_INFO!C38) -> Kariba | D38: =IF(OR(COUNTRY_INFO!$T$9:$T$1000="T3 (ALB/MBD)",COUNTRY_INFO!$U$9:$U$1000="T3 (ALB/MBD)"), "T3 (ALB/MBD)", " ") ->  | G38: 0 | H38: 0 | J38: 0 | N38: 0
A39: =IF(COUNTRY_INFO!A39=0," ",COUNTRY_INFO!A39) -> ZIMBABWE | B39: =IF(COUNTRY_INFO!B39=0," ",COUNTRY_INFO!B39) -> Mashonaland West | C39: =IF(COUNTRY_INFO!C39=0," ",COUNTRY_INFO!C39) -> Makonde | D39: =IF(OR(COUNTRY_INFO!$T$9:$T$1000="T3 (ALB/MBD)",COUNTRY_INFO!$U$9:$U$1000="T3 (ALB/MBD)"), "T3 (ALB/MBD)", " ") ->  | G39: 0 | H39: 0 | J39: 0 | K39: 0 | L39: 0 | N39: 0
A40: =IF(COUNTRY_INFO!A40=0," ",COUNTRY_INFO!A40) -> ZIMBABWE | B40: =IF(COUNTRY_INFO!B40=0," ",COUNTRY_INFO!B40) -> Mashonaland West | C40: =IF(COUNTRY_INFO!C40=0," ",COUNTRY_INFO!C40) -> Mhondoro-Ngezi | D40: =IF(OR(COUNTRY_INFO!$T$9:$T$1000="T3 (ALB/MBD)",COUNTRY_INFO!$U$9:$U$1000="T3 (ALB/MBD)"), "T3 (ALB/MBD)", " ") ->  | G40: 0 | H40: 0 | J40: 0 | N40: 0
A41: =IF(COUNTRY_INFO!A41=0," ",COUNTRY_INFO!A41) -> ZIMBABWE | B41: =IF(COUNTRY_INFO!B41=0," ",COUNTRY_INFO!B41) -> Mashonaland West | C41: =IF(COUNTRY_INFO!C41=0," ",COUNTRY_INFO!C41) -> Zvimba | D41: =IF(OR(COUNTRY_INFO!$T$9:$T$1000="T3 (ALB/MBD)",COUNTRY_INFO!$U$9:$U$1000="T3 (ALB/MBD)"), "T3 (ALB/MBD)", " ") ->  | G41: 0 | H41: 0 | J41: 0 | K41: 0 | L41: 0 | N41: 0
A42: =IF(COUNTRY_INFO!A42=0," ",COUNTRY_INFO!A42) -> ZIMBABWE | B42: =IF(COUNTRY_INFO!B42=0," ",COUNTRY_INFO!B42) -> Matabeleland North | C42: =IF(COUNTRY_INFO!C42=0," ",COUNTRY_INFO!C42) -> Binga | D42: =IF(OR(COUNTRY_INFO!$T$9:$T$1000="T3 (ALB/MBD)",COUNTRY_INFO!$U$9:$U$1000="T3 (ALB/MBD)"), "T3 (ALB/MBD)", " ") ->  | G42: 0 | H42: 0 | J42: 0 | K42: 0 | L42: 0 | N42: 0
A43: =IF(COUNTRY_INFO!A43=0," ",COUNTRY_INFO!A43) -> ZIMBABWE | B43: =IF(COUNTRY_INFO!B43=0," ",COUNTRY_INFO!B43) -> Matabeleland North | C43: =IF(COUNTRY_INFO!C43=0," ",COUNTRY_INFO!C43) -> Bubi | D43: =IF(OR(COUNTRY_INFO!$T$9:$T$1000="T3 (ALB/MBD)",COUNTRY_INFO!$U$9:$U$1000="T3 (ALB/MBD)"), "T3 (ALB/MBD)", " ") ->  | G43: 0 | H43: 0 | J43: 0 | N43: 0
A44: =IF(COUNTRY_INFO!A44=0," ",COUNTRY_INFO!A44) -> ZIMBABWE | B44: =IF(COUNTRY_INFO!B44=0," ",COUNTRY_INFO!B44) -> Matabeleland North | C44: =IF(COUNTRY_INFO!C44=0," ",COUNTRY_INFO!C44) -> Hwange | D44: =IF(OR(COUNTRY_INFO!$T$9:$T$1000="T3 (ALB/MBD)",COUNTRY_INFO!$U$9:$U$1000="T3 (ALB/MBD)"), "T3 (ALB/MBD)", " ") ->  | G44: 0 | H44: 0 | J44: 0 | N44: 0
A45: =IF(COUNTRY_INFO!A45=0," ",COUNTRY_INFO!A45) -> ZIMBABWE | B45: =IF(COUNTRY_INFO!B45=0," ",COUNTRY_INFO!B45) -> Matabeleland North | C45: =IF(COUNTRY_INFO!C45=0," ",COUNTRY_INFO!C45) -> Lupane | D45: =IF(OR(COUNTRY_INFO!$T$9:$T$1000="T3 (ALB/MBD)",COUNTRY_INFO!$U$9:$U$1000="T3 (ALB/MBD)"), "T3 (ALB/MBD)", " ") ->  | G45: 0 | H45: 0 | J45: 0 | N45: 0
A46: =IF(COUNTRY_INFO!A46=0," ",COUNTRY_INFO!A46) -> ZIMBABWE | B46: =IF(COUNTRY_INFO!B46=0," ",COUNTRY_INFO!B46) -> Matabeleland North | C46: =IF(COUNTRY_INFO!C46=0," ",COUNTRY_INFO!C46) -> Nkayi | D46: =IF(OR(COUNTRY_INFO!$T$9:$T$1000="T3 (ALB/MBD)",COUNTRY_INFO!$U$9:$U$1000="T3 (ALB/MBD)"), "T3 (ALB/MBD)", " ") ->  | G46: 0 | H46: 0 | J46: 0 | N46: 0
A47: =IF(COUNTRY_INFO!A47=0," ",COUNTRY_INFO!A47) -> ZIMBABWE | B47: =IF(COUNTRY_INFO!B47=0," ",COUNTRY_INFO!B47) -> Matabeleland North | C47: =IF(COUNTRY_INFO!C47=0," ",COUNTRY_INFO!C47) -> Tsholotsho | D47: =IF(OR(COUNTRY_INFO!$T$9:$T$1000="T3 (ALB/MBD)",COUNTRY_INFO!$U$9:$U$1000="T3 (ALB/MBD)"), "T3 (ALB/MBD)", " ") ->  | G47: 0 | H47: 0 | J47: 0 | N47: 0
A48: =IF(COUNTRY_INFO!A48=0," ",COUNTRY_INFO!A48) -> ZIMBABWE | B48: =IF(COUNTRY_INFO!B48=0," ",COUNTRY_INFO!B48) -> Matabeleland North | C48: =IF(COUNTRY_INFO!C48=0," ",COUNTRY_INFO!C48) -> Umguza | D48: =IF(OR(COUNTRY_INFO!$T$9:$T$1000="T3 (ALB/MBD)",COUNTRY_INFO!$U$9:$U$1000="T3 (ALB/MBD)"), "T3 (ALB/MBD)", " ") ->  | G48: 0 | H48: 0 | J48: 0 | K48: 0 | L48: 0 | N48: 0
A49: =IF(COUNTRY_INFO!A49=0," ",COUNTRY_INFO!A49) -> ZIMBABWE | B49: =IF(COUNTRY_INFO!B49=0," ",COUNTRY_INFO!B49) -> Matabeleland South | C49: =IF(COUNTRY_INFO!C49=0," ",COUNTRY_INFO!C49) -> Beit Bridge | D49: =IF(OR(COUNTRY_INFO!$T$9:$T$1000="T3 (ALB/MBD)",COUNTRY_INFO!$U$9:$U$1000="T3 (ALB/MBD)"), "T3 (ALB/MBD)", " ") ->  | G49: 0 | H49: 0 | J49: 0 | N49: 0
A50: =IF(COUNTRY_INFO!A50=0," ",COUNTRY_INFO!A50) -> ZIMBABWE | B50: =IF(COUNTRY_INFO!B50=0," ",COUNTRY_INFO!B50) -> Matabeleland South | C50: =IF(COUNTRY_INFO!C50=0," ",COUNTRY_INFO!C50) -> Bulilima | D50: =IF(OR(COUNTRY_INFO!$T$9:$T$1000="T3 (ALB/MBD)",COUNTRY_INFO!$U$9:$U$1000="T3 (ALB/MBD)"), "T3 (ALB/MBD)", " ") ->  | G50: 0 | H50: 0 | J50: 0 | N50: 0
A51: =IF(COUNTRY_INFO!A51=0," ",COUNTRY_INFO!A51) -> ZIMBABWE | B51: =IF(COUNTRY_INFO!B51=0," ",COUNTRY_INFO!B51) -> Matabeleland South | C51: =IF(COUNTRY_INFO!C51=0," ",COUNTRY_INFO!C51) -> Gwanda | D51: =IF(OR(COUNTRY_INFO!$T$9:$T$1000="T3 (ALB/MBD)",COUNTRY_INFO!$U$9:$U$1000="T3 (ALB/MBD)"), "T3 (ALB/MBD)", " ") ->  | G51: 0 | H51: 0 | J51: 0 | N51: 0
A52: =IF(COUNTRY_INFO!A52=0," ",COUNTRY_INFO!A52) -> ZIMBABWE | B52: =IF(COUNTRY_INFO!B52=0," ",COUNTRY_INFO!B52) -> Matabeleland South | C52: =IF(COUNTRY_INFO!C52=0," ",COUNTRY_INFO!C52) -> Insiza | D52: =IF(OR(COUNTRY_INFO!$T$9:$T$1000="T3 (ALB/MBD)",COUNTRY_INFO!$U$9:$U$1000="T3 (ALB/MBD)"), "T3 (ALB/MBD)", " ") ->  | G52: 0 | H52: 0 | J52: 0 | K52: 0 | L52: 0 | N52: 0
A53: =IF(COUNTRY_INFO!A53=0," ",COUNTRY_INFO!A53) -> ZIMBABWE | B53: =IF(COUNTRY_INFO!B53=0," ",COUNTRY_INFO!B53) -> Matabeleland South | C53: =IF(COUNTRY_INFO!C53=0," ",COUNTRY_INFO!C53) -> Mangwe | D53: =IF(OR(COUNTRY_INFO!$T$9:$T$1000="T3 (ALB/MBD)",COUNTRY_INFO!$U$9:$U$1000="T3 (ALB/MBD)"), "T3 (ALB/MBD)", " ") ->  | G53: 0 | H53: 0 | J53: 0 | N53: 0
A54: =IF(COUNTRY_INFO!A54=0," ",COUNTRY_INFO!A54) -> ZIMBABWE | B54: =IF(COUNTRY_INFO!B54=0," ",COUNTRY_INFO!B54) -> Matabeleland South | C54: =IF(COUNTRY_INFO!C54=0," ",COUNTRY_INFO!C54) -> Matobo | D54: =IF(OR(COUNTRY_INFO!$T$9:$T$1000="T3 (ALB/MBD)",COUNTRY_INFO!$U$9:$U$1000="T3 (ALB/MBD)"), "T3 (ALB/MBD)", " ") -> T3 (ALB/MBD) | E54: ALB | F54: 01 April 2022 | G54: 12203 | H54: 34153 | J54: 46356 | K54: 4054.5 | L54: 18838 | N54: 22892.5 | O54: 33.22543637 | P54: 55.15767283 | R54: 49.38411425
A55: =IF(COUNTRY_INFO!A55=0," ",COUNTRY_INFO!A55) -> ZIMBABWE | B55: =IF(COUNTRY_INFO!B55=0," ",COUNTRY_INFO!B55) -> Matabeleland South | C55: =IF(COUNTRY_INFO!C55=0," ",COUNTRY_INFO!C55) -> Umzingwane | D55: =IF(OR(COUNTRY_INFO!$T$9:$T$1000="T3 (ALB/MBD)",COUNTRY_INFO!$U$9:$U$1000="T3 (ALB/MBD)"), "T3 (ALB/MBD)", " ") ->  | G55: 0 | H55: 0 | J55: 0 | N55: 0
A56: =IF(COUNTRY_INFO!A56=0," ",COUNTRY_INFO!A56) -> ZIMBABWE | B56: =IF(COUNTRY_INFO!B56=0," ",COUNTRY_INFO!B56) -> Midlands | C56: =IF(COUNTRY_INFO!C56=0," ",COUNTRY_INFO!C56) -> Chirumhanzi | D56: =IF(OR(COUNTRY_INFO!$T$9:$T$1000="T3 (ALB/MBD)",COUNTRY_INFO!$U$9:$U$1000="T3 (ALB/MBD)"), "T3 (ALB/MBD)", " ") ->  | G56: 0 | J56: 0 | N56: 0
A57: =IF(COUNTRY_INFO!A57=0," ",COUNTRY_INFO!A57) -> ZIMBABWE | B57: =IF(COUNTRY_INFO!B57=0," ",COUNTRY_INFO!B57) -> Midlands | C57: =IF(COUNTRY_INFO!C57=0," ",COUNTRY_INFO!C57) -> Gokwe North | D57: =IF(OR(COUNTRY_INFO!$T$9:$T$1000="T3 (ALB/MBD)",COUNTRY_INFO!$U$9:$U$1000="T3 (ALB/MBD)"), "T3 (ALB/MBD)", " ") ->  | G57: 0 | H57: 0 | J57: 0 | N57: 0
A58: =IF(COUNTRY_INFO!A58=0," ",COUNTRY_INFO!A58) -> ZIMBABWE | B58: =IF(COUNTRY_INFO!B58=0," ",COUNTRY_INFO!B58) -> Midlands | C58: =IF(COUNTRY_INFO!C58=0," ",COUNTRY_INFO!C58) -> Gokwe South | D58: =IF(OR(COUNTRY_INFO!$T$9:$T$1000="T3 (ALB/MBD)",COUNTRY_INFO!$U$9:$U$1000="T3 (ALB/MBD)"), "T3 (ALB/MBD)", " ") ->  | G58: 0 | H58: 0 | J58: 0 | N58: 0
A59: =IF(COUNTRY_INFO!A59=0," ",COUNTRY_INFO!A59) -> ZIMBABWE | B59: =IF(COUNTRY_INFO!B59=0," ",COUNTRY_INFO!B59) -> Midlands | C59: =IF(COUNTRY_INFO!C59=0," ",COUNTRY_INFO!C59) -> Gweru | D59: =IF(OR(COUNTRY_INFO!$T$9:$T$1000="T3 (ALB/MBD)",COUNTRY_INFO!$U$9:$U$1000="T3 (ALB/MBD)"), "T3 (ALB/MBD)", " ") -> T3 (ALB/MBD) | E59: ALB | F59: 01 April 2022 | G59: 32432 | H59: 75220 | J59: 107652 | K59: 5171 | L59: 57326 | N59: 62497 | O59: 15.94412926 | P59: 76.21111407 | R59: 58.0546576
A60: =IF(COUNTRY_INFO!A60=0," ",COUNTRY_INFO!A60) -> ZIMBABWE | B60: =IF(COUNTRY_INFO!B60=0," ",COUNTRY_INFO!B60) -> Midlands | C60: =IF(COUNTRY_INFO!C60=0," ",COUNTRY_INFO!C60) -> Kwekwe | D60: =IF(OR(COUNTRY_INFO!$T$9:$T$1000="T3 (ALB/MBD)",COUNTRY_INFO!$U$9:$U$1000="T3 (ALB/MBD)"), "T3 (ALB/MBD)", " ") ->  | G60: 0 | H60: 0 | J60: 0 | N60: 0
A61: =IF(COUNTRY_INFO!A61=0," ",COUNTRY_INFO!A61) -> ZIMBABWE | B61: =IF(COUNTRY_INFO!B61=0," ",COUNTRY_INFO!B61) -> Midlands | C61: =IF(COUNTRY_INFO!C61=0," ",COUNTRY_INFO!C61) -> Mberengwa | D61: =IF(OR(COUNTRY_INFO!$T$9:$T$1000="T3 (ALB/MBD)",COUNTRY_INFO!$U$9:$U$1000="T3 (ALB/MBD)"), "T3 (ALB/MBD)", " ") -> T3 (ALB/MBD) | E61: ALB | F61: 01 April 2022 | G61: 24130 | H61: 55964 | J61: 80094 | K61: 6707 | L61: 50955 | N61: 57662 | O61: 27.79527559 | P61: 91.04960332 | R61: 71.99290833
A62: =IF(COUNTRY_INFO!A62=0," ",COUNTRY_INFO!A62) -> ZIMBABWE | B62: =IF(COUNTRY_INFO!B62=0," ",COUNTRY_INFO!B62) -> Midlands | C62: =IF(COUNTRY_INFO!C62=0," ",COUNTRY_INFO!C62) -> Shurugwi | D62: =IF(OR(COUNTRY_INFO!$T$9:$T$1000="T3 (ALB/MBD)",COUNTRY_INFO!$U$9:$U$1000="T3 (ALB/MBD)"), "T3 (ALB/MBD)", " ") -> T3 (ALB/MBD) | E62: ALB | F62: 01 April 2022 | G62: 12922 | H62: 29970 | J62: 42892 | K62: 3038 | L62: 23233 | N62: 26271 | O62: 23.51029252 | P62: 77.52085419 | R62: 61.249184
A63: =IF(COUNTRY_INFO!A63=0," ",COUNTRY_INFO!A63) -> ZIMBABWE | B63: =IF(COUNTRY_INFO!B63=0," ",COUNTRY_INFO!B63) -> Midlands | C63: =IF(COUNTRY_INFO!C63=0," ",COUNTRY_INFO!C63) -> Zvishavane | D63: =IF(OR(COUNTRY_INFO!$T$9:$T$1000="T3 (ALB/MBD)",COUNTRY_INFO!$U$9:$U$1000="T3 (ALB/MBD)"), "T3 (ALB/MBD)", " ") ->  | G63: 0 | J63: 0 | K63: 0 | L63: 0 | N63: 0
A64: =IF(COUNTRY_INFO!A64=0," ",COUNTRY_INFO!A64) -> ZIMBABWE | B64: =IF(COUNTRY_INFO!B64=0," ",COUNTRY_INFO!B64) -> Masvingo | C64: =IF(COUNTRY_INFO!C64=0," ",COUNTRY_INFO!C64) -> Bikita | D64: =IF(OR(COUNTRY_INFO!$T$9:$T$1000="T3 (ALB/MBD)",COUNTRY_INFO!$U$9:$U$1000="T3 (ALB/MBD)"), "T3 (ALB/MBD)", " ") ->  | G64: 0 | H64: 0 | J64: 0 | K64: 0 | L64: 0 | N64: 0
A65: =IF(COUNTRY_INFO!A65=0," ",COUNTRY_INFO!A65) -> ZIMBABWE | B65: =IF(COUNTRY_INFO!B65=0," ",COUNTRY_INFO!B65) -> Masvingo | C65: =IF(COUNTRY_INFO!C65=0," ",COUNTRY_INFO!C65) -> Chiredzi | D65: =IF(OR(COUNTRY_INFO!$T$9:$T$1000="T3 (ALB/MBD)",COUNTRY_INFO!$U$9:$U$1000="T3 (ALB/MBD)"), "T3 (ALB/MBD)", " ") ->  | G65: 0 | H65: 0 | J65: 0 | K65: 0 | L65: 0 | N65: 0
A66: =IF(COUNTRY_INFO!A66=0," ",COUNTRY_INFO!A66) -> ZIMBABWE | B66: =IF(COUNTRY_INFO!B66=0," ",COUNTRY_INFO!B66) -> Masvingo | C66: =IF(COUNTRY_INFO!C66=0," ",COUNTRY_INFO!C66) -> Chivi | D66: =IF(OR(COUNTRY_INFO!$T$9:$T$1000="T3 (ALB/MBD)",COUNTRY_INFO!$U$9:$U$1000="T3 (ALB/MBD)"), "T3 (ALB/MBD)", " ") ->  | G66: 0 | H66: 0 | J66: 0 | N66: 0
A67: =IF(COUNTRY_INFO!A67=0," ",COUNTRY_INFO!A67) -> ZIMBABWE | B67: =IF(COUNTRY_INFO!B67=0," ",COUNTRY_INFO!B67) -> Masvingo | C67: =IF(COUNTRY_INFO!C67=0," ",COUNTRY_INFO!C67) -> Gutu | D67: =IF(OR(COUNTRY_INFO!$T$9:$T$1000="T3 (ALB/MBD)",COUNTRY_INFO!$U$9:$U$1000="T3 (ALB/MBD)"), "T3 (ALB/MBD)", " ") ->  | G67: 0 | H67: 0 | J67: 0 | K67: 0 | L67: 0 | N67: 0
A68: =IF(COUNTRY_INFO!A68=0," ",COUNTRY_INFO!A68) -> ZIMBABWE | B68: =IF(COUNTRY_INFO!B68=0," ",COUNTRY_INFO!B68) -> Masvingo | C68: =IF(COUNTRY_INFO!C68=0," ",COUNTRY_INFO!C68) -> Masvingo | D68: =IF(OR(COUNTRY_INFO!$T$9:$T$1000="T3 (ALB/MBD)",COUNTRY_INFO!$U$9:$U$1000="T3 (ALB/MBD)"), "T3 (ALB/MBD)", " ") ->  | G68: 0 | H68: 0 | J68: 0 | N68: 0
A69: =IF(COUNTRY_INFO!A69=0," ",COUNTRY_INFO!A69) -> ZIMBABWE | B69: =IF(COUNTRY_INFO!B69=0," ",COUNTRY_INFO!B69) -> Masvingo | C69: =IF(COUNTRY_INFO!C69=0," ",COUNTRY_INFO!C69) -> Mwenezi | D69: =IF(OR(COUNTRY_INFO!$T$9:$T$1000="T3 (ALB/MBD)",COUNTRY_INFO!$U$9:$U$1000="T3 (ALB/MBD)"), "T3 (ALB/MBD)", " ") ->  | G69: 0 | H69: 0 | J69: 0 | K69: 0 | L69: 0 | N69: 0
A70: =IF(COUNTRY_INFO!A70=0," ",COUNTRY_INFO!A70) -> ZIMBABWE | B70: =IF(COUNTRY_INFO!B70=0," ",COUNTRY_INFO!B70) -> Masvingo | C70: =IF(COUNTRY_INFO!C70=0," ",COUNTRY_INFO!C70) -> Zaka | D70: =IF(OR(COUNTRY_INFO!$T$9:$T$1000="T3 (ALB/MBD)",COUNTRY_INFO!$U$9:$U$1000="T3 (ALB/MBD)"), "T3 (ALB/MBD)", " ") ->  | G70: 0 | H70: 0 | J70: 0 | K70: 0 | L70: 0 | N70: 0
A71: =IF(COUNTRY_INFO!A71=0," ",COUNTRY_INFO!A71) -> ZIMBABWE | B71: =IF(COUNTRY_INFO!B71=0," ",COUNTRY_INFO!B71) -> Bulawayo | C71: =IF(COUNTRY_INFO!C71=0," ",COUNTRY_INFO!C71) -> Bulawayo | D71: =IF(OR(COUNTRY_INFO!$T$9:$T$1000="T3 (ALB/MBD)",COUNTRY_INFO!$U$9:$U$1000="T3 (ALB/MBD)"), "T3 (ALB/MBD)", " ") ->  | G71: 0 | H71: 0 | J71: 0 | N71: 0

Sheet T3_R2
A1: T 3 - Albendazole (ALB) or Mebendazole (MBD) - Round 2
A2: Administrative structure, population requiring PC by age group, population treated by age group and coverage
A4: TOTAL | G4: =SUM(G$9:G$1000) -> 0 | H4: 0 | I4: 0 | J4: 0 | K4: 0 | L4: 0 | M4: 0 | N4: 0 | O4: =IF(G4<>0, IF(K4/G4*100=0, "-", K4/G4*100), " ") ->  | P4: =IF(H4<>0, IF(L4/H4*100=0, "-", L4/H4*100), " ") ->  | Q4: =IF(I4<>0, IF(M4/I4*100=0, "-", M4/I4*100), " ") ->  | R4: =IF(J4<>0, IF(N4/J4*100=0, "-", N4/J4*100), " ") -> 
D6: PC implemented | E6: Medicine | F6: Date | G6: Population targeted for T3 | K6: Population treated | O6: Programme coverage (%)
A7: Country | B7: Province/State | C7: District | G7: PreSAC | H7: SAC | I7: Adults | J7: Total | K7: PreSAC | L7: SAC | M7: Adults | N7: Total | O7: PreSAC | P7: SAC | Q7: Adults | R7: Total
A9: =IF(COUNTRY_INFO!A9=0," ",COUNTRY_INFO!A9) -> ZIMBABWE | B9: =IF(COUNTRY_INFO!B9=0," ",COUNTRY_INFO!B9) -> Manicaland | C9: =IF(COUNTRY_INFO!C9=0," ",COUNTRY_INFO!C9) -> Buhera | D9: =IF(AND(COUNTRY_INFO!$T$9:$T$1000="T3 (ALB/MBD)",COUNTRY_INFO!$U$9:$U$1000="T3 (ALB/MBD)"), "T3 (ALB/MBD)", " ") ->  | J9: =SUM(G9:I9) -> 0 | N9: =SUM(K9:M9) -> 0 | O9: =IF(G9<>0, IF(K9/G9*100=0, "-", K9/G9*100), " ") ->  | P9: =IF(H9<>0, IF(L9/H9*100=0, "-", L9/H9*100), " ") ->  | Q9: =IF(I9<>0, IF(M9/I9*100=0, "-", M9/I9*100), " ") ->  | R9: =IF(J9<>0, IF(N9/J9*100=0, "-", N9/J9*100), " ") -> 
A10: =IF(COUNTRY_INFO!A10=0," ",COUNTRY_INFO!A10) -> ZIMBABWE | B10: =IF(COUNTRY_INFO!B10=0," ",COUNTRY_INFO!B10) -> Manicaland | C10: =IF(COUNTRY_INFO!C10=0," ",COUNTRY_INFO!C10) -> Chimanimani | D10: =IF(AND(COUNTRY_INFO!$T$9:$T$1000="T3 (ALB/MBD)",COUNTRY_INFO!$U$9:$U$1000="T3 (ALB/MBD)"), "T3 (ALB/MBD)", " ") ->  | J10: =SUM(G10:I10) -> 0 | N10: =SUM(K10:M10) -> 0 | O10: =IF(G10<>0, IF(K10/G10*100=0, "-", K10/G10*100), " ") ->  | P10: =IF(H10<>0, IF(L10/H10*100=0, "-", L10/H10*100), " ") ->  | Q10: =IF(I10<>0, IF(M10/I10*100=0, "-", M10/I10*100), " ") ->  | R10: =IF(J10<>0, IF(N10/J10*100=0, "-", N10/J10*100), " ") -> 
A11: =IF(COUNTRY_INFO!A11=0," ",COUNTRY_INFO!A11) -> ZIMBABWE | B11: =IF(COUNTRY_INFO!B11=0," ",COUNTRY_INFO!B11) -> Manicaland | C11: =IF(COUNTRY_INFO!C11=0," ",COUNTRY_INFO!C11) -> Chipinge | D11: =IF(AND(COUNTRY_INFO!$T$9:$T$1000="T3 (ALB/MBD)",COUNTRY_INFO!$U$9:$U$1000="T3 (ALB/MBD)"), "T3 (ALB/MBD)", " ") ->  | J11: 0 | N11: 0
A12: =IF(COUNTRY_INFO!A12=0," ",COUNTRY_INFO!A12) -> ZIMBABWE | B12: =IF(COUNTRY_INFO!B12=0," ",COUNTRY_INFO!B12) -> Manicaland | C12: =IF(COUNTRY_INFO!C12=0," ",COUNTRY_INFO!C12) -> Makoni | D12: =IF(AND(COUNTRY_INFO!$T$9:$T$1000="T3 (ALB/MBD)",COUNTRY_INFO!$U$9:$U$1000="T3 (ALB/MBD)"), "T3 (ALB/MBD)", " ") ->  | J12: 0 | N12: 0
A13: =IF(COUNTRY_INFO!A13=0," ",COUNTRY_INFO!A13) -> ZIMBABWE | B13: =IF(COUNTRY_INFO!B13=0," ",COUNTRY_INFO!B13) -> Manicaland | C13: =IF(COUNTRY_INFO!C13=0," ",COUNTRY_INFO!C13) -> Mutare | D13: =IF(AND(COUNTRY_INFO!$T$9:$T$1000="T3 (ALB/MBD)",COUNTRY_INFO!$U$9:$U$1000="T3 (ALB/MBD)"), "T3 (ALB/MBD)", " ") ->  | J13: 0 | N13: 0
A14: =IF(COUNTRY_INFO!A14=0," ",COUNTRY_INFO!A14) -> ZIMBABWE | B14: =IF(COUNTRY_INFO!B14=0," ",COUNTRY_INFO!B14) -> Manicaland | C14: =IF(COUNTRY_INFO!C14=0," ",COUNTRY_INFO!C14) -> Mutasa | D14: =IF(AND(COUNTRY_INFO!$T$9:$T$1000="T3 (ALB/MBD)",COUNTRY_INFO!$U$9:$U$1000="T3 (ALB/MBD)"), "T3 (ALB/MBD)", " ") ->  | J14: 0 | N14: 0
A15: =IF(COUNTRY_INFO!A15=0," ",COUNTRY_INFO!A15) -> ZIMBABWE | B15: =IF(COUNTRY_INFO!B15=0," ",COUNTRY_INFO!B15) -> Manicaland | C15: =IF(COUNTRY_INFO!C15=0," ",COUNTRY_INFO!C15) -> Nyanga | D15: =IF(AND(COUNTRY_INFO!$T$9:$T$1000="T3 (ALB/MBD)",COUNTRY_INFO!$U$9:$U$1000="T3 (ALB/MBD)"), "T3 (ALB/MBD)", " ") ->  | J15: 0 | N15: 0
A16: =IF(COUNTRY_INFO!A16=0," ",COUNTRY_INFO!A16) -> ZIMBABWE | B16: =IF(COUNTRY_INFO!B16=0," ",COUNTRY_INFO!B16) -> Harare | C16: =IF(COUNTRY_INFO!C16=0," ",COUNTRY_INFO!C16) -> Chitungwiza | D16: =IF(AND(COUNTRY_INFO!$T$9:$T$1000="T3 (ALB/MBD)",COUNTRY_INFO!$U$9:$U$1000="T3 (ALB/MBD)"), "T3 (ALB/MBD)", " ") ->  | J16: 0 | N16: 0
A17: =IF(COUNTRY_INFO!A17=0," ",COUNTRY_INFO!A17) -> ZIMBABWE | B17: =IF(COUNTRY_INFO!B17=0," ",COUNTRY_INFO!B17) -> Harare | C17: =IF(COUNTRY_INFO!C17=0," ",COUNTRY_INFO!C17) -> Harare | D17: =IF(AND(COUNTRY_INFO!$T$9:$T$1000="T3 (ALB/MBD)",COUNTRY_INFO!$U$9:$U$1000="T3 (ALB/MBD)"), "T3 (ALB/MBD)", " ") ->  | J17: 0 | N17: 0
A18: =IF(COUNTRY_INFO!A18=0," ",COUNTRY_INFO!A18) -> ZIMBABWE | B18: =IF(COUNTRY_INFO!B18=0," ",COUNTRY_INFO!B18) -> Mashnaland Central | C18: =IF(COUNTRY_INFO!C18=0," ",COUNTRY_INFO!C18) -> Bindura | D18: =IF(AND(COUNTRY_INFO!$T$9:$T$1000="T3 (ALB/MBD)",COUNTRY_INFO!$U$9:$U$1000="T3 (ALB/MBD)"), "T3 (ALB/MBD)", " ") ->  | J18: 0 | N18: 0
A19: =IF(COUNTRY_INFO!A19=0," ",COUNTRY_INFO!A19) -> ZIMBABWE | B19: =IF(COUNTRY_INFO!B19=0," ",COUNTRY_INFO!B19) -> Mashnaland Central | C19: =IF(COUNTRY_INFO!C19=0," ",COUNTRY_INFO!C19) -> Centenary | D19: =IF(AND(COUNTRY_INFO!$T$9:$T$1000="T3 (ALB/MBD)",COUNTRY_INFO!$U$9:$U$1000="T3 (ALB/MBD)"), "T3 (ALB/MBD)", " ") ->  | J19: 0 | N19: 0
A20: =IF(COUNTRY_INFO!A20=0," ",COUNTRY_INFO!A20) -> ZIMBABWE | B20: =IF(COUNTRY_INFO!B20=0," ",COUNTRY_INFO!B20) -> Mashnaland Central | C20: =IF(COUNTRY_INFO!C20=0," ",COUNTRY_INFO!C20) -> Guruve | D20: =IF(AND(COUNTRY_INFO!$T$9:$T$1000="T3 (ALB/MBD)",COUNTRY_INFO!$U$9:$U$1000="T3 (ALB/MBD)"), "T3 (ALB/MBD)", " ") ->  | J20: 0 | N20: 0
A21: =IF(COUNTRY_INFO!A21=0," ",COUNTRY_INFO!A21) -> ZIMBABWE | B21: =IF(COUNTRY_INFO!B21=0," ",COUNTRY_INFO!B21) -> Mashnaland Central | C21: =IF(COUNTRY_INFO!C21=0," ",COUNTRY_INFO!C21) -> Mazowe | D21: =IF(AND(COUNTRY_INFO!$T$9:$T$1000="T3 (ALB/MBD)",COUNTRY_INFO!$U$9:$U$1000="T3 (ALB/MBD)"), "T3 (ALB/MBD)", " ") ->  | J21: 0 | N21: 0
A22: =IF(COUNTRY_INFO!A22=0," ",COUNTRY_INFO!A22) -> ZIMBABWE | B22: =IF(COUNTRY_INFO!B22=0," ",COUNTRY_INFO!B22) -> Mashnaland Central | C22: =IF(COUNTRY_INFO!C22=0," ",COUNTRY_INFO!C22) -> Mt Darwin | D22: =IF(AND(COUNTRY_INFO!$T$9:$T$1000="T3 (ALB/MBD)",COUNTRY_INFO!$U$9:$U$1000="T3 (ALB/MBD)"), "T3 (ALB/MBD)", " ") ->  | J22: 0 | N22: 0
A23: =IF(COUNTRY_INFO!A23=0," ",COUNTRY_INFO!A23) -> ZIMBABWE | B23: =IF(COUNTRY_INFO!B23=0," ",COUNTRY_INFO!B23) -> Mashnaland Central | C23: =IF(COUNTRY_INFO!C23=0," ",COUNTRY_INFO!C23) -> Rushinga | D23: =IF(AND(COUNTRY_INFO!$T$9:$T$1000="T3 (ALB/MBD)",COUNTRY_INFO!$U$9:$U$1000="T3 (ALB/MBD)"), "T3 (ALB/MBD)", " ") ->  | J23: 0 | N23: 0
A24: =IF(COUNTRY_INFO!A24=0," ",COUNTRY_INFO!A24) -> ZIMBABWE | B24: =IF(COUNTRY_INFO!B24=0," ",COUNTRY_INFO!B24) -> Mashnaland Central | C24: =IF(COUNTRY_INFO!C24=0," ",COUNTRY_INFO!C24) -> Shamva | D24: =IF(AND(COUNTRY_INFO!$T$9:$T$1000="T3 (ALB/MBD)",COUNTRY_INFO!$U$9:$U$1000="T3 (ALB/MBD)"), "T3 (ALB/MBD)", " ") ->  | J24: 0 | N24: 0
A25: =IF(COUNTRY_INFO!A25=0," ",COUNTRY_INFO!A25) -> ZIMBABWE | B25: =IF(COUNTRY_INFO!B25=0," ",COUNTRY_INFO!B25) -> Mashnaland Central | C25: =IF(COUNTRY_INFO!C25=0," ",COUNTRY_INFO!C25) -> Mbire | D25: =IF(AND(COUNTRY_INFO!$T$9:$T$1000="T3 (ALB/MBD)",COUNTRY_INFO!$U$9:$U$1000="T3 (ALB/MBD)"), "T3 (ALB/MBD)", " ") ->  | J25: 0 | N25: 0
A26: =IF(COUNTRY_INFO!A26=0," ",COUNTRY_INFO!A26) -> ZIMBABWE | B26: =IF(COUNTRY_INFO!B26=0," ",COUNTRY_INFO!B26) -> Mashonaland East | C26: =IF(COUNTRY_INFO!C26=0," ",COUNTRY_INFO!C26) -> Chikomba | D26: =IF(AND(COUNTRY_INFO!$T$9:$T$1000="T3 (ALB/MBD)",COUNTRY_INFO!$U$9:$U$1000="T3 (ALB/MBD)"), "T3 (ALB/MBD)", " ") ->  | J26: 0 | N26: 0
A27: =IF(COUNTRY_INFO!A27=0," ",COUNTRY_INFO!A27) -> ZIMBABWE | B27: =IF(COUNTRY_INFO!B27=0," ",COUNTRY_INFO!B27) -> Mashonaland East | C27: =IF(COUNTRY_INFO!C27=0," ",COUNTRY_INFO!C27) -> Goromonzi | D27: =IF(AND(COUNTRY_INFO!$T$9:$T$1000="T3 (ALB/MBD)",COUNTRY_INFO!$U$9:$U$1000="T3 (ALB/MBD)"), "T3 (ALB/MBD)", " ") ->  | J27: 0 | N27: 0
A28: =IF(COUNTRY_INFO!A28=0," ",COUNTRY_INFO!A28) -> ZIMBABWE | B28: =IF(COUNTRY_INFO!B28=0," ",COUNTRY_INFO!B28) -> Mashonaland East | C28: =IF(COUNTRY_INFO!C28=0," ",COUNTRY_INFO!C28) -> UMP | D28: =IF(AND(COUNTRY_INFO!$T$9:$T$1000="T3 (ALB/MBD)",COUNTRY_INFO!$U$9:$U$1000="T3 (ALB/MBD)"), "T3 (ALB/MBD)", " ") ->  | J28: 0 | N28: 0
A29: =IF(COUNTRY_INFO!A29=0," ",COUNTRY_INFO!A29) -> ZIMBABWE | B29: =IF(COUNTRY_INFO!B29=0," ",COUNTRY_INFO!B29) -> Mashonaland East | C29: =IF(COUNTRY_INFO!C29=0," ",COUNTRY_INFO!C29) -> Hwedza | D29: =IF(AND(COUNTRY_INFO!$T$9:$T$1000="T3 (ALB/MBD)",COUNTRY_INFO!$U$9:$U$1000="T3 (ALB/MBD)"), "T3 (ALB/MBD)", " ") ->  | J29: 0 | N29: 0
A30: =IF(COUNTRY_INFO!A30=0," ",COUNTRY_INFO!A30) -> ZIMBABWE | B30: =IF(COUNTRY_INFO!B30=0," ",COUNTRY_INFO!B30) -> Mashonaland East | C30: =IF(COUNTRY_INFO!C30=0," ",COUNTRY_INFO!C30) -> Marondera | D30: =IF(AND(COUNTRY_INFO!$T$9:$T$1000="T3 (ALB/MBD)",COUNTRY_INFO!$U$9:$U$1000="T3 (ALB/MBD)"), "T3 (ALB/MBD)", " ") ->  | J30: 0 | N30: 0
A31: =IF(COUNTRY_INFO!A31=0," ",COUNTRY_INFO!A31) -> ZIMBABWE | B31: =IF(COUNTRY_INFO!B31=0," ",COUNTRY_INFO!B31) -> Mashonaland East | C31: =IF(COUNTRY_INFO!C31=0," ",COUNTRY_INFO!C31) -> Mudzi | D31: =IF(AND(COUNTRY_INFO!$T$9:$T$1000="T3 (ALB/MBD)",COUNTRY_INFO!$U$9:$U$1000="T3 (ALB/MBD)"), "T3 (ALB/MBD)", " ") ->  | J31: 0 | N31: 0
A32: =IF(COUNTRY_INFO!A32=0," ",COUNTRY_INFO!A32) -> ZIMBABWE | B32: =IF(COUNTRY_INFO!B32=0," ",COUNTRY_INFO!B32) -> Mashonaland East | C32: =IF(COUNTRY_INFO!C32=0," ",COUNTRY_INFO!C32) -> Murewa | D32: =IF(AND(COUNTRY_INFO!$T$9:$T$1000="T3 (ALB/MBD)",COUNTRY_INFO!$U$9:$U$1000="T3 (ALB/MBD)"), "T3 (ALB/MBD)", " ") ->  | J32: 0 | N32: 0
A33: =IF(COUNTRY_INFO!A33=0," ",COUNTRY_INFO!A33) -> ZIMBABWE | B33: =IF(COUNTRY_INFO!B33=0," ",COUNTRY_INFO!B33) -> Mashonaland East | C33: =IF(COUNTRY_INFO!C33=0," ",COUNTRY_INFO!C33) -> Mutoko | D33: =IF(AND(COUNTRY_INFO!$T$9:$T$1000="T3 (ALB/MBD)",COUNTRY_INFO!$U$9:$U$1000="T3 (ALB/MBD)"), "T3 (ALB/MBD)", " ") ->  | J33: 0 | N33: 0
A34: =IF(COUNTRY_INFO!A34=0," ",COUNTRY_INFO!A34) -> ZIMBABWE | B34: =IF(COUNTRY_INFO!B34=0," ",COUNTRY_INFO!B34) -> Mashonaland East | C34: =IF(COUNTRY_INFO!C34=0," ",COUNTRY_INFO!C34) -> Seke | D34: =IF(AND(COUNTRY_INFO!$T$9:$T$1000="T3 (ALB/MBD)",COUNTRY_INFO!$U$9:$U$1000="T3 (ALB/MBD)"), "T3 (ALB/MBD)", " ") ->  | J34: 0 | N34: 0
A35: =IF(COUNTRY_INFO!A35=0," ",COUNTRY_INFO!A35) -> ZIMBABWE | B35: =IF(COUNTRY_INFO!B35=0," ",COUNTRY_INFO!B35) -> Mashonaland West | C35: =IF(COUNTRY_INFO!C35=0," ",COUNTRY_INFO!C35) -> Chegutu | D35: =IF(AND(COUNTRY_INFO!$T$9:$T$1000="T3 (ALB/MBD)",COUNTRY_INFO!$U$9:$U$1000="T3 (ALB/MBD)"), "T3 (ALB/MBD)", " ") ->  | J35: 0 | N35: 0
A36: =IF(COUNTRY_INFO!A36=0," ",COUNTRY_INFO!A36) -> ZIMBABWE | B36: =IF(COUNTRY_INFO!B36=0," ",COUNTRY_INFO!B36) -> Mashonaland West | C36: =IF(COUNTRY_INFO!C36=0," ",COUNTRY_INFO!C36) -> Hurungwe | D36: =IF(AND(COUNTRY_INFO!$T$9:$T$1000="T3 (ALB/MBD)",COUNTRY_INFO!$U$9:$U$1000="T3 (ALB/MBD)"), "T3 (ALB/MBD)", " ") ->  | J36: 0 | N36: 0
A37: =IF(COUNTRY_INFO!A37=0," ",COUNTRY_INFO!A37) -> ZIMBABWE | B37: =IF(COUNTRY_INFO!B37=0," ",COUNTRY_INFO!B37) -> Mashonaland West | C37: =IF(COUNTRY_INFO!C37=0," ",COUNTRY_INFO!C37) -> Sanyati | D37: =IF(AND(COUNTRY_INFO!$T$9:$T$1000="T3 (ALB/MBD)",COUNTRY_INFO!$U$9:$U$1000="T3 (ALB/MBD)"), "T3 (ALB/MBD)", " ") ->  | J37: 0 | N37: 0
A38: =IF(COUNTRY_INFO!A38=0," ",COUNTRY_INFO!A38) -> ZIMBABWE | B38: =IF(COUNTRY_INFO!B38=0," ",COUNTRY_INFO!B38) -> Mashonaland West | C38: =IF(COUNTRY_INFO!C38=0," ",COUNTRY_INFO!C38) -> Kariba | D38: =IF(AND(COUNTRY_INFO!$T$9:$T$1000="T3 (ALB/MBD)",COUNTRY_INFO!$U$9:$U$1000="T3 (ALB/MBD)"), "T3 (ALB/MBD)", " ") ->  | J38: 0 | N38: 0
A39: =IF(COUNTRY_INFO!A39=0," ",COUNTRY_INFO!A39) -> ZIMBABWE | B39: =IF(COUNTRY_INFO!B39=0," ",COUNTRY_INFO!B39) -> Mashonaland West | C39: =IF(COUNTRY_INFO!C39=0," ",COUNTRY_INFO!C39) -> Makonde | D39: =IF(AND(COUNTRY_INFO!$T$9:$T$1000="T3 (ALB/MBD)",COUNTRY_INFO!$U$9:$U$1000="T3 (ALB/MBD)"), "T3 (ALB/MBD)", " ") ->  | J39: 0 | N39: 0
A40: =IF(COUNTRY_INFO!A40=0," ",COUNTRY_INFO!A40) -> ZIMBABWE | B40: =IF(COUNTRY_INFO!B40=0," ",COUNTRY_INFO!B40) -> Mashonaland West | C40: =IF(COUNTRY_INFO!C40=0," ",COUNTRY_INFO!C40) -> Mhondoro-Ngezi | D40: =IF(AND(COUNTRY_INFO!$T$9:$T$1000="T3 (ALB/MBD)",COUNTRY_INFO!$U$9:$U$1000="T3 (ALB/MBD)"), "T3 (ALB/MBD)", " ") ->  | J40: 0 | N40: 0
A41: =IF(COUNTRY_INFO!A41=0," ",COUNTRY_INFO!A41) -> ZIMBABWE | B41: =IF(COUNTRY_INFO!B41=0," ",COUNTRY_INFO!B41) -> Mashonaland West | C41: =IF(COUNTRY_INFO!C41=0," ",COUNTRY_INFO!C41) -> Zvimba | D41: =IF(AND(COUNTRY_INFO!$T$9:$T$1000="T3 (ALB/MBD)",COUNTRY_INFO!$U$9:$U$1000="T3 (ALB/MBD)"), "T3 (ALB/MBD)", " ") ->  | J41: 0 | N41: 0
A42: =IF(COUNTRY_INFO!A42=0," ",COUNTRY_INFO!A42) -> ZIMBABWE | B42: =IF(COUNTRY_INFO!B42=0," ",COUNTRY_INFO!B42) -> Matabeleland North | C42: =IF(COUNTRY_INFO!C42=0," ",COUNTRY_INFO!C42) -> Binga | D42: =IF(AND(COUNTRY_INFO!$T$9:$T$1000="T3 (ALB/MBD)",COUNTRY_INFO!$U$9:$U$1000="T3 (ALB/MBD)"), "T3 (ALB/MBD)", " ") ->  | J42: 0 | N42: 0
A43: =IF(COUNTRY_INFO!A43=0," ",COUNTRY_INFO!A43) -> ZIMBABWE | B43: =IF(COUNTRY_INFO!B43=0," ",COUNTRY_INFO!B43) -> Matabeleland North | C43: =IF(COUNTRY_INFO!C43=0," ",COUNTRY_INFO!C43) -> Bubi | D43: =IF(AND(COUNTRY_INFO!$T$9:$T$1000="T3 (ALB/MBD)",COUNTRY_INFO!$U$9:$U$1000="T3 (ALB/MBD)"), "T3 (ALB/MBD)", " ") ->  | J43: 0 | N43: 0
A44: =IF(COUNTRY_INFO!A44=0," ",COUNTRY_INFO!A44) -> ZIMBABWE | B44: =IF(COUNTRY_INFO!B44=0," ",COUNTRY_INFO!B44) -> Matabeleland North | C44: =IF(COUNTRY_INFO!C44=0," ",COUNTRY_INFO!C44) -> Hwange | D44: =IF(AND(COUNTRY_INFO!$T$9:$T$1000="T3 (ALB/MBD)",COUNTRY_INFO!$U$9:$U$1000="T3 (ALB/MBD)"), "T3 (ALB/MBD)", " ") ->  | J44: 0 | N44: 0
A45: =IF(COUNTRY_INFO!A45=0," ",COUNTRY_INFO!A45) -> ZIMBABWE | B45: =IF(COUNTRY_INFO!B45=0," ",COUNTRY_INFO!B45) -> Matabeleland North | C45: =IF(COUNTRY_INFO!C45=0," ",COUNTRY_INFO!C45) -> Lupane | D45: =IF(AND(COUNTRY_INFO!$T$9:$T$1000="T3 (ALB/MBD)",COUNTRY_INFO!$U$9:$U$1000="T3 (ALB/MBD)"), "T3 (ALB/MBD)", " ") ->  | J45: 0 | N45: 0
A46: =IF(COUNTRY_INFO!A46=0," ",COUNTRY_INFO!A46) -> ZIMBABWE | B46: =IF(COUNTRY_INFO!B46=0," ",COUNTRY_INFO!B46) -> Matabeleland North | C46: =IF(COUNTRY_INFO!C46=0," ",COUNTRY_INFO!C46) -> Nkayi | D46: =IF(AND(COUNTRY_INFO!$T$9:$T$1000="T3 (ALB/MBD)",COUNTRY_INFO!$U$9:$U$1000="T3 (ALB/MBD)"), "T3 (ALB/MBD)", " ") ->  | J46: 0 | N46: 0
A47: =IF(COUNTRY_INFO!A47=0," ",COUNTRY_INFO!A47) -> ZIMBABWE | B47: =IF(COUNTRY_INFO!B47=0," ",COUNTRY_INFO!B47) -> Matabeleland North | C47: =IF(COUNTRY_INFO!C47=0," ",COUNTRY_INFO!C47) -> Tsholotsho | D47: =IF(AND(COUNTRY_INFO!$T$9:$T$1000="T3 (ALB/MBD)",COUNTRY_INFO!$U$9:$U$1000="T3 (ALB/MBD)"), "T3 (ALB/MBD)", " ") ->  | J47: 0 | N47: 0
A48: =IF(COUNTRY_INFO!A48=0," ",COUNTRY_INFO!A48) -> ZIMBABWE | B48: =IF(COUNTRY_INFO!B48=0," ",COUNTRY_INFO!B48) -> Matabeleland North | C48: =IF(COUNTRY_INFO!C48=0," ",COUNTRY_INFO!C48) -> Umguza | D48: =IF(AND(COUNTRY_INFO!$T$9:$T$1000="T3 (ALB/MBD)",COUNTRY_INFO!$U$9:$U$1000="T3 (ALB/MBD)"), "T3 (ALB/MBD)", " ") ->  | J48: 0 | N48: 0
A49: =IF(COUNTRY_INFO!A49=0," ",COUNTRY_INFO!A49) -> ZIMBABWE | B49: =IF(COUNTRY_INFO!B49=0," ",COUNTRY_INFO!B49) -> Matabeleland South | C49: =IF(COUNTRY_INFO!C49=0," ",COUNTRY_INFO!C49) -> Beit Bridge | D49: =IF(AND(COUNTRY_INFO!$T$9:$T$1000="T3 (ALB/MBD)",COUNTRY_INFO!$U$9:$U$1000="T3 (ALB/MBD)"), "T3 (ALB/MBD)", " ") ->  | J49: 0 | N49: 0
A50: =IF(COUNTRY_INFO!A50=0," ",COUNTRY_INFO!A50) -> ZIMBABWE | B50: =IF(COUNTRY_INFO!B50=0," ",COUNTRY_INFO!B50) -> Matabeleland South | C50: =IF(COUNTRY_INFO!C50=0," ",COUNTRY_INFO!C50) -> Bulilima | D50: =IF(AND(COUNTRY_INFO!$T$9:$T$1000="T3 (ALB/MBD)",COUNTRY_INFO!$U$9:$U$1000="T3 (ALB/MBD)"), "T3 (ALB/MBD)", " ") ->  | J50: 0 | N50: 0
A51: =IF(COUNTRY_INFO!A51=0," ",COUNTRY_INFO!A51) -> ZIMBABWE | B51: =IF(COUNTRY_INFO!B51=0," ",COUNTRY_INFO!B51) -> Matabeleland South | C51: =IF(COUNTRY_INFO!C51=0," ",COUNTRY_INFO!C51) -> Gwanda | D51: =IF(AND(COUNTRY_INFO!$T$9:$T$1000="T3 (ALB/MBD)",COUNTRY_INFO!$U$9:$U$1000="T3 (ALB/MBD)"), "T3 (ALB/MBD)", " ") ->  | J51: 0 | N51: 0
A52: =IF(COUNTRY_INFO!A52=0," ",COUNTRY_INFO!A52) -> ZIMBABWE | B52: =IF(COUNTRY_INFO!B52=0," ",COUNTRY_INFO!B52) -> Matabeleland South | C52: =IF(COUNTRY_INFO!C52=0," ",COUNTRY_INFO!C52) -> Insiza | D52: =IF(AND(COUNTRY_INFO!$T$9:$T$1000="T3 (ALB/MBD)",COUNTRY_INFO!$U$9:$U$1000="T3 (ALB/MBD)"), "T3 (ALB/MBD)", " ") ->  | J52: 0 | N52: 0
A53: =IF(COUNTRY_INFO!A53=0," ",COUNTRY_INFO!A53) -> ZIMBABWE | B53: =IF(COUNTRY_INFO!B53=0," ",COUNTRY_INFO!B53) -> Matabeleland South | C53: =IF(COUNTRY_INFO!C53=0," ",COUNTRY_INFO!C53) -> Mangwe | D53: =IF(AND(COUNTRY_INFO!$T$9:$T$1000="T3 (ALB/MBD)",COUNTRY_INFO!$U$9:$U$1000="T3 (ALB/MBD)"), "T3 (ALB/MBD)", " ") ->  | J53: 0 | N53: 0
A54: =IF(COUNTRY_INFO!A54=0," ",COUNTRY_INFO!A54) -> ZIMBABWE | B54: =IF(COUNTRY_INFO!B54=0," ",COUNTRY_INFO!B54) -> Matabeleland South | C54: =IF(COUNTRY_INFO!C54=0," ",COUNTRY_INFO!C54) -> Matobo | D54: =IF(AND(COUNTRY_INFO!$T$9:$T$1000="T3 (ALB/MBD)",COUNTRY_INFO!$U$9:$U$1000="T3 (ALB/MBD)"), "T3 (ALB/MBD)", " ") ->  | J54: 0 | N54: 0
A55: =IF(COUNTRY_INFO!A55=0," ",COUNTRY_INFO!A55) -> ZIMBABWE | B55: =IF(COUNTRY_INFO!B55=0," ",COUNTRY_INFO!B55) -> Matabeleland South | C55: =IF(COUNTRY_INFO!C55=0," ",COUNTRY_INFO!C55) -> Umzingwane | D55: =IF(AND(COUNTRY_INFO!$T$9:$T$1000="T3 (ALB/MBD)",COUNTRY_INFO!$U$9:$U$1000="T3 (ALB/MBD)"), "T3 (ALB/MBD)", " ") ->  | J55: 0 | N55: 0
A56: =IF(COUNTRY_INFO!A56=0," ",COUNTRY_INFO!A56) -> ZIMBABWE | B56: =IF(COUNTRY_INFO!B56=0," ",COUNTRY_INFO!B56) -> Midlands | C56: =IF(COUNTRY_INFO!C56=0," ",COUNTRY_INFO!C56) -> Chirumhanzi | D56: =IF(AND(COUNTRY_INFO!$T$9:$T$1000="T3 (ALB/MBD)",COUNTRY_INFO!$U$9:$U$1000="T3 (ALB/MBD)"), "T3 (ALB/MBD)", " ") ->  | J56: 0 | N56: 0
A57: =IF(COUNTRY_INFO!A57=0," ",COUNTRY_INFO!A57) -> ZIMBABWE | B57: =IF(COUNTRY_INFO!B57=0," ",COUNTRY_INFO!B57) -> Midlands | C57: =IF(COUNTRY_INFO!C57=0," ",COUNTRY_INFO!C57) -> Gokwe North | D57: =IF(AND(COUNTRY_INFO!$T$9:$T$1000="T3 (ALB/MBD)",COUNTRY_INFO!$U$9:$U$1000="T3 (ALB/MBD)"), "T3 (ALB/MBD)", " ") ->  | J57: 0 | N57: 0
A58: =IF(COUNTRY_INFO!A58=0," ",COUNTRY_INFO!A58) -> ZIMBABWE | B58: =IF(COUNTRY_INFO!B58=0," ",COUNTRY_INFO!B58) -> Midlands | C58: =IF(COUNTRY_INFO!C58=0," ",COUNTRY_INFO!C58) -> Gokwe South | D58: =IF(AND(COUNTRY_INFO!$T$9:$T$1000="T3 (ALB/MBD)",COUNTRY_INFO!$U$9:$U$1000="T3 (ALB/MBD)"), "T3 (ALB/MBD)", " ") ->  | J58: 0 | N58: 0
A59: =IF(COUNTRY_INFO!A59=0," ",COUNTRY_INFO!A59) -> ZIMBABWE | B59: =IF(COUNTRY_INFO!B59=0," ",COUNTRY_INFO!B59) -> Midlands | C59: =IF(COUNTRY_INFO!C59=0," ",COUNTRY_INFO!C59) -> Gweru | D59: =IF(AND(COUNTRY_INFO!$T$9:$T$1000="T3 (ALB/MBD)",COUNTRY_INFO!$U$9:$U$1000="T3 (ALB/MBD)"), "T3 (ALB/MBD)", " ") ->  | J59: 0 | N59: 0
A60: =IF(COUNTRY_INFO!A60=0," ",COUNTRY_INFO!A60) -> ZIMBABWE | B60: =IF(COUNTRY_INFO!B60=0," ",COUNTRY_INFO!B60) -> Midlands | C60: =IF(COUNTRY_INFO!C60=0," ",COUNTRY_INFO!C60) -> Kwekwe | D60: =IF(AND(COUNTRY_INFO!$T$9:$T$1000="T3 (ALB/MBD)",COUNTRY_INFO!$U$9:$U$1000="T3 (ALB/MBD)"), "T3 (ALB/MBD)", " ") ->  | J60: 0 | N60: 0
A61: =IF(COUNTRY_INFO!A61=0," ",COUNTRY_INFO!A61) -> ZIMBABWE | B61: =IF(COUNTRY_INFO!B61=0," ",COUNTRY_INFO!B61) -> Midlands | C61: =IF(COUNTRY_INFO!C61=0," ",COUNTRY_INFO!C61) -> Mberengwa | D61: =IF(AND(COUNTRY_INFO!$T$9:$T$1000="T3 (ALB/MBD)",COUNTRY_INFO!$U$9:$U$1000="T3 (ALB/MBD)"), "T3 (ALB/MBD)", " ") ->  | J61: 0 | N61: 0
A62: =IF(COUNTRY_INFO!A62=0," ",COUNTRY_INFO!A62) -> ZIMBABWE | B62: =IF(COUNTRY_INFO!B62=0," ",COUNTRY_INFO!B62) -> Midlands | C62: =IF(COUNTRY_INFO!C62=0," ",COUNTRY_INFO!C62) -> Shurugwi | D62: =IF(AND(COUNTRY_INFO!$T$9:$T$1000="T3 (ALB/MBD)",COUNTRY_INFO!$U$9:$U$1000="T3 (ALB/MBD)"), "T3 (ALB/MBD)", " ") ->  | J62: 0 | N62: 0
A63: =IF(COUNTRY_INFO!A63=0," ",COUNTRY_INFO!A63) -> ZIMBABWE | B63: =IF(COUNTRY_INFO!B63=0," ",COUNTRY_INFO!B63) -> Midlands | C63: =IF(COUNTRY_INFO!C63=0," ",COUNTRY_INFO!C63) -> Zvishavane | D63: =IF(AND(COUNTRY_INFO!$T$9:$T$1000="T3 (ALB/MBD)",COUNTRY_INFO!$U$9:$U$1000="T3 (ALB/MBD)"), "T3 (ALB/MBD)", " ") ->  | J63: 0 | N63: 0
A64: =IF(COUNTRY_INFO!A64=0," ",COUNTRY_INFO!A64) -> ZIMBABWE | B64: =IF(COUNTRY_INFO!B64=0," ",COUNTRY_INFO!B64) -> Masvingo | C64: =IF(COUNTRY_INFO!C64=0," ",COUNTRY_INFO!C64) -> Bikita | D64: =IF(AND(COUNTRY_INFO!$T$9:$T$1000="T3 (ALB/MBD)",COUNTRY_INFO!$U$9:$U$1000="T3 (ALB/MBD)"), "T3 (ALB/MBD)", " ") ->  | J64: 0 | N64: 0
A65: =IF(COUNTRY_INFO!A65=0," ",COUNTRY_INFO!A65) -> ZIMBABWE | B65: =IF(COUNTRY_INFO!B65=0," ",COUNTRY_INFO!B65) -> Masvingo | C65: =IF(COUNTRY_INFO!C65=0," ",COUNTRY_INFO!C65) -> Chiredzi | D65: =IF(AND(COUNTRY_INFO!$T$9:$T$1000="T3 (ALB/MBD)",COUNTRY_INFO!$U$9:$U$1000="T3 (ALB/MBD)"), "T3 (ALB/MBD)", " ") ->  | J65: 0 | N65: 0
A66: =IF(COUNTRY_INFO!A66=0," ",COUNTRY_INFO!A66) -> ZIMBABWE | B66: =IF(COUNTRY_INFO!B66=0," ",COUNTRY_INFO!B66) -> Masvingo | C66: =IF(COUNTRY_INFO!C66=0," ",COUNTRY_INFO!C66) -> Chivi | D66: =IF(AND(COUNTRY_INFO!$T$9:$T$1000="T3 (ALB/MBD)",COUNTRY_INFO!$U$9:$U$1000="T3 (ALB/MBD)"), "T3 (ALB/MBD)", " ") ->  | J66: 0 | N66: 0
A67: =IF(COUNTRY_INFO!A67=0," ",COUNTRY_INFO!A67) -> ZIMBABWE | B67: =IF(COUNTRY_INFO!B67=0," ",COUNTRY_INFO!B67) -> Masvingo | C67: =IF(COUNTRY_INFO!C67=0," ",COUNTRY_INFO!C67) -> Gutu | D67: =IF(AND(COUNTRY_INFO!$T$9:$T$1000="T3 (ALB/MBD)",COUNTRY_INFO!$U$9:$U$1000="T3 (ALB/MBD)"), "T3 (ALB/MBD)", " ") ->  | J67: 0 | N67: 0
A68: =IF(COUNTRY_INFO!A68=0," ",COUNTRY_INFO!A68) -> ZIMBABWE | B68: =IF(COUNTRY_INFO!B68=0," ",COUNTRY_INFO!B68) -> Masvingo | C68: =IF(COUNTRY_INFO!C68=0," ",COUNTRY_INFO!C68) -> Masvingo | D68: =IF(AND(COUNTRY_INFO!$T$9:$T$1000="T3 (ALB/MBD)",COUNTRY_INFO!$U$9:$U$1000="T3 (ALB/MBD)"), "T3 (ALB/MBD)", " ") ->  | J68: 0 | N68: 0
A69: =IF(COUNTRY_INFO!A69=0," ",COUNTRY_INFO!A69) -> ZIMBABWE | B69: =IF(COUNTRY_INFO!B69=0," ",COUNTRY_INFO!B69) -> Masvingo | C69: =IF(COUNTRY_INFO!C69=0," ",COUNTRY_INFO!C69) -> Mwenezi | D69: =IF(AND(COUNTRY_INFO!$T$9:$T$1000="T3 (ALB/MBD)",COUNTRY_INFO!$U$9:$U$1000="T3 (ALB/MBD)"), "T3 (ALB/MBD)", " ") ->  | J69: 0 | N69: 0
A70: =IF(COUNTRY_INFO!A70=0," ",COUNTRY_INFO!A70) -> ZIMBABWE | B70: =IF(COUNTRY_INFO!B70=0," ",COUNTRY_INFO!B70) -> Masvingo | C70: =IF(COUNTRY_INFO!C70=0," ",COUNTRY_INFO!C70) -> Zaka | D70: =IF(AND(COUNTRY_INFO!$T$9:$T$1000="T3 (ALB/MBD)",COUNTRY_INFO!$U$9:$U$1000="T3 (ALB/MBD)"), "T3 (ALB/MBD)", " ") ->  | J70: 0 | N70: 0
A71: =IF(COUNTRY_INFO!A71=0," ",COUNTRY_INFO!A71) -> ZIMBABWE | B71: =IF(COUNTRY_INFO!B71=0," ",COUNTRY_INFO!B71) -> Bulawayo | C71: =IF(COUNTRY_INFO!C71=0," ",COUNTRY_INFO!C71) -> Bulawayo | D71: =IF(AND(COUNTRY_INFO!$T$9:$T$1000="T3 (ALB/MBD)",COUNTRY_INFO!$U$9:$U$1000="T3 (ALB/MBD)"), "T3 (ALB/MBD)", " ") ->  | J71: 0 | N71: 0

Sheet DISTRICT
A1: Number of individuals treated
A2: Administrative structure, population treated by age group and gender
A4: TOTAL | D4: =SUM(D$9:D$1000) -> 8352700 | E4: =SUM(E$9:E$1000) -> 0 | F4: =SUM(F$9:F$1000) -> 0 | G4: =SUM(G$9:G$1000) -> 0 | H4: =SUM(H$9:H$1000) -> 0 | I4: =IF(D4>0, IF(H4/D4*100<>0, H4/D4*100, "-"),0) -> - | J4: =SUM(J$9:J$1000) -> 0 | K4: =SUM(K$9:K$1000) -> 0 | L4: =SUM(L$9:L$1000) -> 0 | M4: =SUM(M$9:M$1000) -> 0 | N4: =SUM(N$9:N$1000) -> 0 | O4: =IF(J4>0, IF(N4/J4*100<>0, N4/J4*100, "-"),0) -> 0 | P4: =SUM(P$9:P$1000) -> 553600 | Q4: =SUM(Q$9:Q$1000) -> 383789.5426 | R4: =SUM(R$9:R$1000) -> 424910.8625 | S4: =SUM(S$9:S$1000) -> 808700.4052 | T4: =SUM(T$9:T$1000) -> 6510 | V4: =SUM(V$9:V$1000) -> 60821 | X4: =SUM(X$9:X$1000) -> 67331 | Y4: =IF(P4>0, IF(X4/P4*100<>0, X4/P4*100, "-"),0) -> 12.16239162 | Z4: =SUM(Z$9:Z$1000) -> 3326158.58 | AA4: 806048.989 | AB4: 878442.3955 | AC4: 1684491.385 | AD4: 943313.09 | AF4: 203367.9203 | AH4: 1146681.01 | AI4: =IF(Z4>0, IF(AH4/Z4*100<>0, AH4/Z4*100, "-"),0) -> 34.47463441
D6: Population requiring PC for LF | E6: Population treated for lymphatic filariasis | J6: Population requiring PC for ONCHO | K6: Population treated for onchocerciasis | P6: Population requiring PC for STH | Q6: Population treated for STH | Z6: Population requiring PC for SCH | AA6: Population treated for schistosomiasis | AP6: =SUM(AP9:AP1000) -> 246401.606 | AQ6: =SUM(AQ9:AQ1000) -> 988765.2427 | AR6: =SUM(AR9:AR1000) -> 2952649.739 | AS6: =SUM(AS9:AS1000) -> 5355791.167 | AT6: =SUM(AT9:AT1000) -> 9543607.755 | AU6: =COUNTIF(AU9:AU1000,"Y") -> 10 | AV6: =SUM(AV9:AV1000) -> 46361.5 | AW6: 1423447 | AX6: 262929.3845 | AY6: =SUM(AY9:AY1000) -> 1732737.885 | AZ6: 6510 | BA6: 951045.59 | BB6: 203367.9203 | BC6: 1160923.51 | BD6: =IF(AT6<>0,BC6/AT6,0) -> 0.1216440931
A7: Country | B7: Province/State | C7: District | E7: Male | F7: Female | G7: Total treated | H7: Total in need treated | I7: (%) | K7: Male | L7: Female | M7: Total treated | N7: Total in need treated | O7: (%) | Q7: Male | R7: Female | S7: Total treated | T7: PreSAC in need treated | U7: PreSAC (%) | V7: SAC in need treated | W7: SAC (%) | X7: Total in need treated | Y7: (%) | AA7: Male | AB7: Female | AC7: Total treated | AD7: SAC in need treated | AE7: SAC (%) | AF7: Adults in need treated | AG7: Adults (%) | AH7: Total in need treated | AI7: (%) | AJ7: x | AK7: LF | AL7: ONCHO | AM7: STH | AN7: SCH-SAC | AO7: SCH_Adults | AP7: <1 | AQ7: PreSAC | AR7: SAC | AS7: Adults | AT7: Total | AU7: Dis | AV7: PreSAC | AW7: SAC | AX7: Adults | AY7: Total | AZ7: PreSAC | BA7: SAC | BB7: Adults | BC7: Total | BD7: Coverage | BE7: x | BF7: x | BG7: x
A9: =IF(COUNTRY_INFO!A9=0," ",COUNTRY_INFO!A9) -> ZIMBABWE | B9: =IF(COUNTRY_INFO!B9=0," ",COUNTRY_INFO!B9) -> Manicaland | C9: =IF(COUNTRY_INFO!C9=0," ",COUNTRY_INFO!C9) -> Buhera | D9: =COUNTRY_INFO!L9 -> 0 | G9: =MAX('MDA1'!M9,'MDA2'!M9) -> 0 | H9: =IF(AND(COUNTRY_INFO!H9>0,COUNTRY_INFO!H9<4),IF(D9>MAX('MDA1'!M9,'MDA2'!M9),MAX('MDA1'!M9,'MDA2'!M9),D9),0) -> 0 | I9: =IF(AND(COUNTRY_INFO!H9>0,COUNTRY_INFO!H9<4), IF(G9/D9*100<>0, IF(G9/D9*100>100,100,G9/D9*100), "-"),0) -> 0 | J9: =COUNTRY_INFO!M9 -> Not required | M9: =MAX('MDA1'!M9,MAX('MDA3'!I9,'MDA3'!L9)+MAX('MDA3'!J9,'MDA3'!M9)) -> 0 | N9: =IF(AND(COUNTRY_INFO!I9>0,COUNTRY_INFO!I9<4),IF(J9>MAX('MDA1'!M9,MAX('MDA3'!I9,'MDA3'!L9)+MAX('MDA3'!J9,'MDA3'!M9)),MAX('MDA1'!M9,MAX('MDA3'!I9,'MDA3'!L9)+MAX('MDA3'!J9,'MDA3'!M9)),J9),0) -> 0 | O9: =IF(AND(COUNTRY_INFO!I9>0,COUNTRY_INFO!I9<4), IF(M9/J9*100<>0, IF(M9/J9*100>100,100,M9/J9*100), "-"),0) -> 0 | P9: =COUNTRY_INFO!N9 -> 0 | Q9: 34290.46927 | R9: 41097.53073 | S9: =SUM(MAX('MDA2'!J9, 'T1'!L9, MAX(T3_R1!K9, T3_R2!K9)), MAX('MDA1'!K9, 'MDA2'!K9, 'T1'!M9, MAX(T3_R1!L9, T3_R2!L9)), MAX('MDA1'!L9, 'MDA2'!L9, 'T1'!N9, MAX(T3_R1!M9, T3_R2!M9))) -> 75388 | T9: =IF(AND(COUNTRY_INFO!J9>1,COUNTRY_INFO!J9<4),IF(COUNTRY_INFO!E9>MAX('MDA2'!J9,'T1'!L9,MAX(T3_R1!K9,T3_R2!K9)),MAX('MDA2'!J9,'T1'!L9,MAX(T3_R1!K9,T3_R2!K9)),COUNTRY_INFO!E9),0) -> 0 | U9: =IF(AND(COUNTRY_INFO!J9>1,COUNTRY_INFO!J9<4), IF(T9/COUNTRY_INFO!E9*100<>0, IF(T9/COUNTRY_INFO!E9*100>100,100,T9/COUNTRY_INFO!E9*100), "-"),0) -> 0 | V9: =IF(AND(COUNTRY_INFO!J9>1,COUNTRY_INFO!J9<4),IF(COUNTRY_INFO!F9>MAX('MDA1'!K9,'MDA2'!K9,'T1'!M9,MAX(T3_R1!L9,T3_R2!L9)),MAX('MDA1'!K9,'MDA2'!K9,'T1'!M9,MAX(T3_R1!L9,T3_R2!L9)),COUNTRY_INFO!F9),0) -> 0 | W9: =IF(AND(COUNTRY_INFO!J9>1,COUNTRY_INFO!J9<4), IF(V9/COUNTRY_INFO!F9*100<>0, IF(V9/COUNTRY_INFO!F9*100>100,100,V9/COUNTRY_INFO!F9*100), "-"),0) -> 0 | X9: =SUM(T9,V9) -> 0 | Y9: =IF(AND(COUNTRY_INFO!J9>1,COUNTRY_INFO!J9<4), IF(S9/P9*100<>0, IF(X9/P9*100>100,100,X9/P9*100), "-"),0) -> 0 | Z9: =COUNTRY_INFO!O9 -> 70072.9 | AA9: 36340.27605 | AB9: 43052.72395 | AC9: =MAX('T1'!L9,'T2'!J9)+MAX('T1'!M9,'T2'!K9)+MAX('T1'!N9,'T2'!L9) -> 79393 | AD9: =IF(COUNTRY_INFO!K9=1,IF(COUNTRY_INFO!F9*0.33>MAX('T1'!M9,'T2'!K9),MAX('T1'!M9,'T2'!K9),COUNTRY_INFO!F9*0.33),IF(COUNTRY_INFO!K9=2,IF(COUNTRY_INFO!F9*0.5>MAX('T1'!M9,'T2'!K9),MAX('T1'!M9,'T2'!K9),COUNTRY_INFO!F9*0.5),IF(COUNTRY_INFO!K9=3,IF(COUNTRY_INFO!F9>MAX('T1'!M9,'T2'!K9),MAX('T1'!M9,'T2'!K9),COUNTRY_INFO!F9),0))) -> 37038.5 | AE9: =IF(AND(COUNTRY_INFO!K9>0,COUNTRY_INFO!K9<4),IF(Z9>0,IF(COUNTRY_INFO!K9=1, AD9/(COUNTRY_INFO!F9*0.33)*100, IF(COUNTRY_INFO!K9=2, AD9/(COUNTRY_INFO!F9*0.5)*100, IF(COUNTRY_INFO!K9=3, AD9/COUNTRY_INFO!F9*100))),"-"),0) -> 100 | AF9: =IF(COUNTRY_INFO!K9=2,IF(COUNTRY_INFO!G9*0.2>MAX('T1'!N9,'T2'!L9),MAX('T1'!N9,'T2'!L9),COUNTRY_INFO!G9*0.2),IF(COUNTRY_INFO!K9=3,IF(COUNTRY_INFO!G9>MAX('T1'!N9,'T2'!L9),MAX('T1'!N9,'T2'!L9),COUNTRY_INFO!G9),0)) -> 9775 | AG9: =IF(AND(COUNTRY_INFO!K9>0,COUNTRY_INFO!K9<4),IF(Z9>0,IF(COUNTRY_INFO!K9=1, 0, IF(COUNTRY_INFO!K9=2, AF9/(COUNTRY_INFO!G9*0.2)*100, IF(COUNTRY_INFO!K9=3, AF9/COUNTRY_INFO!G9*100))),"-"),0) -> 29.59036641 | AH9: =SUM(AD9,AF9) -> 46813.5 | AI9: =IF(AND(COUNTRY_INFO!K9>0,COUNTRY_INFO!K9<4), IF(AC9/Z9*100<>0, IF(AH9/Z9*100>100,100,AH9/Z9*100), "-"),0) -> 66.806854 | AK9: =IF(AND(D9<>0, D9<>"Unknown",D9<>"Stopped",D9<>"Not required"),D9/COUNTRY_INFO!D9, 0) -> 0 | AL9: =IF(AND(J9<>0,J9<>"Unknown",J9<>"Stopped",J9<>"Not required"),J9/COUNTRY_INFO!D9, 0) -> 0 | AM9: =IF(AND(P9<>0,P9<>"Unknown",P9<>"Not required"),P9/(COUNTRY_INFO!E9+COUNTRY_INFO!F9), 0) -> 0 | AN9: =IF(AND(Z9<>0,Z9<>"Unknown",Z9<>"Not required"),IF(COUNTRY_INFO!K9=1,1,IF(COUNTRY_INFO!K9=2,0.5*COUNTRY_INFO!F9/(0.5*COUNTRY_INFO!F9+0.2*COUNTRY_INFO!G9),IF(COUNTRY_INFO!K9=3,COUNTRY_INFO!F9/(COUNTRY_INFO!F9+COUNTRY_INFO!G9)))),0) -> 0.5285709597 | AO9: =IF(AND(Z9<>0,Z9<>"Unknown",Z9<>"Not required"),IF(COUNTRY_INFO!K9=1,0,IF(COUNTRY_INFO!K9=2,0.2*COUNTRY_INFO!G9/(0.5*COUNTRY_INFO!F9+0.2*COUNTRY_INFO!G9),IF(COUNTRY_INFO!K9=3,COUNTRY_INFO!G9/(COUNTRY_INFO!F9+COUNTRY_INFO!G9)))),0) -> 0.4714290403 | AP9: =MAX(COUNTRY_INFO!D9*AK9*PROFILE!$G$7,COUNTRY_INFO!D9*AL9*PROFILE!$G$7) -> 0 | AQ9: =MAX(COUNTRY_INFO!D9*AK9*PROFILE!$G$8,COUNTRY_INFO!D9*AL9*PROFILE!$G$8,COUNTRY_INFO!D9*AM9*PROFILE!$G$8) -> 0 | AR9: =MAX(COUNTRY_INFO!D9*AK9*PROFILE!$G$9,COUNTRY_INFO!D9*AL9*PROFILE!$G$9,COUNTRY_INFO!D9*AM9*PROFILE!$G$9,IF(AND(DISTRICT!Z9<>"Unknown",Z9<>"Not required"),COUNTRY_INFO!O9*DISTRICT!AN9,0)) -> 37038.5 | AS9: =MAX(COUNTRY_INFO!D9*AK9*PROFILE!$G$10,COUNTRY_INFO!D9*AL9*PROFILE!$G$10,IF(AND(DISTRICT!Z9<>"Unknown",Z9<>"Not required"),COUNTRY_INFO!O9*DISTRICT!AO9,0)) -> 33034.4 | AT9: =SUM(AP9:AS9) -> 70072.9 | AU9: =IF(COUNTIFS(AK9:AN9,">0")=0,0, IF(COUNTIFS(AK9:AN9,">0")<=IF(AND(OR(D9>=0,D9="Not required",D9="Unknown",D9="Stopped"),D9>0,H9>0),1,0)+IF(AND(OR(J9>=0,J9="Not required",J9="Unknown",J9="Stopped"),J9>0,N9>0),1,0)+IF(AND(OR(P9>=0,P9="Not required",P9="Unknown"),P9>0,X9>0),1,0)+IF(AND(OR(Z9>=0,Z9="Not required",Z9="Unknown"),Z9>0,AH9>0),1,0),"Y",0)) -> Y | AV9: =MAX('MDA2'!J9,'T1'!L9,'T2'!J9,T3_R1!K9,T3_R2!K9) -> 206 | AW9: =MAX('MDA1'!K9,'MDA2'!K9,'MDA3'!I9,'MDA3'!L9,'T1'!M9,'T2'!K9,T3_R1!L9,T3_R2!L9) -> 69618 | AX9: =MAX('MDA1'!L9,'MDA2'!L9,'MDA3'!J9,'MDA3'!M9,'T1'!N9,'T2'!L9,T3_R1!M9,T3_R2!M9) -> 9775 | AY9: =SUM(AV9:AX9) -> 79599 | AZ9: =MAX('MDA2'!J9,T9) -> 0 | BA9: =MAX('MDA1'!K9,'MDA2'!K9,'MDA3'!I9,'MDA3'!L9,V9,AD9) -> 37038.5 | BB9: =MAX('MDA1'!L9,'MDA2'!L9,'MDA3'!J9,'MDA3'!M9,AF9) -> 9775 | BC9: =IF(AT9<SUM(AZ9:BB9), AT9,SUM(AZ9:BB9)) -> 46813.5 | BD9: =IF(AT9<>0,BC9/AT9*100,0) -> 66.806854 | BE9: =S9-Q9-R9 -> 0 | BF9: =AC9-AA9-AB9 -> 0
A10: =IF(COUNTRY_INFO!A10=0," ",COUNTRY_INFO!A10) -> ZIMBABWE | B10: =IF(COUNTRY_INFO!B10=0," ",COUNTRY_INFO!B10) -> Manicaland | C10: =IF(COUNTRY_INFO!C10=0," ",COUNTRY_INFO!C10) -> Chimanimani | D10: =COUNTRY_INFO!L10 -> 0 | G10: =MAX('MDA1'!M10,'MDA2'!M10) -> 0 | H10: =IF(AND(COUNTRY_INFO!H10>0,COUNTRY_INFO!H10<4),IF(D10>MAX('MDA1'!M10,'MDA2'!M10),MAX('MDA1'!M10,'MDA2'!M10),D10),0) -> 0 | I10: =IF(AND(COUNTRY_INFO!H10>0,COUNTRY_INFO!H10<4), IF(G10/D10*100<>0, IF(G10/D10*100>100,100,G10/D10*100), "-"),0) -> 0 | J10: =COUNTRY_INFO!M10 -> Not required | M10: =MAX('MDA1'!M10,MAX('MDA3'!I10,'MDA3'!L10)+MAX('MDA3'!J10,'MDA3'!M10)) -> 0 | N10: =IF(AND(COUNTRY_INFO!I10>0,COUNTRY_INFO!I10<4),IF(J10>MAX('MDA1'!M10,MAX('MDA3'!I10,'MDA3'!L10)+MAX('MDA3'!J10,'MDA3'!M10)),MAX('MDA1'!M10,MAX('MDA3'!I10,'MDA3'!L10)+MAX('MDA3'!J10,'MDA3'!M10)),J10),0) -> 0 | O10: =IF(AND(COUNTRY_INFO!I10>0,COUNTRY_INFO!I10<4), IF(M10/J10*100<>0, IF(M10/J10*100>100,100,M10/J10*100), "-"),0) -> 0 | P10: =COUNTRY_INFO!N10 -> 0 | Q10: 26800.8573 | R10: 32121.1427 | S10: =SUM(MAX('MDA2'!J10, 'T1'!L10, MAX(T3_R1!K10, T3_R2!K10)), MAX('MDA1'!K10, 'MDA2'!K10, 'T1'!M10, MAX(T3_R1!L10, T3_R2!L10)), MAX('MDA1'!L10, 'MDA2'!L10, 'T1'!N10, MAX(T3_R1!M10, T3_R2!M10))) -> 58922 | T10: =IF(AND(COUNTRY_INFO!J10>1,COUNTRY_INFO!J10<4),IF(COUNTRY_INFO!E10>MAX('MDA2'!J10,'T1'!L10,MAX(T3_R1!K10,T3_R2!K10)),MAX('MDA2'!J10,'T1'!L10,MAX(T3_R1!K10,T3_R2!K10)),COUNTRY_INFO!E10),0) -> 0 | U10: =IF(AND(COUNTRY_INFO!J10>1,COUNTRY_INFO!J10<4), IF(T10/COUNTRY_INFO!E10*100<>0, IF(T10/COUNTRY_INFO!E10*100>100,100,T10/COUNTRY_INFO!E10*100), "-"),0) -> 0 | V10: =IF(AND(COUNTRY_INFO!J10>1,COUNTRY_INFO!J10<4),IF(COUNTRY_INFO!F10>MAX('MDA1'!K10,'MDA2'!K10,'T1'!M10,MAX(T3_R1!L10,T3_R2!L10)),MAX('MDA1'!K10,'MDA2'!K10,'T1'!M10,MAX(T3_R1!L10,T3_R2!L10)),COUNTRY_INFO!F10),0) -> 0 | W10: =IF(AND(COUNTRY_INFO!J10>1,COUNTRY_INFO!J10<4), IF(V10/COUNTRY_INFO!F10*100<>0, IF(V10/COUNTRY_INFO!F10*100>100,100,V10/COUNTRY_INFO!F10*100), "-"),0) -> 0 | X10: =SUM(T10,V10) -> 0 | Y10: =IF(AND(COUNTRY_INFO!J10>1,COUNTRY_INFO!J10<4), IF(S10/P10*100<>0, IF(X10/P10*100>100,100,X10/P10*100), "-"),0) -> 0 | Z10: =COUNTRY_INFO!O10 -> 38456.6 | AA10: 28137.09654 | AB10: 31017.90346 | AC10: =MAX('T1'!L10,'T2'!J10)+MAX('T1'!M10,'T2'!K10)+MAX('T1'!N10,'T2'!L10) -> 59155 | AD10: =IF(COUNTRY_INFO!K10=1,IF(COUNTRY_INFO!F10*0.33>MAX('T1'!M10,'T2'!K10),MAX('T1'!M10,'T2'!K10),COUNTRY_INFO!F10*0.33),IF(COUNTRY_INFO!K10=2,IF(COUNTRY_INFO!F10*0.5>MAX('T1'!M10,'T2'!K10),MAX('T1'!M10,'T2'!K10),COUNTRY_INFO!F10*0.5),IF(COUNTRY_INFO!K10=3,IF(COUNTRY_INFO!F10>MAX('T1'!M10,'T2'!K10),MAX('T1'!M10,'T2'!K10),COUNTRY_INFO!F10),0))) -> 20327 | AE10: =IF(AND(COUNTRY_INFO!K10>0,COUNTRY_INFO!K10<4),IF(Z10>0,IF(COUNTRY_INFO!K10=1, AD10/(COUNTRY_INFO!F10*0.33)*100, IF(COUNTRY_INFO!K10=2, AD10/(COUNTRY_INFO!F10*0.5)*100, IF(COUNTRY_INFO!K10=3, AD10/COUNTRY_INFO!F10*100))),"-"),0) -> 100 | AF10: =IF(COUNTRY_INFO!K10=2,IF(COUNTRY_INFO!G10*0.2>MAX('T1'!N10,'T2'!L10),MAX('T1'!N10,'T2'!L10),COUNTRY_INFO!G10*0.2),IF(COUNTRY_INFO!K10=3,IF(COUNTRY_INFO!G10>MAX('T1'!N10,'T2'!L10),MAX('T1'!N10,'T2'!L10),COUNTRY_INFO!G10),0)) -> 10489 | AG10: =IF(AND(COUNTRY_INFO!K10>0,COUNTRY_INFO!K10<4),IF(Z10>0,IF(COUNTRY_INFO!K10=1, 0, IF(COUNTRY_INFO!K10=2, AF10/(COUNTRY_INFO!G10*0.2)*100, IF(COUNTRY_INFO!K10=3, AF10/COUNTRY_INFO!G10*100))),"-"),0) -> 57.85566146 | AH10: =SUM(AD10,AF10) -> 30816 | AI10: =IF(AND(COUNTRY_INFO!K10>0,COUNTRY_INFO!K10<4), IF(AC10/Z10*100<>0, IF(AH10/Z10*100>100,100,AH10/Z10*100), "-"),0) -> 80.13188893 | AK10: =IF(AND(D10<>0, D10<>"Unknown",D10<>"Stopped",D10<>"Not required"),D10/COUNTRY_INFO!D10, 0) -> 0 | AL10: =IF(AND(J10<>0,J10<>"Unknown",J10<>"Stopped",J10<>"Not required"),J10/COUNTRY_INFO!D10, 0) -> 0 | AM10: =IF(AND(P10<>0,P10<>"Unknown",P10<>"Not required"),P10/(COUNTRY_INFO!E10+COUNTRY_INFO!F10), 0) -> 0 | AN10: =IF(AND(Z10<>0,Z10<>"Unknown",Z10<>"Not required"),IF(COUNTRY_INFO!K10=1,1,IF(COUNTRY_INFO!K10=2,0.5*COUNTRY_INFO!F10/(0.5*COUNTRY_INFO!F10+0.2*COUNTRY_INFO!G10),IF(COUNTRY_INFO!K10=3,COUNTRY_INFO!F10/(COUNTRY_INFO!F10+COUNTRY_INFO!G10)))),0) -> 0.5285698684 | AO10: =IF(AND(Z10<>0,Z10<>"Unknown",Z10<>"Not required"),IF(COUNTRY_INFO!K10=1,0,IF(COUNTRY_INFO!K10=2,0.2*COUNTRY_INFO!G10/(0.5*COUNTRY_INFO!F10+0.2*COUNTRY_INFO!G10),IF(COUNTRY_INFO!K10=3,COUNTRY_INFO!G10/(COUNTRY_INFO!F10+COUNTRY_INFO!G10)))),0) -> 0.4714301316 | AP10: =MAX(COUNTRY_INFO!D10*AK10*PROFILE!$G$7,COUNTRY_INFO!D10*AL10*PROFILE!$G$7) -> 0 | AQ10: =MAX(COUNTRY_INFO!D10*AK10*PROFILE!$G$8,COUNTRY_INFO!D10*AL10*PROFILE!$G$8,COUNTRY_INFO!D10*AM10*PROFILE!$G$8) -> 0 | AR10: =MAX(COUNTRY_INFO!D10*AK10*PROFILE!$G$9,COUNTRY_INFO!D10*AL10*PROFILE!$G$9,COUNTRY_INFO!D10*AM10*PROFILE!$G$9,IF(AND(DISTRICT!Z10<>"Unknown",Z10<>"Not required"),COUNTRY_INFO!O10*DISTRICT!AN10,0)) -> 20327 | AS10: =MAX(COUNTRY_INFO!D10*AK10*PROFILE!$G$10,COUNTRY_INFO!D10*AL10*PROFILE!$G$10,IF(AND(DISTRICT!Z10<>"Unknown",Z10<>"Not required"),COUNTRY_INFO!O10*DISTRICT!AO10,0)) -> 18129.6 | AT10: =SUM(AP10:AS10) -> 38456.6 | AU10: Y | AV10: =MAX('MDA2'!J10,'T1'!L10,'T2'!J10,T3_R1!K10,T3_R2!K10) -> 4 | AW10: =MAX('MDA1'!K10,'MDA2'!K10,'MDA3'!I10,'MDA3'!L10,'T1'!M10,'T2'!K10,T3_R1!L10,T3_R2!L10) -> 48666 | AX10: =MAX('MDA1'!L10,'MDA2'!L10,'MDA3'!J10,'MDA3'!M10,'T1'!N10,'T2'!L10,T3_R1!M10,T3_R2!M10) -> 10489 | AY10: =SUM(AV10:AX10) -> 59159 | AZ10: =MAX('MDA2'!J10,T10) -> 0 | BA10: =MAX('MDA1'!K10,'MDA2'!K10,'MDA3'!I10,'MDA3'!L10,V10,AD10) -> 20327 | BB10: =MAX('MDA1'!L10,'MDA2'!L10,'MDA3'!J10,'MDA3'!M10,AF10) -> 10489 | BC10: 30816 | BD10: 80.13188893 | BE10: =S10-Q10-R10 -> 0 | BF10: =AC10-AA10-AB10 -> 0
A11: =IF(COUNTRY_INFO!A11=0," ",COUNTRY_INFO!A11) -> ZIMBABWE | B11: =IF(COUNTRY_INFO!B11=0," ",COUNTRY_INFO!B11) -> Manicaland | C11: =IF(COUNTRY_INFO!C11=0," ",COUNTRY_INFO!C11) -> Chipinge | D11: =COUNTRY_INFO!L11 -> 368367 | G11: =MAX('MDA1'!M11,'MDA2'!M11) -> 0 | H11: =IF(AND(COUNTRY_INFO!H11>0,COUNTRY_INFO!H11<4),IF(D11>MAX('MDA1'!M11,'MDA2'!M11),MAX('MDA1'!M11,'MDA2'!M11),D11),0) -> 0 | I11: =IF(AND(COUNTRY_INFO!H11>0,COUNTRY_INFO!H11<4), IF(G11/D11*100<>0, IF(G11/D11*100>100,100,G11/D11*100), "-"),0) -> - | J11: =COUNTRY_INFO!M11 -> Not required | M11: =MAX('MDA1'!M11,MAX('MDA3'!I11,'MDA3'!L11)+MAX('MDA3'!J11,'MDA3'!M11)) -> 0 | N11: =IF(AND(COUNTRY_INFO!I11>0,COUNTRY_INFO!I11<4),IF(J11>MAX('MDA1'!M11,MAX('MDA3'!I11,'MDA3'!L11)+MAX('MDA3'!J11,'MDA3'!M11)),MAX('MDA1'!M11,MAX('MDA3'!I11,'MDA3'!L11)+MAX('MDA3'!J11,'MDA3'!M11)),J11),0) -> 0 | O11: =IF(AND(COUNTRY_INFO!I11>0,COUNTRY_INFO!I11<4), IF(M11/J11*100<>0, IF(M11/J11*100>100,100,M11/J11*100), "-"),0) -> 0 | P11: =COUNTRY_INFO!N11 -> 0 | Q11: 45713.39768 | R11: 52790.60232 | S11: =SUM(MAX('MDA2'!J11, 'T1'!L11, MAX(T3_R1!K11, T3_R2!K11)), MAX('MDA1'!K11, 'MDA2'!K11, 'T1'!M11, MAX(T3_R1!L11, T3_R2!L11)), MAX('MDA1'!L11, 'MDA2'!L11, 'T1'!N11, MAX(T3_R1!M11, T3_R2!M11))) -> 98504 | T11: =IF(AND(COUNTRY_INFO!J11>1,COUNTRY_INFO!J11<4),IF(COUNTRY_INFO!E11>MAX('MDA2'!J11,'T1'!L11,MAX(T3_R1!K11,T3_R2!K11)),MAX('MDA2'!J11,'T1'!L11,MAX(T3_R1!K11,T3_R2!K11)),COUNTRY_INFO!E11),0) -> 0 | U11: =IF(AND(COUNTRY_INFO!J11>1,COUNTRY_INFO!J11<4), IF(T11/COUNTRY_INFO!E11*100<>0, IF(T11/COUNTRY_INFO!E11*100>100,100,T11/COUNTRY_INFO!E11*100), "-"),0) -> 0 | V11: =IF(AND(COUNTRY_INFO!J11>1,COUNTRY_INFO!J11<4),IF(COUNTRY_INFO!F11>MAX('MDA1'!K11,'MDA2'!K11,'T1'!M11,MAX(T3_R1!L11,T3_R2!L11)),MAX('MDA1'!K11,'MDA2'!K11,'T1'!M11,MAX(T3_R1!L11,T3_R2!L11)),COUNTRY_INFO!F11),0) -> 0 | W11: =IF(AND(COUNTRY_INFO!J11>1,COUNTRY_INFO!J11<4), IF(V11/COUNTRY_INFO!F11*100<>0, IF(V11/COUNTRY_INFO!F11*100>100,100,V11/COUNTRY_INFO!F11*100), "-"),0) -> 0 | X11: 0 | Y11: =IF(AND(COUNTRY_INFO!J11>1,COUNTRY_INFO!J11<4), IF(S11/P11*100<>0, IF(X11/P11*100>100,100,X11/P11*100), "-"),0) -> 0 | Z11: =COUNTRY_INFO!O11 -> 92375.4 | AA11: 48968.7899 | AB11: 54949.2101 | AC11: =MAX('T1'!L11,'T2'!J11)+MAX('T1'!M11,'T2'!K11)+MAX('T1'!N11,'T2'!L11) -> 103918 | AD11: =IF(COUNTRY_INFO!K11=1,IF(COUNTRY_INFO!F11*0.33>MAX('T1'!M11,'T2'!K11),MAX('T1'!M11,'T2'!K11),COUNTRY_INFO!F11*0.33),IF(COUNTRY_INFO!K11=2,IF(COUNTRY_INFO!F11*0.5>MAX('T1'!M11,'T2'!K11),MAX('T1'!M11,'T2'!K11),COUNTRY_INFO!F11*0.5),IF(COUNTRY_INFO!K11=3,IF(COUNTRY_INFO!F11>MAX('T1'!M11,'T2'!K11),MAX('T1'!M11,'T2'!K11),COUNTRY_INFO!F11),0))) -> 48827 | AE11: =IF(AND(COUNTRY_INFO!K11>0,COUNTRY_INFO!K11<4),IF(Z11>0,IF(COUNTRY_INFO!K11=1, AD11/(COUNTRY_INFO!F11*0.33)*100, IF(COUNTRY_INFO!K11=2, AD11/(COUNTRY_INFO!F11*0.5)*100, IF(COUNTRY_INFO!K11=3, AD11/COUNTRY_INFO!F11*100))),"-"),0) -> 100 | AF11: =IF(COUNTRY_INFO!K11=2,IF(COUNTRY_INFO!G11*0.2>MAX('T1'!N11,'T2'!L11),MAX('T1'!N11,'T2'!L11),COUNTRY_INFO!G11*0.2),IF(COUNTRY_INFO!K11=3,IF(COUNTRY_INFO!G11>MAX('T1'!N11,'T2'!L11),MAX('T1'!N11,'T2'!L11),COUNTRY_INFO!G11),0)) -> 13613 | AG11: =IF(AND(COUNTRY_INFO!K11>0,COUNTRY_INFO!K11<4),IF(Z11>0,IF(COUNTRY_INFO!K11=1, 0, IF(COUNTRY_INFO!K11=2, AF11/(COUNTRY_INFO!G11*0.2)*100, IF(COUNTRY_INFO!K11=3, AF11/COUNTRY_INFO!G11*100))),"-"),0) -> 31.25947222 | AH11: 62440 | AI11: =IF(AND(COUNTRY_INFO!K11>0,COUNTRY_INFO!K11<4), IF(AC11/Z11*100<>0, IF(AH11/Z11*100>100,100,AH11/Z11*100), "-"),0) -> 67.59375332 | AK11: =IF(AND(D11<>0, D11<>"Unknown",D11<>"Stopped",D11<>"Not required"),D11/COUNTRY_INFO!D11, 0) -> 1 | AL11: =IF(AND(J11<>0,J11<>"Unknown",J11<>"Stopped",J11<>"Not required"),J11/COUNTRY_INFO!D11, 0) -> 0 | AM11: =IF(AND(P11<>0,P11<>"Unknown",P11<>"Not required"),P11/(COUNTRY_INFO!E11+COUNTRY_INFO!F11), 0) -> 0 | AN11: =IF(AND(Z11<>0,Z11<>"Unknown",Z11<>"Not required"),IF(COUNTRY_INFO!K11=1,1,IF(COUNTRY_INFO!K11=2,0.5*COUNTRY_INFO!F11/(0.5*COUNTRY_INFO!F11+0.2*COUNTRY_INFO!G11),IF(COUNTRY_INFO!K11=3,COUNTRY_INFO!F11/(COUNTRY_INFO!F11+COUNTRY_INFO!G11)))),0) -> 0.5285714595 | AO11: =IF(AND(Z11<>0,Z11<>"Unknown",Z11<>"Not required"),IF(COUNTRY_INFO!K11=1,0,IF(COUNTRY_INFO!K11=2,0.2*COUNTRY_INFO!G11/(0.5*COUNTRY_INFO!F11+0.2*COUNTRY_INFO!G11),IF(COUNTRY_INFO!K11=3,COUNTRY_INFO!G11/(COUNTRY_INFO!F11+COUNTRY_INFO!G11)))),0) -> 0.4714285405 | AP11: =MAX(COUNTRY_INFO!D11*AK11*PROFILE!$G$7,COUNTRY_INFO!D11*AL11*PROFILE!$G$7) -> 10866.69226 | AQ11: =MAX(COUNTRY_INFO!D11*AK11*PROFILE!$G$8,COUNTRY_INFO!D11*AL11*PROFILE!$G$8,COUNTRY_INFO!D11*AM11*PROFILE!$G$8) -> 42104.44324 | AR11: =MAX(COUNTRY_INFO!D11*AK11*PROFILE!$G$9,COUNTRY_INFO!D11*AL11*PROFILE!$G$9,COUNTRY_INFO!D11*AM11*PROFILE!$G$9,IF(AND(DISTRICT!Z11<>"Unknown",Z11<>"Not required"),COUNTRY_INFO!O11*DISTRICT!AN11,0)) -> 97654.08601 | AS11: =MAX(COUNTRY_INFO!D11*AK11*PROFILE!$G$10,COUNTRY_INFO!D11*AL11*PROFILE!$G$10,IF(AND(DISTRICT!Z11<>"Unknown",Z11<>"Not required"),COUNTRY_INFO!O11*DISTRICT!AO11,0)) -> 217741.7785 | AT11: 368367 | AU11: 0 | AV11: =MAX('MDA2'!J11,'T1'!L11,'T2'!J11,T3_R1!K11,T3_R2!K11) -> 27 | AW11: =MAX('MDA1'!K11,'MDA2'!K11,'MDA3'!I11,'MDA3'!L11,'T1'!M11,'T2'!K11,T3_R1!L11,T3_R2!L11) -> 90305 | AX11: =MAX('MDA1'!L11,'MDA2'!L11,'MDA3'!J11,'MDA3'!M11,'T1'!N11,'T2'!L11,T3_R1!M11,T3_R2!M11) -> 13613 | AY11: 103945 | AZ11: =MAX('MDA2'!J11,T11) -> 0 | BA11: =MAX('MDA1'!K11,'MDA2'!K11,'MDA3'!I11,'MDA3'!L11,V11,AD11) -> 48827 | BB11: =MAX('MDA1'!L11,'MDA2'!L11,'MDA3'!J11,'MDA3'!M11,AF11) -> 13613 | BC11: 62440 | BD11: 16.95048688 | BE11: 0 | BF11: 0
